Workbook

Sheet DATA
B1: Dev. | C1: Scenario | F1: Line Item | G1: 2013 | H1: 2014 | I1: 2015 | J1: 2016 | K1: 2017 | L1: 2018 | M1: 2019 | N1: 2020 | O1: 2021 | P1: 2022 | Q1: 2023 | R1: 2024 | S1: 2025 | T1: 2026 | U1: 2027 | V1: 2028 | W1: 2029 | X1: 2030 | Y1: 2031 | Z1: 2032 | AA1: 2033 | AB1: 2034 | AC1: 2035 | AD1: 2036 | AE1: 2037 | AF1: 2038 | AG1: 2039 | AH1: 2040 | AI1: 2041 | AJ1: 2042 | AK1: 2043 | AL1: 2044 | AM1: 2045 | AN1: 2046 | AO1: 2047 | AP1: 2048 | AQ1: 2049 | AR1: 2050 | AS1: 2051 | AT1: 2052 | AU1: 2053 | AV1: 2054 | AW1: 2055 | AX1: 2056 | AY1: 2057 | AZ1: 2058 | BA1: 2059 | BB1: 2060 | BC1: 2061 | BD1: 2062
A2: Data Source | B2: Plan | C2: Econ | D2: Rev | E2: Cap | F2: A | G2: B | H2: C | I2: D | J2: E | K2: F | L2: G | M2: H | N2: I | O2: J | P2: K | Q2: L | R2: M | S2: N | T2: O | U2: P | V2: Q | W2: R | X2: S | Y2: T | Z2: U | AA2: V | AB2: W | AC2: X | AD2: Y | AE2: Z | AF2: B | AG2: C | AH2: D | AI2: E | AJ2: F | AK2: G | AL2: H | AM2: I | AN2: J | AO2: K | AP2: L | AQ2: M | AR2: N | AS2: O | AT2: P | AU2: Q | AV2: R | AW2: S | AX2: T | AY2: U | AZ2: V | BA2: W | BB2: X | BC2: Y | BD2: Z
A3: 11.4 | B3: K19 Sales C25 750MW | C3: REF | D3: REF | E3: REF | F3: Development Plan | G3: K19 Sales C25 750MW | AF3: K19 Sales C25 750MW
A4: 11.4 | B4: K19 Sales C25 750MW | C4: REF | D4: REF | E4: REF | F4: Development Plan Scenario | G4: Economics:REF Rev:REF Cap:REF | AF4: Economics:REF Rev:REF Cap:REF
A5: 11.4 | B5: K19 Sales C25 750MW | C5: REF | D5: REF | E5: REF | F5: ELECTRIC OPERATIONS
A6: 11.4 | B6: K19 Sales C25 750MW | C6: REF | D6: REF | E6: REF | F6: PROJECTED OPERATING STATEMENT
A7: 11.4 | B7: K19 Sales C25 750MW | C7: REF | D7: REF | E7: REF | F7: In Millions of Dollars
A8: 11.4 | B8: K19 Sales C25 750MW | C8: REF | D8: REF | E8: REF | F8: For the year ended March 31 | G8: 2013 | H8: 2014 | I8: 2015 | J8: 2016 | K8: 2017 | L8: 2018 | M8: 2019 | N8: 2020 | O8: 2021 | P8: 2022 | Q8: 2023 | R8: 2024 | S8: 2025 | T8: 2026 | U8: 2027 | V8: 2028 | W8: 2029 | X8: 2030 | Y8: 2031 | Z8: 2032 | AA8: 2033 | AB8: 2034 | AC8: 2035 | AD8: 2036 | AE8: 2037 | AF8: 2038 | AG8: 2039 | AH8: 2040 | AI8: 2041 | AJ8: 2042 | AK8: 2043 | AL8: 2044 | AM8: 2045 | AN8: 2046 | AO8: 2047 | AP8: 2048 | AQ8: 2049 | AR8: 2050 | AS8: 2051 | AT8: 2052 | AU8: 2053 | AV8: 2054 | AW8: 2055 | AX8: 2056 | AY8: 2057 | AZ8: 2058 | BA8: 2059 | BB8: 2060 | BC8: 2061 | BD8: 2062
A9: 11.4 | B9: K19 Sales C25 750MW | C9: REF | D9: REF | E9: REF | F9: REVENUES
A10: 11.4 | B10: K19 Sales C25 750MW | C10: REF | D10: REF | E10: REF | F10: General Consumers Revenue at approved rates | G10: 1331 | H10: 1361 | I10: 1374 | J10: 1390 | K10: 1404 | L10: 1424 | M10: 1447 | N10: 1462 | O10: 1485 | P10: 1506 | Q10: 1529 | R10: 1552 | S10: 1575 | T10: 1598 | U10: 1621 | V10: 1644 | W10: 1669 | X10: 1693 | Y10: 1717 | Z10: 1741 | AA10: 1765 | AB10: 1790 | AC10: 1814 | AD10: 1838 | AE10: 1862 | AF10: 1886 | AG10: 1910 | AH10: 1935 | AI10: 1959 | AJ10: 1983 | AK10: 2007 | AL10: 2031 | AM10: 2056 | AN10: 2080 | AO10: 2104 | AP10: 2128 | AQ10: 2128 | AR10: 2128 | AS10: 2128 | AT10: 2128 | AU10: 2128 | AV10: 2128 | AW10: 2128 | AX10: 2128 | AY10: 2128 | AZ10: 2128 | BA10: 2128 | BB10: 2128 | BC10: 2128 | BD10: 2128
A11: 11.4 | B11: K19 Sales C25 750MW | C11: REF | D11: REF | E11: REF | F11: Additional General Consumers Revenue | G11: 0 | H11: 48 | I11: 104 | J11: 164 | K11: 228 | L11: 297 | M11: 370 | N11: 447 | O11: 530 | P11: 619 | Q11: 713 | R11: 814 | S11: 921 | T11: 1034 | U11: 1154 | V11: 1282 | W11: 1418 | X11: 1562 | Y11: 1715 | Z11: 1876 | AA11: 1057 | AB11: 1076 | AC11: 1123 | AD11: 1157 | AE11: 1211 | AF11: 1260 | AG11: 1275 | AH11: 1310 | AI11: 1345 | AJ11: 1430 | AK11: 1526 | AL11: 1553 | AM11: 1609 | AN11: 1712 | AO11: 1844 | AP11: 1868 | AQ11: 1852 | AR11: 1871 | AS11: 1968 | AT11: 2001 | AU11: 2027 | AV11: 2108 | AW11: 2131 | AX11: 2128 | AY11: 2165 | AZ11: 2144 | BA11: 2170 | BB11: 2207 | BC11: 2228 | BD11: 2256
A12: 11.4 | B12: K19 Sales C25 750MW | C12: REF | D12: REF | E12: REF | F12: Extraprovincial | G12: 357 | H12: 344 | I12: 333 | J12: 370 | K12: 388 | L12: 412 | M12: 402 | N12: 439 | O12: 713 | P12: 817 | Q12: 829 | R12: 808 | S12: 795 | T12: 834 | U12: 1099 | V12: 1165 | W12: 1174 | X12: 1168 | Y12: 1176 | Z12: 1181 | AA12: 1176 | AB12: 1163 | AC12: 1152 | AD12: 1114 | AE12: 1032 | AF12: 1002 | AG12: 981 | AH12: 962 | AI12: 974 | AJ12: 961 | AK12: 954 | AL12: 954 | AM12: 964 | AN12: 939 | AO12: 935 | AP12: 928 | AQ12: 968 | AR12: 985 | AS12: 1003 | AT12: 1021 | AU12: 1040 | AV12: 1058 | AW12: 1077 | AX12: 1097 | AY12: 1117 | AZ12: 1137 | BA12: 1157 | BB12: 1178 | BC12: 1199 | BD12: 1221
A13: 11.4 | B13: K19 Sales C25 750MW | C13: REF | D13: REF | E13: REF | F13: Other | G13: 14 | H13: 15 | I13: 15 | J13: 15 | K13: 15 | L13: 16 | M13: 16 | N13: 16 | O13: 17 | P13: 17 | Q13: 17 | R13: 18 | S13: 18 | T13: 18 | U13: 19 | V13: 19 | W13: 19 | X13: 20 | Y13: 20 | Z13: 21 | AA13: 21 | AB13: 21 | AC13: 22 | AD13: 22 | AE13: 23 | AF13: 23 | AG13: 24 | AH13: 24 | AI13: 24 | AJ13: 25 | AK13: 25 | AL13: 26 | AM13: 26 | AN13: 27 | AO13: 27 | AP13: 28 | AQ13: 29 | AR13: 29 | AS13: 30 | AT13: 30 | AU13: 31 | AV13: 31 | AW13: 32 | AX13: 33 | AY13: 33 | AZ13: 34 | BA13: 35 | BB13: 35 | BC13: 36 | BD13: 37
A14: 11.4 | B14: K19 Sales C25 750MW | C14: REF | D14: REF | E14: REF | F14: Total Revenue | G14: 1702 | H14: 1768 | I14: 1826 | J14: 1939 | K14: 2035 | L14: 2148 | M14: 2236 | N14: 2364 | O14: 2745 | P14: 2959 | Q14: 3088 | R14: 3191 | S14: 3309 | T14: 3484 | U14: 3892 | V14: 4110 | W14: 4280 | X14: 4443 | Y14: 4628 | Z14: 4818 | AA14: 4020 | AB14: 4050 | AC14: 4110 | AD14: 4131 | AE14: 4128 | AF14: 4171 | AG14: 4190 | AH14: 4231 | AI14: 4302 | AJ14: 4399 | AK14: 4513 | AL14: 4564 | AM14: 4655 | AN14: 4758 | AO14: 4911 | AP14: 4952 | AQ14: 4977 | AR14: 5013 | AS14: 5129 | AT14: 5181 | AU14: 5225 | AV14: 5326 | AW14: 5369 | AX14: 5385 | AY14: 5443 | AZ14: 5443 | BA14: 5490 | BB14: 5549 | BC14: 5591 | BD14: 5641
A15: 11.4 | B15: K19 Sales C25 750MW | C15: REF | D15: REF | E15: REF
A16: 11.4 | B16: K19 Sales C25 750MW | C16: REF | D16: REF | E16: REF | F16: EXPENSES
A17: 11.4 | B17: K19 Sales C25 750MW | C17: REF | D17: REF | E17: REF | F17: Operating and Administrative | G17: 455 | H17: 471 | I17: 546 | J17: 559 | K17: 570 | L17: 593 | M17: 605 | N17: 621 | O17: 678 | P17: 690 | Q17: 703 | R17: 716 | S17: 730 | T17: 760 | U17: 773 | V17: 788 | W17: 804 | X17: 817 | Y17: 832 | Z17: 849 | AA17: 866 | AB17: 887 | AC17: 906 | AD17: 924 | AE17: 945 | AF17: 966 | AG17: 987 | AH17: 1010 | AI17: 1032 | AJ17: 1062 | AK17: 1087 | AL17: 1113 | AM17: 1146 | AN17: 1174 | AO17: 1210 | AP17: 1240 | AQ17: 1269 | AR17: 1300 | AS17: 1331 | AT17: 1364 | AU17: 1385 | AV17: 1418 | AW17: 1439 | AX17: 1460 | AY17: 1482 | AZ17: 1504 | BA17: 1526 | BB17: 1549 | BC17: 1564 | BD17: 1588
A18: 11.4 | B18: K19 Sales C25 750MW | C18: REF | D18: REF | E18: REF | F18: Finance Expense | G18: 452 | H18: 442 | I18: 491 | J18: 519 | K18: 577 | L18: 658 | M18: 774 | N18: 783 | O18: 989 | P18: 1083 | Q18: 1075 | R18: 1083 | S18: 1077 | T18: 1182 | U18: 1403 | V18: 1584 | W18: 1553 | X18: 1515 | Y18: 1523 | Z18: 1459 | AA18: 1413 | AB18: 1407 | AC18: 1412 | AD18: 1408 | AE18: 1394 | AF18: 1375 | AG18: 1355 | AH18: 1339 | AI18: 1347 | AJ18: 1355 | AK18: 1347 | AL18: 1333 | AM18: 1333 | AN18: 1321 | AO18: 1360 | AP18: 1326 | AQ18: 1311 | AR18: 1291 | AS18: 1274 | AT18: 1254 | AU18: 1246 | AV18: 1222 | AW18: 1195 | AX18: 1148 | AY18: 1129 | AZ18: 1077 | BA18: 1049 | BB18: 1025 | BC18: 995 | BD18: 963
A19: 11.4 | B19: K19 Sales C25 750MW | C19: REF | D19: REF | E19: REF | F19: Depreciation and Amortization | G19: 399 | H19: 430 | I19: 372 | J19: 391 | K19: 400 | L19: 422 | M19: 458 | N19: 461 | O19: 518 | P19: 553 | Q19: 559 | R19: 558 | S19: 561 | T19: 600 | U19: 668 | V19: 721 | W19: 724 | X19: 732 | Y19: 758 | Z19: 766 | AA19: 764 | AB19: 768 | AC19: 792 | AD19: 796 | AE19: 802 | AF19: 834 | AG19: 838 | AH19: 844 | AI19: 857 | AJ19: 875 | AK19: 943 | AL19: 952 | AM19: 971 | AN19: 1015 | AO19: 1045 | AP19: 1061 | AQ19: 1084 | AR19: 1099 | AS19: 1184 | AT19: 1210 | AU19: 1228 | AV19: 1305 | AW19: 1343 | AX19: 1377 | AY19: 1420 | AZ19: 1441 | BA19: 1479 | BB19: 1525 | BC19: 1569 | BD19: 1611
A20: 11.4 | B20: K19 Sales C25 750MW | C20: REF | D20: REF | E20: REF | F20: Water Rentals and Assessments | G20: 117 | H20: 116 | I20: 112 | J20: 112 | K20: 112 | L20: 112 | M20: 112 | N20: 114 | O20: 124 | P20: 127 | Q20: 128 | R20: 128 | S20: 127 | T20: 135 | U20: 148 | V20: 150 | W20: 151 | X20: 151 | Y20: 152 | Z20: 153 | AA20: 153 | AB20: 154 | AC20: 154 | AD20: 154 | AE20: 154 | AF20: 155 | AG20: 155 | AH20: 155 | AI20: 156 | AJ20: 156 | AK20: 156 | AL20: 156 | AM20: 157 | AN20: 157 | AO20: 157 | AP20: 157 | AQ20: 163 | AR20: 166 | AS20: 169 | AT20: 172 | AU20: 175 | AV20: 178 | AW20: 181 | AX20: 184 | AY20: 188 | AZ20: 191 | BA20: 194 | BB20: 198 | BC20: 202 | BD20: 205
A21: 11.4 | B21: K19 Sales C25 750MW | C21: REF | D21: REF | E21: REF | F21: Fuel and Power Purchased | G21: 143 | H21: 166 | I21: 167 | J21: 178 | K21: 191 | L21: 200 | M21: 205 | N21: 207 | O21: 222 | P21: 239 | Q21: 247 | R21: 256 | S21: 270 | T21: 233 | U21: 238 | V21: 256 | W21: 266 | X21: 275 | Y21: 282 | Z21: 292 | AA21: 302 | AB21: 312 | AC21: 324 | AD21: 325 | AE21: 309 | AF21: 317 | AG21: 330 | AH21: 355 | AI21: 376 | AJ21: 412 | AK21: 436 | AL21: 462 | AM21: 496 | AN21: 533 | AO21: 577 | AP21: 609 | AQ21: 593 | AR21: 604 | AS21: 615 | AT21: 626 | AU21: 637 | AV21: 649 | AW21: 661 | AX21: 673 | AY21: 685 | AZ21: 697 | BA21: 710 | BB21: 722 | BC21: 735 | BD21: 749
A22: 11.4 | B22: K19 Sales C25 750MW | C22: REF | D22: REF | E22: REF | F22: Capital and Other Taxes | G22: 87 | H22: 95 | I22: 101 | J22: 109 | K22: 119 | L22: 127 | M22: 134 | N22: 141 | O22: 149 | P22: 158 | Q22: 166 | R22: 174 | S22: 181 | T22: 187 | U22: 190 | V22: 192 | W22: 195 | X22: 197 | Y22: 201 | Z22: 202 | AA22: 203 | AB22: 204 | AC22: 206 | AD22: 207 | AE22: 208 | AF22: 210 | AG22: 212 | AH22: 214 | AI22: 218 | AJ22: 220 | AK22: 223 | AL22: 226 | AM22: 228 | AN22: 232 | AO22: 234 | AP22: 236 | AQ22: 237 | AR22: 237 | AS22: 239 | AT22: 240 | AU22: 242 | AV22: 244 | AW22: 244 | AX22: 246 | AY22: 246 | AZ22: 247 | BA22: 248 | BB22: 249 | BC22: 250 | BD22: 251
A23: 11.4 | B23: K19 Sales C25 750MW | C23: REF | D23: REF | E23: REF | F23: Corporate Allocation | G23: 9 | H23: 9 | I23: 8 | J23: 8 | K23: 8 | L23: 8 | M23: 8 | N23: 8 | O23: 8 | P23: 8 | Q23: 8 | R23: 8 | S23: 8 | T23: 8 | U23: 8 | V23: 8 | W23: 8 | X23: 8 | Y23: 7 | Z23: 7 | AA23: 7 | AB23: 7 | AC23: 7 | AD23: 7 | AE23: 7 | AF23: 7 | AG23: 7 | AH23: 7 | AI23: 7 | AJ23: 7 | AK23: 7 | AL23: 7 | AM23: 6 | AN23: 6 | AO23: 6 | AP23: 6 | AQ23: 6 | AR23: 6 | AS23: 6 | AT23: 6 | AU23: 6 | AV23: 6 | AW23: 6 | AX23: 6 | AY23: 6 | AZ23: 6 | BA23: 6 | BB23: 6 | BC23: 6 | BD23: 6
A24: 11.4 | B24: K19 Sales C25 750MW | C24: REF | D24: REF | E24: REF | F24: Total Expenses | G24: 1663 | H24: 1729 | I24: 1798 | J24: 1877 | K24: 1978 | L24: 2121 | M24: 2297 | N24: 2335 | O24: 2688 | P24: 2859 | Q24: 2887 | R24: 2924 | S24: 2955 | T24: 3105 | U24: 3428 | V24: 3700 | W24: 3701 | X24: 3695 | Y24: 3756 | Z24: 3728 | AA24: 3709 | AB24: 3739 | AC24: 3801 | AD24: 3821 | AE24: 3820 | AF24: 3863 | AG24: 3884 | AH24: 3924 | AI24: 3993 | AJ24: 4088 | AK24: 4200 | AL24: 4248 | AM24: 4337 | AN24: 4438 | AO24: 4588 | AP24: 4635 | AQ24: 4663 | AR24: 4702 | AS24: 4817 | AT24: 4871 | AU24: 4918 | AV24: 5021 | AW24: 5068 | AX24: 5094 | AY24: 5154 | AZ24: 5162 | BA24: 5212 | BB24: 5273 | BC24: 5319 | BD24: 5373
A25: 11.4 | B25: K19 Sales C25 750MW | C25: REF | D25: REF | E25: REF
A26: 11.4 | B26: K19 Sales C25 750MW | C26: REF | D26: REF | E26: REF | F26: Non-Controlling Interest | G26: -14 | H26: -24 | I26: -23 | J26: -17 | K26: -14 | L26: -13 | M26: -9 | N26: -9 | O26: -7 | P26: 1 | Q26: 3 | R26: 7 | S26: 9 | T26: 5 | U26: 7 | V26: 9 | W26: 11 | X26: 14 | Y26: 16 | Z26: 18 | AA26: 20 | AB26: 22 | AC26: 24 | AD26: 25 | AE26: 26 | AF26: 28 | AG26: 30 | AH26: 32 | AI26: 34 | AJ26: 36 | AK26: 38 | AL26: 41 | AM26: 43 | AN26: 45 | AO26: 47 | AP26: 49 | AQ26: 49 | AR26: 50 | AS26: 51 | AT26: 53 | AU26: 53 | AV26: 54 | AW26: 55 | AX26: 57 | AY26: 59 | AZ26: 61 | BA26: 63 | BB26: 64 | BC26: 66 | BD26: 69
A27: 11.4 | B27: K19 Sales C25 750MW | C27: REF | D27: REF | E27: REF
A28: 11.4 | B28: K19 Sales C25 750MW | C28: REF | D28: REF | E28: REF | F28: Net Income | G28: 54 | H28: 63 | I28: 51 | J28: 79 | K28: 72 | L28: 40 | M28: -53 | N28: 38 | O28: 63 | P28: 100 | Q28: 199 | R28: 260 | S28: 345 | T28: 373 | U28: 457 | V28: 401 | W28: 567 | X28: 735 | Y28: 857 | Z28: 1072 | AA28: 290 | AB28: 289 | AC28: 285 | AD28: 285 | AE28: 283 | AF28: 280 | AG28: 277 | AH28: 275 | AI28: 275 | AJ28: 276 | AK28: 275 | AL28: 275 | AM28: 275 | AN28: 275 | AO28: 276 | AP28: 268 | AQ28: 265 | AR28: 261 | AS28: 260 | AT28: 257 | AU28: 255 | AV28: 251 | AW28: 245 | AX28: 235 | AY28: 230 | AZ28: 220 | BA28: 215 | BB28: 211 | BC28: 205 | BD28: 200
A29: 11.4 | B29: K19 Sales C25 750MW | C29: REF | D29: REF | E29: REF
A30: 11.4 | B30: K19 Sales C25 750MW | C30: REF | D30: REF | E30: REF | F30: Additional General Consumers Revenue Percent Increase | G30: 0 | H30: 0.035 | I30: 0.0395 | J30: 0.0395 | K30: 0.0395 | L30: 0.0395 | M30: 0.0395 | N30: 0.0395 | O30: 0.0395 | P30: 0.0395 | Q30: 0.0395 | R30: 0.0395 | S30: 0.0395 | T30: 0.0395 | U30: 0.0395 | V30: 0.0395 | W30: 0.0395 | X30: 0.0395 | Y30: 0.0395 | Z30: 0.0395 | AA30: -0.2304 | AB30: 0.0014 | AC30: 0.0112 | AD30: 0.0063 | AE30: 0.013 | AF30: 0.0104 | AG30: -0.0002 | AH30: 0.0058 | AI30: 0.0056 | AJ30: 0.0206 | AK30: 0.0227 | AL30: 0.0023 | AM30: 0.0103 | AN30: 0.0229 | AO30: 0.0292 | AP30: 0.0005 | AQ30: -0.0039 | AR30: 0.0046 | AS30: 0.0243 | AT30: 0.0082 | AU30: 0.0063 | AV30: 0.0195 | AW30: 0.0055 | AX30: -0.0008 | AY30: 0.0088 | AZ30: -0.0049 | BA30: 0.0059 | BB30: 0.0087 | BC30: 0.0048 | BD30: 0.0064
A31: 11.4 | B31: K19 Sales C25 750MW | C31: REF | D31: REF | E31: REF | F31: Cumulative General Consumers Revenue Percent Increase | G31: 0 | H31: 0.035 | I31: 0.0759 | J31: 0.1183 | K31: 0.1625 | L31: 0.2083 | M31: 0.256 | N31: 0.3056 | O31: 0.3572 | P31: 0.4107 | Q31: 0.4664 | R31: 0.5243 | S31: 0.5845 | T31: 0.647 | U31: 0.712 | V31: 0.7796 | W31: 0.8498 | X31: 0.9228 | Y31: 0.9987 | Z31: 1.0776 | AA31: 0.5989 | AB31: 0.6012 | AC31: 0.619 | AD31: 0.6293 | AE31: 0.6505 | AF31: 0.6678 | AG31: 0.6674 | AH31: 0.677 | AI31: 0.6864 | AJ31: 0.7212 | AK31: 0.7603 | AL31: 0.7643 | AM31: 0.7825 | AN31: 0.8233 | AO31: 0.8766 | AP31: 0.8776 | AQ31: 0.8704 | AR31: 0.8789 | AS31: 0.9245 | AT31: 0.9402 | AU31: 0.9524 | AV31: 0.9904 | AW31: 1.0014 | AX31: 0.9998 | AY31: 1.0175 | AZ31: 1.0076 | BA31: 1.0195 | BB31: 1.0371 | BC31: 1.0469 | BD31: 1.06
A32: 11.4 | B32: K19 Sales C25 750MW | C32: REF | D32: REF | E32: REF | F32: Debt Ratio | G32: 76 | H32: 78 | I32: 84 | J32: 85 | K32: 86 | L32: 87 | M32: 88 | N32: 89 | O32: 89 | P32: 90 | Q32: 90 | R32: 89 | S32: 88 | T32: 87 | U32: 86 | V32: 85 | W32: 83 | X32: 81 | Y32: 78 | Z32: 75 | AA32: 74 | AB32: 73 | AC32: 72 | AD32: 71 | AE32: 70 | AF32: 69 | AG32: 69 | AH32: 68 | AI32: 67 | AJ32: 67 | AK32: 66 | AL32: 65 | AM32: 65 | AN32: 64 | AO32: 63 | AP32: 63 | AQ32: 62 | AR32: 61 | AS32: 60 | AT32: 59 | AU32: 58 | AV32: 57 | AW32: 56 | AX32: 55 | AY32: 54 | AZ32: 53 | BA32: 52 | BB32: 50 | BC32: 49 | BD32: 48
A33: 11.4 | B33: K19 Sales C25 750MW | C33: REF | D33: REF | E33: REF | F33: Interest Coverage Ratio | G33: 1.09 | H33: 1.1 | I33: 1.07 | J33: 1.1 | K33: 1.08 | L33: 1.04 | M33: 0.95 | N33: 1.03 | O33: 1.05 | P33: 1.08 | Q33: 1.14 | R33: 1.17 | S33: 1.22 | T33: 1.23 | U33: 1.28 | V33: 1.25 | W33: 1.35 | X33: 1.46 | Y33: 1.55 | Z33: 1.72 | AA33: 1.2 | AB33: 1.2 | AC33: 1.2 | AD33: 1.2 | AE33: 1.2 | AF33: 1.2 | AG33: 1.2 | AH33: 1.2 | AI33: 1.2 | AJ33: 1.2 | AK33: 1.2 | AL33: 1.2 | AM33: 1.2 | AN33: 1.2 | AO33: 1.2 | AP33: 1.2 | AQ33: 1.2 | AR33: 1.2 | AS33: 1.2 | AT33: 1.2 | AU33: 1.2 | AV33: 1.2 | AW33: 1.2 | AX33: 1.2 | AY33: 1.2 | AZ33: 1.2 | BA33: 1.2 | BB33: 1.2 | BC33: 1.2 | BD33: 1.2
A34: 11.4 | B34: K19 Sales C25 750MW | C34: REF | D34: REF | E34: REF | F34: Capital Coverage Ratio | G34: 1.09 | H34: 0.9 | I34: 0.77 | J34: 0.9 | K34: 1.21 | L34: 1.36 | M34: 1.08 | N34: 1.55 | O34: 1.52 | P34: 1.57 | Q34: 1.58 | R34: 1.66 | S34: 1.84 | T34: 2.07 | U34: 2.67 | V34: 2.33 | W34: 2.45 | X34: 2.61 | Y34: 2.72 | Z34: 3.61 | AA34: 1.84 | AB34: 1.59 | AC34: 1.54 | AD34: 1.48 | AE34: 1.42 | AF34: 1.4 | AG34: 1.33 | AH34: 1.28 | AI34: 1.2 | AJ34: 1.22 | AK34: 1.31 | AL34: 1.37 | AM34: 1.33 | AN34: 1.21 | AO34: 1.48 | AP34: 1.48 | AQ34: 1.5 | AR34: 1.52 | AS34: 1.46 | AT34: 1.47 | AU34: 1.46 | AV34: 1.5 | AW34: 1.49 | AX34: 1.49 | AY34: 1.5 | AZ34: 1.48 | BA34: 1.48 | BB34: 1.48 | BC34: 1.49 | BD34: 1.48
A35: 11.4 | B35: K19 Sales C25 750MW | C35: REF | D35: REF | E35: REF
A36: 11.4 | B36: K19 Sales C25 750MW | C36: REF | D36: REF | E36: REF | F36: Development Plan | G36: K19 Sales C25 750MW | AF36: K19 Sales C25 750MW
A37: 11.4 | B37: K19 Sales C25 750MW | C37: REF | D37: REF | E37: REF | F37: Development Plan Scenario | G37: Economics:REF Rev:REF Cap:REF | AF37: Economics:REF Rev:REF Cap:REF
A38: 11.4 | B38: K19 Sales C25 750MW | C38: REF | D38: REF | E38: REF | F38: ELECTRIC OPERATIONS
A39: 11.4 | B39: K19 Sales C25 750MW | C39: REF | D39: REF | E39: REF | F39: PROJECTED BALANCE SHEET
A40: 11.4 | B40: K19 Sales C25 750MW | C40: REF | D40: REF | E40: REF | F40: In Millions of Dollars
A41: 11.4 | B41: K19 Sales C25 750MW | C41: REF | D41: REF | E41: REF | F41: For the year ended March 31 | G41: 2013 | H41: 2014 | I41: 2015 | J41: 2016 | K41: 2017 | L41: 2018 | M41: 2019 | N41: 2020 | O41: 2021 | P41: 2022 | Q41: 2023 | R41: 2024 | S41: 2025 | T41: 2026 | U41: 2027 | V41: 2028 | W41: 2029 | X41: 2030 | Y41: 2031 | Z41: 2032 | AA41: 2033 | AB41: 2034 | AC41: 2035 | AD41: 2036 | AE41: 2037 | AF41: 2038 | AG41: 2039 | AH41: 2040 | AI41: 2041 | AJ41: 2042 | AK41: 2043 | AL41: 2044 | AM41: 2045 | AN41: 2046 | AO41: 2047 | AP41: 2048 | AQ41: 2049 | AR41: 2050 | AS41: 2051 | AT41: 2052 | AU41: 2053 | AV41: 2054 | AW41: 2055 | AX41: 2056 | AY41: 2057 | AZ41: 2058 | BA41: 2059 | BB41: 2060 | BC41: 2061 | BD41: 2062
A42: 11.4 | B42: K19 Sales C25 750MW | C42: REF | D42: REF | E42: REF | F42: ASSETS
A43: 11.4 | B43: K19 Sales C25 750MW | C43: REF | D43: REF | E43: REF
A44: 11.4 | B44: K19 Sales C25 750MW | C44: REF | D44: REF | E44: REF | F44: Plant in Service | G44: 15374 | H44: 16436 | I44: 17108 | J44: 18261 | K44: 18821 | L44: 22520 | M44: 22947 | N44: 25701 | O44: 29723 | P44: 30257 | Q44: 30788 | R44: 31353 | S44: 32042 | T44: 37329 | U44: 42227 | V44: 43649 | W44: 44393 | X44: 44951 | Y44: 46932 | Z44: 47662 | AA44: 48343 | AB44: 49688 | AC44: 50210 | AD44: 50754 | AE44: 52076 | AF44: 52660 | AG44: 53263 | AH44: 54262 | AI44: 55013 | AJ44: 57700 | AK44: 58375 | AL44: 59079 | AM44: 61113 | AN44: 62510 | AO44: 63579 | AP44: 64597 | AQ44: 65298 | AR44: 67994 | AS44: 69231 | AT44: 70603 | AU44: 71980 | AV44: 73389 | AW44: 74915 | AX44: 76463 | AY44: 77836 | AZ44: 79198 | BA44: 80623 | BB44: 82045 | BC44: 83525 | BD44: 85359
A45: 11.4 | B45: K19 Sales C25 750MW | C45: REF | D45: REF | E45: REF | F45: Accumulated Depreciation | G45: 5173 | H45: 5536 | I45: 5856 | J45: 6223 | K45: 6612 | L45: 7028 | M45: 7482 | N45: 7938 | O45: 8450 | P45: 8997 | Q45: 9552 | R45: 10107 | S45: 10666 | T45: 11264 | U45: 11930 | V45: 12650 | W45: 13373 | X45: 14103 | Y45: 14861 | Z45: 15626 | AA45: 16390 | AB45: 17157 | AC45: 17948 | AD45: 18743 | AE45: 19545 | AF45: 20378 | AG45: 21215 | AH45: 22059 | AI45: 22917 | AJ45: 23792 | AK45: 24735 | AL45: 25688 | AM45: 26658 | AN45: 27674 | AO45: 28719 | AP45: 29781 | AQ45: 30866 | AR45: 31966 | AS45: 33152 | AT45: 34364 | AU45: 35580 | AV45: 36874 | AW45: 38207 | AX45: 39575 | AY45: 40985 | AZ45: 42417 | BA45: 43888 | BB45: 45405 | BC45: 46966 | BD45: 48570
A46: 11.4 | B46: K19 Sales C25 750MW | C46: REF | D46: REF | E46: REF
A47: 11.4 | B47: K19 Sales C25 750MW | C47: REF | D47: REF | E47: REF | F47: Net Plant in Service | G47: 10201 | H47: 10900 | I47: 11251 | J47: 12038 | K47: 12209 | L47: 15492 | M47: 15465 | N47: 17762 | O47: 21273 | P47: 21259 | Q47: 21237 | R47: 21246 | S47: 21376 | T47: 26065 | U47: 30297 | V47: 30999 | W47: 31021 | X47: 30848 | Y47: 32072 | Z47: 32035 | AA47: 31954 | AB47: 32532 | AC47: 32262 | AD47: 32011 | AE47: 32532 | AF47: 32282 | AG47: 32048 | AH47: 32202 | AI47: 32096 | AJ47: 33908 | AK47: 33640 | AL47: 33392 | AM47: 34455 | AN47: 34836 | AO47: 34859 | AP47: 34816 | AQ47: 34432 | AR47: 36028 | AS47: 36079 | AT47: 36240 | AU47: 36400 | AV47: 36515 | AW47: 36708 | AX47: 36889 | AY47: 36850 | AZ47: 36781 | BA47: 36735 | BB47: 36641 | BC47: 36559 | BD47: 36788
A48: 11.4 | B48: K19 Sales C25 750MW | C48: REF | D48: REF | E48: REF
A49: 11.4 | B49: K19 Sales C25 750MW | C49: REF | D49: REF | E49: REF | F49: Construction in Progress | G49: 2105 | H49: 2866 | I49: 4164 | J49: 5048 | K49: 6617 | L49: 5069 | M49: 6411 | N49: 5209 | O49: 2873 | P49: 4555 | Q49: 6192 | R49: 7589 | S49: 8716 | T49: 5044 | U49: 1293 | V49: 744 | W49: 1075 | X49: 1515 | Y49: 472 | Z49: 545 | AA49: 642 | AB49: 106 | AC49: 395 | AD49: 702 | AE49: 269 | AF49: 621 | AG49: 997 | AH49: 1205 | AI49: 1808 | AJ49: 272 | AK49: 851 | AL49: 1440 | AM49: 712 | AN49: 955 | AO49: 1077 | AP49: 1212 | AQ49: 1651 | AR49: 137 | AS49: 158 | AT49: 128 | AU49: 122 | AV49: 215 | AW49: 139 | AX49: 29 | AY49: 56 | AZ49: 72 | BA49: 97 | BB49: 140 | BC49: 200 | BD49: -89
A50: 11.4 | B50: K19 Sales C25 750MW | C50: REF | D50: REF | E50: REF | F50: Current and Other Assets | G50: 1869 | H50: 1735 | I50: 1391 | J50: 1579 | K50: 1791 | L50: 2029 | M50: 1845 | N50: 1968 | O50: 2032 | P50: 1696 | Q50: 1782 | R50: 2083 | S50: 2335 | T50: 2173 | U50: 2461 | V50: 2758 | W50: 3115 | X50: 3351 | Y50: 3339 | Z50: 4380 | AA50: 4443 | AB50: 2696 | AC50: 2779 | AD50: 2737 | AE50: 2549 | AF50: 2598 | AG50: 2549 | AH50: 2591 | AI50: 2541 | AJ50: 2516 | AK50: 2468 | AL50: 2699 | AM50: 2748 | AN50: 2564 | AO50: 2884 | AP50: 3079 | AQ50: 3100 | AR50: 2969 | AS50: 3175 | AT50: 3315 | AU50: 3415 | AV50: 3304 | AW50: 1871 | AX50: 1273 | AY50: 972 | AZ50: 866 | BA50: 723 | BB50: 284 | BC50: 336 | BD50: 198
A51: 11.4 | B51: K19 Sales C25 750MW | C51: REF | D51: REF | E51: REF | F51: Goodwill and Intangible Assets | G51: 180 | H51: 165 | I51: 151 | J51: 136 | K51: 126 | L51: 116 | M51: 140 | N51: 147 | O51: 231 | P51: 224 | Q51: 218 | R51: 214 | S51: 210 | T51: 207 | U51: 203 | V51: 199 | W51: 196 | X51: 192 | Y51: 188 | Z51: 185 | AA51: 181 | AB51: 177 | AC51: 174 | AD51: 170 | AE51: 166 | AF51: 163 | AG51: 159 | AH51: 155 | AI51: 152 | AJ51: 148 | AK51: 144 | AL51: 141 | AM51: 137 | AN51: 133 | AO51: 130 | AP51: 126 | AQ51: 123 | AR51: 119 | AS51: 115 | AT51: 112 | AU51: 108 | AV51: 104 | AW51: 101 | AX51: 97 | AY51: 94 | AZ51: 90 | BA51: 86 | BB51: 83 | BC51: 79 | BD51: 76
A52: 11.4 | B52: K19 Sales C25 750MW | C52: REF | D52: REF | E52: REF | F52: Regulated Assets | G52: 231 | H52: 225 | I52: 0 | J52: 0 | K52: 0 | L52: 0 | M52: 0 | N52: 0 | O52: 0 | P52: 0 | Q52: 0 | R52: 0 | S52: 0 | T52: 0 | U52: 0 | V52: 0 | W52: 0 | X52: 0 | Y52: 0 | Z52: 0 | AA52: 0 | AB52: 0 | AC52: 0 | AD52: 0 | AE52: 0 | AF52: 0 | AG52: 0 | AH52: 0 | AI52: 0 | AJ52: 0 | AK52: 0 | AL52: 0 | AM52: 0 | AN52: 0 | AO52: 0 | AP52: 0 | AQ52: 0 | AR52: 0 | AS52: 0 | AT52: 0 | AU52: 0 | AV52: 0 | AW52: 0 | AX52: 0 | AY52: 0 | AZ52: 0 | BA52: 0 | BB52: 0 | BC52: 0 | BD52: 0
A53: 11.4 | B53: K19 Sales C25 750MW | C53: REF | D53: REF | E53: REF | F53: Total Assets | G53: 14587 | H53: 15890 | I53: 16958 | J53: 18802 | K53: 20742 | L53: 22707 | M53: 23861 | N53: 25086 | O53: 26409 | P53: 27735 | Q53: 29430 | R53: 31133 | S53: 32637 | T53: 33488 | U53: 34255 | V53: 34700 | W53: 35406 | X53: 35906 | Y53: 36071 | Z53: 37145 | AA53: 37220 | AB53: 35511 | AC53: 35610 | AD53: 35621 | AE53: 35516 | AF53: 35664 | AG53: 35753 | AH53: 36154 | AI53: 36597 | AJ53: 36844 | AK53: 37103 | AL53: 37671 | AM53: 38053 | AN53: 38489 | AO53: 38950 | AP53: 39233 | AQ53: 39306 | AR53: 39253 | AS53: 39527 | AT53: 39794 | AU53: 40045 | AV53: 40138 | AW53: 38818 | AX53: 38289 | AY53: 37972 | AZ53: 37809 | BA53: 37642 | BB53: 37147 | BC53: 37174 | BD53: 36973
A54: 11.4 | B54: K19 Sales C25 750MW | C54: REF | D54: REF | E54: REF
A55: 11.4 | B55: K19 Sales C25 750MW | C55: REF | D55: REF | E55: REF
A56: 11.4 | B56: K19 Sales C25 750MW | C56: REF | D56: REF | E56: REF | F56: LIABILITIES AND EQUITY
A57: 11.4 | B57: K19 Sales C25 750MW | C57: REF | D57: REF | E57: REF
A58: 11.4 | B58: K19 Sales C25 750MW | C58: REF | D58: REF | E58: REF | F58: Long Term Debt | G58: 9289 | H58: 11260 | I58: 12802 | J58: 14474 | K58: 16170 | L58: 17742 | M58: 19438 | N58: 20404 | O58: 21727 | P58: 23077 | Q58: 25080 | R58: 26482 | S58: 27235 | T58: 28038 | U58: 28239 | V58: 28380 | W58: 28331 | X58: 27634 | Y58: 27623 | Z58: 27396 | AA58: 25199 | AB58: 23601 | AC58: 22920 | AD58: 22521 | AE58: 21573 | AF58: 21975 | AG58: 22277 | AH58: 22029 | AI58: 22179 | AJ58: 22078 | AK58: 22827 | AL58: 23425 | AM58: 23824 | AN58: 24422 | AO58: 24820 | AP58: 24819 | AQ58: 24492 | AR58: 24490 | AS58: 24490 | AT58: 24439 | AU58: 24239 | AV58: 22638 | AW58: 20638 | AX58: 19837 | AY58: 18429 | AZ58: 18629 | BA58: 18303 | BB58: 17302 | BC58: 17302 | BD58: 16852
A59: 11.4 | B59: K19 Sales C25 750MW | C59: REF | D59: REF | E59: REF | F59: Current and Other Liabilities | G59: 2231 | H59: 1503 | I59: 1659 | J59: 1795 | K59: 2007 | L59: 2381 | M59: 1904 | N59: 2140 | O59: 2092 | P59: 1988 | Q59: 1491 | R59: 1523 | S59: 1921 | T59: 1590 | U59: 1690 | V59: 1586 | W59: 1766 | X59: 2219 | Y59: 1531 | Z59: 1751 | AA59: 3724 | AB59: 3315 | AC59: 3800 | AD59: 3915 | AE59: 4465 | AF59: 3922 | AG59: 3422 | AH59: 3785 | AI59: 3792 | AJ59: 3854 | AK59: 3078 | AL59: 2761 | AM59: 2457 | AN59: 2008 | AO59: 1784 | AP59: 1790 | AQ59: 1913 | AR59: 1590 | AS59: 1593 | AT59: 1643 | AU59: 1817 | AV59: 3237 | AW59: 3650 | AX59: 3664 | AY59: 4502 | AZ59: 3896 | BA59: 3818 | BB59: 4090 | BC59: 3889 | BD59: 3915
A60: 11.4 | B60: K19 Sales C25 750MW | C60: REF | D60: REF | E60: REF | F60: Contributions in Aid of Construction | G60: 325 | H60: 334 | I60: 339 | J60: 344 | K60: 348 | L60: 358 | M60: 364 | N60: 371 | O60: 378 | P60: 385 | Q60: 392 | R60: 400 | S60: 407 | T60: 415 | U60: 422 | V60: 430 | W60: 438 | X60: 446 | Y60: 455 | Z60: 463 | AA60: 472 | AB60: 482 | AC60: 492 | AD60: 502 | AE60: 512 | AF60: 522 | AG60: 533 | AH60: 543 | AI60: 554 | AJ60: 565 | AK60: 577 | AL60: 588 | AM60: 600 | AN60: 611 | AO60: 622 | AP60: 634 | AQ60: 645 | AR60: 656 | AS60: 666 | AT60: 677 | AU60: 700 | AV60: 722 | AW60: 745 | AX60: 768 | AY60: 791 | AZ60: 813 | BA60: 836 | BB60: 859 | BC60: 881 | BD60: 904
A61: 11.4 | B61: K19 Sales C25 750MW | C61: REF | D61: REF | E61: REF | F61: Retained Earnings | G61: 2442 | H61: 2505 | I61: 2299 | J61: 2378 | K61: 2450 | L61: 2490 | M61: 2437 | N61: 2475 | O61: 2538 | P61: 2638 | Q61: 2837 | R61: 3097 | S61: 3443 | T61: 3816 | U61: 4273 | V61: 4673 | W61: 5241 | X61: 5975 | Y61: 6832 | Z61: 7904 | AA61: 8194 | AB61: 8483 | AC61: 8767 | AD61: 9052 | AE61: 9335 | AF61: 9614 | AG61: 9891 | AH61: 10166 | AI61: 10441 | AJ61: 10716 | AK61: 10991 | AL61: 11267 | AM61: 11542 | AN61: 11817 | AO61: 12092 | AP61: 12361 | AQ61: 12626 | AR61: 12887 | AS61: 13147 | AT61: 13404 | AU61: 13659 | AV61: 13909 | AW61: 14154 | AX61: 14389 | AY61: 14620 | AZ61: 14840 | BA61: 15055 | BB61: 15266 | BC61: 15471 | BD61: 15671
A62: 11.4 | B62: K19 Sales C25 750MW | C62: REF | D62: REF | E62: REF | F62: Accumulated Other Comprehensive Income | G62: 299 | H62: 287 | I62: -142 | J62: -189 | K62: -232 | L62: -264 | M62: -283 | N62: -303 | O62: -326 | P62: -354 | Q62: -370 | R62: -370 | S62: -369 | T62: -369 | U62: -369 | V62: -369 | W62: -369 | X62: -369 | Y62: -369 | Z62: -369 | AA62: -369 | AB62: -369 | AC62: -369 | AD62: -369 | AE62: -369 | AF62: -369 | AG62: -369 | AH62: -369 | AI62: -369 | AJ62: -369 | AK62: -369 | AL62: -369 | AM62: -369 | AN62: -369 | AO62: -369 | AP62: -369 | AQ62: -369 | AR62: -369 | AS62: -369 | AT62: -369 | AU62: -369 | AV62: -369 | AW62: -369 | AX62: -369 | AY62: -369 | AZ62: -369 | BA62: -369 | BB62: -369 | BC62: -369 | BD62: -369
A63: 11.4 | B63: K19 Sales C25 750MW | C63: REF | D63: REF | E63: REF | F63: Total Liabilities and Equity | G63: 14587 | H63: 15890 | I63: 16958 | J63: 18802 | K63: 20742 | L63: 22707 | M63: 23861 | N63: 25086 | O63: 26409 | P63: 27735 | Q63: 29430 | R63: 31133 | S63: 32637 | T63: 33488 | U63: 34255 | V63: 34700 | W63: 35406 | X63: 35906 | Y63: 36071 | Z63: 37145 | AA63: 37220 | AB63: 35511 | AC63: 35610 | AD63: 35621 | AE63: 35516 | AF63: 35664 | AG63: 35753 | AH63: 36154 | AI63: 36597 | AJ63: 36844 | AK63: 37103 | AL63: 37671 | AM63: 38053 | AN63: 38489 | AO63: 38950 | AP63: 39233 | AQ63: 39306 | AR63: 39253 | AS63: 39527 | AT63: 39794 | AU63: 40045 | AV63: 40138 | AW63: 38818 | AX63: 38289 | AY63: 37972 | AZ63: 37809 | BA63: 37642 | BB63: 37147 | BC63: 37174 | BD63: 36973
A64: 11.4 | B64: K19 Sales C25 750MW | C64: REF | D64: REF | E64: REF
A65: 11.4 | B65: K19 Sales C25 750MW | C65: REF | D65: REF | E65: REF
A66: 11.4 | B66: K19 Sales C25 750MW | C66: REF | D66: REF | E66: REF
A67: 11.4 | B67: K19 Sales C25 750MW | C67: REF | D67: REF | E67: REF
A68: 11.4 | B68: K19 Sales C25 750MW | C68: REF | D68: REF | E68: REF
A69: 11.4 | B69: K19 Sales C25 750MW | C69: REF | D69: REF | E69: REF | F69: Development Plan | G69: K19 Sales C25 750MW | AF69: K19 Sales C25 750MW
A70: 11.4 | B70: K19 Sales C25 750MW | C70: REF | D70: REF | E70: REF | F70: Development Plan Scenario | G70: Economics:REF Rev:REF Cap:REF | AF70: Economics:REF Rev:REF Cap:REF
A71: 11.4 | B71: K19 Sales C25 750MW | C71: REF | D71: REF | E71: REF | F71: ELECTRIC OPERATIONS
A72: 11.4 | B72: K19 Sales C25 750MW | C72: REF | D72: REF | E72: REF | F72: PROJECTED CASH FLOW STATEMENT
A73: 11.4 | B73: K19 Sales C25 750MW | C73: REF | D73: REF | E73: REF | F73: In Millions of Dollars
A74: 11.4 | B74: K19 Sales C25 750MW | C74: REF | D74: REF | E74: REF | F74: For the year ended March 31 | G74: 2013 | H74: 2014 | I74: 2015 | J74: 2016 | K74: 2017 | L74: 2018 | M74: 2019 | N74: 2020 | O74: 2021 | P74: 2022 | Q74: 2023 | R74: 2024 | S74: 2025 | T74: 2026 | U74: 2027 | V74: 2028 | W74: 2029 | X74: 2030 | Y74: 2031 | Z74: 2032 | AA74: 2033 | AB74: 2034 | AC74: 2035 | AD74: 2036 | AE74: 2037 | AF74: 2038 | AG74: 2039 | AH74: 2040 | AI74: 2041 | AJ74: 2042 | AK74: 2043 | AL74: 2044 | AM74: 2045 | AN74: 2046 | AO74: 2047 | AP74: 2048 | AQ74: 2049 | AR74: 2050 | AS74: 2051 | AT74: 2052 | AU74: 2053 | AV74: 2054 | AW74: 2055 | AX74: 2056 | AY74: 2057 | AZ74: 2058 | BA74: 2059 | BB74: 2060 | BC74: 2061 | BD74: 2062
A75: 11.4 | B75: K19 Sales C25 750MW | C75: REF | D75: REF | E75: REF | F75: OPERATING ACTIVITIES
A76: 11.4 | B76: K19 Sales C25 750MW | C76: REF | D76: REF | E76: REF | F76: Cash Receipts from Customers | G76: 1692 | H76: 1768 | I76: 1826 | J76: 1939 | K76: 2035 | L76: 2148 | M76: 2236 | N76: 2364 | O76: 2745 | P76: 2959 | Q76: 3088 | R76: 3191 | S76: 3309 | T76: 3484 | U76: 3892 | V76: 4110 | W76: 4280 | X76: 4443 | Y76: 4628 | Z76: 4818 | AA76: 4020 | AB76: 4050 | AC76: 4110 | AD76: 4131 | AE76: 4128 | AF76: 4171 | AG76: 4190 | AH76: 4231 | AI76: 4302 | AJ76: 4399 | AK76: 4513 | AL76: 4564 | AM76: 4655 | AN76: 4758 | AO76: 4911 | AP76: 4952 | AQ76: 4977 | AR76: 5013 | AS76: 5129 | AT76: 5181 | AU76: 5225 | AV76: 5326 | AW76: 5369 | AX76: 5385 | AY76: 5443 | AZ76: 5443 | BA76: 5490 | BB76: 5549 | BC76: 5591 | BD76: 5641
A77: 11.4 | B77: K19 Sales C25 750MW | C77: REF | D77: REF | E77: REF | F77: Cash Paid to Suppliers and Employees | G77: -782 | H77: -822 | I77: -900 | J77: -931 | K77: -963 | L77: -1001 | M77: -1024 | N77: -1048 | O77: -1136 | P77: -1175 | Q77: -1202 | R77: -1230 | S77: -1262 | T77: -1266 | U77: -1297 | V77: -1331 | W77: -1357 | X77: -1378 | Y77: -1402 | Z77: -1427 | AA77: -1452 | AB77: -1477 | AC77: -1505 | AD77: -1521 | AE77: -1522 | AF77: -1547 | AG77: -1578 | AH77: -1622 | AI77: -1664 | AJ77: -1725 | AK77: -1770 | AL77: -1817 | AM77: -1880 | AN77: -1940 | AO77: -2013 | AP77: -2069 | AQ77: -2079 | AR77: -2113 | AS77: -2149 | AT77: -2187 | AU77: -2224 | AV77: -2261 | AW77: -2297 | AX77: -2336 | AY77: -2373 | AZ77: -2411 | BA77: -2451 | BB77: -2491 | BC77: -2524 | BD77: -2566
A78: 11.4 | B78: K19 Sales C25 750MW | C78: REF | D78: REF | E78: REF | F78: Interest Paid | G78: -466 | H78: -474 | I78: -510 | J78: -558 | K78: -604 | L78: -699 | M78: -814 | N78: -816 | O78: -1031 | P78: -1127 | Q78: -1091 | R78: -1093 | S78: -1097 | T78: -1218 | U78: -1441 | V78: -1639 | W78: -1625 | X78: -1596 | Y78: -1619 | Z78: -1530 | AA78: -1502 | AB78: -1487 | AC78: -1477 | AD78: -1475 | AE78: -1469 | AF78: -1446 | AG78: -1437 | AH78: -1417 | AI78: -1432 | AJ78: -1443 | AK78: -1439 | AL78: -1432 | AM78: -1449 | AN78: -1444 | AO78: -1483 | AP78: -1470 | AQ78: -1462 | AR78: -1447 | AS78: -1420 | AT78: -1413 | AU78: -1412 | AV78: -1402 | AW78: -1378 | AX78: -1296 | AY78: -1264 | AZ78: -1215 | BA78: -1194 | BB78: -1166 | BC78: -1126 | BD78: -1105
A79: 11.4 | B79: K19 Sales C25 750MW | C79: REF | D79: REF | E79: REF | F79: Interest Received | G79: 28 | H79: 17 | I79: 24 | J79: 26 | K79: 31 | L79: 39 | M79: 41 | N79: 38 | O79: 35 | P79: 33 | Q79: 17 | R79: 19 | S79: 28 | T79: 33 | U79: 41 | V79: 55 | W79: 71 | X79: 78 | Y79: 89 | Z79: 70 | AA79: 86 | AB79: 64 | AC79: 61 | AD79: 60 | AE79: 68 | AF79: 69 | AG79: 73 | AH79: 83 | AI79: 84 | AJ79: 90 | AK79: 96 | AL79: 103 | AM79: 114 | AN79: 122 | AO79: 127 | AP79: 140 | AQ79: 141 | AR79: 151 | AS79: 145 | AT79: 156 | AU79: 166 | AV79: 176 | AW79: 171 | AX79: 137 | AY79: 142 | AZ79: 139 | BA79: 142 | BB79: 140 | BC79: 134 | BD79: 137
A80: 11.4 | B80: K19 Sales C25 750MW | C80: REF | D80: REF | E80: REF | F80: Cash from Operating Activities | G80: 473 | H80: 488 | I80: 440 | J80: 476 | K80: 499 | L80: 487 | M80: 439 | N80: 539 | O80: 613 | P80: 690 | Q80: 812 | R80: 886 | S80: 978 | T80: 1033 | U80: 1195 | V80: 1196 | W80: 1369 | X80: 1547 | Y80: 1696 | Z80: 1931 | AA80: 1152 | AB80: 1151 | AC80: 1189 | AD80: 1195 | AE80: 1205 | AF80: 1247 | AG80: 1248 | AH80: 1276 | AI80: 1290 | AJ80: 1321 | AK80: 1401 | AL80: 1418 | AM80: 1440 | AN80: 1496 | AO80: 1541 | AP80: 1553 | AQ80: 1577 | AR80: 1604 | AS80: 1704 | AT80: 1736 | AU80: 1755 | AV80: 1838 | AW80: 1864 | AX80: 1891 | AY80: 1948 | AZ80: 1956 | BA80: 1987 | BB80: 2032 | BC80: 2076 | BD80: 2108
A81: 11.4 | B81: K19 Sales C25 750MW | C81: REF | D81: REF | E81: REF
A82: 11.4 | B82: K19 Sales C25 750MW | C82: REF | D82: REF | E82: REF | F82: FINANCING ACTIVITIES
A83: 11.4 | B83: K19 Sales C25 750MW | C83: REF | D83: REF | E83: REF | F83: Proceeds from Long Term Debt | G83: 836 | H83: 2170 | I83: 1760 | J83: 1990 | K83: 2180 | L83: 2380 | M83: 1990 | N83: 1590 | O83: 1990 | P83: 1790 | Q83: 1960 | R83: 1390 | S83: 1190 | T83: 790 | U83: 190 | V83: 190 | W83: 190 | X83: -40 | Y83: -10 | Z83: -10 | AA83: -40 | AB83: 140 | AC83: 1520 | AD83: 1980 | AE83: 1920 | AF83: 2740 | AG83: 2180 | AH83: 1950 | AI83: 2380 | AJ83: 2180 | AK83: 2130 | AL83: 1770 | AM83: 1180 | AN83: 780 | AO83: 570 | AP83: 180 | AQ83: -20 | AR83: -60 | AS83: -20 | AT83: -20 | AU83: -50 | AV83: -70 | AW83: -90 | AX83: 1180 | AY83: 1310 | AZ83: 2340 | BA83: 1770 | BB83: 1350 | BC83: 2180 | BD83: 1790
A84: 11.4 | B84: K19 Sales C25 750MW | C84: REF | D84: REF | E84: REF | F84: Sinking Fund Withdrawals | G84: 129 | H84: 393 | I84: 102 | J84: 26 | K84: 0 | L84: 15 | M84: 416 | N84: 184 | O84: 265 | P84: 676 | Q84: 156 | R84: 0 | S84: 0 | T84: 450 | U84: 0 | V84: 0 | W84: 60 | X84: 250 | Y84: 700 | Z84: 13 | AA84: 230 | AB84: 800 | AC84: 200 | AD84: 332 | AE84: 355 | AF84: 267 | AG84: 100 | AH84: 290 | AI84: 192 | AJ84: 194 | AK84: 194 | AL84: 50 | AM84: 100 | AN84: 400 | AO84: 0 | AP84: 100 | AQ84: 200 | AR84: 325 | AS84: 0 | AT84: 0 | AU84: 50 | AV84: 100 | AW84: 800 | AX84: 355 | AY84: 200 | AZ84: 148 | BA84: 195 | BB84: 399 | BC84: 0 | BD84: 124
A85: 11.4 | B85: K19 Sales C25 750MW | C85: REF | D85: REF | E85: REF | F85: Retirement of Long Term Debt | G85: -119 | H85: -808 | I85: -176 | J85: -312 | K85: -347 | L85: -530 | M85: -829 | N85: -306 | O85: -635 | P85: -679 | Q85: -432 | R85: 0 | S85: 0 | T85: -450 | U85: 0 | V85: 0 | W85: -60 | X85: -220 | Y85: -700 | Z85: -13 | AA85: -200 | AB85: -2150 | AC85: -1730 | AD85: -2273 | AE85: -2330 | AF85: -2900 | AG85: -2390 | AH85: -1860 | AI85: -2240 | AJ85: -2240 | AK85: -2240 | AL85: -1440 | AM85: -1190 | AN85: -790 | AO85: -190 | AP85: -190 | AQ85: -190 | AR85: -285 | AS85: 10 | AT85: 10 | AU85: -10 | AV85: -140 | AW85: -1520 | AX85: -1980 | AY85: -1920 | AZ85: -2747 | BA85: -2180 | BB85: -2075 | BC85: -2380 | BD85: -2180
A86: 11.4 | B86: K19 Sales C25 750MW | C86: REF | D86: REF | E86: REF | F86: Other Financing Activities | G86: -42 | H86: -7 | I86: -16 | J86: -18 | K86: -16 | L86: -12 | M86: -24 | N86: -13 | O86: -34 | P86: -9 | Q86: -1 | R86: -1 | S86: -1 | T86: -1 | U86: -1 | V86: -9 | W86: -8 | X86: -8 | Y86: -7 | Z86: -26 | AA86: -27 | AB86: -27 | AC86: -28 | AD86: -28 | AE86: -26 | AF86: -27 | AG86: -27 | AH86: -29 | AI86: -29 | AJ86: -30 | AK86: -31 | AL86: -51 | AM86: -39 | AN86: -40 | AO86: -45 | AP86: -41 | AQ86: -42 | AR86: -42 | AS86: -43 | AT86: -44 | AU86: -45 | AV86: -46 | AW86: -47 | AX86: -48 | AY86: -49 | AZ86: -50 | BA86: -52 | BB86: -53 | BC86: -54 | BD86: -69
A87: 11.4 | B87: K19 Sales C25 750MW | C87: REF | D87: REF | E87: REF | F87: Cash from Financing Activities | G87: 804 | H87: 1748 | I87: 1670 | J87: 1685 | K87: 1817 | L87: 1852 | M87: 1554 | N87: 1455 | O87: 1586 | P87: 1777 | Q87: 1683 | R87: 1389 | S87: 1189 | T87: 789 | U87: 189 | V87: 181 | W87: 182 | X87: -18 | Y87: -17 | Z87: -36 | AA87: -37 | AB87: -1237 | AC87: -38 | AD87: 11 | AE87: -81 | AF87: 80 | AG87: -137 | AH87: 351 | AI87: 303 | AJ87: 104 | AK87: 53 | AL87: 329 | AM87: 51 | AN87: 350 | AO87: 335 | AP87: 49 | AQ87: -52 | AR87: -62 | AS87: -53 | AT87: -54 | AU87: -55 | AV87: -156 | AW87: -857 | AX87: -493 | AY87: -459 | AZ87: -310 | BA87: -266 | BB87: -378 | BC87: -254 | BD87: -334
A88: 11.4 | B88: K19 Sales C25 750MW | C88: REF | D88: REF | E88: REF
A89: 11.4 | B89: K19 Sales C25 750MW | C89: REF | D89: REF | E89: REF | F89: INVESTING ACTIVITIES
A90: 11.4 | B90: K19 Sales C25 750MW | C90: REF | D90: REF | E90: REF | F90: Property Plant and Equipment net of contributions | G90: -1378 | H90: -1913 | I90: -2010 | J90: -2041 | K90: -2124 | L90: -2023 | M90: -1791 | N90: -1635 | O90: -1865 | P90: -2199 | Q90: -2151 | R90: -1943 | S90: -1798 | T90: -1596 | U90: -1129 | V90: -853 | W90: -1056 | X90: -977 | Y90: -919 | Z90: -781 | AA90: -758 | AB90: -788 | AC90: -788 | AD90: -830 | AE90: -866 | AF90: -913 | AG90: -956 | AH90: -1183 | AI90: -1330 | AJ90: -1126 | AK90: -1229 | AL90: -1268 | AM90: -1280 | AN90: -1612 | AO90: -1164 | AP90: -1127 | AQ90: -1113 | AR90: -1157 | AS90: -1231 | AT90: -1317 | AU90: -1341 | AV90: -1472 | AW90: -1418 | AX90: -1408 | AY90: -1367 | AZ90: -1346 | BA90: -1417 | BB90: -1430 | BC90: -1505 | BD90: -1510
A91: 11.4 | B91: K19 Sales C25 750MW | C91: REF | D91: REF | E91: REF | F91: Sinking Fund Payment | G91: -107 | H91: -208 | I91: -124 | J91: -188 | K91: -165 | L91: -227 | M91: -216 | N91: -220 | O91: -248 | P91: -338 | Q91: -245 | R91: -263 | S91: -288 | T91: -311 | U91: -310 | V91: -325 | W91: -339 | X91: -351 | Y91: -353 | Z91: -331 | AA91: -343 | AB91: -345 | AC91: -309 | AD91: -311 | AE91: -307 | AF91: -301 | AG91: -300 | AH91: -307 | AI91: -308 | AJ91: -314 | AK91: -319 | AL91: -324 | AM91: -337 | AN91: -347 | AO91: -346 | AP91: -210 | AQ91: -214 | AR91: -213 | AS91: -209 | AT91: -217 | AU91: -226 | AV91: -233 | AW91: -236 | AX91: -199 | AY91: -184 | AZ91: -179 | BA91: -176 | BB91: -171 | BC91: -156 | BD91: -159
A92: 11.4 | B92: K19 Sales C25 750MW | C92: REF | D92: REF | E92: REF | F92: Other Investing Activities | G92: -17 | H92: -16 | I92: -21 | J92: -20 | K92: -32 | L92: -42 | M92: -28 | N92: -28 | O92: -33 | P92: -38 | Q92: -29 | R92: -32 | S92: -25 | T92: -25 | U92: -28 | V92: -26 | W92: -26 | X92: -26 | Y92: -26 | Z92: -26 | AA92: -27 | AB92: -27 | AC92: -27 | AD92: -27 | AE92: -27 | AF92: -28 | AG92: -28 | AH92: -28 | AI92: -28 | AJ92: -28 | AK92: -29 | AL92: -29 | AM92: -29 | AN92: -29 | AO92: -30 | AP92: -30 | AQ92: -30 | AR92: -30 | AS92: -31 | AT92: -30 | AU92: -15 | AV92: -15 | AW92: -14 | AX92: -14 | AY92: -13 | AZ92: -36 | BA92: -37 | BB92: -37 | BC92: -38 | BD92: -38
A93: 11.4 | B93: K19 Sales C25 750MW | C93: REF | D93: REF | E93: REF | F93: Cash from Investing Activities | G93: -1502 | H93: -2138 | I93: -2155 | J93: -2249 | K93: -2321 | L93: -2292 | M93: -2035 | N93: -1884 | O93: -2146 | P93: -2575 | Q93: -2425 | R93: -2239 | S93: -2111 | T93: -1932 | U93: -1467 | V93: -1204 | W93: -1420 | X93: -1355 | Y93: -1298 | Z93: -1138 | AA93: -1127 | AB93: -1160 | AC93: -1123 | AD93: -1168 | AE93: -1200 | AF93: -1241 | AG93: -1283 | AH93: -1518 | AI93: -1666 | AJ93: -1469 | AK93: -1576 | AL93: -1620 | AM93: -1646 | AN93: -1989 | AO93: -1540 | AP93: -1367 | AQ93: -1357 | AR93: -1400 | AS93: -1471 | AT93: -1565 | AU93: -1582 | AV93: -1719 | AW93: -1669 | AX93: -1621 | AY93: -1564 | AZ93: -1561 | BA93: -1630 | BB93: -1639 | BC93: -1699 | BD93: -1707
A94: 11.4 | B94: K19 Sales C25 750MW | C94: REF | D94: REF | E94: REF
A95: 11.4 | B95: K19 Sales C25 750MW | C95: REF | D95: REF | E95: REF | F95: Net Increase (Decrease) in Cash | G95: -225 | H95: 99 | I95: -44 | J95: -87 | K95: -5 | L95: 48 | M95: -42 | N95: 110 | O95: 54 | P95: -108 | Q95: 69 | R95: 37 | S95: 57 | T95: -111 | U95: -83 | V95: 172 | W95: 130 | X95: 174 | Y95: 381 | Z95: 757 | AA95: -12 | AB95: -1247 | AC95: 27 | AD95: 38 | AE95: -76 | AF95: 86 | AG95: -172 | AH95: 109 | AI95: -73 | AJ95: -43 | AK95: -122 | AL95: 126 | AM95: -154 | AN95: -143 | AO95: 336 | AP95: 235 | AQ95: 168 | AR95: 142 | AS95: 180 | AT95: 117 | AU95: 118 | AV95: -37 | AW95: -661 | AX95: -222 | AY95: -75 | AZ95: 84 | BA95: 90 | BB95: 15 | BC95: 123 | BD95: 66
A96: 11.4 | B96: K19 Sales C25 750MW | C96: REF | D96: REF | E96: REF | F96: Cash at Beginning of Year | G96: 43 | H96: -183 | I96: -84 | J96: -128 | K96: -215 | L96: -220 | M96: -172 | N96: -215 | O96: -105 | P96: -51 | Q96: -160 | R96: -90 | S96: -53 | T96: 4 | U96: -107 | V96: -190 | W96: -18 | X96: 113 | Y96: 287 | Z96: 668 | AA96: 1425 | AB96: 1412 | AC96: 166 | AD96: 193 | AE96: 232 | AF96: 156 | AG96: 242 | AH96: 69 | AI96: 178 | AJ96: 106 | AK96: 62 | AL96: -60 | AM96: 66 | AN96: -88 | AO96: -232 | AP96: 105 | AQ96: 340 | AR96: 508 | AS96: 650 | AT96: 830 | AU96: 947 | AV96: 1064 | AW96: 1028 | AX96: 366 | AY96: 144 | AZ96: 69 | BA96: 153 | BB96: 243 | BC96: 257 | BD96: 381
A97: 11.4 | B97: K19 Sales C25 750MW | C97: REF | D97: REF | E97: REF | F97: Cash at End of Year | G97: -183 | H97: -84 | I97: -128 | J97: -215 | K97: -220 | L97: -172 | M97: -215 | N97: -105 | O97: -51 | P97: -160 | Q97: -90 | R97: -53 | S97: 4 | T97: -107 | U97: -190 | V97: -18 | W97: 113 | X97: 287 | Y97: 668 | Z97: 1425 | AA97: 1412 | AB97: 166 | AC97: 193 | AD97: 232 | AE97: 156 | AF97: 242 | AG97: 69 | AH97: 178 | AI97: 106 | AJ97: 62 | AK97: -60 | AL97: 66 | AM97: -88 | AN97: -232 | AO97: 105 | AP97: 340 | AQ97: 508 | AR97: 650 | AS97: 830 | AT97: 947 | AU97: 1064 | AV97: 1028 | AW97: 366 | AX97: 144 | AY97: 69 | AZ97: 153 | BA97: 243 | BB97: 257 | BC97: 381 | BD97: 447
A98: 11.4 | B98: K19 Sales C25 750MW | C98: REF | D98: REF | E98: REF
A99: 11.4 | B99: K19 Sales C25 750MW | C99: REF | D99: REF | E99: REF
A100: 11.4 | B100: K19 Sales C25 750MW | C100: REF | D100: REF | E100: REF
A101: 11.4 | B101: K19 Sales C25 750MW | C101: REF | D101: REF | E101: REF
A102: SP-080 | B102: All Gas | C102: REF | D102: REF | E102: REF | F102: Net Debt (from SP-080) | G102: 9664.9 | H102: 11099.3 | I102: 12578.1 | J102: 13589.3 | K102: 14334.9 | L102: 14710.1 | M102: 14920.3 | N102: 14976 | O102: 15136.4 | P102: 15289.3 | Q102: 15303.5 | R102: 15342 | S102: 15432.4 | T102: 15330.5 | U102: 15183.7 | V102: 15136 | W102: 15351.3 | X102: 15466.9 | Y102: 15263.2 | Z102: 14671.1 | AA102: 14739.8 | AB102: 14977.8 | AC102: 15187.4 | AD102: 15521 | AE102: 15705.4 | AF102: 15949.9 | AG102: 16336.3 | AH102: 16579.9 | AI102: 16660.2 | AJ102: 16986.5 | AK102: 17376.2 | AL102: 17634.1 | AM102: 17558.8 | AN102: 17636.9 | AO102: 17585.3 | AP102: 17424.9 | AQ102: 17213.3 | AR102: 17009.6 | AS102: 16925.1 | AT102: 16918.5 | AU102: 16706.5 | AV102: 16623.9 | AW102: 16531 | AX102: 16240.2 | AY102: 16010.3 | AZ102: 15853.1 | BA102: 15843.3 | BB102: 16088.5 | BC102: 15926.5 | BD102: 15478.7
A103: SP-080 | B103: K22 Gas | C103: REF | D103: REF | E103: REF | F103: Net Debt (from SP-080) | G103: 9665.17 | H103: 11100.4 | I103: 12549.4 | J103: 13586.4 | K103: 14358 | L103: 14964.4 | M103: 15656.6 | N103: 16534.2 | O103: 17595 | P103: 18543.2 | Q103: 19205.3 | R103: 19395.3 | S103: 19384.7 | T103: 19276.5 | U103: 19028.3 | V103: 18982 | W103: 19121.7 | X103: 18892.3 | Y103: 18608.3 | Z103: 18416.2 | AA103: 18642.3 | AB103: 18705.3 | AC103: 18544.7 | AD103: 18629.9 | AE103: 18868.3 | AF103: 18936.2 | AG103: 19092.4 | AH103: 19403.3 | AI103: 19681.7 | AJ103: 19622.3 | AK103: 19748.2 | AL103: 19980.9 | AM103: 20027.4 | AN103: 19933.1 | AO103: 19668.3 | AP103: 19385.7 | AQ103: 19065.2 | AR103: 18756.5 | AS103: 18424 | AT103: 18102.5 | AU103: 17782.9 | AV103: 17476.9 | AW103: 17111.1 | AX103: 16750.6 | AY103: 16312.2 | AZ103: 16060 | BA103: 15838.8 | BB103: 15420.7 | BC103: 15085.5 | BD103: 15268
A104: SP-080 | B104: Gas C26 | C104: REF | D104: REF | E104: REF | F104: Net Debt (from SP-080) | G104: 9664.9 | H104: 11100 | I104: 12590.2 | J104: 13630.3 | K104: 14443.4 | L104: 15000.1 | M104: 15438 | N104: 15781 | O104: 16253.6 | P104: 17275.9 | Q104: 18746.7 | R104: 20128.1 | S104: 21167 | T104: 21971.3 | U104: 22342.6 | V104: 22285.7 | W104: 22195.3 | X104: 21818 | Y104: 21266 | Z104: 20402.2 | AA104: 20188 | AB104: 20016.1 | AC104: 19801.3 | AD104: 19624.8 | AE104: 19597 | AF104: 19638.9 | AG104: 19539.2 | AH104: 19579.4 | AI104: 19860.3 | AJ104: 19973.9 | AK104: 20036.4 | AL104: 20031.1 | AM104: 20172.5 | AN104: 20124.2 | AO104: 19896.7 | AP104: 19646.3 | AQ104: 19353.6 | AR104: 19076.5 | AS104: 18919.1 | AT104: 18844.5 | AU104: 18561.3 | AV104: 18249.4 | AW104: 17871.2 | AX104: 17474 | AY104: 17011.6 | AZ104: 16557.4 | BA104: 16106.7 | BB104: 15626.5 | BC104: 15135.1 | BD104: 14641.7
A105: SP-080 | B105: K19 Gas 250 MW | C105: REF | D105: REF | E105: REF | F105: Net Debt (from SP-080) | G105: 9665.17 | H105: 11103.2 | I105: 12736.7 | J105: 14275.5 | K105: 15771.6 | L105: 17128.8 | M105: 18176.9 | N105: 18956.4 | O105: 19247.1 | P105: 19314.5 | Q105: 19376.3 | R105: 19410.2 | S105: 19232.1 | T105: 19075 | U105: 18787.2 | V105: 18664.6 | W105: 18818.9 | X105: 18779 | Y105: 18675.2 | Z105: 18100.1 | AA105: 17965.8 | AB105: 17834.6 | AC105: 17671.5 | AD105: 17775.3 | AE105: 18031.6 | AF105: 18118.7 | AG105: 18297.8 | AH105: 18624.5 | AI105: 18912.7 | AJ105: 18881.6 | AK105: 19021.3 | AL105: 19275.8 | AM105: 19344.4 | AN105: 19276.7 | AO105: 19029.2 | AP105: 18761.1 | AQ105: 18450.5 | AR105: 18164 | AS105: 17850.3 | AT105: 17586.1 | AU105: 17455 | AV105: 17423.9 | AW105: 17097.2 | AX105: 16692.5 | AY105: 16218.5 | AZ105: 15911.7 | BA105: 15732.8 | BB105: 15643 | BC105: 15759.2 | BD105: 15561.2
A106: SP-080 | B106: K19 C25 250 MW | C106: REF | D106: REF | E106: REF | F106: Net Debt (from SP-080) | G106: 9665.17 | H106: 11102.8 | I106: 12770 | J106: 14390.2 | K106: 16061.9 | L106: 17629.9 | M106: 18947 | N106: 20015 | O106: 21146.8 | P106: 22668.5 | Q106: 24026 | R106: 25084 | S106: 25892.7 | T106: 26450.3 | U106: 26423.6 | V106: 26167.6 | W106: 25956.9 | X106: 25486.4 | Y106: 24804.2 | Z106: 23784.9 | AA106: 23458.5 | AB106: 23163.3 | AC106: 22827.6 | AD106: 22530.4 | AE106: 22260.8 | AF106: 21995.8 | AG106: 21928.5 | AH106: 21973.2 | AI106: 21854.1 | AJ106: 21698.1 | AK106: 21600.9 | AL106: 21544.3 | AM106: 21459.9 | AN106: 21649.2 | AO106: 21353.7 | AP106: 21005.8 | AQ106: 20616.1 | AR106: 20246.9 | AS106: 19859.8 | AT106: 19517.5 | AU106: 19163.2 | AV106: 18830.4 | AW106: 18421.5 | AX106: 17982.8 | AY106: 17472.8 | AZ106: 16958.9 | BA106: 16478.1 | BB106: 15965.3 | BC106: 15489.4 | BD106: 14994.5
A107: SP-080 | B107: K19 Sales C25 750MW | C107: REF | D107: REF | E107: REF | F107: Net Debt (from SP-080) | G107: 9665.17 | H107: 11100.4 | I107: 12760.4 | J107: 14385.5 | K107: 16071.6 | L107: 17663.8 | M107: 19070.5 | N107: 20210.9 | O107: 21529.8 | P107: 23081 | Q107: 24453.4 | R107: 25543.3 | S107: 26391.8 | T107: 26984.1 | U107: 26946.7 | V107: 26640.1 | W107: 26362 | X107: 25829.5 | Y107: 25087.6 | Z107: 23993.4 | AA107: 23655.1 | AB107: 23347.9 | AC107: 23003.5 | AD107: 22695.5 | AE107: 22411.9 | AF107: 22134 | AG107: 21897.9 | AH107: 21863.3 | AI107: 21960.6 | AJ107: 21822.8 | AK107: 21709.1 | AL107: 21637.9 | AM107: 21544 | AN107: 21728.4 | AO107: 21424.3 | AP107: 21067.6 | AQ107: 20673.7 | AR107: 20297.5 | AS107: 19898 | AT107: 19552.8 | AU107: 19198.4 | AV107: 18892.1 | AW107: 18506.7 | AX107: 18084.4 | AY107: 17564.8 | AZ107: 17041.5 | BA107: 16559.8 | BB107: 16047.6 | BC107: 15568.6 | BD107: 15077.4
A108: SP-080 | B108: K19 Imp C31 750 MW | C108: REF | D108: REF | E108: REF | F108: Net Debt (from SP-080) | G108: 9665.17 | H108: 11100.4 | I108: 12762.1 | J108: 14341.5 | K108: 15847.7 | L108: 17218.2 | M108: 18391.4 | N108: 19239 | O108: 19831.5 | P108: 19895 | Q108: 19999.7 | R108: 20167.8 | S108: 20297.4 | T108: 20437.8 | U108: 21087.3 | V108: 22497.4 | W108: 23992.1 | X108: 25005.3 | Y108: 25671.6 | Z108: 25690.4 | AA108: 25903.1 | AB108: 25595.2 | AC108: 25194 | AD108: 24827.2 | AE108: 24486.2 | AF108: 24154.8 | AG108: 23858.3 | AH108: 23777 | AI108: 23812.3 | AJ108: 23624.1 | AK108: 23458.2 | AL108: 23335.4 | AM108: 23184.2 | AN108: 23317 | AO108: 22965.3 | AP108: 22557.5 | AQ108: 22111.5 | AR108: 21676.4 | AS108: 21214.2 | AT108: 20821.1 | AU108: 20421.9 | AV108: 20065.4 | AW108: 19621.4 | AX108: 19132.1 | AY108: 18544.1 | AZ108: 17949.8 | BA108: 17406.2 | BB108: 16799.6 | BC108: 16219.2 | BD108: 15598.2
A109: SP-080 | B109: K19 Imp Gas 750 MW | C109: REF | D109: REF | E109: REF | F109: Net Debt (from SP-080) | G109: 9665.17 | H109: 11100.4 | I109: 12734.1 | J109: 14276.2 | K109: 15783.3 | L109: 17156.3 | M109: 18330.7 | N109: 19195.2 | O109: 19806.1 | P109: 19897.3 | Q109: 19860 | R109: 19777.8 | S109: 19612.7 | T109: 19439.4 | U109: 19130.6 | V109: 18888.8 | W109: 18784.2 | X109: 18707.2 | Y109: 18683.1 | Z109: 18231.2 | AA109: 18213.9 | AB109: 18239.5 | AC109: 18090.9 | AD109: 17943.1 | AE109: 18072.7 | AF109: 18338.8 | AG109: 18553.8 | AH109: 18497.1 | AI109: 18473.8 | AJ109: 18573.3 | AK109: 18937.8 | AL109: 19237.8 | AM109: 19424.3 | AN109: 19366.9 | AO109: 19134.9 | AP109: 18873.9 | AQ109: 18574.1 | AR109: 18295.2 | AS109: 17993.7 | AT109: 17742.3 | AU109: 17480.7 | AV109: 17274.7 | AW109: 16973.2 | AX109: 16616.5 | AY109: 16159.6 | AZ109: 15702.1 | BA109: 15284.8 | BB109: 15169 | BC109: 15414.6 | BD109: 15240.1
A110: 11.1 | B110: All Gas | C110: REF | D110: REF | E110: REF | F110: Plan-related Net Capital Expenditures | G110: 256 | H110: 402 | I110: 196 | J110: 11 | K110: 12 | L110: 11 | M110: 0 | N110: 0 | O110: 109 | P110: 157 | Q110: 19 | R110: 89 | S110: 221 | T110: 21 | U110: 96 | V110: 139 | W110: 229 | X110: 317 | Y110: 183 | Z110: 17 | AA110: 110 | AB110: 249 | AC110: 264 | AD110: 366 | AE110: 197 | AF110: 276 | AG110: 393 | AH110: 212 | AI110: 21 | AJ110: 282 | AK110: 432 | AL110: 340 | AM110: 23 | AN110: 66 | AO110: 96 | AP110: 15 | AQ110: 0 | AR110: 20 | AS110: 167 | AT110: 235 | AU110: 55 | AV110: 157 | AW110: 227 | AX110: 37 | AY110: 189 | AZ110: 244 | BA110: 403 | BB110: 686 | BC110: 299 | BD110: 30
A111: 11.1 | B111: K22 Gas | C111: REF | D111: REF | E111: REF | F111: Plan-related Net Capital Expenditures | G111: 255 | H111: 402 | I111: 238 | J111: 123 | K111: 128 | L111: 328 | M111: 554 | N111: 901 | O111: 1078 | P111: 1015 | Q111: 768 | R111: 288 | S111: 70 | T111: 0 | U111: 0 | V111: 127 | W111: 184 | X111: 23 | Y111: 105 | Z111: 479 | AA111: 368 | AB111: 196 | AC111: 18 | AD111: 244 | AE111: 375 | AF111: 202 | AG111: 283 | AH111: 402 | AI111: 318 | AJ111: 22 | AK111: 294 | AL111: 442 | AM111: 238 | AN111: 24 | AO111: 0 | AP111: 3 | AQ111: 3 | AR111: 23 | AS111: 22 | AT111: 24 | AU111: 28 | AV111: 1 | AW111: 32 | AX111: 45 | AY111: 52 | AZ111: 212 | BA111: 250 | BB111: 77 | BC111: 185 | BD111: 697
A112: 11.1 | B112: Gas C26 | C112: REF | D112: REF | E112: REF | F112: Plan-related Net Capital Expenditures | G112: 256 | H112: 402 | I112: 244 | J112: 80 | K112: 138 | L112: 251 | M112: 293 | N112: 366 | O112: 516 | P112: 1134 | Q112: 1601 | R112: 1561 | S112: 1307 | T112: 1120 | U112: 837 | V112: 335 | W112: 56 | X112: 0 | Y112: 0 | Z112: 0 | AA112: 0 | AB112: 0 | AC112: 0 | AD112: 0 | AE112: 126 | AF112: 191 | AG112: 28 | AH112: 130 | AI112: 313 | AJ112: 167 | AK112: 199 | AL112: 175 | AM112: 318 | AN112: 33 | AO112: 5 | AP112: 0 | AQ112: 0 | AR112: 20 | AS112: 167 | AT112: 238 | AU112: 59 | AV112: 4 | AW112: 4 | AX112: 4 | AY112: 27 | AZ112: 0 | BA112: 0 | BB112: 0 | BC112: 0 | BD112: 0
A113: 11.1 | B113: K19 Gas 250 MW | C113: REF | D113: REF | E113: REF | F113: Plan-related Net Capital Expenditures | G113: 255 | H113: 405 | I113: 407 | J113: 589 | K113: 813 | L113: 1039 | M113: 879 | N113: 758 | O113: 286 | P113: 64 | Q113: 113 | R113: 164 | S113: 20 | T113: 0 | U113: 0 | V113: 98 | W113: 241 | X113: 239 | Y113: 325 | Z113: 186 | AA113: 17 | AB113: 0 | AC113: 0 | AD113: 244 | AE113: 375 | AF113: 202 | AG113: 283 | AH113: 407 | AI113: 318 | AJ113: 22 | AK113: 288 | AL113: 442 | AM113: 241 | AN113: 27 | AO113: 3 | AP113: 0 | AQ113: 0 | AR113: 27 | AS113: 23 | AT113: 57 | AU113: 220 | AV113: 281 | AW113: 84 | AX113: 12 | AY113: 35 | AZ113: 172 | BA113: 308 | BB113: 419 | BC113: 608 | BD113: 306
A114: 11.1 | B114: K19 C25 250 MW | C114: REF | D114: REF | E114: REF | F114: Plan-related Net Capital Expenditures | G114: 255 | H114: 405 | I114: 455 | J114: 708 | K114: 1044 | L114: 1320 | M114: 1230 | N114: 1149 | O114: 1249 | P114: 1656 | Q114: 1546 | R114: 1320 | S114: 1167 | T114: 936 | U114: 481 | V114: 55 | W114: 0 | X114: 4 | Y114: 0 | Z114: 0 | AA114: 0 | AB114: 0 | AC114: 0 | AD114: 4 | AE114: 1 | AF114: 0 | AG114: 163 | AH114: 240 | AI114: 30 | AJ114: 0 | AK114: 140 | AL114: 219 | AM114: 183 | AN114: 358 | AO114: 38 | AP114: 0 | AQ114: 0 | AR114: 27 | AS114: 27 | AT114: 60 | AU114: 70 | AV114: 63 | AW114: 54 | AX114: 20 | AY114: 59 | AZ114: 14 | BA114: 60 | BB114: 47 | BC114: 96 | BD114: 73
A115: 11.1 | B115: K19 Sales C25 750MW | C115: REF | D115: REF | E115: REF | F115: Plan-related Net Capital Expenditures | G115: 255 | H115: 402 | I115: 454 | J115: 712 | K115: 1058 | L115: 1342 | M115: 1328 | N115: 1234 | O115: 1405 | P115: 1656 | Q115: 1546 | R115: 1320 | S115: 1167 | T115: 936 | U115: 481 | V115: 55 | W115: 0 | X115: 4 | Y115: 0 | Z115: 0 | AA115: 0 | AB115: 0 | AC115: 0 | AD115: 4 | AE115: 0 | AF115: 1 | AG115: 0 | AH115: 171 | AI115: 241 | AJ115: 30 | AK115: 140 | AL115: 219 | AM115: 183 | AN115: 358 | AO115: 38 | AP115: 0 | AQ115: 0 | AR115: 28 | AS115: 29 | AT115: 67 | AU115: 81 | AV115: 94 | AW115: 88 | AX115: 52 | AY115: 59 | AZ115: 14 | BA115: 60 | BB115: 47 | BC115: 96 | BD115: 73
A116: 11.1 | B116: K19 Imp C31 750 MW | C116: REF | D116: REF | E116: REF | F116: Plan-related Net Capital Expenditures | G116: 255 | H116: 402 | I116: 455 | J116: 663 | K116: 870 | L116: 1106 | M116: 1076 | N116: 918 | O116: 639 | P116: 130 | Q116: 249 | R116: 375 | S116: 431 | T116: 476 | U116: 1130 | V116: 1857 | W116: 1811 | X116: 1549 | Y116: 1365 | Z116: 1067 | AA116: 548 | AB116: 64 | AC116: 0 | AD116: 0 | AE116: 0 | AF116: 1 | AG116: 0 | AH116: 171 | AI116: 241 | AJ116: 35 | AK116: 140 | AL116: 219 | AM116: 183 | AN116: 352 | AO116: 38 | AP116: 0 | AQ116: 0 | AR116: 28 | AS116: 25 | AT116: 69 | AU116: 77 | AV116: 91 | AW116: 82 | AX116: 43 | AY116: 39 | AZ116: 4 | BA116: 41 | BB116: 11 | BC116: 44 | BD116: 10
A117: 11.1 | B117: K19 Imp Gas 750 MW | C117: REF | D117: REF | E117: REF | F117: Plan-related Net Capital Expenditures | G117: 255 | H117: 402 | I117: 408 | J117: 595 | K117: 828 | L117: 1061 | M117: 1025 | N117: 864 | O117: 578 | P117: 64 | Q117: 0 | R117: 0 | S117: 0 | T117: 0 | U117: 0 | V117: 0 | W117: 0 | X117: 239 | Y117: 459 | Z117: 305 | AA117: 135 | AB117: 160 | AC117: 26 | AD117: 0 | AE117: 250 | AF117: 384 | AG117: 305 | AH117: 25 | AI117: 0 | AJ117: 137 | AK117: 487 | AL117: 474 | AM117: 351 | AN117: 27 | AO117: 3 | AP117: 0 | AQ117: 0 | AR117: 28 | AS117: 25 | AT117: 63 | AU117: 77 | AV117: 91 | AW117: 82 | AX117: 43 | AY117: 35 | AZ117: 0 | BA117: 36 | BB117: 368 | BC117: 747 | BD117: 353
A118: 1PUB-088b | B118: All Gas | C118: REF | D118: REF | E118: REF | F118: Capitalized Interest | G118: 143 | H118: 161 | I118: 134 | J118: 153 | K118: 170 | L118: 118 | M118: 12 | N118: 13 | O118: 18 | P118: 22 | Q118: 19 | R118: 26 | S118: 37 | T118: 28 | U118: 36 | V118: 45 | W118: 67 | X118: 100 | Y118: 70 | Z118: 33 | AA118: 40 | AB118: 47 | AC118: 20 | AD118: 39 | AE118: 60 | AF118: 38 | AG118: 53 | AH118: 76 | AI118: 24 | AJ118: 27 | AK118: 53 | AL118: 78 | AM118: 44 | AN118: 42 | AO118: 21 | AP118: 17 | AQ118: 15 | AR118: 15 | AS118: 31 | AT118: 42 | AU118: 26 | AV118: 28 | AW118: 38 | AX118: 28 | AY118: 27 | AZ118: 39 | BA118: 37 | BB118: 59 | BC118: 86 | BD118: 36
A119: 1PUB-088b | B119: K22 Gas | C119: REF | D119: REF | E119: REF | F119: Capitalized Interest | G119: 142 | H119: 161 | I119: 191 | J119: 231 | K119: 256 | L119: 190 | M119: 107 | N119: 151 | O119: 214 | P119: 277 | Q119: 313 | R119: 114 | S119: 28 | T119: 26 | U119: 33 | V119: 39 | W119: 69 | X119: 81 | Y119: 37 | Z119: 42 | AA119: 62 | AB119: 73 | AC119: 19 | AD119: 21 | AE119: 43 | AF119: 66 | AG119: 43 | AH119: 58 | AI119: 60 | AJ119: 29 | AK119: 32 | AL119: 58 | AM119: 85 | AN119: 50 | AO119: 15 | AP119: 15 | AQ119: 15 | AR119: 15 | AS119: 27 | AT119: 28 | AU119: 23 | AV119: 24 | AW119: 24 | AX119: 27 | AY119: 28 | AZ119: 29 | BA119: 40 | BB119: 28 | BC119: 29 | BD119: 53
A120: 1PUB-088b | B120: Gas C26 | C120: REF | D120: REF | E120: REF | F120: Capitalized Interest | G120: 143 | H120: 161 | I120: 150 | J120: 180 | K120: 204 | L120: 162 | M120: 71 | N120: 94 | O120: 128 | P120: 165 | Q120: 234 | R120: 333 | S120: 423 | T120: 498 | U120: 438 | V120: 209 | W120: 63 | X120: 79 | Y120: 34 | Z120: 26 | AA120: 38 | AB120: 36 | AC120: 11 | AD120: 15 | AE120: 22 | AF120: 35 | AG120: 30 | AH120: 35 | AI120: 28 | AJ120: 27 | AK120: 38 | AL120: 37 | AM120: 49 | AN120: 44 | AO120: 15 | AP120: 15 | AQ120: 15 | AR120: 15 | AS120: 31 | AT120: 42 | AU120: 26 | AV120: 24 | AW120: 23 | AX120: 24 | AY120: 22 | AZ120: 23 | BA120: 23 | BB120: 24 | BC120: 24 | BD120: 24
A121: 1PUB-088b | B121: K19 Gas 250 MW | C121: REF | D121: REF | E121: REF | F121: Capitalized Interest | G121: 142 | H121: 161 | I121: 168 | J121: 217 | K121: 273 | L121: 274 | M121: 228 | N121: 261 | O121: 97 | P121: 14 | Q121: 20 | R121: 32 | S121: 30 | T121: 26 | U121: 33 | V121: 38 | W121: 68 | X121: 87 | Y121: 56 | Z121: 61 | AA121: 44 | AB121: 36 | AC121: 11 | AD121: 21 | AE121: 43 | AF121: 66 | AG121: 43 | AH121: 58 | AI121: 60 | AJ121: 29 | AK121: 32 | AL121: 58 | AM121: 85 | AN121: 50 | AO121: 15 | AP121: 15 | AQ121: 15 | AR121: 15 | AS121: 27 | AT121: 29 | AU121: 30 | AV121: 45 | AW121: 29 | AX121: 26 | AY121: 23 | AZ121: 27 | BA121: 40 | BB121: 38 | BC121: 61 | BD121: 87
A122: 1PUB-088b | B122: K19 C25 250 MW | C122: REF | D122: REF | E122: REF | F122: Capitalized Interest | G122: 142 | H122: 161 | I122: 184 | J122: 246 | K122: 313 | L122: 329 | M122: 301 | N122: 358 | O122: 242 | P122: 224 | Q122: 318 | R122: 411 | S122: 489 | T122: 435 | U122: 227 | V122: 40 | W122: 59 | X122: 79 | Y122: 34 | Z122: 26 | AA122: 38 | AB122: 36 | AC122: 11 | AD122: 15 | AE122: 19 | AF122: 23 | AG122: 32 | AH122: 45 | AI122: 18 | AJ122: 20 | AK122: 28 | AL122: 43 | AM122: 42 | AN122: 55 | AO122: 18 | AP122: 15 | AQ122: 15 | AR122: 15 | AS122: 27 | AT122: 29 | AU122: 26 | AV122: 30 | AW122: 26 | AX122: 26 | AY122: 24 | AZ122: 25 | BA122: 27 | BB122: 29 | BC122: 32 | BD122: 36
A123: 1PUB-088b | B123: K19 Sales C25 750MW | C123: REF | D123: REF | E123: REF | F123: Capitalized Interest | G123: 142 | H123: 161 | I123: 184 | J123: 246 | K123: 313 | L123: 330 | M123: 306 | N123: 369 | O123: 240 | P123: 224 | Q123: 318 | R123: 411 | S123: 489 | T123: 435 | U123: 227 | V123: 40 | W123: 59 | X123: 79 | Y123: 34 | Z123: 26 | AA123: 38 | AB123: 36 | AC123: 11 | AD123: 15 | AE123: 19 | AF123: 23 | AG123: 27 | AH123: 36 | AI123: 28 | AJ123: 23 | AK123: 28 | AL123: 43 | AM123: 42 | AN123: 55 | AO123: 18 | AP123: 15 | AQ123: 15 | AR123: 15 | AS123: 28 | AT123: 30 | AU123: 27 | AV123: 32 | AW123: 30 | AX123: 25 | AY123: 24 | AZ123: 25 | BA123: 27 | BB123: 29 | BC123: 32 | BD123: 36
A124: 1PUB-088b | B124: K19 Imp C31 750 MW | C124: REF | D124: REF | E124: REF | F124: Capitalized Interest | G124: 142 | H124: 161 | I124: 184 | J124: 245 | K124: 305 | L124: 309 | M124: 270 | N124: 316 | O124: 142 | P124: 60 | Q124: 72 | R124: 97 | S124: 125 | T124: 151 | U124: 203 | V124: 291 | W124: 426 | X124: 545 | Y124: 585 | Z124: 486 | AA124: 257 | AB124: 41 | AC124: 11 | AD124: 15 | AE124: 19 | AF124: 23 | AG124: 27 | AH124: 36 | AI124: 28 | AJ124: 23 | AK124: 28 | AL124: 43 | AM124: 42 | AN124: 55 | AO124: 18 | AP124: 15 | AQ124: 15 | AR124: 15 | AS124: 27 | AT124: 30 | AU124: 27 | AV124: 32 | AW124: 30 | AX124: 25 | AY124: 23 | AZ124: 23 | BA124: 24 | BB124: 24 | BC124: 25 | BD124: 25
A125: 1PUB-088b | B125: K19 Imp Gas 750 MW | C125: REF | D125: REF | E125: REF | F125: Capitalized Interest | G125: 142 | H125: 161 | I125: 168 | J125: 217 | K125: 274 | L125: 276 | M125: 234 | N125: 276 | O125: 96 | P125: 14 | Q125: 17 | R125: 23 | S125: 28 | T125: 26 | U125: 33 | V125: 36 | W125: 59 | X125: 85 | Y125: 58 | Z125: 41 | AA125: 43 | AB125: 47 | AC125: 14 | AD125: 15 | AE125: 25 | AF125: 48 | AG125: 71 | AH125: 40 | AI125: 15 | AJ125: 23 | AK125: 45 | AL125: 62 | AM125: 85 | AN125: 50 | AO125: 15 | AP125: 15 | AQ125: 15 | AR125: 15 | AS125: 27 | AT125: 30 | AU125: 27 | AV125: 32 | AW125: 30 | AX125: 25 | AY125: 23 | AZ125: 23 | BA125: 24 | BB125: 33 | BC125: 64 | BD125: 51
A126: 1PUB-081a | B126: All Gas | C126: REF | D126: REF | E126: REF | F126: Gross Interest | G126: 533 | H126: 522 | I126: 586 | J126: 647 | K126: 723 | L126: 752 | M126: 762 | N126: 753 | O126: 754 | P126: 742 | Q126: 733 | R126: 754 | S126: 767 | T126: 766 | U126: 756 | V126: 758 | W126: 771 | X126: 779 | Y126: 778 | Z126: 708
A127: 1PUB-081a | B127: All Gas | C127: REF | D127: REF | E127: REF | F127: Provincial Guarantee Fee | G127: 93 | H127: 102 | I127: 114 | J127: 129 | K127: 141 | L127: 150 | M127: 156 | N127: 157 | O127: 158 | P127: 160 | Q127: 158 | R127: 159 | S127: 162 | T127: 164 | U127: 162 | V127: 162 | W127: 164 | X127: 168 | Y127: 168 | Z127: 162
A128: 1PUB-081a | B128: All Gas | C128: REF | D128: REF | E128: REF | F128: Interest Income + Interest Allocated to Construction | G128: -175 | H128: -184 | I128: -164 | J128: -186 | K128: -206 | L128: -165 | M128: -62 | N128: -60 | O128: -63 | P128: -65 | Q128: -47 | R128: -54 | S128: -71 | T128: -65 | U128: -75 | V128: -93 | W128: -124 | X128: -158 | Y128: -131 | Z128: -68
A129: 1PUB-081a | B129: Gas C26 | C129: REF | D129: REF | E129: REF | F129: Gross Interest | G129: 533 | H129: 523 | I129: 591 | J129: 653 | K129: 729 | L129: 763 | M129: 792 | N129: 798 | O129: 817 | P129: 836 | Q129: 886 | R129: 980 | S129: 1055 | T129: 1107 | U129: 1137 | V129: 1160 | W129: 1171 | X129: 1166 | Y129: 1148 | Z129: 1068
A130: 1PUB-081a | B130: Gas C26 | C130: REF | D130: REF | E130: REF | F130: Provincial Guarantee Fee | G130: 93 | H130: 102 | I130: 114 | J130: 129 | K130: 141 | L130: 151 | M130: 159 | N130: 162 | O130: 166 | P130: 171 | Q130: 178 | R130: 193 | S130: 210 | T130: 223 | U130: 229 | V130: 235 | W130: 238 | X130: 239 | Y130: 237 | Z130: 230
A131: 1PUB-081a | B131: Gas C26 | C131: REF | D131: REF | E131: REF | F131: Interest Income + Interest Allocated to Construction | G131: -175 | H131: -184 | I131: -180 | J131: -214 | K131: -239 | L131: -209 | M131: -121 | N131: -141 | O131: -173 | P131: -208 | Q131: -262 | R131: -362 | S131: -459 | T131: -538 | U131: -481 | V131: -265 | W131: -131 | X131: -152 | Y131: -115 | Z131: -84
A132: 1PUB-081a | B132: K22 Gas | C132: REF | D132: REF | E132: REF | F132: Gross Interest | G132: 533 | H132: 523 | I132: 590 | J132: 652 | K132: 727 | L132: 760 | M132: 788 | N132: 815 | O132: 861 | P132: 896 | Q132: 930 | R132: 976 | S132: 996 | T132: 992 | U132: 979 | V132: 980 | W132: 992 | X132: 993 | Y132: 983 | Z132: 920
A133: 1PUB-081a | B133: K22 Gas | C133: REF | D133: REF | E133: REF | F133: Provincial Guarantee Fee | G133: 93 | H133: 102 | I133: 114 | J133: 128 | K133: 141 | L133: 150 | M133: 159 | N133: 164 | O133: 174 | P133: 185 | Q133: 191 | R133: 198 | S133: 203 | T133: 205 | U133: 202 | V133: 204 | W133: 204 | X133: 207 | Y133: 205 | Z133: 200
A134: 1PUB-081a | B134: K22 Gas | C134: REF | D134: REF | E134: REF | F134: Interest Income + Interest Allocated to Construction | G134: -175 | H134: -183 | I134: -221 | J134: -264 | K134: -292 | L134: -237 | M134: -157 | N134: -198 | O134: -260 | P134: -321 | Q134: -341 | R134: -143 | S134: -65 | T134: -68 | U134: -78 | V134: -95 | W134: -136 | X134: -152 | Y134: -114 | Z134: -94
A135: 1PUB-081a | B135: K19 Sales C25 750MW | C135: REF | D135: REF | E135: REF | F135: Gross Interest | G135: 533 | H135: 523 | I135: 592 | J135: 668 | K135: 778 | L135: 868 | M135: 944 | N135: 1001 | O135: 1064 | P135: 1126 | Q135: 1187 | R135: 1277 | S135: 1345 | T135: 1390 | U135: 1406 | V135: 1414 | W135: 1418 | X135: 1406 | Y135: 1383 | Z135: 1299
A136: 1PUB-081a | B136: K19 Sales C25 750MW | C136: REF | D136: REF | E136: REF | F136: Provincial Guarantee Fee | G136: 93 | H136: 102 | I136: 114 | J136: 131 | K136: 149 | L136: 168 | M136: 186 | N136: 199 | O136: 211 | P136: 224 | Q136: 236 | R136: 250 | S136: 266 | T136: 276 | U136: 281 | V136: 283 | W136: 284 | X136: 285 | Y136: 283 | Z136: 276
A137: 1PUB-081a | B137: K19 Sales C25 750MW | C137: REF | D137: REF | E137: REF | F137: Interest Income + Interest Allocated to Construction | G137: -175 | H137: -183 | I137: -214 | J137: -280 | K137: -349 | L137: -377 | M137: -356 | N137: -417 | O137: -285 | P137: -267 | Q137: -348 | R137: -445 | S137: -533 | T137: -484 | U137: -284 | V137: -113 | W137: -148 | X137: -176 | Y137: -143 | Z137: -116
A138: 1PUB-081a | B138: K19 Gas 250 MW | C138: REF | D138: REF | E138: REF | F138: Gross Interest | G138: 533 | H138: 523 | I138: 591 | J138: 664 | K138: 769 | L138: 842 | M138: 902 | N138: 940 | O138: 967 | P138: 963 | Q138: 948 | R138: 973 | S138: 984 | T138: 976 | U138: 964 | V138: 963 | W138: 972 | X138: 979 | Y138: 979 | Z138: 918
A139: 1PUB-081a | B139: K19 Gas 250 MW | C139: REF | D139: REF | E139: REF | F139: Provincial Guarantee Fee | G139: 93 | H139: 102 | I139: 114 | J139: 130 | K139: 148 | L139: 165 | M139: 181 | N139: 190 | O139: 198 | P139: 201 | Q139: 198 | R139: 200 | S139: 204 | T139: 204 | U139: 201 | V139: 202 | W139: 202 | X139: 205 | Y139: 204 | Z139: 204
A140: 1PUB-081a | B140: K19 Gas 250 MW | C140: REF | D140: REF | E140: REF | F140: Interest Income + Interest Allocated to Construction | G140: -175 | H140: -183 | I140: -199 | J140: -251 | K140: -309 | L140: -321 | M140: -278 | N140: -309 | O140: -143 | P140: -57 | Q140: -50 | R140: -64 | S140: -70 | T140: -70 | U140: -85 | V140: -101 | W140: -143 | X140: -164 | Y140: -139 | Z140: -120
A141: 1PUB-081a | B141: K19 C25 250 MW | C141: REF | D141: REF | E141: REF | F141: Gross Interest | G141: 533 | H141: 523 | I141: 590 | J141: 667 | K141: 777 | L141: 866 | M141: 938 | N141: 991 | O141: 1047 | P141: 1103 | Q141: 1162 | R141: 1251 | S141: 1318 | T141: 1359 | U141: 1375 | V141: 1386 | W141: 1389 | X141: 1380 | Y141: 1362 | Z141: 1280
A142: 1PUB-081a | B142: K19 C25 250 MW | C142: REF | D142: REF | E142: REF | F142: Provincial Guarantee Fee | G142: 93 | H142: 102 | I142: 114 | J142: 131 | K142: 149 | L142: 168 | M142: 186 | N142: 197 | O142: 209 | P142: 220 | Q142: 232 | R142: 246 | S142: 261 | T142: 271 | U142: 275 | V142: 278 | W142: 280 | X142: 279 | Y142: 277 | Z142: 272
A143: 1PUB-081a | B143: K19 C25 250 MW | C143: REF | D143: REF | E143: REF | F143: Interest Income + Interest Allocated to Construction | G143: -175 | H143: -183 | I143: -215 | J143: -280 | K143: -349 | L143: -376 | M143: -351 | N143: -406 | O143: -287 | P143: -267 | Q143: -348 | R143: -444 | S143: -533 | T143: -483 | U143: -283 | V143: -111 | W143: -146 | X143: -174 | Y143: -140 | Z143: -113
A144: 1PUB-081a | B144: K19 Imp C31 750 MW | C144: REF | D144: REF | E144: REF | F144: Gross Interest | G144: 533 | H144: 523 | I144: 592 | J144: 667 | K144: 772 | L144: 844 | M144: 908 | N144: 950 | O144: 986 | P144: 991 | Q144: 977 | R144: 1013 | S144: 1035 | T144: 1042 | U144: 1060 | V144: 1122 | W144: 1210 | X144: 1281 | Y144: 1335 | Z144: 1317
A145: 1PUB-081a | B145: K19 Imp C31 750 MW | C145: REF | D145: REF | E145: REF | F145: Provincial Guarantee Fee | G145: 93 | H145: 102 | I145: 114 | J145: 131 | K145: 148 | L145: 165 | M145: 182 | N145: 192 | O145: 201 | P145: 207 | Q145: 204 | R145: 206 | S145: 211 | T145: 214 | U145: 214 | V145: 223 | W145: 240 | X145: 257 | Y145: 268 | Z145: 276
A146: 1PUB-081a | B146: K19 Imp C31 750 MW | C146: REF | D146: REF | E146: REF | F146: Interest Income + Interest Allocated to Construction | G146: -175 | H146: -183 | I146: -214 | J146: -279 | K146: -341 | L146: -356 | M146: -320 | N146: -364 | O146: -188 | P146: -104 | Q146: -102 | R146: -129 | S146: -166 | T146: -196 | U146: -257 | V146: -357 | W146: -504 | X146: -628 | Y146: -677 | Z146: -558
A147: 1PUB-081a | B147: K19 Imp Gas 750 MW | C147: REF | D147: REF | E147: REF | F147: Gross Interest | G147: 533 | H147: 523 | I147: 591 | J147: 665 | K147: 769 | L147: 843 | M147: 907 | N147: 949 | O147: 987 | P147: 993 | Q147: 977 | R147: 994 | S147: 1002 | T147: 994 | U147: 982 | V147: 979 | W147: 980 | X147: 976 | Y147: 976 | Z147: 920
A148: 1PUB-081a | B148: K19 Imp Gas 750 MW | C148: REF | D148: REF | E148: REF | F148: Provincial Guarantee Fee | G148: 93 | H148: 102 | I148: 114 | J148: 130 | K148: 148 | L148: 165 | M148: 181 | N148: 191 | O148: 200 | P148: 207 | Q148: 204 | R148: 204 | S148: 207 | T148: 208 | U148: 204 | V148: 206 | W148: 206 | X148: 205 | Y148: 204 | Z148: 204
A149: 1PUB-081a | B149: K19 Imp Gas 750 MW | C149: REF | D149: REF | E149: REF | F149: Interest Income + Interest Allocated to Construction | G149: -175 | H149: -183 | I149: -199 | J149: -251 | K149: -310 | L149: -323 | M149: -284 | N149: -324 | O149: -142 | P149: -57 | Q149: -47 | R149: -56 | S149: -69 | T149: -71 | U149: -86 | V149: -100 | W149: -135 | X149: -165 | Y149: -143 | Z149: -102

Sheet 1916
A1: PLAN "A" (use yellow dropdown menu to select plan)
A2: Development Plan | C2: K19 Sales C25 750MW | G2: Nominal Discount Rate | J2: 0.0705 | L2: Target Year for 75/25 d/e: | O2: 2032 | P2: Target Int Coverage ratio: | R2: 1.2 | T2: Analyze Sunk Costs | V2: No
A3: Development Plan Scenario | C3: Economics:REF Rev:REF Cap:REF | D3: Revenue Adjustment | F3: Yes | G3: Total Rate Increase (MH pro forma) | J3: =NPV($J$2,C10:AZ10) -> 10605.46829 | N3: Column | O3: =HLOOKUP(O2,$C$220:$AZ$221,2,FALSE) -> V | P3: Rev % incr: | Q3: 0.04134490685 | BD3: Yes
A4: ELECTRIC OPERATIONS | D4: Default Load Growth? | F4: Yes | G4: Total Rate Increase (adjusted) | J4: =NPV($J$2,C11:AZ11) -> 11471.79746 | N4: Row | O4: =ROW(A63) -> 63 | BD4: No
A5: PROJECTED OPERATING STATEMENT | D5: Load Growth Change (%) | F5: 0 | G5: Equiv. Even-Ann Rate Increase (MH) | J5: =(AZ59+1)^(1/49)-1 -> 0.01485840641 | N5: Ref: | O5: =INDIRECT(O3&O4) -> 75.00000112 | AL5: CAGR 2012-2048
A6: In Millions of Dollars | D6: Apply Load Gr Post 2047 | F6: No | G6: Equiv. Even-Ann Rate Increase (adjusted) | J6: =(AZ60+1)^(1/49)-1 -> 0.01485736801 | AL6: =RATE(35,,-C9,AL9) -> 0.01349748045
A7: For the year ended March 31 | C7: 2013 | D7: 2014 | E7: 2015 | F7: 2016 | G7: 2017 | H7: 2018 | I7: 2019 | J7: 2020 | K7: 2021 | L7: 2022 | M7: 2023 | N7: 2024 | O7: 2025 | P7: 2026 | Q7: 2027 | R7: 2028 | S7: 2029 | T7: 2030 | U7: 2031 | V7: 2032 | W7: 2033 | X7: 2034 | Y7: 2035 | Z7: 2036 | AA7: 2037 | AB7: 2038 | AC7: 2039 | AD7: 2040 | AE7: 2041 | AF7: 2042 | AG7: 2043 | AH7: 2044 | AI7: 2045 | AJ7: 2046 | AK7: 2047 | AL7: 2048 | AM7: 2049 | AN7: 2050 | AO7: 2051 | AP7: 2052 | AQ7: 2053 | AR7: 2054 | AS7: 2055 | AT7: 2056 | AU7: 2057 | AV7: 2058 | AW7: 2059 | AX7: 2060 | AY7: 2061 | AZ7: 2062
A8: REVENUES
A9: General Consumers Revenue at approved rates | C9: =SUMIFS(DATA!G$3:G$101,DATA!$F$3:$F$101,$A9,DATA!$B$3:$B$101,$C$2) -> 1331 | D9: =IF($F$4="Yes",SUMIFS(DATA!H$3:H$101,DATA!$F$3:$F$101,$A9,DATA!$B$3:$B$101,$C$2),C9*((1+(#REF!*(1+$F$5))))) -> 1361 | E9: =IF($F$4="Yes",SUMIFS(DATA!I$3:I$101,DATA!$F$3:$F$101,$A9,DATA!$B$3:$B$101,$C$2),D9*((1+(#REF!*(1+$F$5))))) -> 1374 | F9: =IF($F$4="Yes",SUMIFS(DATA!J$3:J$101,DATA!$F$3:$F$101,$A9,DATA!$B$3:$B$101,$C$2),E9*((1+(#REF!*(1+$F$5))))) -> 1390 | G9: =IF($F$4="Yes",SUMIFS(DATA!K$3:K$101,DATA!$F$3:$F$101,$A9,DATA!$B$3:$B$101,$C$2),F9*((1+(#REF!*(1+$F$5))))) -> 1404 | H9: =IF($F$4="Yes",SUMIFS(DATA!L$3:L$101,DATA!$F$3:$F$101,$A9,DATA!$B$3:$B$101,$C$2),G9*((1+(#REF!*(1+$F$5))))) -> 1424 | I9: =IF($F$4="Yes",SUMIFS(DATA!M$3:M$101,DATA!$F$3:$F$101,$A9,DATA!$B$3:$B$101,$C$2),H9*((1+(#REF!*(1+$F$5))))) -> 1447 | J9: =IF($F$4="Yes",SUMIFS(DATA!N$3:N$101,DATA!$F$3:$F$101,$A9,DATA!$B$3:$B$101,$C$2),I9*((1+(#REF!*(1+$F$5))))) -> 1462 | K9: =IF($F$4="Yes",SUMIFS(DATA!O$3:O$101,DATA!$F$3:$F$101,$A9,DATA!$B$3:$B$101,$C$2),J9*((1+(#REF!*(1+$F$5))))) -> 1485 | L9: =IF($F$4="Yes",SUMIFS(DATA!P$3:P$101,DATA!$F$3:$F$101,$A9,DATA!$B$3:$B$101,$C$2),K9*((1+(#REF!*(1+$F$5))))) -> 1506 | M9: =IF($F$4="Yes",SUMIFS(DATA!Q$3:Q$101,DATA!$F$3:$F$101,$A9,DATA!$B$3:$B$101,$C$2),L9*((1+(#REF!*(1+$F$5))))) -> 1529 | N9: =IF($F$4="Yes",SUMIFS(DATA!R$3:R$101,DATA!$F$3:$F$101,$A9,DATA!$B$3:$B$101,$C$2),M9*((1+(#REF!*(1+$F$5))))) -> 1552 | O9: =IF($F$4="Yes",SUMIFS(DATA!S$3:S$101,DATA!$F$3:$F$101,$A9,DATA!$B$3:$B$101,$C$2),N9*((1+(#REF!*(1+$F$5))))) -> 1575 | P9: =IF($F$4="Yes",SUMIFS(DATA!T$3:T$101,DATA!$F$3:$F$101,$A9,DATA!$B$3:$B$101,$C$2),O9*((1+(#REF!*(1+$F$5))))) -> 1598 | Q9: =IF($F$4="Yes",SUMIFS(DATA!U$3:U$101,DATA!$F$3:$F$101,$A9,DATA!$B$3:$B$101,$C$2),P9*((1+(#REF!*(1+$F$5))))) -> 1621 | R9: =IF($F$4="Yes",SUMIFS(DATA!V$3:V$101,DATA!$F$3:$F$101,$A9,DATA!$B$3:$B$101,$C$2),Q9*((1+(#REF!*(1+$F$5))))) -> 1644 | S9: =IF($F$4="Yes",SUMIFS(DATA!W$3:W$101,DATA!$F$3:$F$101,$A9,DATA!$B$3:$B$101,$C$2),R9*((1+(#REF!*(1+$F$5))))) -> 1669 | T9: =IF($F$4="Yes",SUMIFS(DATA!X$3:X$101,DATA!$F$3:$F$101,$A9,DATA!$B$3:$B$101,$C$2),S9*((1+(#REF!*(1+$F$5))))) -> 1693 | U9: =IF($F$4="Yes",SUMIFS(DATA!Y$3:Y$101,DATA!$F$3:$F$101,$A9,DATA!$B$3:$B$101,$C$2),T9*((1+(#REF!*(1+$F$5))))) -> 1717 | V9: =IF($F$4="Yes",SUMIFS(DATA!Z$3:Z$101,DATA!$F$3:$F$101,$A9,DATA!$B$3:$B$101,$C$2),U9*((1+(#REF!*(1+$F$5))))) -> 1741 | W9: =IF($F$4="Yes",SUMIFS(DATA!AA$3:AA$101,DATA!$F$3:$F$101,$A9,DATA!$B$3:$B$101,$C$2),V9*((1+(#REF!*(1+$F$5))))) -> 1765 | X9: =IF($F$4="Yes",SUMIFS(DATA!AB$3:AB$101,DATA!$F$3:$F$101,$A9,DATA!$B$3:$B$101,$C$2),W9*((1+(#REF!*(1+$F$5))))) -> 1790 | Y9: =IF($F$4="Yes",SUMIFS(DATA!AC$3:AC$101,DATA!$F$3:$F$101,$A9,DATA!$B$3:$B$101,$C$2),X9*((1+(#REF!*(1+$F$5))))) -> 1814 | Z9: =IF($F$4="Yes",SUMIFS(DATA!AD$3:AD$101,DATA!$F$3:$F$101,$A9,DATA!$B$3:$B$101,$C$2),Y9*((1+(#REF!*(1+$F$5))))) -> 1838 | AA9: =IF($F$4="Yes",SUMIFS(DATA!AE$3:AE$101,DATA!$F$3:$F$101,$A9,DATA!$B$3:$B$101,$C$2),Z9*((1+(#REF!*(1+$F$5))))) -> 1862 | AB9: =IF($F$4="Yes",SUMIFS(DATA!AF$3:AF$101,DATA!$F$3:$F$101,$A9,DATA!$B$3:$B$101,$C$2),AA9*((1+(#REF!*(1+$F$5))))) -> 1886 | AC9: =IF($F$4="Yes",SUMIFS(DATA!AG$3:AG$101,DATA!$F$3:$F$101,$A9,DATA!$B$3:$B$101,$C$2),AB9*((1+(#REF!*(1+$F$5))))) -> 1910 | AD9: =IF($F$4="Yes",SUMIFS(DATA!AH$3:AH$101,DATA!$F$3:$F$101,$A9,DATA!$B$3:$B$101,$C$2),AC9*((1+(#REF!*(1+$F$5))))) -> 1935 | AE9: =IF($F$4="Yes",SUMIFS(DATA!AI$3:AI$101,DATA!$F$3:$F$101,$A9,DATA!$B$3:$B$101,$C$2),AD9*((1+(#REF!*(1+$F$5))))) -> 1959 | AF9: =IF($F$4="Yes",SUMIFS(DATA!AJ$3:AJ$101,DATA!$F$3:$F$101,$A9,DATA!$B$3:$B$101,$C$2),AE9*((1+(#REF!*(1+$F$5))))) -> 1983 | AG9: =IF($F$4="Yes",SUMIFS(DATA!AK$3:AK$101,DATA!$F$3:$F$101,$A9,DATA!$B$3:$B$101,$C$2),AF9*((1+(#REF!*(1+$F$5))))) -> 2007 | AH9: =IF($F$4="Yes",SUMIFS(DATA!AL$3:AL$101,DATA!$F$3:$F$101,$A9,DATA!$B$3:$B$101,$C$2),AG9*((1+(#REF!*(1+$F$5))))) -> 2031 | AI9: =IF($F$4="Yes",SUMIFS(DATA!AM$3:AM$101,DATA!$F$3:$F$101,$A9,DATA!$B$3:$B$101,$C$2),AH9*((1+(#REF!*(1+$F$5))))) -> 2056 | AJ9: =IF($F$4="Yes",SUMIFS(DATA!AN$3:AN$101,DATA!$F$3:$F$101,$A9,DATA!$B$3:$B$101,$C$2),AI9*((1+(#REF!*(1+$F$5))))) -> 2080 | AK9: =IF($F$4="Yes",SUMIFS(DATA!AO$3:AO$101,DATA!$F$3:$F$101,$A9,DATA!$B$3:$B$101,$C$2),AJ9*((1+(#REF!*(1+$F$5))))) -> 2104 | AL9: =IF($F$4="Yes",SUMIFS(DATA!AP$3:AP$101,DATA!$F$3:$F$101,$A9,DATA!$B$3:$B$101,$C$2),AK9*((1+(#REF!*(1+$F$5))))) -> 2128 | AM9: =IF($F$4="Yes",SUMIFS(DATA!AQ$3:AQ$101,DATA!$F$3:$F$101,$A9,DATA!$B$3:$B$101,$C$2),IF($F$6="No",$AL$9,AL9*(1+$AL$6))) -> 2128 | AN9: =IF($F$4="Yes",SUMIFS(DATA!AR$3:AR$101,DATA!$F$3:$F$101,$A9,DATA!$B$3:$B$101,$C$2),IF($F$6="No",$AL$9,AM9*(1+$AL$6))) -> 2128 | AO9: =IF($F$4="Yes",SUMIFS(DATA!AS$3:AS$101,DATA!$F$3:$F$101,$A9,DATA!$B$3:$B$101,$C$2),IF($F$6="No",$AL$9,AN9*(1+$AL$6))) -> 2128 | AP9: =IF($F$4="Yes",SUMIFS(DATA!AT$3:AT$101,DATA!$F$3:$F$101,$A9,DATA!$B$3:$B$101,$C$2),IF($F$6="No",$AL$9,AO9*(1+$AL$6))) -> 2128 | AQ9: =IF($F$4="Yes",SUMIFS(DATA!AU$3:AU$101,DATA!$F$3:$F$101,$A9,DATA!$B$3:$B$101,$C$2),IF($F$6="No",$AL$9,AP9*(1+$AL$6))) -> 2128 | AR9: =IF($F$4="Yes",SUMIFS(DATA!AV$3:AV$101,DATA!$F$3:$F$101,$A9,DATA!$B$3:$B$101,$C$2),IF($F$6="No",$AL$9,AQ9*(1+$AL$6))) -> 2128 | AS9: =IF($F$4="Yes",SUMIFS(DATA!AW$3:AW$101,DATA!$F$3:$F$101,$A9,DATA!$B$3:$B$101,$C$2),IF($F$6="No",$AL$9,AR9*(1+$AL$6))) -> 2128 | AT9: =IF($F$4="Yes",SUMIFS(DATA!AX$3:AX$101,DATA!$F$3:$F$101,$A9,DATA!$B$3:$B$101,$C$2),IF($F$6="No",$AL$9,AS9*(1+$AL$6))) -> 2128 | AU9: =IF($F$4="Yes",SUMIFS(DATA!AY$3:AY$101,DATA!$F$3:$F$101,$A9,DATA!$B$3:$B$101,$C$2),IF($F$6="No",$AL$9,AT9*(1+$AL$6))) -> 2128 | AV9: =IF($F$4="Yes",SUMIFS(DATA!AZ$3:AZ$101,DATA!$F$3:$F$101,$A9,DATA!$B$3:$B$101,$C$2),IF($F$6="No",$AL$9,AU9*(1+$AL$6))) -> 2128 | AW9: =IF($F$4="Yes",SUMIFS(DATA!BA$3:BA$101,DATA!$F$3:$F$101,$A9,DATA!$B$3:$B$101,$C$2),IF($F$6="No",$AL$9,AV9*(1+$AL$6))) -> 2128 | AX9: =IF($F$4="Yes",SUMIFS(DATA!BB$3:BB$101,DATA!$F$3:$F$101,$A9,DATA!$B$3:$B$101,$C$2),IF($F$6="No",$AL$9,AW9*(1+$AL$6))) -> 2128 | AY9: =IF($F$4="Yes",SUMIFS(DATA!BC$3:BC$101,DATA!$F$3:$F$101,$A9,DATA!$B$3:$B$101,$C$2),IF($F$6="No",$AL$9,AX9*(1+$AL$6))) -> 2128 | AZ9: =IF($F$4="Yes",SUMIFS(DATA!BD$3:BD$101,DATA!$F$3:$F$101,$A9,DATA!$B$3:$B$101,$C$2),IF($F$6="No",$AL$9,AY9*(1+$AL$6))) -> 2128
A10: Additional General Consumers Revenue | B10: [Original] | C10: =SUMIFS(DATA!G$3:G$101,DATA!$F$3:$F$101,$A10,DATA!$B$3:$B$101,$C$2) -> 0 | D10: =SUMIFS(DATA!H$3:H$101,DATA!$F$3:$F$101,$A10,DATA!$B$3:$B$101,$C$2) -> 48 | E10: =SUMIFS(DATA!I$3:I$101,DATA!$F$3:$F$101,$A10,DATA!$B$3:$B$101,$C$2) -> 104 | F10: =SUMIFS(DATA!J$3:J$101,DATA!$F$3:$F$101,$A10,DATA!$B$3:$B$101,$C$2) -> 164 | G10: =SUMIFS(DATA!K$3:K$101,DATA!$F$3:$F$101,$A10,DATA!$B$3:$B$101,$C$2) -> 228 | H10: =SUMIFS(DATA!L$3:L$101,DATA!$F$3:$F$101,$A10,DATA!$B$3:$B$101,$C$2) -> 297 | I10: =SUMIFS(DATA!M$3:M$101,DATA!$F$3:$F$101,$A10,DATA!$B$3:$B$101,$C$2) -> 370 | J10: =SUMIFS(DATA!N$3:N$101,DATA!$F$3:$F$101,$A10,DATA!$B$3:$B$101,$C$2) -> 447 | K10: =SUMIFS(DATA!O$3:O$101,DATA!$F$3:$F$101,$A10,DATA!$B$3:$B$101,$C$2) -> 530 | L10: =SUMIFS(DATA!P$3:P$101,DATA!$F$3:$F$101,$A10,DATA!$B$3:$B$101,$C$2) -> 619 | M10: =SUMIFS(DATA!Q$3:Q$101,DATA!$F$3:$F$101,$A10,DATA!$B$3:$B$101,$C$2) -> 713 | N10: =SUMIFS(DATA!R$3:R$101,DATA!$F$3:$F$101,$A10,DATA!$B$3:$B$101,$C$2) -> 814 | O10: =SUMIFS(DATA!S$3:S$101,DATA!$F$3:$F$101,$A10,DATA!$B$3:$B$101,$C$2) -> 921 | P10: =SUMIFS(DATA!T$3:T$101,DATA!$F$3:$F$101,$A10,DATA!$B$3:$B$101,$C$2) -> 1034 | Q10: =SUMIFS(DATA!U$3:U$101,DATA!$F$3:$F$101,$A10,DATA!$B$3:$B$101,$C$2) -> 1154 | R10: =SUMIFS(DATA!V$3:V$101,DATA!$F$3:$F$101,$A10,DATA!$B$3:$B$101,$C$2) -> 1282 | S10: =SUMIFS(DATA!W$3:W$101,DATA!$F$3:$F$101,$A10,DATA!$B$3:$B$101,$C$2) -> 1418 | T10: =SUMIFS(DATA!X$3:X$101,DATA!$F$3:$F$101,$A10,DATA!$B$3:$B$101,$C$2) -> 1562 | U10: =SUMIFS(DATA!Y$3:Y$101,DATA!$F$3:$F$101,$A10,DATA!$B$3:$B$101,$C$2) -> 1715 | V10: =SUMIFS(DATA!Z$3:Z$101,DATA!$F$3:$F$101,$A10,DATA!$B$3:$B$101,$C$2) -> 1876 | W10: =SUMIFS(DATA!AA$3:AA$101,DATA!$F$3:$F$101,$A10,DATA!$B$3:$B$101,$C$2) -> 1057 | X10: =SUMIFS(DATA!AB$3:AB$101,DATA!$F$3:$F$101,$A10,DATA!$B$3:$B$101,$C$2) -> 1076 | Y10: =SUMIFS(DATA!AC$3:AC$101,DATA!$F$3:$F$101,$A10,DATA!$B$3:$B$101,$C$2) -> 1123 | Z10: =SUMIFS(DATA!AD$3:AD$101,DATA!$F$3:$F$101,$A10,DATA!$B$3:$B$101,$C$2) -> 1157 | AA10: =SUMIFS(DATA!AE$3:AE$101,DATA!$F$3:$F$101,$A10,DATA!$B$3:$B$101,$C$2) -> 1211 | AB10: =SUMIFS(DATA!AF$3:AF$101,DATA!$F$3:$F$101,$A10,DATA!$B$3:$B$101,$C$2) -> 1260 | AC10: =SUMIFS(DATA!AG$3:AG$101,DATA!$F$3:$F$101,$A10,DATA!$B$3:$B$101,$C$2) -> 1275 | AD10: =SUMIFS(DATA!AH$3:AH$101,DATA!$F$3:$F$101,$A10,DATA!$B$3:$B$101,$C$2) -> 1310 | AE10: =SUMIFS(DATA!AI$3:AI$101,DATA!$F$3:$F$101,$A10,DATA!$B$3:$B$101,$C$2) -> 1345 | AF10: =SUMIFS(DATA!AJ$3:AJ$101,DATA!$F$3:$F$101,$A10,DATA!$B$3:$B$101,$C$2) -> 1430 | AG10: =SUMIFS(DATA!AK$3:AK$101,DATA!$F$3:$F$101,$A10,DATA!$B$3:$B$101,$C$2) -> 1526 | AH10: =SUMIFS(DATA!AL$3:AL$101,DATA!$F$3:$F$101,$A10,DATA!$B$3:$B$101,$C$2) -> 1553 | AI10: =SUMIFS(DATA!AM$3:AM$101,DATA!$F$3:$F$101,$A10,DATA!$B$3:$B$101,$C$2) -> 1609 | AJ10: =SUMIFS(DATA!AN$3:AN$101,DATA!$F$3:$F$101,$A10,DATA!$B$3:$B$101,$C$2) -> 1712 | AK10: =SUMIFS(DATA!AO$3:AO$101,DATA!$F$3:$F$101,$A10,DATA!$B$3:$B$101,$C$2) -> 1844 | AL10: =SUMIFS(DATA!AP$3:AP$101,DATA!$F$3:$F$101,$A10,DATA!$B$3:$B$101,$C$2) -> 1868 | AM10: =SUMIFS(DATA!AQ$3:AQ$101,DATA!$F$3:$F$101,$A10,DATA!$B$3:$B$101,$C$2) -> 1852 | AN10: =SUMIFS(DATA!AR$3:AR$101,DATA!$F$3:$F$101,$A10,DATA!$B$3:$B$101,$C$2) -> 1871 | AO10: =SUMIFS(DATA!AS$3:AS$101,DATA!$F$3:$F$101,$A10,DATA!$B$3:$B$101,$C$2) -> 1968 | AP10: =SUMIFS(DATA!AT$3:AT$101,DATA!$F$3:$F$101,$A10,DATA!$B$3:$B$101,$C$2) -> 2001 | AQ10: =SUMIFS(DATA!AU$3:AU$101,DATA!$F$3:$F$101,$A10,DATA!$B$3:$B$101,$C$2) -> 2027 | AR10: =SUMIFS(DATA!AV$3:AV$101,DATA!$F$3:$F$101,$A10,DATA!$B$3:$B$101,$C$2) -> 2108 | AS10: =SUMIFS(DATA!AW$3:AW$101,DATA!$F$3:$F$101,$A10,DATA!$B$3:$B$101,$C$2) -> 2131 | AT10: =SUMIFS(DATA!AX$3:AX$101,DATA!$F$3:$F$101,$A10,DATA!$B$3:$B$101,$C$2) -> 2128 | AU10: =SUMIFS(DATA!AY$3:AY$101,DATA!$F$3:$F$101,$A10,DATA!$B$3:$B$101,$C$2) -> 2165 | AV10: =SUMIFS(DATA!AZ$3:AZ$101,DATA!$F$3:$F$101,$A10,DATA!$B$3:$B$101,$C$2) -> 2144 | AW10: =SUMIFS(DATA!BA$3:BA$101,DATA!$F$3:$F$101,$A10,DATA!$B$3:$B$101,$C$2) -> 2170 | AX10: =SUMIFS(DATA!BB$3:BB$101,DATA!$F$3:$F$101,$A10,DATA!$B$3:$B$101,$C$2) -> 2207 | AY10: =SUMIFS(DATA!BC$3:BC$101,DATA!$F$3:$F$101,$A10,DATA!$B$3:$B$101,$C$2) -> 2228 | AZ10: =SUMIFS(DATA!BD$3:BD$101,DATA!$F$3:$F$101,$A10,DATA!$B$3:$B$101,$C$2) -> 2256
A11: Additional General Consumers Revenue | B11: [Formula] | C11: =C9*C60 -> 0 | D11: 47.635 | E11: =E9*E60 -> 106.8861786 | F11: 170.0709307 | G11: 236.9345129 | H11: 309.1203758 | I11: 386.9262517 | J11: 467.546753 | K11: 555.9341111 | L11: 649.3713204 | M11: 749.7632694 | N11: 856.6740812 | O11: 970.4318728 | P11: 1091.38075 | Q11: 1219.881568 | R11: 1356.31273 | S11: 1502.871944 | T11: 1657.509581 | U11: 1821.496729 | V11: 1995.301134 | W11: 860.1089349 | X11: 905.3359702 | Y11: 1469.824158 | Z11: 1347.579486 | AA11: 1691.070174 | AB11: 2226.32086 | AC11: 2584.405236 | AD11: 2490.89976 | AE11: 1515.024342 | AF11: 1379.762477 | AG11: 1491.97986 | AH11: 1290.59384 | AI11: =AI9*AI60 -> 1427.081914 | AJ11: 1248.462752 | AK11: 1734.773219 | AL11: 1667.023927 | AM11: 1852.2 | AN11: 1873.256303 | AO11: 1969.481706 | AP11: 2003.890789 | AQ11: 2028.697338 | AR11: 2110.919044 | AS11: 2133.124906 | AT11: 2128.767756 | AU11: 2167.6 | AV11: 2145.068779 | AW11: 2169.866856 | AX11: 2207.463942 | AY11: 2229.062268 | AZ11: 2255.460222
A12: Current Year's General Consumers Revenue Change | C12: 0 | D12: =D11-C11 -> 47.635 | E12: =E11-D11 -> 59.25117859 | F12: =F11-E11 -> 63.18475211 | G12: 66.86358217 | H12: 72.1858629 | I12: 77.80587589 | J12: 80.62050136 | K12: 88.38735808 | L12: 93.43720929 | M12: =M11-L11 -> 100.391949 | N12: 106.9108117 | O12: 113.7577916 | P12: 120.9488773 | Q12: 128.5008185 | R12: 136.4311619 | S12: 146.5592133 | T12: 154.6376372 | U12: 163.9871481 | V12: 173.8044048 | W12: -1135.192199 | X12: 45.2270353 | Y12: 564.4881877 | Z12: -122.2446723 | AA12: 343.4906883 | AB12: 535.2506861 | AC12: 358.0843764 | AD12: -93.50547666 | AE12: -975.8754176 | AF12: -135.2618649 | AG12: 112.2173832 | AH12: -201.3860208 | AI12: 136.4880744 | AJ12: -178.6191624 | AK12: 486.310467 | AL12: -67.74929151 | AM12: 185.1760729 | AN12: 21.05630278 | AO12: 96.22540281 | AP12: 34.40908375 | AQ12: 24.80654875 | AR12: 82.22170594 | AS12: 22.20586219 | AT12: -4.357150256 | AU12: 38.83224404 | AV12: -22.53122142 | AW12: 24.79807781 | AX12: 37.59708571 | AY12: 21.59832583 | AZ12: 26.3979538
A13: Extraprovincial | C13: =SUMIFS(DATA!G$3:G$101,DATA!$F$3:$F$101,$A13,DATA!$B$3:$B$101,$C$2) -> 357 | D13: =SUMIFS(DATA!H$3:H$101,DATA!$F$3:$F$101,$A13,DATA!$B$3:$B$101,$C$2) -> 344 | E13: =SUMIFS(DATA!I$3:I$101,DATA!$F$3:$F$101,$A13,DATA!$B$3:$B$101,$C$2) -> 333 | F13: =SUMIFS(DATA!J$3:J$101,DATA!$F$3:$F$101,$A13,DATA!$B$3:$B$101,$C$2) -> 370 | G13: =SUMIFS(DATA!K$3:K$101,DATA!$F$3:$F$101,$A13,DATA!$B$3:$B$101,$C$2) -> 388 | H13: =SUMIFS(DATA!L$3:L$101,DATA!$F$3:$F$101,$A13,DATA!$B$3:$B$101,$C$2) -> 412 | I13: =SUMIFS(DATA!M$3:M$101,DATA!$F$3:$F$101,$A13,DATA!$B$3:$B$101,$C$2) -> 402 | J13: =SUMIFS(DATA!N$3:N$101,DATA!$F$3:$F$101,$A13,DATA!$B$3:$B$101,$C$2) -> 439 | K13: =SUMIFS(DATA!O$3:O$101,DATA!$F$3:$F$101,$A13,DATA!$B$3:$B$101,$C$2) -> 713 | L13: =SUMIFS(DATA!P$3:P$101,DATA!$F$3:$F$101,$A13,DATA!$B$3:$B$101,$C$2) -> 817 | M13: =SUMIFS(DATA!Q$3:Q$101,DATA!$F$3:$F$101,$A13,DATA!$B$3:$B$101,$C$2) -> 829 | N13: =SUMIFS(DATA!R$3:R$101,DATA!$F$3:$F$101,$A13,DATA!$B$3:$B$101,$C$2) -> 808 | O13: =SUMIFS(DATA!S$3:S$101,DATA!$F$3:$F$101,$A13,DATA!$B$3:$B$101,$C$2) -> 795 | P13: =SUMIFS(DATA!T$3:T$101,DATA!$F$3:$F$101,$A13,DATA!$B$3:$B$101,$C$2) -> 834 | Q13: =SUMIFS(DATA!U$3:U$101,DATA!$F$3:$F$101,$A13,DATA!$B$3:$B$101,$C$2) -> 1099 | R13: =SUMIFS(DATA!V$3:V$101,DATA!$F$3:$F$101,$A13,DATA!$B$3:$B$101,$C$2) -> 1165 | S13: =SUMIFS(DATA!W$3:W$101,DATA!$F$3:$F$101,$A13,DATA!$B$3:$B$101,$C$2) -> 1174 | T13: =SUMIFS(DATA!X$3:X$101,DATA!$F$3:$F$101,$A13,DATA!$B$3:$B$101,$C$2) -> 1168 | U13: =SUMIFS(DATA!Y$3:Y$101,DATA!$F$3:$F$101,$A13,DATA!$B$3:$B$101,$C$2) -> 1176 | V13: =SUMIFS(DATA!Z$3:Z$101,DATA!$F$3:$F$101,$A13,DATA!$B$3:$B$101,$C$2) -> 1181 | W13: =SUMIFS(DATA!AA$3:AA$101,DATA!$F$3:$F$101,$A13,DATA!$B$3:$B$101,$C$2) -> 1176 | X13: =SUMIFS(DATA!AB$3:AB$101,DATA!$F$3:$F$101,$A13,DATA!$B$3:$B$101,$C$2) -> 1163 | Y13: =SUMIFS(DATA!AC$3:AC$101,DATA!$F$3:$F$101,$A13,DATA!$B$3:$B$101,$C$2) -> 1152 | Z13: =SUMIFS(DATA!AD$3:AD$101,DATA!$F$3:$F$101,$A13,DATA!$B$3:$B$101,$C$2) -> 1114 | AA13: =SUMIFS(DATA!AE$3:AE$101,DATA!$F$3:$F$101,$A13,DATA!$B$3:$B$101,$C$2) -> 1032 | AB13: =SUMIFS(DATA!AF$3:AF$101,DATA!$F$3:$F$101,$A13,DATA!$B$3:$B$101,$C$2) -> 1002 | AC13: =SUMIFS(DATA!AG$3:AG$101,DATA!$F$3:$F$101,$A13,DATA!$B$3:$B$101,$C$2) -> 981 | AD13: =SUMIFS(DATA!AH$3:AH$101,DATA!$F$3:$F$101,$A13,DATA!$B$3:$B$101,$C$2) -> 962 | AE13: =SUMIFS(DATA!AI$3:AI$101,DATA!$F$3:$F$101,$A13,DATA!$B$3:$B$101,$C$2) -> 974 | AF13: =SUMIFS(DATA!AJ$3:AJ$101,DATA!$F$3:$F$101,$A13,DATA!$B$3:$B$101,$C$2) -> 961 | AG13: =SUMIFS(DATA!AK$3:AK$101,DATA!$F$3:$F$101,$A13,DATA!$B$3:$B$101,$C$2) -> 954 | AH13: =SUMIFS(DATA!AL$3:AL$101,DATA!$F$3:$F$101,$A13,DATA!$B$3:$B$101,$C$2) -> 954 | AI13: =SUMIFS(DATA!AM$3:AM$101,DATA!$F$3:$F$101,$A13,DATA!$B$3:$B$101,$C$2) -> 964 | AJ13: =SUMIFS(DATA!AN$3:AN$101,DATA!$F$3:$F$101,$A13,DATA!$B$3:$B$101,$C$2) -> 939 | AK13: =SUMIFS(DATA!AO$3:AO$101,DATA!$F$3:$F$101,$A13,DATA!$B$3:$B$101,$C$2) -> 935 | AL13: =SUMIFS(DATA!AP$3:AP$101,DATA!$F$3:$F$101,$A13,DATA!$B$3:$B$101,$C$2) -> 928 | AM13: =SUMIFS(DATA!AQ$3:AQ$101,DATA!$F$3:$F$101,$A13,DATA!$B$3:$B$101,$C$2) -> 968 | AN13: =SUMIFS(DATA!AR$3:AR$101,DATA!$F$3:$F$101,$A13,DATA!$B$3:$B$101,$C$2) -> 985 | AO13: =SUMIFS(DATA!AS$3:AS$101,DATA!$F$3:$F$101,$A13,DATA!$B$3:$B$101,$C$2) -> 1003 | AP13: =SUMIFS(DATA!AT$3:AT$101,DATA!$F$3:$F$101,$A13,DATA!$B$3:$B$101,$C$2) -> 1021 | AQ13: =SUMIFS(DATA!AU$3:AU$101,DATA!$F$3:$F$101,$A13,DATA!$B$3:$B$101,$C$2) -> 1040 | AR13: =SUMIFS(DATA!AV$3:AV$101,DATA!$F$3:$F$101,$A13,DATA!$B$3:$B$101,$C$2) -> 1058 | AS13: =SUMIFS(DATA!AW$3:AW$101,DATA!$F$3:$F$101,$A13,DATA!$B$3:$B$101,$C$2) -> 1077 | AT13: =SUMIFS(DATA!AX$3:AX$101,DATA!$F$3:$F$101,$A13,DATA!$B$3:$B$101,$C$2) -> 1097 | AU13: =SUMIFS(DATA!AY$3:AY$101,DATA!$F$3:$F$101,$A13,DATA!$B$3:$B$101,$C$2) -> 1117 | AV13: =SUMIFS(DATA!AZ$3:AZ$101,DATA!$F$3:$F$101,$A13,DATA!$B$3:$B$101,$C$2) -> 1137 | AW13: =SUMIFS(DATA!BA$3:BA$101,DATA!$F$3:$F$101,$A13,DATA!$B$3:$B$101,$C$2) -> 1157 | AX13: =SUMIFS(DATA!BB$3:BB$101,DATA!$F$3:$F$101,$A13,DATA!$B$3:$B$101,$C$2) -> 1178 | AY13: =SUMIFS(DATA!BC$3:BC$101,DATA!$F$3:$F$101,$A13,DATA!$B$3:$B$101,$C$2) -> 1199 | AZ13: =SUMIFS(DATA!BD$3:BD$101,DATA!$F$3:$F$101,$A13,DATA!$B$3:$B$101,$C$2) -> 1221
A14: Other | C14: =SUMIFS(DATA!G$3:G$101,DATA!$F$3:$F$101,$A14,DATA!$B$3:$B$101,$C$2) -> 14 | D14: =SUMIFS(DATA!H$3:H$101,DATA!$F$3:$F$101,$A14,DATA!$B$3:$B$101,$C$2) -> 15 | E14: =SUMIFS(DATA!I$3:I$101,DATA!$F$3:$F$101,$A14,DATA!$B$3:$B$101,$C$2) -> 15 | F14: =SUMIFS(DATA!J$3:J$101,DATA!$F$3:$F$101,$A14,DATA!$B$3:$B$101,$C$2) -> 15 | G14: =SUMIFS(DATA!K$3:K$101,DATA!$F$3:$F$101,$A14,DATA!$B$3:$B$101,$C$2) -> 15 | H14: =SUMIFS(DATA!L$3:L$101,DATA!$F$3:$F$101,$A14,DATA!$B$3:$B$101,$C$2) -> 16 | I14: =SUMIFS(DATA!M$3:M$101,DATA!$F$3:$F$101,$A14,DATA!$B$3:$B$101,$C$2) -> 16 | J14: =SUMIFS(DATA!N$3:N$101,DATA!$F$3:$F$101,$A14,DATA!$B$3:$B$101,$C$2) -> 16 | K14: =SUMIFS(DATA!O$3:O$101,DATA!$F$3:$F$101,$A14,DATA!$B$3:$B$101,$C$2) -> 17 | L14: =SUMIFS(DATA!P$3:P$101,DATA!$F$3:$F$101,$A14,DATA!$B$3:$B$101,$C$2) -> 17 | M14: =SUMIFS(DATA!Q$3:Q$101,DATA!$F$3:$F$101,$A14,DATA!$B$3:$B$101,$C$2) -> 17 | N14: =SUMIFS(DATA!R$3:R$101,DATA!$F$3:$F$101,$A14,DATA!$B$3:$B$101,$C$2) -> 18 | O14: =SUMIFS(DATA!S$3:S$101,DATA!$F$3:$F$101,$A14,DATA!$B$3:$B$101,$C$2) -> 18 | P14: =SUMIFS(DATA!T$3:T$101,DATA!$F$3:$F$101,$A14,DATA!$B$3:$B$101,$C$2) -> 18 | Q14: =SUMIFS(DATA!U$3:U$101,DATA!$F$3:$F$101,$A14,DATA!$B$3:$B$101,$C$2) -> 19 | R14: =SUMIFS(DATA!V$3:V$101,DATA!$F$3:$F$101,$A14,DATA!$B$3:$B$101,$C$2) -> 19 | S14: =SUMIFS(DATA!W$3:W$101,DATA!$F$3:$F$101,$A14,DATA!$B$3:$B$101,$C$2) -> 19 | T14: =SUMIFS(DATA!X$3:X$101,DATA!$F$3:$F$101,$A14,DATA!$B$3:$B$101,$C$2) -> 20 | U14: =SUMIFS(DATA!Y$3:Y$101,DATA!$F$3:$F$101,$A14,DATA!$B$3:$B$101,$C$2) -> 20 | V14: =SUMIFS(DATA!Z$3:Z$101,DATA!$F$3:$F$101,$A14,DATA!$B$3:$B$101,$C$2) -> 21 | W14: =SUMIFS(DATA!AA$3:AA$101,DATA!$F$3:$F$101,$A14,DATA!$B$3:$B$101,$C$2) -> 21 | X14: =SUMIFS(DATA!AB$3:AB$101,DATA!$F$3:$F$101,$A14,DATA!$B$3:$B$101,$C$2) -> 21 | Y14: =SUMIFS(DATA!AC$3:AC$101,DATA!$F$3:$F$101,$A14,DATA!$B$3:$B$101,$C$2) -> 22 | Z14: =SUMIFS(DATA!AD$3:AD$101,DATA!$F$3:$F$101,$A14,DATA!$B$3:$B$101,$C$2) -> 22 | AA14: =SUMIFS(DATA!AE$3:AE$101,DATA!$F$3:$F$101,$A14,DATA!$B$3:$B$101,$C$2) -> 23 | AB14: =SUMIFS(DATA!AF$3:AF$101,DATA!$F$3:$F$101,$A14,DATA!$B$3:$B$101,$C$2) -> 23 | AC14: =SUMIFS(DATA!AG$3:AG$101,DATA!$F$3:$F$101,$A14,DATA!$B$3:$B$101,$C$2) -> 24 | AD14: =SUMIFS(DATA!AH$3:AH$101,DATA!$F$3:$F$101,$A14,DATA!$B$3:$B$101,$C$2) -> 24 | AE14: =SUMIFS(DATA!AI$3:AI$101,DATA!$F$3:$F$101,$A14,DATA!$B$3:$B$101,$C$2) -> 24 | AF14: =SUMIFS(DATA!AJ$3:AJ$101,DATA!$F$3:$F$101,$A14,DATA!$B$3:$B$101,$C$2) -> 25 | AG14: =SUMIFS(DATA!AK$3:AK$101,DATA!$F$3:$F$101,$A14,DATA!$B$3:$B$101,$C$2) -> 25 | AH14: =SUMIFS(DATA!AL$3:AL$101,DATA!$F$3:$F$101,$A14,DATA!$B$3:$B$101,$C$2) -> 26 | AI14: =SUMIFS(DATA!AM$3:AM$101,DATA!$F$3:$F$101,$A14,DATA!$B$3:$B$101,$C$2) -> 26 | AJ14: =SUMIFS(DATA!AN$3:AN$101,DATA!$F$3:$F$101,$A14,DATA!$B$3:$B$101,$C$2) -> 27 | AK14: =SUMIFS(DATA!AO$3:AO$101,DATA!$F$3:$F$101,$A14,DATA!$B$3:$B$101,$C$2) -> 27 | AL14: =SUMIFS(DATA!AP$3:AP$101,DATA!$F$3:$F$101,$A14,DATA!$B$3:$B$101,$C$2) -> 28 | AM14: =SUMIFS(DATA!AQ$3:AQ$101,DATA!$F$3:$F$101,$A14,DATA!$B$3:$B$101,$C$2) -> 29 | AN14: =SUMIFS(DATA!AR$3:AR$101,DATA!$F$3:$F$101,$A14,DATA!$B$3:$B$101,$C$2) -> 29 | AO14: =SUMIFS(DATA!AS$3:AS$101,DATA!$F$3:$F$101,$A14,DATA!$B$3:$B$101,$C$2) -> 30 | AP14: =SUMIFS(DATA!AT$3:AT$101,DATA!$F$3:$F$101,$A14,DATA!$B$3:$B$101,$C$2) -> 30 | AQ14: =SUMIFS(DATA!AU$3:AU$101,DATA!$F$3:$F$101,$A14,DATA!$B$3:$B$101,$C$2) -> 31 | AR14: =SUMIFS(DATA!AV$3:AV$101,DATA!$F$3:$F$101,$A14,DATA!$B$3:$B$101,$C$2) -> 31 | AS14: =SUMIFS(DATA!AW$3:AW$101,DATA!$F$3:$F$101,$A14,DATA!$B$3:$B$101,$C$2) -> 32 | AT14: =SUMIFS(DATA!AX$3:AX$101,DATA!$F$3:$F$101,$A14,DATA!$B$3:$B$101,$C$2) -> 33 | AU14: =SUMIFS(DATA!AY$3:AY$101,DATA!$F$3:$F$101,$A14,DATA!$B$3:$B$101,$C$2) -> 33 | AV14: =SUMIFS(DATA!AZ$3:AZ$101,DATA!$F$3:$F$101,$A14,DATA!$B$3:$B$101,$C$2) -> 34 | AW14: =SUMIFS(DATA!BA$3:BA$101,DATA!$F$3:$F$101,$A14,DATA!$B$3:$B$101,$C$2) -> 35 | AX14: =SUMIFS(DATA!BB$3:BB$101,DATA!$F$3:$F$101,$A14,DATA!$B$3:$B$101,$C$2) -> 35 | AY14: =SUMIFS(DATA!BC$3:BC$101,DATA!$F$3:$F$101,$A14,DATA!$B$3:$B$101,$C$2) -> 36 | AZ14: =SUMIFS(DATA!BD$3:BD$101,DATA!$F$3:$F$101,$A14,DATA!$B$3:$B$101,$C$2) -> 37
A15: Total Revenue | B15: [Formula] | C15: =IF($F$3="No",SUM(C9,C11,C13:C14),SUM(C9,C11,C13:C14,'Financial Adjustments'!K9)) -> 1702 | D15: =IF($F$3="No",SUM(D9,D11,D13:D14),SUM(D9,D11,D13:D14,)) -> 1767.635 | E15: =IF($F$3="No",SUM(E9,E11,E13:E14),SUM(E9,E11,E13:E14,'Financial Adjustments'!L9)) -> 1944.1433 | F15: =IF($F$3="No",SUM(F9,F11,F13:F14),SUM(F9,F11,F13:F14,'Financial Adjustments'!M9)) -> 2043.234708 | G15: =IF($F$3="No",SUM(G9,G11,G13:G14),SUM(G9,G11,G13:G14,'Financial Adjustments'!N9)) -> 2049.498764 | H15: =IF($F$3="No",SUM(H9,H11,H13:H14),SUM(H9,H11,H13:H14,'Financial Adjustments'!O9)) -> 2081.457378 | I15: =IF($F$3="No",SUM(I9,I11,I13:I14),SUM(I9,I11,I13:I14,'Financial Adjustments'!P9)) -> 2226.294003 | J15: =IF($F$3="No",SUM(J9,J11,J13:J14),SUM(J9,J11,J13:J14,'Financial Adjustments'!Q9)) -> 2441.795161 | K15: =IF($F$3="No",SUM(K9,K11,K13:K14),SUM(K9,K11,K13:K14,'Financial Adjustments'!R9)) -> 2771.970224 | L15: =IF($F$3="No",SUM(L9,L11,L13:L14),SUM(L9,L11,L13:L14,'Financial Adjustments'!S9)) -> 3042.074432 | M15: =IF($F$3="No",SUM(M9,M11,M13:M14),SUM(M9,M11,M13:M14,'Financial Adjustments'!T9)) -> 2982.426864 | N15: =IF($F$3="No",SUM(N9,N11,N13:N14),SUM(N9,N11,N13:N14,'Financial Adjustments'!U9)) -> 3352.718722 | O15: =IF($F$3="No",SUM(O9,O11,O13:O14),SUM(O9,O11,O13:O14,'Financial Adjustments'!V9)) -> 3422.860834 | P15: =IF($F$3="No",SUM(P9,P11,P13:P14),SUM(P9,P11,P13:P14,'Financial Adjustments'!W9)) -> 3827.876904 | Q15: =IF($F$3="No",SUM(Q9,Q11,Q13:Q14),SUM(Q9,Q11,Q13:Q14,'Financial Adjustments'!X9)) -> 4133.245478 | R15: =IF($F$3="No",SUM(R9,R11,R13:R14),SUM(R9,R11,R13:R14,'Financial Adjustments'!Y9)) -> 3799.08501 | S15: =IF($F$3="No",SUM(S9,S11,S13:S14),SUM(S9,S11,S13:S14,'Financial Adjustments'!Z9)) -> 3982.519508 | T15: =IF($F$3="No",SUM(T9,T11,T13:T14),SUM(T9,T11,T13:T14,'Financial Adjustments'!AA9)) -> 4088.754368 | U15: =IF($F$3="No",SUM(U9,U11,U13:U14),SUM(U9,U11,U13:U14,'Financial Adjustments'!AB9)) -> 4480.435678 | V15: =IF($F$3="No",SUM(V9,V11,V13:V14),SUM(V9,V11,V13:V14,'Financial Adjustments'!AC9)) -> 4796.773187 | W15: =IF($F$3="No",SUM(W9,W11,W13:W14),SUM(W9,W11,W13:W14,'Financial Adjustments'!AD9)) -> 4018.2 | X15: =IF($F$3="No",SUM(X9,X11,X13:X14),SUM(X9,X11,X13:X14,'Financial Adjustments'!AE9)) -> 4049.6 | Y15: =IF($F$3="No",SUM(Y9,Y11,Y13:Y14),SUM(Y9,Y11,Y13:Y14,'Financial Adjustments'!AF9)) -> 4109.6 | Z15: =IF($F$3="No",SUM(Z9,Z11,Z13:Z14),SUM(Z9,Z11,Z13:Z14,'Financial Adjustments'!AG9)) -> 4130.6 | AA15: =IF($F$3="No",SUM(AA9,AA11,AA13:AA14),SUM(AA9,AA11,AA13:AA14,'Financial Adjustments'!AH9)) -> 4127.6 | AB15: =IF($F$3="No",SUM(AB9,AB11,AB13:AB14),SUM(AB9,AB11,AB13:AB14,'Financial Adjustments'!AI9)) -> 4171.6 | AC15: =IF($F$3="No",SUM(AC9,AC11,AC13:AC14),SUM(AC9,AC11,AC13:AC14,'Financial Adjustments'!AJ9)) -> 4190.4 | AD15: =IF($F$3="No",SUM(AD9,AD11,AD13:AD14),SUM(AD9,AD11,AD13:AD14,'Financial Adjustments'!AK9)) -> 4231 | AE15: =IF($F$3="No",SUM(AE9,AE11,AE13:AE14),SUM(AE9,AE11,AE13:AE14,'Financial Adjustments'!AL9)) -> 4302 | AF15: =IF($F$3="No",SUM(AF9,AF11,AF13:AF14),SUM(AF9,AF11,AF13:AF14,'Financial Adjustments'!AM9)) -> 4398.6 | AG15: =IF($F$3="No",SUM(AG9,AG11,AG13:AG14),SUM(AG9,AG11,AG13:AG14,'Financial Adjustments'!AN9)) -> 4512 | AH15: =IF($F$3="No",SUM(AH9,AH11,AH13:AH14),SUM(AH9,AH11,AH13:AH14,'Financial Adjustments'!AO9)) -> 4565.2 | AI15: =IF($F$3="No",SUM(AI9,AI11,AI13:AI14),SUM(AI9,AI11,AI13:AI14,'Financial Adjustments'!AP9)) -> 4655 | AJ15: =IF($F$3="No",SUM(AJ9,AJ11,AJ13:AJ14),SUM(AJ9,AJ11,AJ13:AJ14,'Financial Adjustments'!AQ9)) -> 4758.2 | AK15: =IF($F$3="No",SUM(AK9,AK11,AK13:AK14),SUM(AK9,AK11,AK13:AK14,'Financial Adjustments'!AR9)) -> 4911.6 | AL15: =IF($F$3="No",SUM(AL9,AL11,AL13:AL14),SUM(AL9,AL11,AL13:AL14,'Financial Adjustments'!AS9)) -> 4952.2 | AM15: =IF($F$3="No",SUM(AM9,AM11,AM13:AM14),SUM(AM9,AM11,AM13:AM14,'Financial Adjustments'!AT9)) -> 4977.2 | AN15: =IF($F$3="No",SUM(AN9,AN11,AN13:AN14),SUM(AN9,AN11,AN13:AN14,'Financial Adjustments'!AU9)) -> 5015.256303 | AO15: =IF($F$3="No",SUM(AO9,AO11,AO13:AO14),SUM(AO9,AO11,AO13:AO14,'Financial Adjustments'!AV9)) -> 5130.481706 | AP15: =IF($F$3="No",SUM(AP9,AP11,AP13:AP14),SUM(AP9,AP11,AP13:AP14,'Financial Adjustments'!AW9)) -> 5182.890789 | AQ15: =IF($F$3="No",SUM(AQ9,AQ11,AQ13:AQ14),SUM(AQ9,AQ11,AQ13:AQ14,'Financial Adjustments'!AX9)) -> 5227.697338 | AR15: =IF($F$3="No",SUM(AR9,AR11,AR13:AR14),SUM(AR9,AR11,AR13:AR14,'Financial Adjustments'!AY9)) -> 5327.919044 | AS15: =IF($F$3="No",SUM(AS9,AS11,AS13:AS14),SUM(AS9,AS11,AS13:AS14,'Financial Adjustments'!AZ9)) -> 5370.124906 | AT15: =IF($F$3="No",SUM(AT9,AT11,AT13:AT14),SUM(AT9,AT11,AT13:AT14,'Financial Adjustments'!BA9)) -> 5386.767756 | AU15: =IF($F$3="No",SUM(AU9,AU11,AU13:AU14),SUM(AU9,AU11,AU13:AU14,'Financial Adjustments'!BB9)) -> 5445.6 | AV15: =IF($F$3="No",SUM(AV9,AV11,AV13:AV14),SUM(AV9,AV11,AV13:AV14,'Financial Adjustments'!BC9)) -> 5444.068779 | AW15: =IF($F$3="No",SUM(AW9,AW11,AW13:AW14),SUM(AW9,AW11,AW13:AW14,'Financial Adjustments'!BD9)) -> 5489.866856 | AX15: =IF($F$3="No",SUM(AX9,AX11,AX13:AX14),SUM(AX9,AX11,AX13:AX14,'Financial Adjustments'!BE9)) -> 5548.463942 | AY15: =IF($F$3="No",SUM(AY9,AY11,AY13:AY14),SUM(AY9,AY11,AY13:AY14,'Financial Adjustments'!BF9)) -> 5592.062268 | AZ15: =IF($F$3="No",SUM(AZ9,AZ11,AZ13:AZ14),SUM(AZ9,AZ11,AZ13:AZ14,'Financial Adjustments'!BG9)) -> 5641.460222
A16: Total Revenue | B16: [original] | C16: =SUMIFS(DATA!G$3:G$101,DATA!$F$3:$F$101,$A16,DATA!$B$3:$B$101,$C$2) -> 1702 | D16: =SUMIFS(DATA!H$3:H$101,DATA!$F$3:$F$101,$A16,DATA!$B$3:$B$101,$C$2) -> 1768 | E16: =SUMIFS(DATA!I$3:I$101,DATA!$F$3:$F$101,$A16,DATA!$B$3:$B$101,$C$2) -> 1826 | F16: =SUMIFS(DATA!J$3:J$101,DATA!$F$3:$F$101,$A16,DATA!$B$3:$B$101,$C$2) -> 1939 | G16: =SUMIFS(DATA!K$3:K$101,DATA!$F$3:$F$101,$A16,DATA!$B$3:$B$101,$C$2) -> 2035 | H16: =SUMIFS(DATA!L$3:L$101,DATA!$F$3:$F$101,$A16,DATA!$B$3:$B$101,$C$2) -> 2148 | I16: =SUMIFS(DATA!M$3:M$101,DATA!$F$3:$F$101,$A16,DATA!$B$3:$B$101,$C$2) -> 2236 | J16: =SUMIFS(DATA!N$3:N$101,DATA!$F$3:$F$101,$A16,DATA!$B$3:$B$101,$C$2) -> 2364 | K16: =SUMIFS(DATA!O$3:O$101,DATA!$F$3:$F$101,$A16,DATA!$B$3:$B$101,$C$2) -> 2745 | L16: =SUMIFS(DATA!P$3:P$101,DATA!$F$3:$F$101,$A16,DATA!$B$3:$B$101,$C$2) -> 2959 | M16: =SUMIFS(DATA!Q$3:Q$101,DATA!$F$3:$F$101,$A16,DATA!$B$3:$B$101,$C$2) -> 3088 | N16: =SUMIFS(DATA!R$3:R$101,DATA!$F$3:$F$101,$A16,DATA!$B$3:$B$101,$C$2) -> 3191 | O16: =SUMIFS(DATA!S$3:S$101,DATA!$F$3:$F$101,$A16,DATA!$B$3:$B$101,$C$2) -> 3309 | P16: =SUMIFS(DATA!T$3:T$101,DATA!$F$3:$F$101,$A16,DATA!$B$3:$B$101,$C$2) -> 3484 | Q16: =SUMIFS(DATA!U$3:U$101,DATA!$F$3:$F$101,$A16,DATA!$B$3:$B$101,$C$2) -> 3892 | R16: =SUMIFS(DATA!V$3:V$101,DATA!$F$3:$F$101,$A16,DATA!$B$3:$B$101,$C$2) -> 4110 | S16: =SUMIFS(DATA!W$3:W$101,DATA!$F$3:$F$101,$A16,DATA!$B$3:$B$101,$C$2) -> 4280 | T16: =SUMIFS(DATA!X$3:X$101,DATA!$F$3:$F$101,$A16,DATA!$B$3:$B$101,$C$2) -> 4443 | U16: =SUMIFS(DATA!Y$3:Y$101,DATA!$F$3:$F$101,$A16,DATA!$B$3:$B$101,$C$2) -> 4628 | V16: =SUMIFS(DATA!Z$3:Z$101,DATA!$F$3:$F$101,$A16,DATA!$B$3:$B$101,$C$2) -> 4818 | W16: =SUMIFS(DATA!AA$3:AA$101,DATA!$F$3:$F$101,$A16,DATA!$B$3:$B$101,$C$2) -> 4020 | X16: =SUMIFS(DATA!AB$3:AB$101,DATA!$F$3:$F$101,$A16,DATA!$B$3:$B$101,$C$2) -> 4050 | Y16: =SUMIFS(DATA!AC$3:AC$101,DATA!$F$3:$F$101,$A16,DATA!$B$3:$B$101,$C$2) -> 4110 | Z16: =SUMIFS(DATA!AD$3:AD$101,DATA!$F$3:$F$101,$A16,DATA!$B$3:$B$101,$C$2) -> 4131 | AA16: =SUMIFS(DATA!AE$3:AE$101,DATA!$F$3:$F$101,$A16,DATA!$B$3:$B$101,$C$2) -> 4128 | AB16: =SUMIFS(DATA!AF$3:AF$101,DATA!$F$3:$F$101,$A16,DATA!$B$3:$B$101,$C$2) -> 4171 | AC16: =SUMIFS(DATA!AG$3:AG$101,DATA!$F$3:$F$101,$A16,DATA!$B$3:$B$101,$C$2) -> 4190 | AD16: =SUMIFS(DATA!AH$3:AH$101,DATA!$F$3:$F$101,$A16,DATA!$B$3:$B$101,$C$2) -> 4231 | AE16: =SUMIFS(DATA!AI$3:AI$101,DATA!$F$3:$F$101,$A16,DATA!$B$3:$B$101,$C$2) -> 4302 | AF16: =SUMIFS(DATA!AJ$3:AJ$101,DATA!$F$3:$F$101,$A16,DATA!$B$3:$B$101,$C$2) -> 4399 | AG16: =SUMIFS(DATA!AK$3:AK$101,DATA!$F$3:$F$101,$A16,DATA!$B$3:$B$101,$C$2) -> 4513 | AH16: =SUMIFS(DATA!AL$3:AL$101,DATA!$F$3:$F$101,$A16,DATA!$B$3:$B$101,$C$2) -> 4564 | AI16: =SUMIFS(DATA!AM$3:AM$101,DATA!$F$3:$F$101,$A16,DATA!$B$3:$B$101,$C$2) -> 4655 | AJ16: =SUMIFS(DATA!AN$3:AN$101,DATA!$F$3:$F$101,$A16,DATA!$B$3:$B$101,$C$2) -> 4758 | AK16: =SUMIFS(DATA!AO$3:AO$101,DATA!$F$3:$F$101,$A16,DATA!$B$3:$B$101,$C$2) -> 4911 | AL16: =SUMIFS(DATA!AP$3:AP$101,DATA!$F$3:$F$101,$A16,DATA!$B$3:$B$101,$C$2) -> 4952 | AM16: =SUMIFS(DATA!AQ$3:AQ$101,DATA!$F$3:$F$101,$A16,DATA!$B$3:$B$101,$C$2) -> 4977 | AN16: =SUMIFS(DATA!AR$3:AR$101,DATA!$F$3:$F$101,$A16,DATA!$B$3:$B$101,$C$2) -> 5013 | AO16: =SUMIFS(DATA!AS$3:AS$101,DATA!$F$3:$F$101,$A16,DATA!$B$3:$B$101,$C$2) -> 5129 | AP16: =SUMIFS(DATA!AT$3:AT$101,DATA!$F$3:$F$101,$A16,DATA!$B$3:$B$101,$C$2) -> 5181 | AQ16: =SUMIFS(DATA!AU$3:AU$101,DATA!$F$3:$F$101,$A16,DATA!$B$3:$B$101,$C$2) -> 5225 | AR16: =SUMIFS(DATA!AV$3:AV$101,DATA!$F$3:$F$101,$A16,DATA!$B$3:$B$101,$C$2) -> 5326 | AS16: =SUMIFS(DATA!AW$3:AW$101,DATA!$F$3:$F$101,$A16,DATA!$B$3:$B$101,$C$2) -> 5369 | AT16: =SUMIFS(DATA!AX$3:AX$101,DATA!$F$3:$F$101,$A16,DATA!$B$3:$B$101,$C$2) -> 5385 | AU16: =SUMIFS(DATA!AY$3:AY$101,DATA!$F$3:$F$101,$A16,DATA!$B$3:$B$101,$C$2) -> 5443 | AV16: =SUMIFS(DATA!AZ$3:AZ$101,DATA!$F$3:$F$101,$A16,DATA!$B$3:$B$101,$C$2) -> 5443 | AW16: =SUMIFS(DATA!BA$3:BA$101,DATA!$F$3:$F$101,$A16,DATA!$B$3:$B$101,$C$2) -> 5490 | AX16: =SUMIFS(DATA!BB$3:BB$101,DATA!$F$3:$F$101,$A16,DATA!$B$3:$B$101,$C$2) -> 5549 | AY16: =SUMIFS(DATA!BC$3:BC$101,DATA!$F$3:$F$101,$A16,DATA!$B$3:$B$101,$C$2) -> 5591 | AZ16: =SUMIFS(DATA!BD$3:BD$101,DATA!$F$3:$F$101,$A16,DATA!$B$3:$B$101,$C$2) -> 5641
B17: [Difference] | C17: =C15-C16 -> 0 | D17: =D15-D16 -> -0.365 | E17: =E15-E16 -> 118.1433003 | F17: =F15-F16 -> 104.2347075 | G17: =G15-G16 -> 14.4987644 | H17: =H15-H16 -> -66.54262155 | I17: =I15-I16 -> -9.705997284 | J17: =J15-J16 -> 77.79516054 | K17: =K15-K16 -> 26.9702245 | L17: =L15-L16 -> 83.07443196 | M17: =M15-M16 -> -105.5731365 | N17: =N15-N16 -> 161.7187223 | O17: =O15-O16 -> 113.8608335 | P17: =P15-P16 -> 343.8769041 | Q17: =Q15-Q16 -> 241.2454781 | R17: =R15-R16 -> -310.91499 | S17: =S15-S16 -> -297.480492 | T17: =T15-T16 -> -354.2456321 | U17: =U15-U16 -> -147.5643223 | V17: =V15-V16 -> -21.2268134 | W17: =W15-W16 -> -1.8 | X17: =X15-X16 -> -0.4 | Y17: =Y15-Y16 -> -0.4 | Z17: =Z15-Z16 -> -0.4 | AA17: =AA15-AA16 -> -0.4 | AB17: =AB15-AB16 -> 0.6 | AC17: =AC15-AC16 -> 0.4 | AD17: =AD15-AD16 -> 0 | AE17: =AE15-AE16 -> 0 | AF17: =AF15-AF16 -> -0.4 | AG17: =AG15-AG16 -> -1 | AH17: =AH15-AH16 -> 1.2 | AI17: =AI15-AI16 -> 0 | AJ17: =AJ15-AJ16 -> 0.2 | AK17: =AK15-AK16 -> 0.6 | AL17: =AL15-AL16 -> 0.2 | AM17: =AM15-AM16 -> 0.2 | AN17: =AN15-AN16 -> 2.25630278 | AO17: =AO15-AO16 -> 1.481705592 | AP17: =AP15-AP16 -> 1.890789341 | AQ17: =AQ15-AQ16 -> 2.697338091 | AR17: =AR15-AR16 -> 1.919044028 | AS17: =AS15-AS16 -> 1.124906215 | AT17: =AT15-AT16 -> 1.767755959 | AU17: =AU15-AU16 -> 2.6 | AV17: =AV15-AV16 -> 1.068778585 | AW17: =AW15-AW16 -> -0.1331436065 | AX17: =AX15-AX16 -> -0.5360578961 | AY17: =AY15-AY16 -> 1.062267938 | AZ17: =AZ15-AZ16 -> 0.4602217342
A19: EXPENSES
A20: Operating and Administrative | C20: =SUMIFS(DATA!G$3:G$101,DATA!$F$3:$F$101,$A20,DATA!$B$3:$B$101,$C$2) -> 455 | D20: =SUMIFS(DATA!H$3:H$101,DATA!$F$3:$F$101,$A20,DATA!$B$3:$B$101,$C$2) -> 471 | E20: =SUMIFS(DATA!I$3:I$101,DATA!$F$3:$F$101,$A20,DATA!$B$3:$B$101,$C$2) -> 546 | F20: =SUMIFS(DATA!J$3:J$101,DATA!$F$3:$F$101,$A20,DATA!$B$3:$B$101,$C$2) -> 559 | G20: =SUMIFS(DATA!K$3:K$101,DATA!$F$3:$F$101,$A20,DATA!$B$3:$B$101,$C$2) -> 570 | H20: =SUMIFS(DATA!L$3:L$101,DATA!$F$3:$F$101,$A20,DATA!$B$3:$B$101,$C$2) -> 593 | I20: =SUMIFS(DATA!M$3:M$101,DATA!$F$3:$F$101,$A20,DATA!$B$3:$B$101,$C$2) -> 605 | J20: =SUMIFS(DATA!N$3:N$101,DATA!$F$3:$F$101,$A20,DATA!$B$3:$B$101,$C$2) -> 621 | K20: =SUMIFS(DATA!O$3:O$101,DATA!$F$3:$F$101,$A20,DATA!$B$3:$B$101,$C$2) -> 678 | L20: =SUMIFS(DATA!P$3:P$101,DATA!$F$3:$F$101,$A20,DATA!$B$3:$B$101,$C$2) -> 690 | M20: =SUMIFS(DATA!Q$3:Q$101,DATA!$F$3:$F$101,$A20,DATA!$B$3:$B$101,$C$2) -> 703 | N20: =SUMIFS(DATA!R$3:R$101,DATA!$F$3:$F$101,$A20,DATA!$B$3:$B$101,$C$2) -> 716 | O20: =SUMIFS(DATA!S$3:S$101,DATA!$F$3:$F$101,$A20,DATA!$B$3:$B$101,$C$2) -> 730 | P20: =SUMIFS(DATA!T$3:T$101,DATA!$F$3:$F$101,$A20,DATA!$B$3:$B$101,$C$2) -> 760 | Q20: =SUMIFS(DATA!U$3:U$101,DATA!$F$3:$F$101,$A20,DATA!$B$3:$B$101,$C$2) -> 773 | R20: =SUMIFS(DATA!V$3:V$101,DATA!$F$3:$F$101,$A20,DATA!$B$3:$B$101,$C$2) -> 788 | S20: =SUMIFS(DATA!W$3:W$101,DATA!$F$3:$F$101,$A20,DATA!$B$3:$B$101,$C$2) -> 804 | T20: =SUMIFS(DATA!X$3:X$101,DATA!$F$3:$F$101,$A20,DATA!$B$3:$B$101,$C$2) -> 817 | U20: =SUMIFS(DATA!Y$3:Y$101,DATA!$F$3:$F$101,$A20,DATA!$B$3:$B$101,$C$2) -> 832 | V20: =SUMIFS(DATA!Z$3:Z$101,DATA!$F$3:$F$101,$A20,DATA!$B$3:$B$101,$C$2) -> 849 | W20: =SUMIFS(DATA!AA$3:AA$101,DATA!$F$3:$F$101,$A20,DATA!$B$3:$B$101,$C$2) -> 866 | X20: =SUMIFS(DATA!AB$3:AB$101,DATA!$F$3:$F$101,$A20,DATA!$B$3:$B$101,$C$2) -> 887 | Y20: =SUMIFS(DATA!AC$3:AC$101,DATA!$F$3:$F$101,$A20,DATA!$B$3:$B$101,$C$2) -> 906 | Z20: =SUMIFS(DATA!AD$3:AD$101,DATA!$F$3:$F$101,$A20,DATA!$B$3:$B$101,$C$2) -> 924 | AA20: =SUMIFS(DATA!AE$3:AE$101,DATA!$F$3:$F$101,$A20,DATA!$B$3:$B$101,$C$2) -> 945 | AB20: =SUMIFS(DATA!AF$3:AF$101,DATA!$F$3:$F$101,$A20,DATA!$B$3:$B$101,$C$2) -> 966 | AC20: =SUMIFS(DATA!AG$3:AG$101,DATA!$F$3:$F$101,$A20,DATA!$B$3:$B$101,$C$2) -> 987 | AD20: =SUMIFS(DATA!AH$3:AH$101,DATA!$F$3:$F$101,$A20,DATA!$B$3:$B$101,$C$2) -> 1010 | AE20: =SUMIFS(DATA!AI$3:AI$101,DATA!$F$3:$F$101,$A20,DATA!$B$3:$B$101,$C$2) -> 1032 | AF20: =SUMIFS(DATA!AJ$3:AJ$101,DATA!$F$3:$F$101,$A20,DATA!$B$3:$B$101,$C$2) -> 1062 | AG20: =SUMIFS(DATA!AK$3:AK$101,DATA!$F$3:$F$101,$A20,DATA!$B$3:$B$101,$C$2) -> 1087 | AH20: =SUMIFS(DATA!AL$3:AL$101,DATA!$F$3:$F$101,$A20,DATA!$B$3:$B$101,$C$2) -> 1113 | AI20: =SUMIFS(DATA!AM$3:AM$101,DATA!$F$3:$F$101,$A20,DATA!$B$3:$B$101,$C$2) -> 1146 | AJ20: =SUMIFS(DATA!AN$3:AN$101,DATA!$F$3:$F$101,$A20,DATA!$B$3:$B$101,$C$2) -> 1174 | AK20: =SUMIFS(DATA!AO$3:AO$101,DATA!$F$3:$F$101,$A20,DATA!$B$3:$B$101,$C$2) -> 1210 | AL20: =SUMIFS(DATA!AP$3:AP$101,DATA!$F$3:$F$101,$A20,DATA!$B$3:$B$101,$C$2) -> 1240 | AM20: =SUMIFS(DATA!AQ$3:AQ$101,DATA!$F$3:$F$101,$A20,DATA!$B$3:$B$101,$C$2) -> 1269 | AN20: =SUMIFS(DATA!AR$3:AR$101,DATA!$F$3:$F$101,$A20,DATA!$B$3:$B$101,$C$2) -> 1300 | AO20: =SUMIFS(DATA!AS$3:AS$101,DATA!$F$3:$F$101,$A20,DATA!$B$3:$B$101,$C$2) -> 1331 | AP20: =SUMIFS(DATA!AT$3:AT$101,DATA!$F$3:$F$101,$A20,DATA!$B$3:$B$101,$C$2) -> 1364 | AQ20: =SUMIFS(DATA!AU$3:AU$101,DATA!$F$3:$F$101,$A20,DATA!$B$3:$B$101,$C$2) -> 1385 | AR20: =SUMIFS(DATA!AV$3:AV$101,DATA!$F$3:$F$101,$A20,DATA!$B$3:$B$101,$C$2) -> 1418 | AS20: =SUMIFS(DATA!AW$3:AW$101,DATA!$F$3:$F$101,$A20,DATA!$B$3:$B$101,$C$2) -> 1439 | AT20: =SUMIFS(DATA!AX$3:AX$101,DATA!$F$3:$F$101,$A20,DATA!$B$3:$B$101,$C$2) -> 1460 | AU20: =SUMIFS(DATA!AY$3:AY$101,DATA!$F$3:$F$101,$A20,DATA!$B$3:$B$101,$C$2) -> 1482 | AV20: =SUMIFS(DATA!AZ$3:AZ$101,DATA!$F$3:$F$101,$A20,DATA!$B$3:$B$101,$C$2) -> 1504 | AW20: =SUMIFS(DATA!BA$3:BA$101,DATA!$F$3:$F$101,$A20,DATA!$B$3:$B$101,$C$2) -> 1526 | AX20: =SUMIFS(DATA!BB$3:BB$101,DATA!$F$3:$F$101,$A20,DATA!$B$3:$B$101,$C$2) -> 1549 | AY20: =SUMIFS(DATA!BC$3:BC$101,DATA!$F$3:$F$101,$A20,DATA!$B$3:$B$101,$C$2) -> 1564 | AZ20: =SUMIFS(DATA!BD$3:BD$101,DATA!$F$3:$F$101,$A20,DATA!$B$3:$B$101,$C$2) -> 1588
A21: Gross Interest | B21: 1 PUB-081a | C21: =SUMIFS(DATA!G$3:G$307,DATA!$F$3:$F$307,$A21,DATA!$B$3:$B$307,$C$2) -> 533 | D21: =SUMIFS(DATA!H$3:H$307,DATA!$F$3:$F$307,$A21,DATA!$B$3:$B$307,$C$2) -> 523 | E21: =SUMIFS(DATA!I$3:I$307,DATA!$F$3:$F$307,$A21,DATA!$B$3:$B$307,$C$2) -> 592 | F21: =SUMIFS(DATA!J$3:J$307,DATA!$F$3:$F$307,$A21,DATA!$B$3:$B$307,$C$2) -> 668 | G21: =SUMIFS(DATA!K$3:K$307,DATA!$F$3:$F$307,$A21,DATA!$B$3:$B$307,$C$2) -> 778 | H21: =SUMIFS(DATA!L$3:L$307,DATA!$F$3:$F$307,$A21,DATA!$B$3:$B$307,$C$2) -> 868 | I21: =SUMIFS(DATA!M$3:M$307,DATA!$F$3:$F$307,$A21,DATA!$B$3:$B$307,$C$2) -> 944 | J21: =SUMIFS(DATA!N$3:N$307,DATA!$F$3:$F$307,$A21,DATA!$B$3:$B$307,$C$2) -> 1001 | K21: =SUMIFS(DATA!O$3:O$307,DATA!$F$3:$F$307,$A21,DATA!$B$3:$B$307,$C$2) -> 1064 | L21: =SUMIFS(DATA!P$3:P$307,DATA!$F$3:$F$307,$A21,DATA!$B$3:$B$307,$C$2) -> 1126 | M21: =SUMIFS(DATA!Q$3:Q$307,DATA!$F$3:$F$307,$A21,DATA!$B$3:$B$307,$C$2) -> 1187 | N21: =SUMIFS(DATA!R$3:R$307,DATA!$F$3:$F$307,$A21,DATA!$B$3:$B$307,$C$2) -> 1277 | O21: =SUMIFS(DATA!S$3:S$307,DATA!$F$3:$F$307,$A21,DATA!$B$3:$B$307,$C$2) -> 1345 | P21: =SUMIFS(DATA!T$3:T$307,DATA!$F$3:$F$307,$A21,DATA!$B$3:$B$307,$C$2) -> 1390 | Q21: =SUMIFS(DATA!U$3:U$307,DATA!$F$3:$F$307,$A21,DATA!$B$3:$B$307,$C$2) -> 1406 | R21: =SUMIFS(DATA!V$3:V$307,DATA!$F$3:$F$307,$A21,DATA!$B$3:$B$307,$C$2) -> 1414 | S21: =SUMIFS(DATA!W$3:W$307,DATA!$F$3:$F$307,$A21,DATA!$B$3:$B$307,$C$2) -> 1418 | T21: =SUMIFS(DATA!X$3:X$307,DATA!$F$3:$F$307,$A21,DATA!$B$3:$B$307,$C$2) -> 1406 | U21: =SUMIFS(DATA!Y$3:Y$307,DATA!$F$3:$F$307,$A21,DATA!$B$3:$B$307,$C$2) -> 1383 | V21: =SUMIFS(DATA!Z$3:Z$307,DATA!$F$3:$F$307,$A21,DATA!$B$3:$B$307,$C$2) -> 1299
A22: Annual Change in Gross Interest | B22: [Formula] | D22: =D21-C21 -> -10 | E22: =E21-D21 -> 69 | F22: =F21-E21 -> 76 | G22: 110 | H22: 90 | I22: 76 | J22: 57 | K22: 63 | L22: 62 | M22: 61 | N22: 90 | O22: 68 | P22: 45 | Q22: 16 | R22: 8 | S22: 4 | T22: -12 | U22: -23 | V22: -84
A23: Provincial Guarantee Fee | B23: 1 PUB-081a | C23: =SUMIFS(DATA!G$3:G$307,DATA!$F$3:$F$307,$A23,DATA!$B$3:$B$307,$C$2) -> 93 | D23: =SUMIFS(DATA!H$3:H$307,DATA!$F$3:$F$307,$A23,DATA!$B$3:$B$307,$C$2) -> 102 | E23: =SUMIFS(DATA!I$3:I$307,DATA!$F$3:$F$307,$A23,DATA!$B$3:$B$307,$C$2) -> 114 | F23: =SUMIFS(DATA!J$3:J$307,DATA!$F$3:$F$307,$A23,DATA!$B$3:$B$307,$C$2) -> 131 | G23: =SUMIFS(DATA!K$3:K$307,DATA!$F$3:$F$307,$A23,DATA!$B$3:$B$307,$C$2) -> 149 | H23: =SUMIFS(DATA!L$3:L$307,DATA!$F$3:$F$307,$A23,DATA!$B$3:$B$307,$C$2) -> 168 | I23: =SUMIFS(DATA!M$3:M$307,DATA!$F$3:$F$307,$A23,DATA!$B$3:$B$307,$C$2) -> 186 | J23: =SUMIFS(DATA!N$3:N$307,DATA!$F$3:$F$307,$A23,DATA!$B$3:$B$307,$C$2) -> 199 | K23: =SUMIFS(DATA!O$3:O$307,DATA!$F$3:$F$307,$A23,DATA!$B$3:$B$307,$C$2) -> 211 | L23: =SUMIFS(DATA!P$3:P$307,DATA!$F$3:$F$307,$A23,DATA!$B$3:$B$307,$C$2) -> 224 | M23: =SUMIFS(DATA!Q$3:Q$307,DATA!$F$3:$F$307,$A23,DATA!$B$3:$B$307,$C$2) -> 236 | N23: =SUMIFS(DATA!R$3:R$307,DATA!$F$3:$F$307,$A23,DATA!$B$3:$B$307,$C$2) -> 250 | O23: =SUMIFS(DATA!S$3:S$307,DATA!$F$3:$F$307,$A23,DATA!$B$3:$B$307,$C$2) -> 266 | P23: =SUMIFS(DATA!T$3:T$307,DATA!$F$3:$F$307,$A23,DATA!$B$3:$B$307,$C$2) -> 276 | Q23: =SUMIFS(DATA!U$3:U$307,DATA!$F$3:$F$307,$A23,DATA!$B$3:$B$307,$C$2) -> 281 | R23: =SUMIFS(DATA!V$3:V$307,DATA!$F$3:$F$307,$A23,DATA!$B$3:$B$307,$C$2) -> 283 | S23: =SUMIFS(DATA!W$3:W$307,DATA!$F$3:$F$307,$A23,DATA!$B$3:$B$307,$C$2) -> 284 | T23: =SUMIFS(DATA!X$3:X$307,DATA!$F$3:$F$307,$A23,DATA!$B$3:$B$307,$C$2) -> 285 | U23: =SUMIFS(DATA!Y$3:Y$307,DATA!$F$3:$F$307,$A23,DATA!$B$3:$B$307,$C$2) -> 283 | V23: =SUMIFS(DATA!Z$3:Z$307,DATA!$F$3:$F$307,$A23,DATA!$B$3:$B$307,$C$2) -> 276
A24: Total Interest on Debt | C24: =SUM(C21,C23) -> 626 | D24: =SUM(D21,D23) -> 625 | E24: 706 | F24: 799 | G24: 927 | H24: 1036 | I24: 1130 | J24: 1200 | K24: 1275 | L24: 1350 | M24: 1423 | N24: 1527 | O24: 1611 | P24: 1666 | Q24: 1687 | R24: 1697 | S24: 1702 | T24: 1691 | U24: 1666 | V24: 1575
A25: Re-created Annual Change in Gross Interest | E25: =E90*(E138*E139+(1-E138)*E142) -> 74.3244 | F25: 92.4616 | G25: 100.912 | H25: 96.678 | I25: 106.848 | J25: 60.858 | K25: 83.349 | L25: 85.05 | M25: 126.189 | N25: 88.326 | O25: 47.439 | P25: 50.589 | Q25: 12.663 | R25: 8.883 | S25: -3.087 | T25: -43.911 | U25: -0.693 | V25: -14.301 | W25: =W90*(W138*W139+(1-W138)*W142) -> -138.411 | X25: -100.674 | Y25: -42.903 | Z25: -25.137 | AA25: -59.724 | AB25: 25.326 | AC25: 19.026 | AD25: -15.624 | AE25: 9.45 | AF25: -6.363 | AG25: 47.187 | AH25: 37.674 | AI25: 25.137 | AJ25: 37.674 | AK25: 25.074 | AL25: -0.063 | AM25: -20.601 | AN25: -0.126 | AO25: 0 | AP25: -3.213 | AQ25: -12.6 | AR25: -100.863 | AS25: -126 | AT25: -50.463 | AU25: -88.704 | AV25: 12.6 | AW25: -20.538 | AX25: -63.063 | AY25: 0 | AZ25: -28.35
A26: Re-created Gross Interest | B26: =SUM(C26:V26)/SUM(C21:V21)-1 -> 0.08307725465 | C26: =C$21 -> 533 | D26: =D$21 -> 523 | E26: =D26+E25 -> 597.3244 | F26: =E26+F25 -> 689.786 | G26: 790.698 | H26: 887.376 | I26: 994.224 | J26: 1055.082 | K26: 1138.431 | L26: 1223.481 | M26: 1349.67 | N26: 1437.996 | O26: 1485.435 | P26: 1536.024 | Q26: 1548.687 | R26: 1557.57 | S26: 1554.483 | T26: 1510.572 | U26: 1509.879 | V26: 1495.578 | W26: 1357.167 | X26: 1256.493 | Y26: 1213.59 | Z26: 1188.453 | AA26: 1128.729 | AB26: 1154.055 | AC26: 1173.081 | AD26: 1157.457 | AE26: 1166.907 | AF26: 1160.544 | AG26: 1207.731 | AH26: 1245.405 | AI26: 1270.542 | AJ26: 1308.216 | AK26: 1333.29 | AL26: 1333.227 | AM26: 1312.626 | AN26: 1312.5 | AO26: 1312.5 | AP26: 1309.287 | AQ26: 1296.687 | AR26: 1195.824 | AS26: 1069.824 | AT26: 1019.361 | AU26: 930.657 | AV26: 943.257 | AW26: 922.719 | AX26: 859.656 | AY26: 859.656 | AZ26: 831.306
A27: Re-created Provincial Guarantee Fee | B27: [Formula] | C27: 93 | D27: =(C$89)*0.01 -> 92.89 | E27: =(D$89)*0.01 -> 112.6 | F27: 128.02 | G27: 144.74 | H27: 161.7 | I27: 177.42 | J27: 194.38 | K27: 204.04 | L27: 217.27 | M27: 230.77 | N27: 250.8 | O27: 264.82 | P27: 272.35 | Q27: 280.38 | R27: 282.39 | S27: 283.8 | T27: 283.31 | U27: 276.34 | V27: 276.23 | W27: 273.96 | X27: 251.99 | Y27: 236.01 | Z27: 229.2 | AA27: 225.21 | AB27: 215.73 | AC27: 219.75 | AD27: 222.77 | AE27: 220.29 | AF27: 221.79 | AG27: 220.78 | AH27: 228.27 | AI27: 234.25 | AJ27: 238.24 | AK27: 244.22 | AL27: 248.2 | AM27: 248.19 | AN27: 244.92 | AO27: 244.9 | AP27: 244.9 | AQ27: 244.39 | AR27: 242.39 | AS27: 226.38 | AT27: 206.38 | AU27: 198.37 | AV27: 184.29 | AW27: 186.29 | AX27: 183.03 | AY27: 173.02 | AZ27: 173.02
A28: Re-created Total Interest on Debt | B28: =SUM(C28:V28)/SUM(C24:V24)-1 -> 0.06661315637 | C28: =SUM(C26,C27) -> 626 | D28: =SUM(D26,D27) -> 615.89 | E28: 709.9244 | F28: 817.806 | G28: 935.438 | H28: 1049.076 | I28: 1171.644 | J28: 1249.462 | K28: 1342.471 | L28: 1440.751 | M28: 1580.44 | N28: 1688.796 | O28: 1750.255 | P28: 1808.374 | Q28: 1829.067 | R28: 1839.96 | S28: 1838.283 | T28: 1793.882 | U28: 1786.219 | V28: 1771.808 | W28: 1631.127 | X28: 1508.483 | Y28: 1449.6 | Z28: 1417.653 | AA28: 1353.939 | AB28: 1369.785 | AC28: 1392.831 | AD28: 1380.227 | AE28: 1387.197 | AF28: 1382.334 | AG28: 1428.511 | AH28: 1473.675 | AI28: 1504.792 | AJ28: 1546.456 | AK28: 1577.51 | AL28: 1581.427 | AM28: 1560.816 | AN28: 1557.42 | AO28: 1557.4 | AP28: 1554.187 | AQ28: 1541.077 | AR28: 1438.214 | AS28: 1296.204 | AT28: 1225.741 | AU28: 1129.027 | AV28: 1127.547 | AW28: 1109.009 | AX28: 1042.686 | AY28: 1032.676 | AZ28: 1004.326
A30: Interest Income + Interest Allocated to Construction | C30: =SUMIFS(DATA!G$3:G$307,DATA!$F$3:$F$307,$A30,DATA!$B$3:$B$307,$C$2) -> -175 | D30: =SUMIFS(DATA!H$3:H$307,DATA!$F$3:$F$307,$A30,DATA!$B$3:$B$307,$C$2) -> -183 | E30: =SUMIFS(DATA!I$3:I$307,DATA!$F$3:$F$307,$A30,DATA!$B$3:$B$307,$C$2) -> -214 | F30: =SUMIFS(DATA!J$3:J$307,DATA!$F$3:$F$307,$A30,DATA!$B$3:$B$307,$C$2) -> -280 | G30: =SUMIFS(DATA!K$3:K$307,DATA!$F$3:$F$307,$A30,DATA!$B$3:$B$307,$C$2) -> -349 | H30: =SUMIFS(DATA!L$3:L$307,DATA!$F$3:$F$307,$A30,DATA!$B$3:$B$307,$C$2) -> -377 | I30: =SUMIFS(DATA!M$3:M$307,DATA!$F$3:$F$307,$A30,DATA!$B$3:$B$307,$C$2) -> -356 | J30: =SUMIFS(DATA!N$3:N$307,DATA!$F$3:$F$307,$A30,DATA!$B$3:$B$307,$C$2) -> -417 | K30: =SUMIFS(DATA!O$3:O$307,DATA!$F$3:$F$307,$A30,DATA!$B$3:$B$307,$C$2) -> -285 | L30: =SUMIFS(DATA!P$3:P$307,DATA!$F$3:$F$307,$A30,DATA!$B$3:$B$307,$C$2) -> -267 | M30: =SUMIFS(DATA!Q$3:Q$307,DATA!$F$3:$F$307,$A30,DATA!$B$3:$B$307,$C$2) -> -348 | N30: =SUMIFS(DATA!R$3:R$307,DATA!$F$3:$F$307,$A30,DATA!$B$3:$B$307,$C$2) -> -445 | O30: =SUMIFS(DATA!S$3:S$307,DATA!$F$3:$F$307,$A30,DATA!$B$3:$B$307,$C$2) -> -533 | P30: =SUMIFS(DATA!T$3:T$307,DATA!$F$3:$F$307,$A30,DATA!$B$3:$B$307,$C$2) -> -484 | Q30: =SUMIFS(DATA!U$3:U$307,DATA!$F$3:$F$307,$A30,DATA!$B$3:$B$307,$C$2) -> -284 | R30: =SUMIFS(DATA!V$3:V$307,DATA!$F$3:$F$307,$A30,DATA!$B$3:$B$307,$C$2) -> -113 | S30: =SUMIFS(DATA!W$3:W$307,DATA!$F$3:$F$307,$A30,DATA!$B$3:$B$307,$C$2) -> -148 | T30: =SUMIFS(DATA!X$3:X$307,DATA!$F$3:$F$307,$A30,DATA!$B$3:$B$307,$C$2) -> -176 | U30: =SUMIFS(DATA!Y$3:Y$307,DATA!$F$3:$F$307,$A30,DATA!$B$3:$B$307,$C$2) -> -143 | V30: =SUMIFS(DATA!Z$3:Z$307,DATA!$F$3:$F$307,$A30,DATA!$B$3:$B$307,$C$2) -> -116
A31: Total Finance Expense | B31: 1-PUB-081a | C31: =SUM(C24,C30) -> 451 | D31: 442 | E31: 492 | F31: 519 | G31: 578 | H31: 659 | I31: 774 | J31: 783 | K31: =SUM(K24,K30) -> 990 | L31: 1083 | M31: 1075 | N31: 1082 | O31: 1078 | P31: 1182 | Q31: 1403 | R31: 1584 | S31: 1554 | T31: 1515 | U31: 1523 | V31: 1459
A32: Finance Expense | C32: =SUMIFS(DATA!G$3:G$101,DATA!$F$3:$F$101,$A32,DATA!$B$3:$B$101,$C$2) -> 452 | D32: =SUMIFS(DATA!H$3:H$101,DATA!$F$3:$F$101,$A32,DATA!$B$3:$B$101,$C$2) -> 442 | E32: =SUMIFS(DATA!I$3:I$101,DATA!$F$3:$F$101,$A32,DATA!$B$3:$B$101,$C$2) -> 491 | F32: =SUMIFS(DATA!J$3:J$101,DATA!$F$3:$F$101,$A32,DATA!$B$3:$B$101,$C$2) -> 519 | G32: =SUMIFS(DATA!K$3:K$101,DATA!$F$3:$F$101,$A32,DATA!$B$3:$B$101,$C$2) -> 577 | H32: =SUMIFS(DATA!L$3:L$101,DATA!$F$3:$F$101,$A32,DATA!$B$3:$B$101,$C$2) -> 658 | I32: =SUMIFS(DATA!M$3:M$101,DATA!$F$3:$F$101,$A32,DATA!$B$3:$B$101,$C$2) -> 774 | J32: =SUMIFS(DATA!N$3:N$101,DATA!$F$3:$F$101,$A32,DATA!$B$3:$B$101,$C$2) -> 783 | K32: =SUMIFS(DATA!O$3:O$101,DATA!$F$3:$F$101,$A32,DATA!$B$3:$B$101,$C$2) -> 989 | L32: =SUMIFS(DATA!P$3:P$101,DATA!$F$3:$F$101,$A32,DATA!$B$3:$B$101,$C$2) -> 1083 | M32: =SUMIFS(DATA!Q$3:Q$101,DATA!$F$3:$F$101,$A32,DATA!$B$3:$B$101,$C$2) -> 1075 | N32: =SUMIFS(DATA!R$3:R$101,DATA!$F$3:$F$101,$A32,DATA!$B$3:$B$101,$C$2) -> 1083 | O32: =SUMIFS(DATA!S$3:S$101,DATA!$F$3:$F$101,$A32,DATA!$B$3:$B$101,$C$2) -> 1077 | P32: =SUMIFS(DATA!T$3:T$101,DATA!$F$3:$F$101,$A32,DATA!$B$3:$B$101,$C$2) -> 1182 | Q32: =SUMIFS(DATA!U$3:U$101,DATA!$F$3:$F$101,$A32,DATA!$B$3:$B$101,$C$2) -> 1403 | R32: =SUMIFS(DATA!V$3:V$101,DATA!$F$3:$F$101,$A32,DATA!$B$3:$B$101,$C$2) -> 1584 | S32: =SUMIFS(DATA!W$3:W$101,DATA!$F$3:$F$101,$A32,DATA!$B$3:$B$101,$C$2) -> 1553 | T32: =SUMIFS(DATA!X$3:X$101,DATA!$F$3:$F$101,$A32,DATA!$B$3:$B$101,$C$2) -> 1515 | U32: =SUMIFS(DATA!Y$3:Y$101,DATA!$F$3:$F$101,$A32,DATA!$B$3:$B$101,$C$2) -> 1523 | V32: =SUMIFS(DATA!Z$3:Z$101,DATA!$F$3:$F$101,$A32,DATA!$B$3:$B$101,$C$2) -> 1459 | W32: =SUMIFS(DATA!AA$3:AA$101,DATA!$F$3:$F$101,$A32,DATA!$B$3:$B$101,$C$2) -> 1413 | X32: =SUMIFS(DATA!AB$3:AB$101,DATA!$F$3:$F$101,$A32,DATA!$B$3:$B$101,$C$2) -> 1407 | Y32: =SUMIFS(DATA!AC$3:AC$101,DATA!$F$3:$F$101,$A32,DATA!$B$3:$B$101,$C$2) -> 1412 | Z32: =SUMIFS(DATA!AD$3:AD$101,DATA!$F$3:$F$101,$A32,DATA!$B$3:$B$101,$C$2) -> 1408 | AA32: =SUMIFS(DATA!AE$3:AE$101,DATA!$F$3:$F$101,$A32,DATA!$B$3:$B$101,$C$2) -> 1394 | AB32: =SUMIFS(DATA!AF$3:AF$101,DATA!$F$3:$F$101,$A32,DATA!$B$3:$B$101,$C$2) -> 1375 | AC32: =SUMIFS(DATA!AG$3:AG$101,DATA!$F$3:$F$101,$A32,DATA!$B$3:$B$101,$C$2) -> 1355 | AD32: =SUMIFS(DATA!AH$3:AH$101,DATA!$F$3:$F$101,$A32,DATA!$B$3:$B$101,$C$2) -> 1339 | AE32: =SUMIFS(DATA!AI$3:AI$101,DATA!$F$3:$F$101,$A32,DATA!$B$3:$B$101,$C$2) -> 1347 | AF32: =SUMIFS(DATA!AJ$3:AJ$101,DATA!$F$3:$F$101,$A32,DATA!$B$3:$B$101,$C$2) -> 1355 | AG32: =SUMIFS(DATA!AK$3:AK$101,DATA!$F$3:$F$101,$A32,DATA!$B$3:$B$101,$C$2) -> 1347 | AH32: =SUMIFS(DATA!AL$3:AL$101,DATA!$F$3:$F$101,$A32,DATA!$B$3:$B$101,$C$2) -> 1333 | AI32: =SUMIFS(DATA!AM$3:AM$101,DATA!$F$3:$F$101,$A32,DATA!$B$3:$B$101,$C$2) -> 1333 | AJ32: =SUMIFS(DATA!AN$3:AN$101,DATA!$F$3:$F$101,$A32,DATA!$B$3:$B$101,$C$2) -> 1321 | AK32: =SUMIFS(DATA!AO$3:AO$101,DATA!$F$3:$F$101,$A32,DATA!$B$3:$B$101,$C$2) -> 1360 | AL32: =SUMIFS(DATA!AP$3:AP$101,DATA!$F$3:$F$101,$A32,DATA!$B$3:$B$101,$C$2) -> 1326 | AM32: =SUMIFS(DATA!AQ$3:AQ$101,DATA!$F$3:$F$101,$A32,DATA!$B$3:$B$101,$C$2) -> 1311 | AN32: =SUMIFS(DATA!AR$3:AR$101,DATA!$F$3:$F$101,$A32,DATA!$B$3:$B$101,$C$2) -> 1291 | AO32: =SUMIFS(DATA!AS$3:AS$101,DATA!$F$3:$F$101,$A32,DATA!$B$3:$B$101,$C$2) -> 1274 | AP32: =SUMIFS(DATA!AT$3:AT$101,DATA!$F$3:$F$101,$A32,DATA!$B$3:$B$101,$C$2) -> 1254 | AQ32: =SUMIFS(DATA!AU$3:AU$101,DATA!$F$3:$F$101,$A32,DATA!$B$3:$B$101,$C$2) -> 1246 | AR32: =SUMIFS(DATA!AV$3:AV$101,DATA!$F$3:$F$101,$A32,DATA!$B$3:$B$101,$C$2) -> 1222 | AS32: =SUMIFS(DATA!AW$3:AW$101,DATA!$F$3:$F$101,$A32,DATA!$B$3:$B$101,$C$2) -> 1195 | AT32: =SUMIFS(DATA!AX$3:AX$101,DATA!$F$3:$F$101,$A32,DATA!$B$3:$B$101,$C$2) -> 1148 | AU32: =SUMIFS(DATA!AY$3:AY$101,DATA!$F$3:$F$101,$A32,DATA!$B$3:$B$101,$C$2) -> 1129 | AV32: =SUMIFS(DATA!AZ$3:AZ$101,DATA!$F$3:$F$101,$A32,DATA!$B$3:$B$101,$C$2) -> 1077 | AW32: =SUMIFS(DATA!BA$3:BA$101,DATA!$F$3:$F$101,$A32,DATA!$B$3:$B$101,$C$2) -> 1049 | AX32: =SUMIFS(DATA!BB$3:BB$101,DATA!$F$3:$F$101,$A32,DATA!$B$3:$B$101,$C$2) -> 1025 | AY32: =SUMIFS(DATA!BC$3:BC$101,DATA!$F$3:$F$101,$A32,DATA!$B$3:$B$101,$C$2) -> 995 | AZ32: =SUMIFS(DATA!BD$3:BD$101,DATA!$F$3:$F$101,$A32,DATA!$B$3:$B$101,$C$2) -> 963
A33: Depreciation and Amortization | C33: =SUMIFS(DATA!G$3:G$101,DATA!$F$3:$F$101,$A33,DATA!$B$3:$B$101,$C$2) -> 399 | D33: =SUMIFS(DATA!H$3:H$101,DATA!$F$3:$F$101,$A33,DATA!$B$3:$B$101,$C$2) -> 430 | E33: =SUMIFS(DATA!I$3:I$101,DATA!$F$3:$F$101,$A33,DATA!$B$3:$B$101,$C$2) -> 372 | F33: =SUMIFS(DATA!J$3:J$101,DATA!$F$3:$F$101,$A33,DATA!$B$3:$B$101,$C$2) -> 391 | G33: =SUMIFS(DATA!K$3:K$101,DATA!$F$3:$F$101,$A33,DATA!$B$3:$B$101,$C$2) -> 400 | H33: =SUMIFS(DATA!L$3:L$101,DATA!$F$3:$F$101,$A33,DATA!$B$3:$B$101,$C$2) -> 422 | I33: =SUMIFS(DATA!M$3:M$101,DATA!$F$3:$F$101,$A33,DATA!$B$3:$B$101,$C$2) -> 458 | J33: =SUMIFS(DATA!N$3:N$101,DATA!$F$3:$F$101,$A33,DATA!$B$3:$B$101,$C$2) -> 461 | K33: =SUMIFS(DATA!O$3:O$101,DATA!$F$3:$F$101,$A33,DATA!$B$3:$B$101,$C$2) -> 518 | L33: =SUMIFS(DATA!P$3:P$101,DATA!$F$3:$F$101,$A33,DATA!$B$3:$B$101,$C$2) -> 553 | M33: =SUMIFS(DATA!Q$3:Q$101,DATA!$F$3:$F$101,$A33,DATA!$B$3:$B$101,$C$2) -> 559 | N33: =SUMIFS(DATA!R$3:R$101,DATA!$F$3:$F$101,$A33,DATA!$B$3:$B$101,$C$2) -> 558 | O33: =SUMIFS(DATA!S$3:S$101,DATA!$F$3:$F$101,$A33,DATA!$B$3:$B$101,$C$2) -> 561 | P33: =SUMIFS(DATA!T$3:T$101,DATA!$F$3:$F$101,$A33,DATA!$B$3:$B$101,$C$2) -> 600 | Q33: =SUMIFS(DATA!U$3:U$101,DATA!$F$3:$F$101,$A33,DATA!$B$3:$B$101,$C$2) -> 668 | R33: =SUMIFS(DATA!V$3:V$101,DATA!$F$3:$F$101,$A33,DATA!$B$3:$B$101,$C$2) -> 721 | S33: =SUMIFS(DATA!W$3:W$101,DATA!$F$3:$F$101,$A33,DATA!$B$3:$B$101,$C$2) -> 724 | T33: =SUMIFS(DATA!X$3:X$101,DATA!$F$3:$F$101,$A33,DATA!$B$3:$B$101,$C$2) -> 732 | U33: =SUMIFS(DATA!Y$3:Y$101,DATA!$F$3:$F$101,$A33,DATA!$B$3:$B$101,$C$2) -> 758 | V33: =SUMIFS(DATA!Z$3:Z$101,DATA!$F$3:$F$101,$A33,DATA!$B$3:$B$101,$C$2) -> 766 | W33: =SUMIFS(DATA!AA$3:AA$101,DATA!$F$3:$F$101,$A33,DATA!$B$3:$B$101,$C$2) -> 764 | X33: =SUMIFS(DATA!AB$3:AB$101,DATA!$F$3:$F$101,$A33,DATA!$B$3:$B$101,$C$2) -> 768 | Y33: =SUMIFS(DATA!AC$3:AC$101,DATA!$F$3:$F$101,$A33,DATA!$B$3:$B$101,$C$2) -> 792 | Z33: =SUMIFS(DATA!AD$3:AD$101,DATA!$F$3:$F$101,$A33,DATA!$B$3:$B$101,$C$2) -> 796 | AA33: =SUMIFS(DATA!AE$3:AE$101,DATA!$F$3:$F$101,$A33,DATA!$B$3:$B$101,$C$2) -> 802 | AB33: =SUMIFS(DATA!AF$3:AF$101,DATA!$F$3:$F$101,$A33,DATA!$B$3:$B$101,$C$2) -> 834 | AC33: =SUMIFS(DATA!AG$3:AG$101,DATA!$F$3:$F$101,$A33,DATA!$B$3:$B$101,$C$2) -> 838 | AD33: =SUMIFS(DATA!AH$3:AH$101,DATA!$F$3:$F$101,$A33,DATA!$B$3:$B$101,$C$2) -> 844 | AE33: =SUMIFS(DATA!AI$3:AI$101,DATA!$F$3:$F$101,$A33,DATA!$B$3:$B$101,$C$2) -> 857 | AF33: =SUMIFS(DATA!AJ$3:AJ$101,DATA!$F$3:$F$101,$A33,DATA!$B$3:$B$101,$C$2) -> 875 | AG33: =SUMIFS(DATA!AK$3:AK$101,DATA!$F$3:$F$101,$A33,DATA!$B$3:$B$101,$C$2) -> 943 | AH33: =SUMIFS(DATA!AL$3:AL$101,DATA!$F$3:$F$101,$A33,DATA!$B$3:$B$101,$C$2) -> 952 | AI33: =SUMIFS(DATA!AM$3:AM$101,DATA!$F$3:$F$101,$A33,DATA!$B$3:$B$101,$C$2) -> 971 | AJ33: =SUMIFS(DATA!AN$3:AN$101,DATA!$F$3:$F$101,$A33,DATA!$B$3:$B$101,$C$2) -> 1015 | AK33: =SUMIFS(DATA!AO$3:AO$101,DATA!$F$3:$F$101,$A33,DATA!$B$3:$B$101,$C$2) -> 1045 | AL33: =SUMIFS(DATA!AP$3:AP$101,DATA!$F$3:$F$101,$A33,DATA!$B$3:$B$101,$C$2) -> 1061 | AM33: =SUMIFS(DATA!AQ$3:AQ$101,DATA!$F$3:$F$101,$A33,DATA!$B$3:$B$101,$C$2) -> 1084 | AN33: =SUMIFS(DATA!AR$3:AR$101,DATA!$F$3:$F$101,$A33,DATA!$B$3:$B$101,$C$2) -> 1099 | AO33: =SUMIFS(DATA!AS$3:AS$101,DATA!$F$3:$F$101,$A33,DATA!$B$3:$B$101,$C$2) -> 1184 | AP33: =SUMIFS(DATA!AT$3:AT$101,DATA!$F$3:$F$101,$A33,DATA!$B$3:$B$101,$C$2) -> 1210 | AQ33: =SUMIFS(DATA!AU$3:AU$101,DATA!$F$3:$F$101,$A33,DATA!$B$3:$B$101,$C$2) -> 1228 | AR33: =SUMIFS(DATA!AV$3:AV$101,DATA!$F$3:$F$101,$A33,DATA!$B$3:$B$101,$C$2) -> 1305 | AS33: =SUMIFS(DATA!AW$3:AW$101,DATA!$F$3:$F$101,$A33,DATA!$B$3:$B$101,$C$2) -> 1343 | AT33: =SUMIFS(DATA!AX$3:AX$101,DATA!$F$3:$F$101,$A33,DATA!$B$3:$B$101,$C$2) -> 1377 | AU33: =SUMIFS(DATA!AY$3:AY$101,DATA!$F$3:$F$101,$A33,DATA!$B$3:$B$101,$C$2) -> 1420 | AV33: =SUMIFS(DATA!AZ$3:AZ$101,DATA!$F$3:$F$101,$A33,DATA!$B$3:$B$101,$C$2) -> 1441 | AW33: =SUMIFS(DATA!BA$3:BA$101,DATA!$F$3:$F$101,$A33,DATA!$B$3:$B$101,$C$2) -> 1479 | AX33: =SUMIFS(DATA!BB$3:BB$101,DATA!$F$3:$F$101,$A33,DATA!$B$3:$B$101,$C$2) -> 1525 | AY33: =SUMIFS(DATA!BC$3:BC$101,DATA!$F$3:$F$101,$A33,DATA!$B$3:$B$101,$C$2) -> 1569 | AZ33: =SUMIFS(DATA!BD$3:BD$101,DATA!$F$3:$F$101,$A33,DATA!$B$3:$B$101,$C$2) -> 1611
A34: Water Rentals and Assessments | C34: =SUMIFS(DATA!G$3:G$101,DATA!$F$3:$F$101,$A34,DATA!$B$3:$B$101,$C$2) -> 117 | D34: =SUMIFS(DATA!H$3:H$101,DATA!$F$3:$F$101,$A34,DATA!$B$3:$B$101,$C$2) -> 116 | E34: =SUMIFS(DATA!I$3:I$101,DATA!$F$3:$F$101,$A34,DATA!$B$3:$B$101,$C$2) -> 112 | F34: =SUMIFS(DATA!J$3:J$101,DATA!$F$3:$F$101,$A34,DATA!$B$3:$B$101,$C$2) -> 112 | G34: =SUMIFS(DATA!K$3:K$101,DATA!$F$3:$F$101,$A34,DATA!$B$3:$B$101,$C$2) -> 112 | H34: =SUMIFS(DATA!L$3:L$101,DATA!$F$3:$F$101,$A34,DATA!$B$3:$B$101,$C$2) -> 112 | I34: =SUMIFS(DATA!M$3:M$101,DATA!$F$3:$F$101,$A34,DATA!$B$3:$B$101,$C$2) -> 112 | J34: =SUMIFS(DATA!N$3:N$101,DATA!$F$3:$F$101,$A34,DATA!$B$3:$B$101,$C$2) -> 114 | K34: =SUMIFS(DATA!O$3:O$101,DATA!$F$3:$F$101,$A34,DATA!$B$3:$B$101,$C$2) -> 124 | L34: =SUMIFS(DATA!P$3:P$101,DATA!$F$3:$F$101,$A34,DATA!$B$3:$B$101,$C$2) -> 127 | M34: =SUMIFS(DATA!Q$3:Q$101,DATA!$F$3:$F$101,$A34,DATA!$B$3:$B$101,$C$2) -> 128 | N34: =SUMIFS(DATA!R$3:R$101,DATA!$F$3:$F$101,$A34,DATA!$B$3:$B$101,$C$2) -> 128 | O34: =SUMIFS(DATA!S$3:S$101,DATA!$F$3:$F$101,$A34,DATA!$B$3:$B$101,$C$2) -> 127 | P34: =SUMIFS(DATA!T$3:T$101,DATA!$F$3:$F$101,$A34,DATA!$B$3:$B$101,$C$2) -> 135 | Q34: =SUMIFS(DATA!U$3:U$101,DATA!$F$3:$F$101,$A34,DATA!$B$3:$B$101,$C$2) -> 148 | R34: =SUMIFS(DATA!V$3:V$101,DATA!$F$3:$F$101,$A34,DATA!$B$3:$B$101,$C$2) -> 150 | S34: =SUMIFS(DATA!W$3:W$101,DATA!$F$3:$F$101,$A34,DATA!$B$3:$B$101,$C$2) -> 151 | T34: =SUMIFS(DATA!X$3:X$101,DATA!$F$3:$F$101,$A34,DATA!$B$3:$B$101,$C$2) -> 151 | U34: =SUMIFS(DATA!Y$3:Y$101,DATA!$F$3:$F$101,$A34,DATA!$B$3:$B$101,$C$2) -> 152 | V34: =SUMIFS(DATA!Z$3:Z$101,DATA!$F$3:$F$101,$A34,DATA!$B$3:$B$101,$C$2) -> 153 | W34: =SUMIFS(DATA!AA$3:AA$101,DATA!$F$3:$F$101,$A34,DATA!$B$3:$B$101,$C$2) -> 153 | X34: =SUMIFS(DATA!AB$3:AB$101,DATA!$F$3:$F$101,$A34,DATA!$B$3:$B$101,$C$2) -> 154 | Y34: =SUMIFS(DATA!AC$3:AC$101,DATA!$F$3:$F$101,$A34,DATA!$B$3:$B$101,$C$2) -> 154 | Z34: =SUMIFS(DATA!AD$3:AD$101,DATA!$F$3:$F$101,$A34,DATA!$B$3:$B$101,$C$2) -> 154 | AA34: =SUMIFS(DATA!AE$3:AE$101,DATA!$F$3:$F$101,$A34,DATA!$B$3:$B$101,$C$2) -> 154 | AB34: =SUMIFS(DATA!AF$3:AF$101,DATA!$F$3:$F$101,$A34,DATA!$B$3:$B$101,$C$2) -> 155 | AC34: =SUMIFS(DATA!AG$3:AG$101,DATA!$F$3:$F$101,$A34,DATA!$B$3:$B$101,$C$2) -> 155 | AD34: =SUMIFS(DATA!AH$3:AH$101,DATA!$F$3:$F$101,$A34,DATA!$B$3:$B$101,$C$2) -> 155 | AE34: =SUMIFS(DATA!AI$3:AI$101,DATA!$F$3:$F$101,$A34,DATA!$B$3:$B$101,$C$2) -> 156 | AF34: =SUMIFS(DATA!AJ$3:AJ$101,DATA!$F$3:$F$101,$A34,DATA!$B$3:$B$101,$C$2) -> 156 | AG34: =SUMIFS(DATA!AK$3:AK$101,DATA!$F$3:$F$101,$A34,DATA!$B$3:$B$101,$C$2) -> 156 | AH34: =SUMIFS(DATA!AL$3:AL$101,DATA!$F$3:$F$101,$A34,DATA!$B$3:$B$101,$C$2) -> 156 | AI34: =SUMIFS(DATA!AM$3:AM$101,DATA!$F$3:$F$101,$A34,DATA!$B$3:$B$101,$C$2) -> 157 | AJ34: =SUMIFS(DATA!AN$3:AN$101,DATA!$F$3:$F$101,$A34,DATA!$B$3:$B$101,$C$2) -> 157 | AK34: =SUMIFS(DATA!AO$3:AO$101,DATA!$F$3:$F$101,$A34,DATA!$B$3:$B$101,$C$2) -> 157 | AL34: =SUMIFS(DATA!AP$3:AP$101,DATA!$F$3:$F$101,$A34,DATA!$B$3:$B$101,$C$2) -> 157 | AM34: =SUMIFS(DATA!AQ$3:AQ$101,DATA!$F$3:$F$101,$A34,DATA!$B$3:$B$101,$C$2) -> 163 | AN34: =SUMIFS(DATA!AR$3:AR$101,DATA!$F$3:$F$101,$A34,DATA!$B$3:$B$101,$C$2) -> 166 | AO34: =SUMIFS(DATA!AS$3:AS$101,DATA!$F$3:$F$101,$A34,DATA!$B$3:$B$101,$C$2) -> 169 | AP34: =SUMIFS(DATA!AT$3:AT$101,DATA!$F$3:$F$101,$A34,DATA!$B$3:$B$101,$C$2) -> 172 | AQ34: =SUMIFS(DATA!AU$3:AU$101,DATA!$F$3:$F$101,$A34,DATA!$B$3:$B$101,$C$2) -> 175 | AR34: =SUMIFS(DATA!AV$3:AV$101,DATA!$F$3:$F$101,$A34,DATA!$B$3:$B$101,$C$2) -> 178 | AS34: =SUMIFS(DATA!AW$3:AW$101,DATA!$F$3:$F$101,$A34,DATA!$B$3:$B$101,$C$2) -> 181 | AT34: =SUMIFS(DATA!AX$3:AX$101,DATA!$F$3:$F$101,$A34,DATA!$B$3:$B$101,$C$2) -> 184 | AU34: =SUMIFS(DATA!AY$3:AY$101,DATA!$F$3:$F$101,$A34,DATA!$B$3:$B$101,$C$2) -> 188 | AV34: =SUMIFS(DATA!AZ$3:AZ$101,DATA!$F$3:$F$101,$A34,DATA!$B$3:$B$101,$C$2) -> 191 | AW34: =SUMIFS(DATA!BA$3:BA$101,DATA!$F$3:$F$101,$A34,DATA!$B$3:$B$101,$C$2) -> 194 | AX34: =SUMIFS(DATA!BB$3:BB$101,DATA!$F$3:$F$101,$A34,DATA!$B$3:$B$101,$C$2) -> 198 | AY34: =SUMIFS(DATA!BC$3:BC$101,DATA!$F$3:$F$101,$A34,DATA!$B$3:$B$101,$C$2) -> 202 | AZ34: =SUMIFS(DATA!BD$3:BD$101,DATA!$F$3:$F$101,$A34,DATA!$B$3:$B$101,$C$2) -> 205
A35: Fuel and Power Purchased | C35: =SUMIFS(DATA!G$3:G$101,DATA!$F$3:$F$101,$A35,DATA!$B$3:$B$101,$C$2) -> 143 | D35: =SUMIFS(DATA!H$3:H$101,DATA!$F$3:$F$101,$A35,DATA!$B$3:$B$101,$C$2) -> 166 | E35: =SUMIFS(DATA!I$3:I$101,DATA!$F$3:$F$101,$A35,DATA!$B$3:$B$101,$C$2) -> 167 | F35: =SUMIFS(DATA!J$3:J$101,DATA!$F$3:$F$101,$A35,DATA!$B$3:$B$101,$C$2) -> 178 | G35: =SUMIFS(DATA!K$3:K$101,DATA!$F$3:$F$101,$A35,DATA!$B$3:$B$101,$C$2) -> 191 | H35: =SUMIFS(DATA!L$3:L$101,DATA!$F$3:$F$101,$A35,DATA!$B$3:$B$101,$C$2) -> 200 | I35: =SUMIFS(DATA!M$3:M$101,DATA!$F$3:$F$101,$A35,DATA!$B$3:$B$101,$C$2) -> 205 | J35: =SUMIFS(DATA!N$3:N$101,DATA!$F$3:$F$101,$A35,DATA!$B$3:$B$101,$C$2) -> 207 | K35: =SUMIFS(DATA!O$3:O$101,DATA!$F$3:$F$101,$A35,DATA!$B$3:$B$101,$C$2) -> 222 | L35: =SUMIFS(DATA!P$3:P$101,DATA!$F$3:$F$101,$A35,DATA!$B$3:$B$101,$C$2) -> 239 | M35: =SUMIFS(DATA!Q$3:Q$101,DATA!$F$3:$F$101,$A35,DATA!$B$3:$B$101,$C$2) -> 247 | N35: =SUMIFS(DATA!R$3:R$101,DATA!$F$3:$F$101,$A35,DATA!$B$3:$B$101,$C$2) -> 256 | O35: =SUMIFS(DATA!S$3:S$101,DATA!$F$3:$F$101,$A35,DATA!$B$3:$B$101,$C$2) -> 270 | P35: =SUMIFS(DATA!T$3:T$101,DATA!$F$3:$F$101,$A35,DATA!$B$3:$B$101,$C$2) -> 233 | Q35: =SUMIFS(DATA!U$3:U$101,DATA!$F$3:$F$101,$A35,DATA!$B$3:$B$101,$C$2) -> 238 | R35: =SUMIFS(DATA!V$3:V$101,DATA!$F$3:$F$101,$A35,DATA!$B$3:$B$101,$C$2) -> 256 | S35: =SUMIFS(DATA!W$3:W$101,DATA!$F$3:$F$101,$A35,DATA!$B$3:$B$101,$C$2) -> 266 | T35: =SUMIFS(DATA!X$3:X$101,DATA!$F$3:$F$101,$A35,DATA!$B$3:$B$101,$C$2) -> 275 | U35: =SUMIFS(DATA!Y$3:Y$101,DATA!$F$3:$F$101,$A35,DATA!$B$3:$B$101,$C$2) -> 282 | V35: =SUMIFS(DATA!Z$3:Z$101,DATA!$F$3:$F$101,$A35,DATA!$B$3:$B$101,$C$2) -> 292 | W35: =SUMIFS(DATA!AA$3:AA$101,DATA!$F$3:$F$101,$A35,DATA!$B$3:$B$101,$C$2) -> 302 | X35: =SUMIFS(DATA!AB$3:AB$101,DATA!$F$3:$F$101,$A35,DATA!$B$3:$B$101,$C$2) -> 312 | Y35: =SUMIFS(DATA!AC$3:AC$101,DATA!$F$3:$F$101,$A35,DATA!$B$3:$B$101,$C$2) -> 324 | Z35: =SUMIFS(DATA!AD$3:AD$101,DATA!$F$3:$F$101,$A35,DATA!$B$3:$B$101,$C$2) -> 325 | AA35: =SUMIFS(DATA!AE$3:AE$101,DATA!$F$3:$F$101,$A35,DATA!$B$3:$B$101,$C$2) -> 309 | AB35: =SUMIFS(DATA!AF$3:AF$101,DATA!$F$3:$F$101,$A35,DATA!$B$3:$B$101,$C$2) -> 317 | AC35: =SUMIFS(DATA!AG$3:AG$101,DATA!$F$3:$F$101,$A35,DATA!$B$3:$B$101,$C$2) -> 330 | AD35: =SUMIFS(DATA!AH$3:AH$101,DATA!$F$3:$F$101,$A35,DATA!$B$3:$B$101,$C$2) -> 355 | AE35: =SUMIFS(DATA!AI$3:AI$101,DATA!$F$3:$F$101,$A35,DATA!$B$3:$B$101,$C$2) -> 376 | AF35: =SUMIFS(DATA!AJ$3:AJ$101,DATA!$F$3:$F$101,$A35,DATA!$B$3:$B$101,$C$2) -> 412 | AG35: =SUMIFS(DATA!AK$3:AK$101,DATA!$F$3:$F$101,$A35,DATA!$B$3:$B$101,$C$2) -> 436 | AH35: =SUMIFS(DATA!AL$3:AL$101,DATA!$F$3:$F$101,$A35,DATA!$B$3:$B$101,$C$2) -> 462 | AI35: =SUMIFS(DATA!AM$3:AM$101,DATA!$F$3:$F$101,$A35,DATA!$B$3:$B$101,$C$2) -> 496 | AJ35: =SUMIFS(DATA!AN$3:AN$101,DATA!$F$3:$F$101,$A35,DATA!$B$3:$B$101,$C$2) -> 533 | AK35: =SUMIFS(DATA!AO$3:AO$101,DATA!$F$3:$F$101,$A35,DATA!$B$3:$B$101,$C$2) -> 577 | AL35: =SUMIFS(DATA!AP$3:AP$101,DATA!$F$3:$F$101,$A35,DATA!$B$3:$B$101,$C$2) -> 609 | AM35: =SUMIFS(DATA!AQ$3:AQ$101,DATA!$F$3:$F$101,$A35,DATA!$B$3:$B$101,$C$2) -> 593 | AN35: =SUMIFS(DATA!AR$3:AR$101,DATA!$F$3:$F$101,$A35,DATA!$B$3:$B$101,$C$2) -> 604 | AO35: =SUMIFS(DATA!AS$3:AS$101,DATA!$F$3:$F$101,$A35,DATA!$B$3:$B$101,$C$2) -> 615 | AP35: =SUMIFS(DATA!AT$3:AT$101,DATA!$F$3:$F$101,$A35,DATA!$B$3:$B$101,$C$2) -> 626 | AQ35: =SUMIFS(DATA!AU$3:AU$101,DATA!$F$3:$F$101,$A35,DATA!$B$3:$B$101,$C$2) -> 637 | AR35: =SUMIFS(DATA!AV$3:AV$101,DATA!$F$3:$F$101,$A35,DATA!$B$3:$B$101,$C$2) -> 649 | AS35: =SUMIFS(DATA!AW$3:AW$101,DATA!$F$3:$F$101,$A35,DATA!$B$3:$B$101,$C$2) -> 661 | AT35: =SUMIFS(DATA!AX$3:AX$101,DATA!$F$3:$F$101,$A35,DATA!$B$3:$B$101,$C$2) -> 673 | AU35: =SUMIFS(DATA!AY$3:AY$101,DATA!$F$3:$F$101,$A35,DATA!$B$3:$B$101,$C$2) -> 685 | AV35: =SUMIFS(DATA!AZ$3:AZ$101,DATA!$F$3:$F$101,$A35,DATA!$B$3:$B$101,$C$2) -> 697 | AW35: =SUMIFS(DATA!BA$3:BA$101,DATA!$F$3:$F$101,$A35,DATA!$B$3:$B$101,$C$2) -> 710 | AX35: =SUMIFS(DATA!BB$3:BB$101,DATA!$F$3:$F$101,$A35,DATA!$B$3:$B$101,$C$2) -> 722 | AY35: =SUMIFS(DATA!BC$3:BC$101,DATA!$F$3:$F$101,$A35,DATA!$B$3:$B$101,$C$2) -> 735 | AZ35: =SUMIFS(DATA!BD$3:BD$101,DATA!$F$3:$F$101,$A35,DATA!$B$3:$B$101,$C$2) -> 749
A36: Capital Taxes | C36: =SUM(C50,C94)*0.005 -> 60.53585 | D36: =SUM(D50,D94)*0.005 -> 68.025175 | E36: 75.8908915 | F36: 84.93756504 | G36: 93.80055886 | H36: 101.6338458 | I36: 108.3638158 | J36: 114.6447916 | K36: 121.6941427 | L36: 130.3655149 | M36: 137.6946492 | N36: 145.2577428 | O36: 151.7995469 | P36: 158.3504315 | Q36: 161.6546589 | R36: 160.5770839 | S36: 160.5391814 | T36: 159.7754533 | U36: 159.6131317 | V36: 159.3959976 | W36: 159.1554976 | X36: 159.0624976 | Y36: 158.7634976 | Z36: 158.6464976 | AA36: 158.6414976 | AB36: 158.6499976 | AC36: 158.8514976 | AD36: 160.0534976 | AE36: 161.9149976 | AF36: 162.6039976 | AG36: 163.4104976 | AH36: 164.4304976 | AI36: 165.3359976 | AJ36: 167.6339976 | AK36: 167.4914976 | AL36: 167.0489976 | AM36: 166.4054976 | AN36: 165.8357791 | AO36: 165.1456877 | AP36: 164.7091416 | AQ36: 164.2156283 | AR36: 163.9437235 | AS36: 163.247348 | AT36: 162.3146868 | AU36: 160.8696868 | AV36: 159.3535307 | AW36: 158.019365 | AX36: 156.5106847 | AY36: 155.140996 | AZ36: 153.6822972
A37: Other Taxes | C37: 26.464825 | D37: 26.972575 | E37: 25.44078439 | F37: 25.35970271 | G37: 26.36950857 | H37: 26.6820727 | I37: 26.87192917 | J37: 27.7166299 | K37: 28.49348308 | L37: 29.43317086 | M37: 29.83537947 | N37: 31.12297383 | O37: 31.99911318 | P37: 32.91244772 | Q37: 34.0430629 | R37: 35.02067133 | S37: 36.68548645 | T37: 37.58496184 | U37: 39.75636064 | V37: 41.06877553 | W37: 42.1077466 | X37: 43.14121683 | Y37: 44.82818505 | Z37: 46.10165238 | AA37: 47.17961917 | AB37: 48.59408402 | AC37: 50.04829778 | AD37: 51.34876081 | AE37: 52.72172168 | AF37: 54.0604311 | AG37: 56.16888873 | AH37: 57.98759563 | AI37: 59.18847098 | AJ37: 60.81217398 | AK37: 62.48074624 | AL37: 64.58344654 | AM37: 65.91554933 | AN37: 67.20424903 | AO37: 69.2531974 | AP37: 70.98114505 | AQ37: 73.24859174 | AR37: 75.58178704 | AS37: 76.65698169 | AT37: 79.35117554 | AU37: 81.15338457 | AV37: 83.31557722 | AW37: 85.52126895 | AX37: 87.67320977 | AY37: 90.26514966 | AZ37: 92.62408808
A38: Capital and Other Taxes | B38: [Formula] | C38: =SUM(C36:C37) -> 87.000675 | D38: =SUM(D36:D37) -> 94.99775 | E38: 101.3316759 | F38: 110.2972677 | G38: 120.1700674 | H38: 128.3159184 | I38: 135.2357449 | J38: 142.3614215 | K38: 150.1876258 | L38: 159.7986857 | M38: 167.5300286 | N38: 176.3807166 | O38: 183.7986601 | P38: 191.2628792 | Q38: 195.6977218 | R38: 195.5977552 | S38: 197.2246679 | T38: 197.3604151 | U38: 199.3694923 | V38: 200.4647731 | W38: 201.2632442 | X38: 202.2037144 | Y38: 203.5916827 | Z38: 204.74815 | AA38: 205.8211168 | AB38: 207.2440816 | AC38: 208.8997954 | AD38: 211.4022584 | AE38: 214.6367193 | AF38: 216.6644287 | AG38: 219.5793863 | AH38: 222.4180932 | AI38: 224.5244686 | AJ38: 228.4461716 | AK38: 229.9722438 | AL38: 231.6324442 | AM38: 232.3210469 | AN38: 233.0400282 | AO38: 234.3988851 | AP38: 235.6902866 | AQ38: 237.46422 | AR38: 239.5255105 | AS38: 239.9043297 | AT38: 241.6658624 | AU38: 242.0230714 | AV38: 242.6691079 | AW38: 243.5406339 | AX38: 244.1838945 | AY38: 245.4061457 | AZ38: 246.3063852
A39: Capital and Other Taxes | C39: =SUMIFS(DATA!G$3:G$101,DATA!$F$3:$F$101,$A39,DATA!$B$3:$B$101,$C$2) -> 87 | D39: =SUMIFS(DATA!H$3:H$101,DATA!$F$3:$F$101,$A39,DATA!$B$3:$B$101,$C$2) -> 95 | E39: =SUMIFS(DATA!I$3:I$101,DATA!$F$3:$F$101,$A39,DATA!$B$3:$B$101,$C$2) -> 101 | F39: =SUMIFS(DATA!J$3:J$101,DATA!$F$3:$F$101,$A39,DATA!$B$3:$B$101,$C$2) -> 109 | G39: =SUMIFS(DATA!K$3:K$101,DATA!$F$3:$F$101,$A39,DATA!$B$3:$B$101,$C$2) -> 119 | H39: =SUMIFS(DATA!L$3:L$101,DATA!$F$3:$F$101,$A39,DATA!$B$3:$B$101,$C$2) -> 127 | I39: =SUMIFS(DATA!M$3:M$101,DATA!$F$3:$F$101,$A39,DATA!$B$3:$B$101,$C$2) -> 134 | J39: =SUMIFS(DATA!N$3:N$101,DATA!$F$3:$F$101,$A39,DATA!$B$3:$B$101,$C$2) -> 141 | K39: =SUMIFS(DATA!O$3:O$101,DATA!$F$3:$F$101,$A39,DATA!$B$3:$B$101,$C$2) -> 149 | L39: =SUMIFS(DATA!P$3:P$101,DATA!$F$3:$F$101,$A39,DATA!$B$3:$B$101,$C$2) -> 158 | M39: =SUMIFS(DATA!Q$3:Q$101,DATA!$F$3:$F$101,$A39,DATA!$B$3:$B$101,$C$2) -> 166 | N39: =SUMIFS(DATA!R$3:R$101,DATA!$F$3:$F$101,$A39,DATA!$B$3:$B$101,$C$2) -> 174 | O39: =SUMIFS(DATA!S$3:S$101,DATA!$F$3:$F$101,$A39,DATA!$B$3:$B$101,$C$2) -> 181 | P39: =SUMIFS(DATA!T$3:T$101,DATA!$F$3:$F$101,$A39,DATA!$B$3:$B$101,$C$2) -> 187 | Q39: =SUMIFS(DATA!U$3:U$101,DATA!$F$3:$F$101,$A39,DATA!$B$3:$B$101,$C$2) -> 190 | R39: =SUMIFS(DATA!V$3:V$101,DATA!$F$3:$F$101,$A39,DATA!$B$3:$B$101,$C$2) -> 192 | S39: =SUMIFS(DATA!W$3:W$101,DATA!$F$3:$F$101,$A39,DATA!$B$3:$B$101,$C$2) -> 195 | T39: =SUMIFS(DATA!X$3:X$101,DATA!$F$3:$F$101,$A39,DATA!$B$3:$B$101,$C$2) -> 197 | U39: =SUMIFS(DATA!Y$3:Y$101,DATA!$F$3:$F$101,$A39,DATA!$B$3:$B$101,$C$2) -> 201 | V39: =SUMIFS(DATA!Z$3:Z$101,DATA!$F$3:$F$101,$A39,DATA!$B$3:$B$101,$C$2) -> 202 | W39: =SUMIFS(DATA!AA$3:AA$101,DATA!$F$3:$F$101,$A39,DATA!$B$3:$B$101,$C$2) -> 203 | X39: =SUMIFS(DATA!AB$3:AB$101,DATA!$F$3:$F$101,$A39,DATA!$B$3:$B$101,$C$2) -> 204 | Y39: =SUMIFS(DATA!AC$3:AC$101,DATA!$F$3:$F$101,$A39,DATA!$B$3:$B$101,$C$2) -> 206 | Z39: =SUMIFS(DATA!AD$3:AD$101,DATA!$F$3:$F$101,$A39,DATA!$B$3:$B$101,$C$2) -> 207 | AA39: =SUMIFS(DATA!AE$3:AE$101,DATA!$F$3:$F$101,$A39,DATA!$B$3:$B$101,$C$2) -> 208 | AB39: =SUMIFS(DATA!AF$3:AF$101,DATA!$F$3:$F$101,$A39,DATA!$B$3:$B$101,$C$2) -> 210 | AC39: =SUMIFS(DATA!AG$3:AG$101,DATA!$F$3:$F$101,$A39,DATA!$B$3:$B$101,$C$2) -> 212 | AD39: =SUMIFS(DATA!AH$3:AH$101,DATA!$F$3:$F$101,$A39,DATA!$B$3:$B$101,$C$2) -> 214 | AE39: =SUMIFS(DATA!AI$3:AI$101,DATA!$F$3:$F$101,$A39,DATA!$B$3:$B$101,$C$2) -> 218 | AF39: =SUMIFS(DATA!AJ$3:AJ$101,DATA!$F$3:$F$101,$A39,DATA!$B$3:$B$101,$C$2) -> 220 | AG39: =SUMIFS(DATA!AK$3:AK$101,DATA!$F$3:$F$101,$A39,DATA!$B$3:$B$101,$C$2) -> 223 | AH39: =SUMIFS(DATA!AL$3:AL$101,DATA!$F$3:$F$101,$A39,DATA!$B$3:$B$101,$C$2) -> 226 | AI39: =SUMIFS(DATA!AM$3:AM$101,DATA!$F$3:$F$101,$A39,DATA!$B$3:$B$101,$C$2) -> 228 | AJ39: =SUMIFS(DATA!AN$3:AN$101,DATA!$F$3:$F$101,$A39,DATA!$B$3:$B$101,$C$2) -> 232 | AK39: =SUMIFS(DATA!AO$3:AO$101,DATA!$F$3:$F$101,$A39,DATA!$B$3:$B$101,$C$2) -> 234 | AL39: =SUMIFS(DATA!AP$3:AP$101,DATA!$F$3:$F$101,$A39,DATA!$B$3:$B$101,$C$2) -> 236 | AM39: =SUMIFS(DATA!AQ$3:AQ$101,DATA!$F$3:$F$101,$A39,DATA!$B$3:$B$101,$C$2) -> 237 | AN39: =SUMIFS(DATA!AR$3:AR$101,DATA!$F$3:$F$101,$A39,DATA!$B$3:$B$101,$C$2) -> 237 | AO39: =SUMIFS(DATA!AS$3:AS$101,DATA!$F$3:$F$101,$A39,DATA!$B$3:$B$101,$C$2) -> 239 | AP39: =SUMIFS(DATA!AT$3:AT$101,DATA!$F$3:$F$101,$A39,DATA!$B$3:$B$101,$C$2) -> 240 | AQ39: =SUMIFS(DATA!AU$3:AU$101,DATA!$F$3:$F$101,$A39,DATA!$B$3:$B$101,$C$2) -> 242 | AR39: =SUMIFS(DATA!AV$3:AV$101,DATA!$F$3:$F$101,$A39,DATA!$B$3:$B$101,$C$2) -> 244 | AS39: =SUMIFS(DATA!AW$3:AW$101,DATA!$F$3:$F$101,$A39,DATA!$B$3:$B$101,$C$2) -> 244 | AT39: =SUMIFS(DATA!AX$3:AX$101,DATA!$F$3:$F$101,$A39,DATA!$B$3:$B$101,$C$2) -> 246 | AU39: =SUMIFS(DATA!AY$3:AY$101,DATA!$F$3:$F$101,$A39,DATA!$B$3:$B$101,$C$2) -> 246 | AV39: =SUMIFS(DATA!AZ$3:AZ$101,DATA!$F$3:$F$101,$A39,DATA!$B$3:$B$101,$C$2) -> 247 | AW39: =SUMIFS(DATA!BA$3:BA$101,DATA!$F$3:$F$101,$A39,DATA!$B$3:$B$101,$C$2) -> 248 | AX39: =SUMIFS(DATA!BB$3:BB$101,DATA!$F$3:$F$101,$A39,DATA!$B$3:$B$101,$C$2) -> 249 | AY39: =SUMIFS(DATA!BC$3:BC$101,DATA!$F$3:$F$101,$A39,DATA!$B$3:$B$101,$C$2) -> 250 | AZ39: =SUMIFS(DATA!BD$3:BD$101,DATA!$F$3:$F$101,$A39,DATA!$B$3:$B$101,$C$2) -> 251
A40: Corporate Allocation | C40: =SUMIFS(DATA!G$3:G$101,DATA!$F$3:$F$101,$A40,DATA!$B$3:$B$101,$C$2) -> 9 | D40: =SUMIFS(DATA!H$3:H$101,DATA!$F$3:$F$101,$A40,DATA!$B$3:$B$101,$C$2) -> 9 | E40: =SUMIFS(DATA!I$3:I$101,DATA!$F$3:$F$101,$A40,DATA!$B$3:$B$101,$C$2) -> 8 | F40: =SUMIFS(DATA!J$3:J$101,DATA!$F$3:$F$101,$A40,DATA!$B$3:$B$101,$C$2) -> 8 | G40: =SUMIFS(DATA!K$3:K$101,DATA!$F$3:$F$101,$A40,DATA!$B$3:$B$101,$C$2) -> 8 | H40: =SUMIFS(DATA!L$3:L$101,DATA!$F$3:$F$101,$A40,DATA!$B$3:$B$101,$C$2) -> 8 | I40: =SUMIFS(DATA!M$3:M$101,DATA!$F$3:$F$101,$A40,DATA!$B$3:$B$101,$C$2) -> 8 | J40: =SUMIFS(DATA!N$3:N$101,DATA!$F$3:$F$101,$A40,DATA!$B$3:$B$101,$C$2) -> 8 | K40: =SUMIFS(DATA!O$3:O$101,DATA!$F$3:$F$101,$A40,DATA!$B$3:$B$101,$C$2) -> 8 | L40: =SUMIFS(DATA!P$3:P$101,DATA!$F$3:$F$101,$A40,DATA!$B$3:$B$101,$C$2) -> 8 | M40: =SUMIFS(DATA!Q$3:Q$101,DATA!$F$3:$F$101,$A40,DATA!$B$3:$B$101,$C$2) -> 8 | N40: =SUMIFS(DATA!R$3:R$101,DATA!$F$3:$F$101,$A40,DATA!$B$3:$B$101,$C$2) -> 8 | O40: =SUMIFS(DATA!S$3:S$101,DATA!$F$3:$F$101,$A40,DATA!$B$3:$B$101,$C$2) -> 8 | P40: =SUMIFS(DATA!T$3:T$101,DATA!$F$3:$F$101,$A40,DATA!$B$3:$B$101,$C$2) -> 8 | Q40: =SUMIFS(DATA!U$3:U$101,DATA!$F$3:$F$101,$A40,DATA!$B$3:$B$101,$C$2) -> 8 | R40: =SUMIFS(DATA!V$3:V$101,DATA!$F$3:$F$101,$A40,DATA!$B$3:$B$101,$C$2) -> 8 | S40: =SUMIFS(DATA!W$3:W$101,DATA!$F$3:$F$101,$A40,DATA!$B$3:$B$101,$C$2) -> 8 | T40: =SUMIFS(DATA!X$3:X$101,DATA!$F$3:$F$101,$A40,DATA!$B$3:$B$101,$C$2) -> 8 | U40: =SUMIFS(DATA!Y$3:Y$101,DATA!$F$3:$F$101,$A40,DATA!$B$3:$B$101,$C$2) -> 7 | V40: =SUMIFS(DATA!Z$3:Z$101,DATA!$F$3:$F$101,$A40,DATA!$B$3:$B$101,$C$2) -> 7 | W40: =SUMIFS(DATA!AA$3:AA$101,DATA!$F$3:$F$101,$A40,DATA!$B$3:$B$101,$C$2) -> 7 | X40: =SUMIFS(DATA!AB$3:AB$101,DATA!$F$3:$F$101,$A40,DATA!$B$3:$B$101,$C$2) -> 7 | Y40: =SUMIFS(DATA!AC$3:AC$101,DATA!$F$3:$F$101,$A40,DATA!$B$3:$B$101,$C$2) -> 7 | Z40: =SUMIFS(DATA!AD$3:AD$101,DATA!$F$3:$F$101,$A40,DATA!$B$3:$B$101,$C$2) -> 7 | AA40: =SUMIFS(DATA!AE$3:AE$101,DATA!$F$3:$F$101,$A40,DATA!$B$3:$B$101,$C$2) -> 7 | AB40: =SUMIFS(DATA!AF$3:AF$101,DATA!$F$3:$F$101,$A40,DATA!$B$3:$B$101,$C$2) -> 7 | AC40: =SUMIFS(DATA!AG$3:AG$101,DATA!$F$3:$F$101,$A40,DATA!$B$3:$B$101,$C$2) -> 7 | AD40: =SUMIFS(DATA!AH$3:AH$101,DATA!$F$3:$F$101,$A40,DATA!$B$3:$B$101,$C$2) -> 7 | AE40: =SUMIFS(DATA!AI$3:AI$101,DATA!$F$3:$F$101,$A40,DATA!$B$3:$B$101,$C$2) -> 7 | AF40: =SUMIFS(DATA!AJ$3:AJ$101,DATA!$F$3:$F$101,$A40,DATA!$B$3:$B$101,$C$2) -> 7 | AG40: =SUMIFS(DATA!AK$3:AK$101,DATA!$F$3:$F$101,$A40,DATA!$B$3:$B$101,$C$2) -> 7 | AH40: =SUMIFS(DATA!AL$3:AL$101,DATA!$F$3:$F$101,$A40,DATA!$B$3:$B$101,$C$2) -> 7 | AI40: =SUMIFS(DATA!AM$3:AM$101,DATA!$F$3:$F$101,$A40,DATA!$B$3:$B$101,$C$2) -> 6 | AJ40: =SUMIFS(DATA!AN$3:AN$101,DATA!$F$3:$F$101,$A40,DATA!$B$3:$B$101,$C$2) -> 6 | AK40: =SUMIFS(DATA!AO$3:AO$101,DATA!$F$3:$F$101,$A40,DATA!$B$3:$B$101,$C$2) -> 6 | AL40: =SUMIFS(DATA!AP$3:AP$101,DATA!$F$3:$F$101,$A40,DATA!$B$3:$B$101,$C$2) -> 6 | AM40: =SUMIFS(DATA!AQ$3:AQ$101,DATA!$F$3:$F$101,$A40,DATA!$B$3:$B$101,$C$2) -> 6 | AN40: =SUMIFS(DATA!AR$3:AR$101,DATA!$F$3:$F$101,$A40,DATA!$B$3:$B$101,$C$2) -> 6 | AO40: =SUMIFS(DATA!AS$3:AS$101,DATA!$F$3:$F$101,$A40,DATA!$B$3:$B$101,$C$2) -> 6 | AP40: =SUMIFS(DATA!AT$3:AT$101,DATA!$F$3:$F$101,$A40,DATA!$B$3:$B$101,$C$2) -> 6 | AQ40: =SUMIFS(DATA!AU$3:AU$101,DATA!$F$3:$F$101,$A40,DATA!$B$3:$B$101,$C$2) -> 6 | AR40: =SUMIFS(DATA!AV$3:AV$101,DATA!$F$3:$F$101,$A40,DATA!$B$3:$B$101,$C$2) -> 6 | AS40: =SUMIFS(DATA!AW$3:AW$101,DATA!$F$3:$F$101,$A40,DATA!$B$3:$B$101,$C$2) -> 6 | AT40: =SUMIFS(DATA!AX$3:AX$101,DATA!$F$3:$F$101,$A40,DATA!$B$3:$B$101,$C$2) -> 6 | AU40: =SUMIFS(DATA!AY$3:AY$101,DATA!$F$3:$F$101,$A40,DATA!$B$3:$B$101,$C$2) -> 6 | AV40: =SUMIFS(DATA!AZ$3:AZ$101,DATA!$F$3:$F$101,$A40,DATA!$B$3:$B$101,$C$2) -> 6 | AW40: =SUMIFS(DATA!BA$3:BA$101,DATA!$F$3:$F$101,$A40,DATA!$B$3:$B$101,$C$2) -> 6 | AX40: =SUMIFS(DATA!BB$3:BB$101,DATA!$F$3:$F$101,$A40,DATA!$B$3:$B$101,$C$2) -> 6 | AY40: =SUMIFS(DATA!BC$3:BC$101,DATA!$F$3:$F$101,$A40,DATA!$B$3:$B$101,$C$2) -> 6 | AZ40: =SUMIFS(DATA!BD$3:BD$101,DATA!$F$3:$F$101,$A40,DATA!$B$3:$B$101,$C$2) -> 6
A41: Total Expenses | B41: [Formula] | C41: =SUM(C20,C32:C35,C39:C40) -> 1662 | D41: =SUM(D20,D32:D35,D39:D40) -> 1729 | E41: 1797 | F41: 1876 | G41: 1977 | H41: 2120 | I41: 2296 | J41: 2335 | K41: 2688 | L41: 2858 | M41: 2886 | N41: 2923 | O41: 2954 | P41: 3105 | Q41: 3428 | R41: 3699 | S41: 3701 | T41: 3695 | U41: =SUM(U20,U32:U35,U39:U40) -> 3755 | V41: 3728 | W41: 3708 | X41: 3739 | Y41: 3801 | Z41: 3821 | AA41: 3819 | AB41: =SUM(AB20,AB32:AB35,AB39:AB40) -> 3864 | AC41: 3884 | AD41: 3924 | AE41: 3993 | AF41: 4087 | AG41: 4199 | AH41: 4249 | AI41: 4337 | AJ41: 4438 | AK41: 4589 | AL41: 4635 | AM41: 4663 | AN41: 4703 | AO41: 4818 | AP41: 4872 | AQ41: 4919 | AR41: 5022 | AS41: 5069 | AT41: 5094 | AU41: 5156 | AV41: 5163 | AW41: 5212 | AX41: 5274 | AY41: 5321 | AZ41: 5373
A42: Total Expenses | B42: [original] | C42: =SUMIFS(DATA!G$3:G$101,DATA!$F$3:$F$101,$A42,DATA!$B$3:$B$101,$C$2) -> 1663 | D42: =SUMIFS(DATA!H$3:H$101,DATA!$F$3:$F$101,$A42,DATA!$B$3:$B$101,$C$2) -> 1729 | E42: =SUMIFS(DATA!I$3:I$101,DATA!$F$3:$F$101,$A42,DATA!$B$3:$B$101,$C$2) -> 1798 | F42: =SUMIFS(DATA!J$3:J$101,DATA!$F$3:$F$101,$A42,DATA!$B$3:$B$101,$C$2) -> 1877 | G42: =SUMIFS(DATA!K$3:K$101,DATA!$F$3:$F$101,$A42,DATA!$B$3:$B$101,$C$2) -> 1978 | H42: =SUMIFS(DATA!L$3:L$101,DATA!$F$3:$F$101,$A42,DATA!$B$3:$B$101,$C$2) -> 2121 | I42: =SUMIFS(DATA!M$3:M$101,DATA!$F$3:$F$101,$A42,DATA!$B$3:$B$101,$C$2) -> 2297 | J42: =SUMIFS(DATA!N$3:N$101,DATA!$F$3:$F$101,$A42,DATA!$B$3:$B$101,$C$2) -> 2335 | K42: =SUMIFS(DATA!O$3:O$101,DATA!$F$3:$F$101,$A42,DATA!$B$3:$B$101,$C$2) -> 2688 | L42: =SUMIFS(DATA!P$3:P$101,DATA!$F$3:$F$101,$A42,DATA!$B$3:$B$101,$C$2) -> 2859 | M42: =SUMIFS(DATA!Q$3:Q$101,DATA!$F$3:$F$101,$A42,DATA!$B$3:$B$101,$C$2) -> 2887 | N42: =SUMIFS(DATA!R$3:R$101,DATA!$F$3:$F$101,$A42,DATA!$B$3:$B$101,$C$2) -> 2924 | O42: =SUMIFS(DATA!S$3:S$101,DATA!$F$3:$F$101,$A42,DATA!$B$3:$B$101,$C$2) -> 2955 | P42: =SUMIFS(DATA!T$3:T$101,DATA!$F$3:$F$101,$A42,DATA!$B$3:$B$101,$C$2) -> 3105 | Q42: =SUMIFS(DATA!U$3:U$101,DATA!$F$3:$F$101,$A42,DATA!$B$3:$B$101,$C$2) -> 3428 | R42: =SUMIFS(DATA!V$3:V$101,DATA!$F$3:$F$101,$A42,DATA!$B$3:$B$101,$C$2) -> 3700 | S42: =SUMIFS(DATA!W$3:W$101,DATA!$F$3:$F$101,$A42,DATA!$B$3:$B$101,$C$2) -> 3701 | T42: =SUMIFS(DATA!X$3:X$101,DATA!$F$3:$F$101,$A42,DATA!$B$3:$B$101,$C$2) -> 3695 | U42: =SUMIFS(DATA!Y$3:Y$101,DATA!$F$3:$F$101,$A42,DATA!$B$3:$B$101,$C$2) -> 3756 | V42: =SUMIFS(DATA!Z$3:Z$101,DATA!$F$3:$F$101,$A42,DATA!$B$3:$B$101,$C$2) -> 3728 | W42: =SUMIFS(DATA!AA$3:AA$101,DATA!$F$3:$F$101,$A42,DATA!$B$3:$B$101,$C$2) -> 3709 | X42: =SUMIFS(DATA!AB$3:AB$101,DATA!$F$3:$F$101,$A42,DATA!$B$3:$B$101,$C$2) -> 3739 | Y42: =SUMIFS(DATA!AC$3:AC$101,DATA!$F$3:$F$101,$A42,DATA!$B$3:$B$101,$C$2) -> 3801 | Z42: =SUMIFS(DATA!AD$3:AD$101,DATA!$F$3:$F$101,$A42,DATA!$B$3:$B$101,$C$2) -> 3821 | AA42: =SUMIFS(DATA!AE$3:AE$101,DATA!$F$3:$F$101,$A42,DATA!$B$3:$B$101,$C$2) -> 3820 | AB42: =SUMIFS(DATA!AF$3:AF$101,DATA!$F$3:$F$101,$A42,DATA!$B$3:$B$101,$C$2) -> 3863 | AC42: =SUMIFS(DATA!AG$3:AG$101,DATA!$F$3:$F$101,$A42,DATA!$B$3:$B$101,$C$2) -> 3884 | AD42: =SUMIFS(DATA!AH$3:AH$101,DATA!$F$3:$F$101,$A42,DATA!$B$3:$B$101,$C$2) -> 3924 | AE42: =SUMIFS(DATA!AI$3:AI$101,DATA!$F$3:$F$101,$A42,DATA!$B$3:$B$101,$C$2) -> 3993 | AF42: =SUMIFS(DATA!AJ$3:AJ$101,DATA!$F$3:$F$101,$A42,DATA!$B$3:$B$101,$C$2) -> 4088 | AG42: =SUMIFS(DATA!AK$3:AK$101,DATA!$F$3:$F$101,$A42,DATA!$B$3:$B$101,$C$2) -> 4200 | AH42: =SUMIFS(DATA!AL$3:AL$101,DATA!$F$3:$F$101,$A42,DATA!$B$3:$B$101,$C$2) -> 4248 | AI42: =SUMIFS(DATA!AM$3:AM$101,DATA!$F$3:$F$101,$A42,DATA!$B$3:$B$101,$C$2) -> 4337 | AJ42: =SUMIFS(DATA!AN$3:AN$101,DATA!$F$3:$F$101,$A42,DATA!$B$3:$B$101,$C$2) -> 4438 | AK42: =SUMIFS(DATA!AO$3:AO$101,DATA!$F$3:$F$101,$A42,DATA!$B$3:$B$101,$C$2) -> 4588 | AL42: =SUMIFS(DATA!AP$3:AP$101,DATA!$F$3:$F$101,$A42,DATA!$B$3:$B$101,$C$2) -> 4635 | AM42: =SUMIFS(DATA!AQ$3:AQ$101,DATA!$F$3:$F$101,$A42,DATA!$B$3:$B$101,$C$2) -> 4663 | AN42: =SUMIFS(DATA!AR$3:AR$101,DATA!$F$3:$F$101,$A42,DATA!$B$3:$B$101,$C$2) -> 4702 | AO42: =SUMIFS(DATA!AS$3:AS$101,DATA!$F$3:$F$101,$A42,DATA!$B$3:$B$101,$C$2) -> 4817 | AP42: =SUMIFS(DATA!AT$3:AT$101,DATA!$F$3:$F$101,$A42,DATA!$B$3:$B$101,$C$2) -> 4871 | AQ42: =SUMIFS(DATA!AU$3:AU$101,DATA!$F$3:$F$101,$A42,DATA!$B$3:$B$101,$C$2) -> 4918 | AR42: =SUMIFS(DATA!AV$3:AV$101,DATA!$F$3:$F$101,$A42,DATA!$B$3:$B$101,$C$2) -> 5021 | AS42: =SUMIFS(DATA!AW$3:AW$101,DATA!$F$3:$F$101,$A42,DATA!$B$3:$B$101,$C$2) -> 5068 | AT42: =SUMIFS(DATA!AX$3:AX$101,DATA!$F$3:$F$101,$A42,DATA!$B$3:$B$101,$C$2) -> 5094 | AU42: =SUMIFS(DATA!AY$3:AY$101,DATA!$F$3:$F$101,$A42,DATA!$B$3:$B$101,$C$2) -> 5154 | AV42: =SUMIFS(DATA!AZ$3:AZ$101,DATA!$F$3:$F$101,$A42,DATA!$B$3:$B$101,$C$2) -> 5162 | AW42: =SUMIFS(DATA!BA$3:BA$101,DATA!$F$3:$F$101,$A42,DATA!$B$3:$B$101,$C$2) -> 5212 | AX42: =SUMIFS(DATA!BB$3:BB$101,DATA!$F$3:$F$101,$A42,DATA!$B$3:$B$101,$C$2) -> 5273 | AY42: =SUMIFS(DATA!BC$3:BC$101,DATA!$F$3:$F$101,$A42,DATA!$B$3:$B$101,$C$2) -> 5319 | AZ42: =SUMIFS(DATA!BD$3:BD$101,DATA!$F$3:$F$101,$A42,DATA!$B$3:$B$101,$C$2) -> 5373
A44: Non-Controlling Interest | C44: =SUMIFS(DATA!G$3:G$101,DATA!$F$3:$F$101,$A44,DATA!$B$3:$B$101,$C$2) -> -14 | D44: =SUMIFS(DATA!H$3:H$101,DATA!$F$3:$F$101,$A44,DATA!$B$3:$B$101,$C$2) -> -24 | E44: =SUMIFS(DATA!I$3:I$101,DATA!$F$3:$F$101,$A44,DATA!$B$3:$B$101,$C$2) -> -23 | F44: =SUMIFS(DATA!J$3:J$101,DATA!$F$3:$F$101,$A44,DATA!$B$3:$B$101,$C$2) -> -17 | G44: =SUMIFS(DATA!K$3:K$101,DATA!$F$3:$F$101,$A44,DATA!$B$3:$B$101,$C$2) -> -14 | H44: =SUMIFS(DATA!L$3:L$101,DATA!$F$3:$F$101,$A44,DATA!$B$3:$B$101,$C$2) -> -13 | I44: =SUMIFS(DATA!M$3:M$101,DATA!$F$3:$F$101,$A44,DATA!$B$3:$B$101,$C$2) -> -9 | J44: =SUMIFS(DATA!N$3:N$101,DATA!$F$3:$F$101,$A44,DATA!$B$3:$B$101,$C$2) -> -9 | K44: =SUMIFS(DATA!O$3:O$101,DATA!$F$3:$F$101,$A44,DATA!$B$3:$B$101,$C$2) -> -7 | L44: =SUMIFS(DATA!P$3:P$101,DATA!$F$3:$F$101,$A44,DATA!$B$3:$B$101,$C$2) -> 1 | M44: =SUMIFS(DATA!Q$3:Q$101,DATA!$F$3:$F$101,$A44,DATA!$B$3:$B$101,$C$2) -> 3 | N44: =SUMIFS(DATA!R$3:R$101,DATA!$F$3:$F$101,$A44,DATA!$B$3:$B$101,$C$2) -> 7 | O44: =SUMIFS(DATA!S$3:S$101,DATA!$F$3:$F$101,$A44,DATA!$B$3:$B$101,$C$2) -> 9 | P44: =SUMIFS(DATA!T$3:T$101,DATA!$F$3:$F$101,$A44,DATA!$B$3:$B$101,$C$2) -> 5 | Q44: =SUMIFS(DATA!U$3:U$101,DATA!$F$3:$F$101,$A44,DATA!$B$3:$B$101,$C$2) -> 7 | R44: =SUMIFS(DATA!V$3:V$101,DATA!$F$3:$F$101,$A44,DATA!$B$3:$B$101,$C$2) -> 9 | S44: =SUMIFS(DATA!W$3:W$101,DATA!$F$3:$F$101,$A44,DATA!$B$3:$B$101,$C$2) -> 11 | T44: =SUMIFS(DATA!X$3:X$101,DATA!$F$3:$F$101,$A44,DATA!$B$3:$B$101,$C$2) -> 14 | U44: =SUMIFS(DATA!Y$3:Y$101,DATA!$F$3:$F$101,$A44,DATA!$B$3:$B$101,$C$2) -> 16 | V44: =SUMIFS(DATA!Z$3:Z$101,DATA!$F$3:$F$101,$A44,DATA!$B$3:$B$101,$C$2) -> 18 | W44: =SUMIFS(DATA!AA$3:AA$101,DATA!$F$3:$F$101,$A44,DATA!$B$3:$B$101,$C$2) -> 20 | X44: =SUMIFS(DATA!AB$3:AB$101,DATA!$F$3:$F$101,$A44,DATA!$B$3:$B$101,$C$2) -> 22 | Y44: =SUMIFS(DATA!AC$3:AC$101,DATA!$F$3:$F$101,$A44,DATA!$B$3:$B$101,$C$2) -> 24 | Z44: =SUMIFS(DATA!AD$3:AD$101,DATA!$F$3:$F$101,$A44,DATA!$B$3:$B$101,$C$2) -> 25 | AA44: =SUMIFS(DATA!AE$3:AE$101,DATA!$F$3:$F$101,$A44,DATA!$B$3:$B$101,$C$2) -> 26 | AB44: =SUMIFS(DATA!AF$3:AF$101,DATA!$F$3:$F$101,$A44,DATA!$B$3:$B$101,$C$2) -> 28 | AC44: =SUMIFS(DATA!AG$3:AG$101,DATA!$F$3:$F$101,$A44,DATA!$B$3:$B$101,$C$2) -> 30 | AD44: =SUMIFS(DATA!AH$3:AH$101,DATA!$F$3:$F$101,$A44,DATA!$B$3:$B$101,$C$2) -> 32 | AE44: =SUMIFS(DATA!AI$3:AI$101,DATA!$F$3:$F$101,$A44,DATA!$B$3:$B$101,$C$2) -> 34 | AF44: =SUMIFS(DATA!AJ$3:AJ$101,DATA!$F$3:$F$101,$A44,DATA!$B$3:$B$101,$C$2) -> 36 | AG44: =SUMIFS(DATA!AK$3:AK$101,DATA!$F$3:$F$101,$A44,DATA!$B$3:$B$101,$C$2) -> 38 | AH44: =SUMIFS(DATA!AL$3:AL$101,DATA!$F$3:$F$101,$A44,DATA!$B$3:$B$101,$C$2) -> 41 | AI44: =SUMIFS(DATA!AM$3:AM$101,DATA!$F$3:$F$101,$A44,DATA!$B$3:$B$101,$C$2) -> 43 | AJ44: =SUMIFS(DATA!AN$3:AN$101,DATA!$F$3:$F$101,$A44,DATA!$B$3:$B$101,$C$2) -> 45 | AK44: =SUMIFS(DATA!AO$3:AO$101,DATA!$F$3:$F$101,$A44,DATA!$B$3:$B$101,$C$2) -> 47 | AL44: =SUMIFS(DATA!AP$3:AP$101,DATA!$F$3:$F$101,$A44,DATA!$B$3:$B$101,$C$2) -> 49 | AM44: =SUMIFS(DATA!AQ$3:AQ$101,DATA!$F$3:$F$101,$A44,DATA!$B$3:$B$101,$C$2) -> 49 | AN44: =SUMIFS(DATA!AR$3:AR$101,DATA!$F$3:$F$101,$A44,DATA!$B$3:$B$101,$C$2) -> 50 | AO44: =SUMIFS(DATA!AS$3:AS$101,DATA!$F$3:$F$101,$A44,DATA!$B$3:$B$101,$C$2) -> 51 | AP44: =SUMIFS(DATA!AT$3:AT$101,DATA!$F$3:$F$101,$A44,DATA!$B$3:$B$101,$C$2) -> 53 | AQ44: =SUMIFS(DATA!AU$3:AU$101,DATA!$F$3:$F$101,$A44,DATA!$B$3:$B$101,$C$2) -> 53 | AR44: =SUMIFS(DATA!AV$3:AV$101,DATA!$F$3:$F$101,$A44,DATA!$B$3:$B$101,$C$2) -> 54 | AS44: =SUMIFS(DATA!AW$3:AW$101,DATA!$F$3:$F$101,$A44,DATA!$B$3:$B$101,$C$2) -> 55 | AT44: =SUMIFS(DATA!AX$3:AX$101,DATA!$F$3:$F$101,$A44,DATA!$B$3:$B$101,$C$2) -> 57 | AU44: =SUMIFS(DATA!AY$3:AY$101,DATA!$F$3:$F$101,$A44,DATA!$B$3:$B$101,$C$2) -> 59 | AV44: =SUMIFS(DATA!AZ$3:AZ$101,DATA!$F$3:$F$101,$A44,DATA!$B$3:$B$101,$C$2) -> 61 | AW44: =SUMIFS(DATA!BA$3:BA$101,DATA!$F$3:$F$101,$A44,DATA!$B$3:$B$101,$C$2) -> 63 | AX44: =SUMIFS(DATA!BB$3:BB$101,DATA!$F$3:$F$101,$A44,DATA!$B$3:$B$101,$C$2) -> 64 | AY44: =SUMIFS(DATA!BC$3:BC$101,DATA!$F$3:$F$101,$A44,DATA!$B$3:$B$101,$C$2) -> 66 | AZ44: =SUMIFS(DATA!BD$3:BD$101,DATA!$F$3:$F$101,$A44,DATA!$B$3:$B$101,$C$2) -> 69
A45: Sunk Cost | B45: [Formula] | D45: =IF($V$2="No",0,IF($C$2=$B$146,D146,IF($C$2=$B$147,D147,IF($C$2=$B$148,D148,IF($C$2=$B$149,D149,IF($C$2=$B$150,D150,0)))))) -> 0 | E45: =IF($V$2="No",0,IF($C$2=$B$146,E146,IF($C$2=$B$147,E147,IF($C$2=$B$148,E148,IF($C$2=$B$149,E149,IF($C$2=$B$150,E150,0)))))) -> 0 | F45: 0 | G45: 0 | H45: 0 | I45: 0 | J45: 0 | K45: 0 | L45: 0 | M45: 0 | N45: 0 | O45: 0 | P45: 0 | Q45: 0 | R45: 0 | S45: 0 | T45: 0 | U45: 0 | V45: 0 | W45: 0 | X45: 0 | Y45: 0 | Z45: 0 | AA45: 0 | AB45: 0 | AC45: 0 | AD45: 0 | AE45: 0 | AF45: 0 | AG45: 0 | AH45: 0 | AI45: 0 | AJ45: 0 | AK45: 0 | AL45: 0 | AM45: 0 | AN45: 0 | AO45: 0 | AP45: 0 | AQ45: 0 | AR45: 0 | AS45: 0 | AT45: 0 | AU45: 0 | AV45: 0 | AW45: 0 | AX45: 0 | AY45: 0 | AZ45: 0
A46: Net Income | B46: [Formula] | C46: =C15-C41-C44+C45 -> 54 | D46: =D15-D41-D44+D45 -> 62.635 | E46: 170.1433003 | F46: 184.2347075 | G46: 86.4987644 | H46: -25.54262155 | I46: -60.70599728 | J46: 115.7951605 | K46: 90.9702245 | L46: 183.074432 | M46: =M15-M41-M44+M45 -> 93.42686354 | N46: =N15-N41-N44+N45 -> 422.7187223 | O46: =O15-O41-O44+O45 -> 459.8608335 | P46: =P15-P41-P44+P45 -> 717.8769041 | Q46: =Q15-Q41-Q44+Q45 -> 698.2454781 | R46: =R15-R41-R44+R45 -> 91.08501003 | S46: =S15-S41-S44+S45 -> 270.519508 | T46: =T15-T41-T44+T45 -> 379.7543679 | U46: 709.4356777 | V46: =V15-V41-V44+V45 -> 1050.773187 | W46: =W15-W41-W44+W45 -> 290.2 | X46: =X15-X41-X44+X45 -> 288.6 | Y46: =Y15-Y41-Y44+Y45 -> 284.6 | Z46: =Z15-Z41-Z44+Z45 -> 284.6 | AA46: =AA15-AA41-AA44+AA45 -> 282.6 | AB46: =AB15-AB41-AB44+AB45 -> 279.6 | AC46: =AC15-AC41-AC44+AC45 -> 276.4 | AD46: 275 | AE46: =AE15-AE41-AE44+AE45 -> 275 | AF46: =AF15-AF41-AF44+AF45 -> 275.6 | AG46: =AG15-AG41-AG44+AG45 -> 275 | AH46: =AH15-AH41-AH44+AH45 -> 275.2 | AI46: =AI15-AI41-AI44+AI45 -> 275 | AJ46: =AJ15-AJ41-AJ44+AJ45 -> 275.2 | AK46: =AK15-AK41-AK44+AK45 -> 275.6 | AL46: =AL15-AL41-AL44+AL45 -> 268.2 | AM46: 265.2 | AN46: =AN15-AN41-AN44+AN45 -> 262.2563028 | AO46: =AO15-AO41-AO44+AO45 -> 261.4817056 | AP46: =AP15-AP41-AP44+AP45 -> 257.8907893 | AQ46: =AQ15-AQ41-AQ44+AQ45 -> 255.6973381 | AR46: =AR15-AR41-AR44+AR45 -> 251.919044 | AS46: =AS15-AS41-AS44+AS45 -> 246.1249062 | AT46: =AT15-AT41-AT44+AT45 -> 235.767756 | AU46: =AU15-AU41-AU44+AU45 -> 230.6 | AV46: 220.0687786 | AW46: =AW15-AW41-AW44+AW45 -> 214.8668564 | AX46: =AX15-AX41-AX44+AX45 -> 210.4639421 | AY46: =AY15-AY41-AY44+AY45 -> 205.0622679 | AZ46: =AZ15-AZ41-AZ44+AZ45 -> 199.4602217
A47: Net Income | B47: [Original] | C47: =SUMIFS(DATA!G$3:G$101,DATA!$F$3:$F$101,$A47,DATA!$B$3:$B$101,$C$2) -> 54 | D47: =SUMIFS(DATA!H$3:H$101,DATA!$F$3:$F$101,$A47,DATA!$B$3:$B$101,$C$2) -> 63 | E47: =SUMIFS(DATA!I$3:I$101,DATA!$F$3:$F$101,$A47,DATA!$B$3:$B$101,$C$2) -> 51 | F47: =SUMIFS(DATA!J$3:J$101,DATA!$F$3:$F$101,$A47,DATA!$B$3:$B$101,$C$2) -> 79 | G47: =SUMIFS(DATA!K$3:K$101,DATA!$F$3:$F$101,$A47,DATA!$B$3:$B$101,$C$2) -> 72 | H47: =SUMIFS(DATA!L$3:L$101,DATA!$F$3:$F$101,$A47,DATA!$B$3:$B$101,$C$2) -> 40 | I47: =SUMIFS(DATA!M$3:M$101,DATA!$F$3:$F$101,$A47,DATA!$B$3:$B$101,$C$2) -> -53 | J47: =SUMIFS(DATA!N$3:N$101,DATA!$F$3:$F$101,$A47,DATA!$B$3:$B$101,$C$2) -> 38 | K47: =SUMIFS(DATA!O$3:O$101,DATA!$F$3:$F$101,$A47,DATA!$B$3:$B$101,$C$2) -> 63 | L47: =SUMIFS(DATA!P$3:P$101,DATA!$F$3:$F$101,$A47,DATA!$B$3:$B$101,$C$2) -> 100 | M47: =SUMIFS(DATA!Q$3:Q$101,DATA!$F$3:$F$101,$A47,DATA!$B$3:$B$101,$C$2) -> 199 | N47: =SUMIFS(DATA!R$3:R$101,DATA!$F$3:$F$101,$A47,DATA!$B$3:$B$101,$C$2) -> 260 | O47: =SUMIFS(DATA!S$3:S$101,DATA!$F$3:$F$101,$A47,DATA!$B$3:$B$101,$C$2) -> 345 | P47: =SUMIFS(DATA!T$3:T$101,DATA!$F$3:$F$101,$A47,DATA!$B$3:$B$101,$C$2) -> 373 | Q47: =SUMIFS(DATA!U$3:U$101,DATA!$F$3:$F$101,$A47,DATA!$B$3:$B$101,$C$2) -> 457 | R47: =SUMIFS(DATA!V$3:V$101,DATA!$F$3:$F$101,$A47,DATA!$B$3:$B$101,$C$2) -> 401 | S47: =SUMIFS(DATA!W$3:W$101,DATA!$F$3:$F$101,$A47,DATA!$B$3:$B$101,$C$2) -> 567 | T47: =SUMIFS(DATA!X$3:X$101,DATA!$F$3:$F$101,$A47,DATA!$B$3:$B$101,$C$2) -> 735 | U47: =SUMIFS(DATA!Y$3:Y$101,DATA!$F$3:$F$101,$A47,DATA!$B$3:$B$101,$C$2) -> 857 | V47: =SUMIFS(DATA!Z$3:Z$101,DATA!$F$3:$F$101,$A47,DATA!$B$3:$B$101,$C$2) -> 1072 | W47: =SUMIFS(DATA!AA$3:AA$101,DATA!$F$3:$F$101,$A47,DATA!$B$3:$B$101,$C$2) -> 290 | X47: =SUMIFS(DATA!AB$3:AB$101,DATA!$F$3:$F$101,$A47,DATA!$B$3:$B$101,$C$2) -> 289 | Y47: =SUMIFS(DATA!AC$3:AC$101,DATA!$F$3:$F$101,$A47,DATA!$B$3:$B$101,$C$2) -> 285 | Z47: =SUMIFS(DATA!AD$3:AD$101,DATA!$F$3:$F$101,$A47,DATA!$B$3:$B$101,$C$2) -> 285 | AA47: =SUMIFS(DATA!AE$3:AE$101,DATA!$F$3:$F$101,$A47,DATA!$B$3:$B$101,$C$2) -> 283 | AB47: =SUMIFS(DATA!AF$3:AF$101,DATA!$F$3:$F$101,$A47,DATA!$B$3:$B$101,$C$2) -> 280 | AC47: =SUMIFS(DATA!AG$3:AG$101,DATA!$F$3:$F$101,$A47,DATA!$B$3:$B$101,$C$2) -> 277 | AD47: =SUMIFS(DATA!AH$3:AH$101,DATA!$F$3:$F$101,$A47,DATA!$B$3:$B$101,$C$2) -> 275 | AE47: =SUMIFS(DATA!AI$3:AI$101,DATA!$F$3:$F$101,$A47,DATA!$B$3:$B$101,$C$2) -> 275 | AF47: =SUMIFS(DATA!AJ$3:AJ$101,DATA!$F$3:$F$101,$A47,DATA!$B$3:$B$101,$C$2) -> 276 | AG47: =SUMIFS(DATA!AK$3:AK$101,DATA!$F$3:$F$101,$A47,DATA!$B$3:$B$101,$C$2) -> 275 | AH47: =SUMIFS(DATA!AL$3:AL$101,DATA!$F$3:$F$101,$A47,DATA!$B$3:$B$101,$C$2) -> 275 | AI47: =SUMIFS(DATA!AM$3:AM$101,DATA!$F$3:$F$101,$A47,DATA!$B$3:$B$101,$C$2) -> 275 | AJ47: =SUMIFS(DATA!AN$3:AN$101,DATA!$F$3:$F$101,$A47,DATA!$B$3:$B$101,$C$2) -> 275 | AK47: =SUMIFS(DATA!AO$3:AO$101,DATA!$F$3:$F$101,$A47,DATA!$B$3:$B$101,$C$2) -> 276 | AL47: =SUMIFS(DATA!AP$3:AP$101,DATA!$F$3:$F$101,$A47,DATA!$B$3:$B$101,$C$2) -> 268 | AM47: =SUMIFS(DATA!AQ$3:AQ$101,DATA!$F$3:$F$101,$A47,DATA!$B$3:$B$101,$C$2) -> 265 | AN47: =SUMIFS(DATA!AR$3:AR$101,DATA!$F$3:$F$101,$A47,DATA!$B$3:$B$101,$C$2) -> 261 | AO47: =SUMIFS(DATA!AS$3:AS$101,DATA!$F$3:$F$101,$A47,DATA!$B$3:$B$101,$C$2) -> 260 | AP47: =SUMIFS(DATA!AT$3:AT$101,DATA!$F$3:$F$101,$A47,DATA!$B$3:$B$101,$C$2) -> 257 | AQ47: =SUMIFS(DATA!AU$3:AU$101,DATA!$F$3:$F$101,$A47,DATA!$B$3:$B$101,$C$2) -> 255 | AR47: =SUMIFS(DATA!AV$3:AV$101,DATA!$F$3:$F$101,$A47,DATA!$B$3:$B$101,$C$2) -> 251 | AS47: =SUMIFS(DATA!AW$3:AW$101,DATA!$F$3:$F$101,$A47,DATA!$B$3:$B$101,$C$2) -> 245 | AT47: =SUMIFS(DATA!AX$3:AX$101,DATA!$F$3:$F$101,$A47,DATA!$B$3:$B$101,$C$2) -> 235 | AU47: =SUMIFS(DATA!AY$3:AY$101,DATA!$F$3:$F$101,$A47,DATA!$B$3:$B$101,$C$2) -> 230 | AV47: =SUMIFS(DATA!AZ$3:AZ$101,DATA!$F$3:$F$101,$A47,DATA!$B$3:$B$101,$C$2) -> 220 | AW47: =SUMIFS(DATA!BA$3:BA$101,DATA!$F$3:$F$101,$A47,DATA!$B$3:$B$101,$C$2) -> 215 | AX47: =SUMIFS(DATA!BB$3:BB$101,DATA!$F$3:$F$101,$A47,DATA!$B$3:$B$101,$C$2) -> 211 | AY47: =SUMIFS(DATA!BC$3:BC$101,DATA!$F$3:$F$101,$A47,DATA!$B$3:$B$101,$C$2) -> 205 | AZ47: =SUMIFS(DATA!BD$3:BD$101,DATA!$F$3:$F$101,$A47,DATA!$B$3:$B$101,$C$2) -> 200
B48: [Difference] | C48: =C46-C47 -> 0 | D48: =D46-D47 -> -0.365 | E48: 119.1433003 | F48: 105.2347075 | G48: 14.4987644 | H48: -65.54262155 | I48: -7.705997284 | J48: 77.79516054 | K48: 27.9702245 | L48: 83.07443196 | M48: -105.5731365 | N48: 162.7187223 | O48: 114.8608335 | P48: 344.8769041 | Q48: 241.2454781 | R48: -309.91499 | S48: -296.480492 | T48: -355.2456321 | U48: -147.5643223 | V48: -21.2268134 | W48: 0.2 | X48: -0.4 | Y48: -0.4 | Z48: -0.4 | AA48: -0.4 | AB48: -0.4 | AC48: -0.6 | AD48: 0 | AE48: 9.094947018e-13 | AF48: -0.4 | AG48: 0 | AH48: 0.2 | AI48: 0 | AJ48: 0.2 | AK48: -0.4 | AL48: 0.2 | AM48: 0.2 | AN48: 1.25630278 | AO48: 1.481705592 | AP48: 0.8907893413 | AQ48: 0.6973380911 | AR48: 0.9190440279 | AS48: 1.124906215 | AT48: 0.767755959 | AU48: 0.6 | AV48: 0.06877858452 | AW48: -0.1331436065 | AX48: -0.5360578961 | AY48: 0.06226793752 | AZ48: -0.5397782658
A50: Net Debt (from SP-080) | B50: [Original] | C50: =SUMIFS(DATA!G$3:G$109,DATA!$F$3:$F$109,$A50,DATA!$B$3:$B$109,$C$2) -> 9665.17 | D50: =SUMIFS(DATA!H$3:H$109,DATA!$F$3:$F$109,$A50,DATA!$B$3:$B$109,$C$2) -> 11100.4 | E50: =SUMIFS(DATA!I$3:I$109,DATA!$F$3:$F$109,$A50,DATA!$B$3:$B$109,$C$2) -> 12760.4 | F50: =SUMIFS(DATA!J$3:J$109,DATA!$F$3:$F$109,$A50,DATA!$B$3:$B$109,$C$2) -> 14385.5 | G50: =SUMIFS(DATA!K$3:K$109,DATA!$F$3:$F$109,$A50,DATA!$B$3:$B$109,$C$2) -> 16071.6 | H50: =SUMIFS(DATA!L$3:L$109,DATA!$F$3:$F$109,$A50,DATA!$B$3:$B$109,$C$2) -> 17663.8 | I50: =SUMIFS(DATA!M$3:M$109,DATA!$F$3:$F$109,$A50,DATA!$B$3:$B$109,$C$2) -> 19070.5 | J50: =SUMIFS(DATA!N$3:N$109,DATA!$F$3:$F$109,$A50,DATA!$B$3:$B$109,$C$2) -> 20210.9 | K50: =SUMIFS(DATA!O$3:O$109,DATA!$F$3:$F$109,$A50,DATA!$B$3:$B$109,$C$2) -> 21529.8 | L50: =SUMIFS(DATA!P$3:P$109,DATA!$F$3:$F$109,$A50,DATA!$B$3:$B$109,$C$2) -> 23081 | M50: =SUMIFS(DATA!Q$3:Q$109,DATA!$F$3:$F$109,$A50,DATA!$B$3:$B$109,$C$2) -> 24453.4 | N50: =SUMIFS(DATA!R$3:R$109,DATA!$F$3:$F$109,$A50,DATA!$B$3:$B$109,$C$2) -> 25543.3 | O50: =SUMIFS(DATA!S$3:S$109,DATA!$F$3:$F$109,$A50,DATA!$B$3:$B$109,$C$2) -> 26391.8 | P50: =SUMIFS(DATA!T$3:T$109,DATA!$F$3:$F$109,$A50,DATA!$B$3:$B$109,$C$2) -> 26984.1 | Q50: =SUMIFS(DATA!U$3:U$109,DATA!$F$3:$F$109,$A50,DATA!$B$3:$B$109,$C$2) -> 26946.7 | R50: =SUMIFS(DATA!V$3:V$109,DATA!$F$3:$F$109,$A50,DATA!$B$3:$B$109,$C$2) -> 26640.1 | S50: =SUMIFS(DATA!W$3:W$109,DATA!$F$3:$F$109,$A50,DATA!$B$3:$B$109,$C$2) -> 26362 | T50: =SUMIFS(DATA!X$3:X$109,DATA!$F$3:$F$109,$A50,DATA!$B$3:$B$109,$C$2) -> 25829.5 | U50: =SUMIFS(DATA!Y$3:Y$109,DATA!$F$3:$F$109,$A50,DATA!$B$3:$B$109,$C$2) -> 25087.6 | V50: =SUMIFS(DATA!Z$3:Z$109,DATA!$F$3:$F$109,$A50,DATA!$B$3:$B$109,$C$2) -> 23993.4 | W50: =SUMIFS(DATA!AA$3:AA$109,DATA!$F$3:$F$109,$A50,DATA!$B$3:$B$109,$C$2) -> 23655.1 | X50: =SUMIFS(DATA!AB$3:AB$109,DATA!$F$3:$F$109,$A50,DATA!$B$3:$B$109,$C$2) -> 23347.9 | Y50: =SUMIFS(DATA!AC$3:AC$109,DATA!$F$3:$F$109,$A50,DATA!$B$3:$B$109,$C$2) -> 23003.5 | Z50: =SUMIFS(DATA!AD$3:AD$109,DATA!$F$3:$F$109,$A50,DATA!$B$3:$B$109,$C$2) -> 22695.5 | AA50: =SUMIFS(DATA!AE$3:AE$109,DATA!$F$3:$F$109,$A50,DATA!$B$3:$B$109,$C$2) -> 22411.9 | AB50: =SUMIFS(DATA!AF$3:AF$109,DATA!$F$3:$F$109,$A50,DATA!$B$3:$B$109,$C$2) -> 22134 | AC50: =SUMIFS(DATA!AG$3:AG$109,DATA!$F$3:$F$109,$A50,DATA!$B$3:$B$109,$C$2) -> 21897.9 | AD50: =SUMIFS(DATA!AH$3:AH$109,DATA!$F$3:$F$109,$A50,DATA!$B$3:$B$109,$C$2) -> 21863.3 | AE50: =SUMIFS(DATA!AI$3:AI$109,DATA!$F$3:$F$109,$A50,DATA!$B$3:$B$109,$C$2) -> 21960.6 | AF50: =SUMIFS(DATA!AJ$3:AJ$109,DATA!$F$3:$F$109,$A50,DATA!$B$3:$B$109,$C$2) -> 21822.8 | AG50: =SUMIFS(DATA!AK$3:AK$109,DATA!$F$3:$F$109,$A50,DATA!$B$3:$B$109,$C$2) -> 21709.1 | AH50: =SUMIFS(DATA!AL$3:AL$109,DATA!$F$3:$F$109,$A50,DATA!$B$3:$B$109,$C$2) -> 21637.9 | AI50: =SUMIFS(DATA!AM$3:AM$109,DATA!$F$3:$F$109,$A50,DATA!$B$3:$B$109,$C$2) -> 21544 | AJ50: =SUMIFS(DATA!AN$3:AN$109,DATA!$F$3:$F$109,$A50,DATA!$B$3:$B$109,$C$2) -> 21728.4 | AK50: =SUMIFS(DATA!AO$3:AO$109,DATA!$F$3:$F$109,$A50,DATA!$B$3:$B$109,$C$2) -> 21424.3 | AL50: =SUMIFS(DATA!AP$3:AP$109,DATA!$F$3:$F$109,$A50,DATA!$B$3:$B$109,$C$2) -> 21067.6 | AM50: =SUMIFS(DATA!AQ$3:AQ$109,DATA!$F$3:$F$109,$A50,DATA!$B$3:$B$109,$C$2) -> 20673.7 | AN50: =SUMIFS(DATA!AR$3:AR$109,DATA!$F$3:$F$109,$A50,DATA!$B$3:$B$109,$C$2) -> 20297.5 | AO50: =SUMIFS(DATA!AS$3:AS$109,DATA!$F$3:$F$109,$A50,DATA!$B$3:$B$109,$C$2) -> 19898 | AP50: =SUMIFS(DATA!AT$3:AT$109,DATA!$F$3:$F$109,$A50,DATA!$B$3:$B$109,$C$2) -> 19552.8 | AQ50: =SUMIFS(DATA!AU$3:AU$109,DATA!$F$3:$F$109,$A50,DATA!$B$3:$B$109,$C$2) -> 19198.4 | AR50: =SUMIFS(DATA!AV$3:AV$109,DATA!$F$3:$F$109,$A50,DATA!$B$3:$B$109,$C$2) -> 18892.1 | AS50: =SUMIFS(DATA!AW$3:AW$109,DATA!$F$3:$F$109,$A50,DATA!$B$3:$B$109,$C$2) -> 18506.7 | AT50: =SUMIFS(DATA!AX$3:AX$109,DATA!$F$3:$F$109,$A50,DATA!$B$3:$B$109,$C$2) -> 18084.4 | AU50: =SUMIFS(DATA!AY$3:AY$109,DATA!$F$3:$F$109,$A50,DATA!$B$3:$B$109,$C$2) -> 17564.8 | AV50: =SUMIFS(DATA!AZ$3:AZ$109,DATA!$F$3:$F$109,$A50,DATA!$B$3:$B$109,$C$2) -> 17041.5 | AW50: =SUMIFS(DATA!BA$3:BA$109,DATA!$F$3:$F$109,$A50,DATA!$B$3:$B$109,$C$2) -> 16559.8 | AX50: =SUMIFS(DATA!BB$3:BB$109,DATA!$F$3:$F$109,$A50,DATA!$B$3:$B$109,$C$2) -> 16047.6 | AY50: =SUMIFS(DATA!BC$3:BC$109,DATA!$F$3:$F$109,$A50,DATA!$B$3:$B$109,$C$2) -> 15568.6 | AZ50: =SUMIFS(DATA!BD$3:BD$109,DATA!$F$3:$F$109,$A50,DATA!$B$3:$B$109,$C$2) -> 15077.4
A51: Long term debt + current and other liabilities - current and other assets | C51: =C89+C91-C80 -> 9651 | D51: 11028 | E51: 13070 | F51: 14690 | G51: 16386 | H51: 18094 | I51: 19497 | J51: 20576 | K51: 21787 | L51: 23369 | M51: 24789 | N51: 25922 | O51: 26821 | P51: 27455 | Q51: 27468 | R51: 27208 | S51: 26982 | T51: 26502 | U51: 25815 | V51: 24767 | W51: 24480 | X51: 24220 | Y51: 23941 | Z51: 23699 | AA51: 23489 | AB51: 23299 | AC51: 23150 | AD51: 23223 | AE51: 23430 | AF51: 23416 | AG51: 23437 | AH51: 23487 | AI51: =AI89+AI91-AI80 -> 23533 | AJ51: 23866 | AK51: 23720 | AL51: 23530 | AM51: 23305 | AN51: 23111 | AO51: 22908 | AP51: 22767 | AQ51: 22641 | AR51: 22571 | AS51: 22417 | AT51: 22228 | AU51: 21959 | AV51: 21659 | AW51: 21398 | AX51: 21108 | AY51: 20855 | AZ51: 20569
B52: [Difference] | C52: =C51-C50 -> -14.17 | D52: =D51-D50 -> -72.4 | E52: 309.6 | F52: 304.5 | G52: 314.4 | H52: 430.2 | I52: 426.5 | J52: 365.1 | K52: 257.2 | L52: 288 | M52: 335.6 | N52: 378.7 | O52: 429.2 | P52: 470.9 | Q52: 521.3 | R52: 567.9 | S52: 620 | T52: 672.5 | U52: 727.4 | V52: 773.6 | W52: 824.9 | X52: 872.1 | Y52: 937.5 | Z52: 1003.5 | AA52: 1077.1 | AB52: 1165 | AC52: 1252.1 | AD52: 1359.7 | AE52: 1469.4 | AF52: 1593.2 | AG52: 1727.9 | AH52: 1849.1 | AI52: 1989 | AJ52: 2137.6 | AK52: 2295.7 | AL52: 2462.4 | AM52: 2631.3 | AN52: 2813.5 | AO52: 3010 | AP52: 3214.2 | AQ52: 3442.6 | AR52: 3678.9 | AS52: 3910.3 | AT52: 4143.6 | AU52: 4394.2 | AV52: 4617.5 | AW52: 4838.2 | AX52: 5060.4 | AY52: 5286.4 | AZ52: 5491.6
A54: Current Year Revenue Increase | B54: [Formula] | C54: =C12/C9 -> 0 | D54: =(D12)/(+C11+D9) -> 0.035 | E54: 0.04167819348 | F54: 0.04221079266 | G54: 0.04247812527 | H54: 0.0434609928 | I54: 0.04430554816 | J54: 0.04360395732 | K54: 0.04526772941 | L54: 0.04531532253 | M54: 0.04608578349 | N54: 0.04644735327 | O54: 0.04678167707 | P54: 0.04709055301 | Q54: 0.04737565642 | R54: 0.04763854883 | S54: 0.04844431845 | T54: 0.0483866813 | U54: 0.04859584604 | V54: 0.04878724614 | W54: -0.301888641 | X54: 0.01706610423 | Y54: 0.2075830989 | Z54: -0.03695621848 | AA54: 0.1070204648 | AB54: 0.1496338232 | AC54: 0.0865707445 | AD54: -0.02068977482 | AE54: -0.2193027866 | AF54: -0.03866807424 | AG54: 0.03313411671 | AH54: -0.05716354586 | AI54: 0.04078417668 | AJ54: =(AJ12)/(+AI11+AJ9) -> -0.05093099241 | AK54: 0.1450606623 | AL54: -0.017539029 | AM54: 0.04879444148 | AN54: 0.005290262494 | AO54: 0.02404879756 | AP54: 0.00839761742 | AQ54: 0.006003679675 | AR54: 0.01978053711 | AS54: 0.005238567181 | AT54: -0.001022535211 | AU54: 0.009122471854 | AV54: -0.005245186101 | AW54: 0.005803341602 | AX54: 0.008747847936 | AY54: 0.004981779602 | AZ54: 0.006058658833
A56: Additional General Consumers Revenue Percent Increase | B56: [Original] | C56: =SUMIFS(DATA!G$3:G$101,DATA!$F$3:$F$101,$A56,DATA!$B$3:$B$101,$C$2) -> 0 | D56: =SUMIFS(DATA!H$3:H$101,DATA!$F$3:$F$101,$A56,DATA!$B$3:$B$101,$C$2) -> 0.035 | E56: =SUMIFS(DATA!I$3:I$101,DATA!$F$3:$F$101,$A56,DATA!$B$3:$B$101,$C$2) -> 0.0395 | F56: =SUMIFS(DATA!J$3:J$101,DATA!$F$3:$F$101,$A56,DATA!$B$3:$B$101,$C$2) -> 0.0395 | G56: =SUMIFS(DATA!K$3:K$101,DATA!$F$3:$F$101,$A56,DATA!$B$3:$B$101,$C$2) -> 0.0395 | H56: =SUMIFS(DATA!L$3:L$101,DATA!$F$3:$F$101,$A56,DATA!$B$3:$B$101,$C$2) -> 0.0395 | I56: =SUMIFS(DATA!M$3:M$101,DATA!$F$3:$F$101,$A56,DATA!$B$3:$B$101,$C$2) -> 0.0395 | J56: =SUMIFS(DATA!N$3:N$101,DATA!$F$3:$F$101,$A56,DATA!$B$3:$B$101,$C$2) -> 0.0395 | K56: =SUMIFS(DATA!O$3:O$101,DATA!$F$3:$F$101,$A56,DATA!$B$3:$B$101,$C$2) -> 0.0395 | L56: =SUMIFS(DATA!P$3:P$101,DATA!$F$3:$F$101,$A56,DATA!$B$3:$B$101,$C$2) -> 0.0395 | M56: =SUMIFS(DATA!Q$3:Q$101,DATA!$F$3:$F$101,$A56,DATA!$B$3:$B$101,$C$2) -> 0.0395 | N56: =SUMIFS(DATA!R$3:R$101,DATA!$F$3:$F$101,$A56,DATA!$B$3:$B$101,$C$2) -> 0.0395 | O56: =SUMIFS(DATA!S$3:S$101,DATA!$F$3:$F$101,$A56,DATA!$B$3:$B$101,$C$2) -> 0.0395 | P56: =SUMIFS(DATA!T$3:T$101,DATA!$F$3:$F$101,$A56,DATA!$B$3:$B$101,$C$2) -> 0.0395 | Q56: =SUMIFS(DATA!U$3:U$101,DATA!$F$3:$F$101,$A56,DATA!$B$3:$B$101,$C$2) -> 0.0395 | R56: =SUMIFS(DATA!V$3:V$101,DATA!$F$3:$F$101,$A56,DATA!$B$3:$B$101,$C$2) -> 0.0395 | S56: =SUMIFS(DATA!W$3:W$101,DATA!$F$3:$F$101,$A56,DATA!$B$3:$B$101,$C$2) -> 0.0395 | T56: =SUMIFS(DATA!X$3:X$101,DATA!$F$3:$F$101,$A56,DATA!$B$3:$B$101,$C$2) -> 0.0395 | U56: =SUMIFS(DATA!Y$3:Y$101,DATA!$F$3:$F$101,$A56,DATA!$B$3:$B$101,$C$2) -> 0.0395 | V56: =SUMIFS(DATA!Z$3:Z$101,DATA!$F$3:$F$101,$A56,DATA!$B$3:$B$101,$C$2) -> 0.0395 | W56: =SUMIFS(DATA!AA$3:AA$101,DATA!$F$3:$F$101,$A56,DATA!$B$3:$B$101,$C$2) -> -0.2304 | X56: =SUMIFS(DATA!AB$3:AB$101,DATA!$F$3:$F$101,$A56,DATA!$B$3:$B$101,$C$2) -> 0.0014 | Y56: =SUMIFS(DATA!AC$3:AC$101,DATA!$F$3:$F$101,$A56,DATA!$B$3:$B$101,$C$2) -> 0.0112 | Z56: =SUMIFS(DATA!AD$3:AD$101,DATA!$F$3:$F$101,$A56,DATA!$B$3:$B$101,$C$2) -> 0.0063 | AA56: =SUMIFS(DATA!AE$3:AE$101,DATA!$F$3:$F$101,$A56,DATA!$B$3:$B$101,$C$2) -> 0.013 | AB56: =SUMIFS(DATA!AF$3:AF$101,DATA!$F$3:$F$101,$A56,DATA!$B$3:$B$101,$C$2) -> 0.0104 | AC56: =SUMIFS(DATA!AG$3:AG$101,DATA!$F$3:$F$101,$A56,DATA!$B$3:$B$101,$C$2) -> -0.0002 | AD56: =SUMIFS(DATA!AH$3:AH$101,DATA!$F$3:$F$101,$A56,DATA!$B$3:$B$101,$C$2) -> 0.0058 | AE56: =SUMIFS(DATA!AI$3:AI$101,DATA!$F$3:$F$101,$A56,DATA!$B$3:$B$101,$C$2) -> 0.0056 | AF56: =SUMIFS(DATA!AJ$3:AJ$101,DATA!$F$3:$F$101,$A56,DATA!$B$3:$B$101,$C$2) -> 0.0206 | AG56: =SUMIFS(DATA!AK$3:AK$101,DATA!$F$3:$F$101,$A56,DATA!$B$3:$B$101,$C$2) -> 0.0227 | AH56: =SUMIFS(DATA!AL$3:AL$101,DATA!$F$3:$F$101,$A56,DATA!$B$3:$B$101,$C$2) -> 0.0023 | AI56: =SUMIFS(DATA!AM$3:AM$101,DATA!$F$3:$F$101,$A56,DATA!$B$3:$B$101,$C$2) -> 0.0103 | AJ56: =SUMIFS(DATA!AN$3:AN$101,DATA!$F$3:$F$101,$A56,DATA!$B$3:$B$101,$C$2) -> 0.0229 | AK56: =SUMIFS(DATA!AO$3:AO$101,DATA!$F$3:$F$101,$A56,DATA!$B$3:$B$101,$C$2) -> 0.0292 | AL56: =SUMIFS(DATA!AP$3:AP$101,DATA!$F$3:$F$101,$A56,DATA!$B$3:$B$101,$C$2) -> 0.0005 | AM56: =SUMIFS(DATA!AQ$3:AQ$101,DATA!$F$3:$F$101,$A56,DATA!$B$3:$B$101,$C$2) -> -0.0039 | AN56: =SUMIFS(DATA!AR$3:AR$101,DATA!$F$3:$F$101,$A56,DATA!$B$3:$B$101,$C$2) -> 0.0046 | AO56: =SUMIFS(DATA!AS$3:AS$101,DATA!$F$3:$F$101,$A56,DATA!$B$3:$B$101,$C$2) -> 0.0243 | AP56: =SUMIFS(DATA!AT$3:AT$101,DATA!$F$3:$F$101,$A56,DATA!$B$3:$B$101,$C$2) -> 0.0082 | AQ56: =SUMIFS(DATA!AU$3:AU$101,DATA!$F$3:$F$101,$A56,DATA!$B$3:$B$101,$C$2) -> 0.0063 | AR56: =SUMIFS(DATA!AV$3:AV$101,DATA!$F$3:$F$101,$A56,DATA!$B$3:$B$101,$C$2) -> 0.0195 | AS56: =SUMIFS(DATA!AW$3:AW$101,DATA!$F$3:$F$101,$A56,DATA!$B$3:$B$101,$C$2) -> 0.0055 | AT56: =SUMIFS(DATA!AX$3:AX$101,DATA!$F$3:$F$101,$A56,DATA!$B$3:$B$101,$C$2) -> -0.0008 | AU56: =SUMIFS(DATA!AY$3:AY$101,DATA!$F$3:$F$101,$A56,DATA!$B$3:$B$101,$C$2) -> 0.0088 | AV56: =SUMIFS(DATA!AZ$3:AZ$101,DATA!$F$3:$F$101,$A56,DATA!$B$3:$B$101,$C$2) -> -0.0049 | AW56: =SUMIFS(DATA!BA$3:BA$101,DATA!$F$3:$F$101,$A56,DATA!$B$3:$B$101,$C$2) -> 0.0059 | AX56: =SUMIFS(DATA!BB$3:BB$101,DATA!$F$3:$F$101,$A56,DATA!$B$3:$B$101,$C$2) -> 0.0087 | AY56: =SUMIFS(DATA!BC$3:BC$101,DATA!$F$3:$F$101,$A56,DATA!$B$3:$B$101,$C$2) -> 0.0048 | AZ56: =SUMIFS(DATA!BD$3:BD$101,DATA!$F$3:$F$101,$A56,DATA!$B$3:$B$101,$C$2) -> 0.0064
A57: Additional General Consumers Revenue Percent Increase | B57: [Formula] | C57: =C56 -> 0 | D57: =D56 -> 0.035 | E57: =IF(E7<=$O$2,$Q$3,E58) -> 0.04134490685 | F57: 0.04134490685 | G57: 0.04134490685 | H57: 0.04134490685 | I57: 0.04134490685 | J57: 0.04134490685 | K57: 0.04134490685 | L57: 0.04134490685 | M57: 0.04134490685 | N57: 0.04134490685 | O57: 0.04134490685 | P57: 0.04134490685 | Q57: 0.04134490685 | R57: 0.04134490685 | S57: 0.04134490685 | T57: 0.04134490685 | U57: 0.04134490685 | V57: 0.04134490685 | W57: -0.3069580556 | X57: 0.01241193374 | Y57: 0.2022166394 | Z57: -0.04258477788 | AA57: 0.1009844102 | AB57: 0.142670975 | AC57: 0.07917917534 | AD57: -0.02796535637 | AE57: -0.2246856594 | AF57: -0.04374205302 | AG57: 0.02806504179 | AH57: -0.06191426332 | AI57: 0.03586694535 | AJ57: -0.0554177325 | AK57: =IF(AK7<=$O$2,$Q$3,AK58) -> 0.1401614541 | AL57: -0.02254634705 | AM57: 0.04879444148 | AN57: 0.005290262494 | AO57: 0.02404879756 | AP57: 0.00839761742 | AQ57: 0.006003679675 | AR57: 0.01978053711 | AS57: 0.005238567181 | AT57: -0.001022535211 | AU57: 0.009122471854 | AV57: -0.005245186101 | AW57: 0.005803341602 | AX57: 0.008747847936 | AY57: 0.004981779602 | AZ57: 0.006058658833
A58: DO NOT ADJUST THIS ROW | E58: 0.0343 | F58: -0.496502614 | G58: 0.05764366368 | H58: 0.05838670286 | I58: 0.09011459882 | J58: -0.003165497934 | K58: -0.3273824807 | L58: 0.01859887184 | M58: -0.01164053411 | N58: 0.01230869152 | O58: 0.002891518219 | P58: -0.2334689948 | Q58: -0.007033246981 | R58: 0.003812252076 | S58: -0.006279668322 | T58: -0.003456795904 | U58: -0.1927352323 | V58: -0.004856185908 | W58: -0.3069580556 | X58: 0.01241193374 | Y58: 0.2022166394 | Z58: -0.04258477788 | AA58: 0.1009844102 | AB58: 0.142670975 | AC58: 0.07917917534 | AD58: -0.02796535637 | AE58: -0.2246856594 | AF58: -0.04374205302 | AG58: 0.02806504179 | AH58: -0.06191426332 | AI58: 0.03586694535 | AJ58: -0.0554177325 | AK58: 0.1401614541 | AL58: -0.02254634705 | AM58: 0.04879444148 | AN58: 0.005290262494 | AO58: 0.02404879756 | AP58: 0.00839761742 | AQ58: 0.006003679675 | AR58: 0.01978053711 | AS58: 0.005238567181 | AT58: -0.001022535211 | AU58: 0.009122471854 | AV58: -0.005245186101 | AW58: 0.005803341602 | AX58: 0.008747847936 | AY58: 0.004981779602 | AZ58: 0.006058658833
A59: Cumulative General Consumers Revenue Percent Increase | B59: [Original] | C59: =SUMIFS(DATA!G$3:G$101,DATA!$F$3:$F$101,$A59,DATA!$B$3:$B$101,$C$2) -> 0 | D59: =SUMIFS(DATA!H$3:H$101,DATA!$F$3:$F$101,$A59,DATA!$B$3:$B$101,$C$2) -> 0.035 | E59: =SUMIFS(DATA!I$3:I$101,DATA!$F$3:$F$101,$A59,DATA!$B$3:$B$101,$C$2) -> 0.0759 | F59: =SUMIFS(DATA!J$3:J$101,DATA!$F$3:$F$101,$A59,DATA!$B$3:$B$101,$C$2) -> 0.1183 | G59: =SUMIFS(DATA!K$3:K$101,DATA!$F$3:$F$101,$A59,DATA!$B$3:$B$101,$C$2) -> 0.1625 | H59: =SUMIFS(DATA!L$3:L$101,DATA!$F$3:$F$101,$A59,DATA!$B$3:$B$101,$C$2) -> 0.2083 | I59: =SUMIFS(DATA!M$3:M$101,DATA!$F$3:$F$101,$A59,DATA!$B$3:$B$101,$C$2) -> 0.256 | J59: =SUMIFS(DATA!N$3:N$101,DATA!$F$3:$F$101,$A59,DATA!$B$3:$B$101,$C$2) -> 0.3056 | K59: =SUMIFS(DATA!O$3:O$101,DATA!$F$3:$F$101,$A59,DATA!$B$3:$B$101,$C$2) -> 0.3572 | L59: =SUMIFS(DATA!P$3:P$101,DATA!$F$3:$F$101,$A59,DATA!$B$3:$B$101,$C$2) -> 0.4107 | M59: =SUMIFS(DATA!Q$3:Q$101,DATA!$F$3:$F$101,$A59,DATA!$B$3:$B$101,$C$2) -> 0.4664 | N59: =SUMIFS(DATA!R$3:R$101,DATA!$F$3:$F$101,$A59,DATA!$B$3:$B$101,$C$2) -> 0.5243 | O59: =SUMIFS(DATA!S$3:S$101,DATA!$F$3:$F$101,$A59,DATA!$B$3:$B$101,$C$2) -> 0.5845 | P59: =SUMIFS(DATA!T$3:T$101,DATA!$F$3:$F$101,$A59,DATA!$B$3:$B$101,$C$2) -> 0.647 | Q59: =SUMIFS(DATA!U$3:U$101,DATA!$F$3:$F$101,$A59,DATA!$B$3:$B$101,$C$2) -> 0.712 | R59: =SUMIFS(DATA!V$3:V$101,DATA!$F$3:$F$101,$A59,DATA!$B$3:$B$101,$C$2) -> 0.7796 | S59: =SUMIFS(DATA!W$3:W$101,DATA!$F$3:$F$101,$A59,DATA!$B$3:$B$101,$C$2) -> 0.8498 | T59: =SUMIFS(DATA!X$3:X$101,DATA!$F$3:$F$101,$A59,DATA!$B$3:$B$101,$C$2) -> 0.9228 | U59: =SUMIFS(DATA!Y$3:Y$101,DATA!$F$3:$F$101,$A59,DATA!$B$3:$B$101,$C$2) -> 0.9987 | V59: =SUMIFS(DATA!Z$3:Z$101,DATA!$F$3:$F$101,$A59,DATA!$B$3:$B$101,$C$2) -> 1.0776 | W59: =SUMIFS(DATA!AA$3:AA$101,DATA!$F$3:$F$101,$A59,DATA!$B$3:$B$101,$C$2) -> 0.5989 | X59: =SUMIFS(DATA!AB$3:AB$101,DATA!$F$3:$F$101,$A59,DATA!$B$3:$B$101,$C$2) -> 0.6012 | Y59: =SUMIFS(DATA!AC$3:AC$101,DATA!$F$3:$F$101,$A59,DATA!$B$3:$B$101,$C$2) -> 0.619 | Z59: =SUMIFS(DATA!AD$3:AD$101,DATA!$F$3:$F$101,$A59,DATA!$B$3:$B$101,$C$2) -> 0.6293 | AA59: =SUMIFS(DATA!AE$3:AE$101,DATA!$F$3:$F$101,$A59,DATA!$B$3:$B$101,$C$2) -> 0.6505 | AB59: =SUMIFS(DATA!AF$3:AF$101,DATA!$F$3:$F$101,$A59,DATA!$B$3:$B$101,$C$2) -> 0.6678 | AC59: =SUMIFS(DATA!AG$3:AG$101,DATA!$F$3:$F$101,$A59,DATA!$B$3:$B$101,$C$2) -> 0.6674 | AD59: =SUMIFS(DATA!AH$3:AH$101,DATA!$F$3:$F$101,$A59,DATA!$B$3:$B$101,$C$2) -> 0.677 | AE59: =SUMIFS(DATA!AI$3:AI$101,DATA!$F$3:$F$101,$A59,DATA!$B$3:$B$101,$C$2) -> 0.6864 | AF59: =SUMIFS(DATA!AJ$3:AJ$101,DATA!$F$3:$F$101,$A59,DATA!$B$3:$B$101,$C$2) -> 0.7212 | AG59: =SUMIFS(DATA!AK$3:AK$101,DATA!$F$3:$F$101,$A59,DATA!$B$3:$B$101,$C$2) -> 0.7603 | AH59: =SUMIFS(DATA!AL$3:AL$101,DATA!$F$3:$F$101,$A59,DATA!$B$3:$B$101,$C$2) -> 0.7643 | AI59: =SUMIFS(DATA!AM$3:AM$101,DATA!$F$3:$F$101,$A59,DATA!$B$3:$B$101,$C$2) -> 0.7825 | AJ59: =SUMIFS(DATA!AN$3:AN$101,DATA!$F$3:$F$101,$A59,DATA!$B$3:$B$101,$C$2) -> 0.8233 | AK59: =SUMIFS(DATA!AO$3:AO$101,DATA!$F$3:$F$101,$A59,DATA!$B$3:$B$101,$C$2) -> 0.8766 | AL59: =SUMIFS(DATA!AP$3:AP$101,DATA!$F$3:$F$101,$A59,DATA!$B$3:$B$101,$C$2) -> 0.8776 | AM59: =SUMIFS(DATA!AQ$3:AQ$101,DATA!$F$3:$F$101,$A59,DATA!$B$3:$B$101,$C$2) -> 0.8704 | AN59: =SUMIFS(DATA!AR$3:AR$101,DATA!$F$3:$F$101,$A59,DATA!$B$3:$B$101,$C$2) -> 0.8789 | AO59: =SUMIFS(DATA!AS$3:AS$101,DATA!$F$3:$F$101,$A59,DATA!$B$3:$B$101,$C$2) -> 0.9245 | AP59: =SUMIFS(DATA!AT$3:AT$101,DATA!$F$3:$F$101,$A59,DATA!$B$3:$B$101,$C$2) -> 0.9402 | AQ59: =SUMIFS(DATA!AU$3:AU$101,DATA!$F$3:$F$101,$A59,DATA!$B$3:$B$101,$C$2) -> 0.9524 | AR59: =SUMIFS(DATA!AV$3:AV$101,DATA!$F$3:$F$101,$A59,DATA!$B$3:$B$101,$C$2) -> 0.9904 | AS59: =SUMIFS(DATA!AW$3:AW$101,DATA!$F$3:$F$101,$A59,DATA!$B$3:$B$101,$C$2) -> 1.0014 | AT59: =SUMIFS(DATA!AX$3:AX$101,DATA!$F$3:$F$101,$A59,DATA!$B$3:$B$101,$C$2) -> 0.9998 | AU59: =SUMIFS(DATA!AY$3:AY$101,DATA!$F$3:$F$101,$A59,DATA!$B$3:$B$101,$C$2) -> 1.0175 | AV59: =SUMIFS(DATA!AZ$3:AZ$101,DATA!$F$3:$F$101,$A59,DATA!$B$3:$B$101,$C$2) -> 1.0076 | AW59: =SUMIFS(DATA!BA$3:BA$101,DATA!$F$3:$F$101,$A59,DATA!$B$3:$B$101,$C$2) -> 1.0195 | AX59: =SUMIFS(DATA!BB$3:BB$101,DATA!$F$3:$F$101,$A59,DATA!$B$3:$B$101,$C$2) -> 1.0371 | AY59: =SUMIFS(DATA!BC$3:BC$101,DATA!$F$3:$F$101,$A59,DATA!$B$3:$B$101,$C$2) -> 1.0469 | AZ59: =SUMIFS(DATA!BD$3:BD$101,DATA!$F$3:$F$101,$A59,DATA!$B$3:$B$101,$C$2) -> 1.06
A60: Cumulative General Consumers Revenue Percent Increase | B60: [Formula] | C60: 0 | D60: =(1+C60)*(1+D57)-1 -> 0.035 | E60: =(1+D60)*(1+E57)-1 -> 0.07779197859 | F60: =(1+E60)*(1+F57)-1 -> 0.1223531876 | G60: 0.1687567756 | H60: 0.2170789156 | I60: 0.26739893 | J60: 0.3197994207 | K60: 0.3743664048 | L60: =(1+K60)*(1+L57)-1 -> 0.4311894558 | M60: =(1+L60)*(1+M57)-1 -> 0.4903618505 | N60: =(1+M60)*(1+N57)-1 -> 0.5519807224 | O60: =(1+N60)*(1+O57)-1 -> 0.6161472208 | P60: =(1+O60)*(1+P57)-1 -> 0.6829666771 | Q60: =(1+P60)*(1+Q57)-1 -> 0.7525487776 | R60: =(1+Q60)*(1+R57)-1 -> 0.8250077436 | S60: =(1+R60)*(1+S57)-1 -> 0.9004625187 | T60: =(1+S60)*(1+T57)-1 -> 0.9790369646 | U60: =(1+T60)*(1+U57)-1 -> 1.060860064 | V60: =(1+U60)*(1+V57)-1 -> 1.146066131 | W60: =(1+V60)*(1+W57)-1 -> 0.4873138442 | X60: =(1+W60)*(1+X57)-1 -> 0.505774285 | Y60: =(1+X60)*(1+Y57)-1 -> 0.8102669007 | Z60: =(1+Y60)*(1+Z57)-1 -> 0.7331770869 | AA60: =(1+Z60)*(1+AA57)-1 -> 0.9082009527 | AB60: =(1+AA60)*(1+AB57)-1 -> 1.180445843 | AC60: =(1+AB60)*(1+AC57)-1 -> 1.353091747 | AD60: 1.287286698 | AE60: =(1+AD60)*(1+AE57)-1 -> 0.7733661777 | AF60: =(1+AE60)*(1+AF57)-1 -> 0.6957955003 | AG60: =(1+AF60)*(1+AG57)-1 -> 0.7433880719 | AH60: =(1+AG60)*(1+AH57)-1 -> 0.6354474838 | AI60: =(1+AH60)*(1+AI57)-1 -> 0.6941059893 | AJ60: =(1+AI60)*(1+AJ57)-1 -> 0.6002224767 | AK60: =(1+AJ60)*(1+AK57)-1 -> 0.824511986 | AL60: =(1+AK60)*(1+AL57)-1 -> 0.7833759056 | AM60: =(1+AL60)*(1+AM57)-1 -> 0.8703947368 | AN60: =(1+AM60)*(1+AN57)-1 -> 0.880289616 | AO60: =(1+AN60)*(1+AO57)-1 -> 0.9255083203 | AP60: =(1+AO60)*(1+AP57)-1 -> 0.9416780025 | AQ60: =(1+AP60)*(1+AQ57)-1 -> 0.9533352153 | AR60: =(1+AQ60)*(1+AR57)-1 -> 0.991973235 | AS60: =(1+AR60)*(1+AS57)-1 -> 1.002408321 | AT60: =(1+AS60)*(1+AT57)-1 -> 1.000360788 | AU60: =(1+AT60)*(1+AU57)-1 -> 1.018609023 | AV60: =(1+AU60)*(1+AV57)-1 -> 1.008021043 | AW60: =(1+AV60)*(1+AW57)-1 -> 1.019674275 | AX60: =(1+AW60)*(1+AX57)-1 -> 1.037342078 | AY60: =(1+AX60)*(1+AY57)-1 -> 1.047491667 | AZ60: 1.059896721
A62: Debt Ratio | B62: [Original] | C62: =SUMIFS(DATA!G$3:G$101,DATA!$F$3:$F$101,$A62,DATA!$B$3:$B$101,$C$2) -> 76 | D62: =SUMIFS(DATA!H$3:H$101,DATA!$F$3:$F$101,$A62,DATA!$B$3:$B$101,$C$2) -> 78 | E62: =SUMIFS(DATA!I$3:I$101,DATA!$F$3:$F$101,$A62,DATA!$B$3:$B$101,$C$2) -> 84 | F62: =SUMIFS(DATA!J$3:J$101,DATA!$F$3:$F$101,$A62,DATA!$B$3:$B$101,$C$2) -> 85 | G62: =SUMIFS(DATA!K$3:K$101,DATA!$F$3:$F$101,$A62,DATA!$B$3:$B$101,$C$2) -> 86 | H62: =SUMIFS(DATA!L$3:L$101,DATA!$F$3:$F$101,$A62,DATA!$B$3:$B$101,$C$2) -> 87 | I62: =SUMIFS(DATA!M$3:M$101,DATA!$F$3:$F$101,$A62,DATA!$B$3:$B$101,$C$2) -> 88 | J62: =SUMIFS(DATA!N$3:N$101,DATA!$F$3:$F$101,$A62,DATA!$B$3:$B$101,$C$2) -> 89 | K62: =SUMIFS(DATA!O$3:O$101,DATA!$F$3:$F$101,$A62,DATA!$B$3:$B$101,$C$2) -> 89 | L62: =SUMIFS(DATA!P$3:P$101,DATA!$F$3:$F$101,$A62,DATA!$B$3:$B$101,$C$2) -> 90 | M62: =SUMIFS(DATA!Q$3:Q$101,DATA!$F$3:$F$101,$A62,DATA!$B$3:$B$101,$C$2) -> 90 | N62: =SUMIFS(DATA!R$3:R$101,DATA!$F$3:$F$101,$A62,DATA!$B$3:$B$101,$C$2) -> 89 | O62: =SUMIFS(DATA!S$3:S$101,DATA!$F$3:$F$101,$A62,DATA!$B$3:$B$101,$C$2) -> 88 | P62: =SUMIFS(DATA!T$3:T$101,DATA!$F$3:$F$101,$A62,DATA!$B$3:$B$101,$C$2) -> 87 | Q62: =SUMIFS(DATA!U$3:U$101,DATA!$F$3:$F$101,$A62,DATA!$B$3:$B$101,$C$2) -> 86 | R62: =SUMIFS(DATA!V$3:V$101,DATA!$F$3:$F$101,$A62,DATA!$B$3:$B$101,$C$2) -> 85 | S62: =SUMIFS(DATA!W$3:W$101,DATA!$F$3:$F$101,$A62,DATA!$B$3:$B$101,$C$2) -> 83 | T62: =SUMIFS(DATA!X$3:X$101,DATA!$F$3:$F$101,$A62,DATA!$B$3:$B$101,$C$2) -> 81 | U62: =SUMIFS(DATA!Y$3:Y$101,DATA!$F$3:$F$101,$A62,DATA!$B$3:$B$101,$C$2) -> 78 | V62: =SUMIFS(DATA!Z$3:Z$101,DATA!$F$3:$F$101,$A62,DATA!$B$3:$B$101,$C$2) -> 75 | W62: =SUMIFS(DATA!AA$3:AA$101,DATA!$F$3:$F$101,$A62,DATA!$B$3:$B$101,$C$2) -> 74 | X62: =SUMIFS(DATA!AB$3:AB$101,DATA!$F$3:$F$101,$A62,DATA!$B$3:$B$101,$C$2) -> 73 | Y62: =SUMIFS(DATA!AC$3:AC$101,DATA!$F$3:$F$101,$A62,DATA!$B$3:$B$101,$C$2) -> 72 | Z62: =SUMIFS(DATA!AD$3:AD$101,DATA!$F$3:$F$101,$A62,DATA!$B$3:$B$101,$C$2) -> 71 | AA62: =SUMIFS(DATA!AE$3:AE$101,DATA!$F$3:$F$101,$A62,DATA!$B$3:$B$101,$C$2) -> 70 | AB62: =SUMIFS(DATA!AF$3:AF$101,DATA!$F$3:$F$101,$A62,DATA!$B$3:$B$101,$C$2) -> 69 | AC62: =SUMIFS(DATA!AG$3:AG$101,DATA!$F$3:$F$101,$A62,DATA!$B$3:$B$101,$C$2) -> 69 | AD62: =SUMIFS(DATA!AH$3:AH$101,DATA!$F$3:$F$101,$A62,DATA!$B$3:$B$101,$C$2) -> 68 | AE62: =SUMIFS(DATA!AI$3:AI$101,DATA!$F$3:$F$101,$A62,DATA!$B$3:$B$101,$C$2) -> 67 | AF62: =SUMIFS(DATA!AJ$3:AJ$101,DATA!$F$3:$F$101,$A62,DATA!$B$3:$B$101,$C$2) -> 67 | AG62: =SUMIFS(DATA!AK$3:AK$101,DATA!$F$3:$F$101,$A62,DATA!$B$3:$B$101,$C$2) -> 66 | AH62: =SUMIFS(DATA!AL$3:AL$101,DATA!$F$3:$F$101,$A62,DATA!$B$3:$B$101,$C$2) -> 65 | AI62: =SUMIFS(DATA!AM$3:AM$101,DATA!$F$3:$F$101,$A62,DATA!$B$3:$B$101,$C$2) -> 65 | AJ62: =SUMIFS(DATA!AN$3:AN$101,DATA!$F$3:$F$101,$A62,DATA!$B$3:$B$101,$C$2) -> 64 | AK62: =SUMIFS(DATA!AO$3:AO$101,DATA!$F$3:$F$101,$A62,DATA!$B$3:$B$101,$C$2) -> 63 | AL62: =SUMIFS(DATA!AP$3:AP$101,DATA!$F$3:$F$101,$A62,DATA!$B$3:$B$101,$C$2) -> 63 | AM62: =SUMIFS(DATA!AQ$3:AQ$101,DATA!$F$3:$F$101,$A62,DATA!$B$3:$B$101,$C$2) -> 62 | AN62: =SUMIFS(DATA!AR$3:AR$101,DATA!$F$3:$F$101,$A62,DATA!$B$3:$B$101,$C$2) -> 61 | AO62: =SUMIFS(DATA!AS$3:AS$101,DATA!$F$3:$F$101,$A62,DATA!$B$3:$B$101,$C$2) -> 60 | AP62: =SUMIFS(DATA!AT$3:AT$101,DATA!$F$3:$F$101,$A62,DATA!$B$3:$B$101,$C$2) -> 59 | AQ62: =SUMIFS(DATA!AU$3:AU$101,DATA!$F$3:$F$101,$A62,DATA!$B$3:$B$101,$C$2) -> 58 | AR62: =SUMIFS(DATA!AV$3:AV$101,DATA!$F$3:$F$101,$A62,DATA!$B$3:$B$101,$C$2) -> 57 | AS62: =SUMIFS(DATA!AW$3:AW$101,DATA!$F$3:$F$101,$A62,DATA!$B$3:$B$101,$C$2) -> 56 | AT62: =SUMIFS(DATA!AX$3:AX$101,DATA!$F$3:$F$101,$A62,DATA!$B$3:$B$101,$C$2) -> 55 | AU62: =SUMIFS(DATA!AY$3:AY$101,DATA!$F$3:$F$101,$A62,DATA!$B$3:$B$101,$C$2) -> 54 | AV62: =SUMIFS(DATA!AZ$3:AZ$101,DATA!$F$3:$F$101,$A62,DATA!$B$3:$B$101,$C$2) -> 53 | AW62: =SUMIFS(DATA!BA$3:BA$101,DATA!$F$3:$F$101,$A62,DATA!$B$3:$B$101,$C$2) -> 52 | AX62: =SUMIFS(DATA!BB$3:BB$101,DATA!$F$3:$F$101,$A62,DATA!$B$3:$B$101,$C$2) -> 50 | AY62: =SUMIFS(DATA!BC$3:BC$101,DATA!$F$3:$F$101,$A62,DATA!$B$3:$B$101,$C$2) -> 49 | AZ62: =SUMIFS(DATA!BD$3:BD$101,DATA!$F$3:$F$101,$A62,DATA!$B$3:$B$101,$C$2) -> 48
A63: Debt Ratio | B63: [Formula] | C63: =C50/SUM(C$50+C$44+C$92+C$94+C$96)*100 -> 76.0009499 | D63: =D50/SUM(D$50+D$44+D$92+D$94+D$96)*100 -> 78.1606298 | E63: =E50/SUM(E$50+E$44+E$92+E$94+E$96)*100 -> 83.11784654 | F63: =F50/SUM(F$50+F$44+F$92+F$94+F$96)*100 -> 84.00040334 | G63: =G50/SUM(G$50+G$44+G$92+G$94+G$96)*100 -> 85.20572985 | H63: 86.5542915 | I63: 87.70157608 | J63: 87.91950866 | K63: 88.29540433 | L63: 88.41566351 | M63: 88.7152164 | N63: 87.81221913 | O63: 86.7954045 | P63: 85.06675891 | Q63: 83.19211127 | R63: =R50/SUM(R$50+R$44+R$92+R$94+R$96)*100 -> 82.77071625 | S63: 81.90050354 | T63: 80.60109508 | U63: 78.33846284 | V63: 75.00000112 | W63: 74.02837305 | X63: 73.08208889 | Y63: 72.11196452 | Z63: 71.17410486 | AA63: 70.26268786 | AB63: 69.36166316 | AC63: 68.50736705 | AD63: 67.86325205 | AE63: 67.35967217 | AF63: 66.62880828 | AG63: 65.92879733 | AH63: 65.28038084 | AI63: =AI50/SUM(AI$50+AI$44+AI$92+AI$94+AI$96)*100 -> 64.61675137 | AJ63: 64.2589721 | AK63: 63.38869204 | AL63: 62.47101542 | AM63: 61.51770153 | AN63: 60.58203677 | AO63: 59.61565752 | AP63: 58.71213043 | AQ63: 57.77929815 | AR63: 56.91121007 | AS63: 55.94448996 | AT63: 54.93615969 | AU63: 53.78910945 | AV63: 52.63668976 | AW63: 51.53378181 | AX63: 50.37522293 | AY63: 49.2580582 | AZ63: 48.10842047
B64: Debt + Equity | C64: =SUM(C$50+C$44+C$92+C$94+C$96) -> 12717.17 | D64: =SUM(D$50+D$44+D$92+D$94+D$96) -> 14202.035 | E64: 15352.1783 | F64: 17125.51301 | G64: 18862.11177 | H64: 20407.76915 | I64: 21744.76315 | J64: 22987.95831 | K64: 24383.82854 | L64: 26105.10297 | M64: 27563.92983 | N64: 29088.54856 | O64: 30406.90939 | P64: 31721.08629 | Q64: 32390.93177 | R64: 32185.41678 | S64: 32187.83629 | T64: 32046.09066 | U64: 32024.62634 | V64: 31991.19952 | W64: 31954.09952 | X64: 31947.49952 | Y64: 31899.69952 | Z64: 31887.29952 | AA64: 31897.29952 | AB64: 31910.99952 | AC64: 31964.29952 | AD64: 32216.69952 | AE64: 32601.99952 | AF64: 32752.79952 | AG64: 32928.09952 | AH64: 33146.09952 | AI64: 33341.19952 | AJ64: 33813.79952 | AK64: 33798.29952 | AL64: 33723.79952 | AM64: =SUM(AM$50+AM$44+AM$92+AM$94+AM$96) -> 33606.09952 | AN64: 33504.15582 | AO64: 33377.13753 | AP64: 33302.82832 | AQ64: 33227.12566 | AR64: 33195.7447 | AS64: 33080.46961 | AT64: 32918.93736 | AU64: 32654.93736 | AV64: 32375.70614 | AW64: 32133.873 | AX64: 31856.13694 | AY64: 31606.19921 | AZ64: 31340.45943
A65: Interest Coverage Ratio | B65: [Original] | C65: =SUMIFS(DATA!G$3:G$101,DATA!$F$3:$F$101,$A65,DATA!$B$3:$B$101,$C$2) -> 1.09 | D65: =SUMIFS(DATA!H$3:H$101,DATA!$F$3:$F$101,$A65,DATA!$B$3:$B$101,$C$2) -> 1.1 | E65: =SUMIFS(DATA!I$3:I$101,DATA!$F$3:$F$101,$A65,DATA!$B$3:$B$101,$C$2) -> 1.07 | F65: =SUMIFS(DATA!J$3:J$101,DATA!$F$3:$F$101,$A65,DATA!$B$3:$B$101,$C$2) -> 1.1 | G65: =SUMIFS(DATA!K$3:K$101,DATA!$F$3:$F$101,$A65,DATA!$B$3:$B$101,$C$2) -> 1.08 | H65: =SUMIFS(DATA!L$3:L$101,DATA!$F$3:$F$101,$A65,DATA!$B$3:$B$101,$C$2) -> 1.04 | I65: =SUMIFS(DATA!M$3:M$101,DATA!$F$3:$F$101,$A65,DATA!$B$3:$B$101,$C$2) -> 0.95 | J65: =SUMIFS(DATA!N$3:N$101,DATA!$F$3:$F$101,$A65,DATA!$B$3:$B$101,$C$2) -> 1.03 | K65: =SUMIFS(DATA!O$3:O$101,DATA!$F$3:$F$101,$A65,DATA!$B$3:$B$101,$C$2) -> 1.05 | L65: =SUMIFS(DATA!P$3:P$101,DATA!$F$3:$F$101,$A65,DATA!$B$3:$B$101,$C$2) -> 1.08 | M65: =SUMIFS(DATA!Q$3:Q$101,DATA!$F$3:$F$101,$A65,DATA!$B$3:$B$101,$C$2) -> 1.14 | N65: =SUMIFS(DATA!R$3:R$101,DATA!$F$3:$F$101,$A65,DATA!$B$3:$B$101,$C$2) -> 1.17 | O65: =SUMIFS(DATA!S$3:S$101,DATA!$F$3:$F$101,$A65,DATA!$B$3:$B$101,$C$2) -> 1.22 | P65: =SUMIFS(DATA!T$3:T$101,DATA!$F$3:$F$101,$A65,DATA!$B$3:$B$101,$C$2) -> 1.23 | Q65: =SUMIFS(DATA!U$3:U$101,DATA!$F$3:$F$101,$A65,DATA!$B$3:$B$101,$C$2) -> 1.28 | R65: =SUMIFS(DATA!V$3:V$101,DATA!$F$3:$F$101,$A65,DATA!$B$3:$B$101,$C$2) -> 1.25 | S65: =SUMIFS(DATA!W$3:W$101,DATA!$F$3:$F$101,$A65,DATA!$B$3:$B$101,$C$2) -> 1.35 | T65: =SUMIFS(DATA!X$3:X$101,DATA!$F$3:$F$101,$A65,DATA!$B$3:$B$101,$C$2) -> 1.46 | U65: =SUMIFS(DATA!Y$3:Y$101,DATA!$F$3:$F$101,$A65,DATA!$B$3:$B$101,$C$2) -> 1.55 | V65: =SUMIFS(DATA!Z$3:Z$101,DATA!$F$3:$F$101,$A65,DATA!$B$3:$B$101,$C$2) -> 1.72 | W65: =SUMIFS(DATA!AA$3:AA$101,DATA!$F$3:$F$101,$A65,DATA!$B$3:$B$101,$C$2) -> 1.2 | X65: =SUMIFS(DATA!AB$3:AB$101,DATA!$F$3:$F$101,$A65,DATA!$B$3:$B$101,$C$2) -> 1.2 | Y65: =SUMIFS(DATA!AC$3:AC$101,DATA!$F$3:$F$101,$A65,DATA!$B$3:$B$101,$C$2) -> 1.2 | Z65: =SUMIFS(DATA!AD$3:AD$101,DATA!$F$3:$F$101,$A65,DATA!$B$3:$B$101,$C$2) -> 1.2 | AA65: =SUMIFS(DATA!AE$3:AE$101,DATA!$F$3:$F$101,$A65,DATA!$B$3:$B$101,$C$2) -> 1.2 | AB65: =SUMIFS(DATA!AF$3:AF$101,DATA!$F$3:$F$101,$A65,DATA!$B$3:$B$101,$C$2) -> 1.2 | AC65: =SUMIFS(DATA!AG$3:AG$101,DATA!$F$3:$F$101,$A65,DATA!$B$3:$B$101,$C$2) -> 1.2 | AD65: =SUMIFS(DATA!AH$3:AH$101,DATA!$F$3:$F$101,$A65,DATA!$B$3:$B$101,$C$2) -> 1.2 | AE65: =SUMIFS(DATA!AI$3:AI$101,DATA!$F$3:$F$101,$A65,DATA!$B$3:$B$101,$C$2) -> 1.2 | AF65: =SUMIFS(DATA!AJ$3:AJ$101,DATA!$F$3:$F$101,$A65,DATA!$B$3:$B$101,$C$2) -> 1.2 | AG65: =SUMIFS(DATA!AK$3:AK$101,DATA!$F$3:$F$101,$A65,DATA!$B$3:$B$101,$C$2) -> 1.2 | AH65: =SUMIFS(DATA!AL$3:AL$101,DATA!$F$3:$F$101,$A65,DATA!$B$3:$B$101,$C$2) -> 1.2 | AI65: =SUMIFS(DATA!AM$3:AM$101,DATA!$F$3:$F$101,$A65,DATA!$B$3:$B$101,$C$2) -> 1.2 | AJ65: =SUMIFS(DATA!AN$3:AN$101,DATA!$F$3:$F$101,$A65,DATA!$B$3:$B$101,$C$2) -> 1.2 | AK65: =SUMIFS(DATA!AO$3:AO$101,DATA!$F$3:$F$101,$A65,DATA!$B$3:$B$101,$C$2) -> 1.2 | AL65: =SUMIFS(DATA!AP$3:AP$101,DATA!$F$3:$F$101,$A65,DATA!$B$3:$B$101,$C$2) -> 1.2 | AM65: =SUMIFS(DATA!AQ$3:AQ$101,DATA!$F$3:$F$101,$A65,DATA!$B$3:$B$101,$C$2) -> 1.2 | AN65: =SUMIFS(DATA!AR$3:AR$101,DATA!$F$3:$F$101,$A65,DATA!$B$3:$B$101,$C$2) -> 1.2 | AO65: =SUMIFS(DATA!AS$3:AS$101,DATA!$F$3:$F$101,$A65,DATA!$B$3:$B$101,$C$2) -> 1.2 | AP65: =SUMIFS(DATA!AT$3:AT$101,DATA!$F$3:$F$101,$A65,DATA!$B$3:$B$101,$C$2) -> 1.2 | AQ65: =SUMIFS(DATA!AU$3:AU$101,DATA!$F$3:$F$101,$A65,DATA!$B$3:$B$101,$C$2) -> 1.2 | AR65: =SUMIFS(DATA!AV$3:AV$101,DATA!$F$3:$F$101,$A65,DATA!$B$3:$B$101,$C$2) -> 1.2 | AS65: =SUMIFS(DATA!AW$3:AW$101,DATA!$F$3:$F$101,$A65,DATA!$B$3:$B$101,$C$2) -> 1.2 | AT65: =SUMIFS(DATA!AX$3:AX$101,DATA!$F$3:$F$101,$A65,DATA!$B$3:$B$101,$C$2) -> 1.2 | AU65: =SUMIFS(DATA!AY$3:AY$101,DATA!$F$3:$F$101,$A65,DATA!$B$3:$B$101,$C$2) -> 1.2 | AV65: =SUMIFS(DATA!AZ$3:AZ$101,DATA!$F$3:$F$101,$A65,DATA!$B$3:$B$101,$C$2) -> 1.2 | AW65: =SUMIFS(DATA!BA$3:BA$101,DATA!$F$3:$F$101,$A65,DATA!$B$3:$B$101,$C$2) -> 1.2 | AX65: =SUMIFS(DATA!BB$3:BB$101,DATA!$F$3:$F$101,$A65,DATA!$B$3:$B$101,$C$2) -> 1.2 | AY65: =SUMIFS(DATA!BC$3:BC$101,DATA!$F$3:$F$101,$A65,DATA!$B$3:$B$101,$C$2) -> 1.2 | AZ65: =SUMIFS(DATA!BD$3:BD$101,DATA!$F$3:$F$101,$A65,DATA!$B$3:$B$101,$C$2) -> 1.2
A66: Interest Coverage Ratio (approx) | B66: [Formula approx] | C66: =SUM(C46,C32,C132)/SUM(C32,C132) -> 1.090909091 | D66: 1.103872305 | E66: 1.252064149 | F66: 1.240829683 | G66: 1.097189623 | H66: 0.9741471442 | I66: 0.9437907433 | J66: 1.100516632 | K66: 1.074019711 | L66: 1.140072251 | M66: 1.067068818 | N66: 1.282944259 | O66: 1.29365315 | P66: 1.443956032 | Q66: 1.428371459 | R66: 1.056086829 | S66: 1.167816072 | T66: 1.238239879 | U66: 1.455642696 | V66: 1.707591371 | W66: 1.2 | X66: 1.2 | Y66: 1.2 | Z66: 1.2 | AA66: 1.2 | AB66: 1.2 | AC66: 1.2 | AD66: 1.2 | AE66: 1.2 | AF66: 1.2 | AG66: 1.2 | AH66: 1.2 | AI66: =SUM(AI46,AI32,AI132)/SUM(AI32,AI132) -> 1.2 | AJ66: 1.2 | AK66: 1.2 | AL66: 1.2 | AM66: 1.2 | AN66: 1.200808808 | AO66: 1.200830803 | AP66: =SUM(AP46,AP32,AP132)/SUM(AP32,AP132) -> 1.200849524 | AQ66: 1.200862009 | AR66: 1.20089238 | AS66: 1.200918291 | AT66: 1.200995529 | AU66: 1.2 | AV66: 1.199699436 | AW66: 1.199690387 | AX66: 1.199681159 | AY66: 1.199671147 | AZ66: 1.199659882
A67: Capital Coverage Ratio | B67: [Original] | C67: =SUMIFS(DATA!G$3:G$101,DATA!$F$3:$F$101,$A67,DATA!$B$3:$B$101,$C$2) -> 1.09 | D67: =SUMIFS(DATA!H$3:H$101,DATA!$F$3:$F$101,$A67,DATA!$B$3:$B$101,$C$2) -> 0.9 | E67: =SUMIFS(DATA!I$3:I$101,DATA!$F$3:$F$101,$A67,DATA!$B$3:$B$101,$C$2) -> 0.77 | F67: =SUMIFS(DATA!J$3:J$101,DATA!$F$3:$F$101,$A67,DATA!$B$3:$B$101,$C$2) -> 0.9 | G67: =SUMIFS(DATA!K$3:K$101,DATA!$F$3:$F$101,$A67,DATA!$B$3:$B$101,$C$2) -> 1.21 | H67: =SUMIFS(DATA!L$3:L$101,DATA!$F$3:$F$101,$A67,DATA!$B$3:$B$101,$C$2) -> 1.36 | I67: =SUMIFS(DATA!M$3:M$101,DATA!$F$3:$F$101,$A67,DATA!$B$3:$B$101,$C$2) -> 1.08 | J67: =SUMIFS(DATA!N$3:N$101,DATA!$F$3:$F$101,$A67,DATA!$B$3:$B$101,$C$2) -> 1.55 | K67: =SUMIFS(DATA!O$3:O$101,DATA!$F$3:$F$101,$A67,DATA!$B$3:$B$101,$C$2) -> 1.52 | L67: =SUMIFS(DATA!P$3:P$101,DATA!$F$3:$F$101,$A67,DATA!$B$3:$B$101,$C$2) -> 1.57 | M67: =SUMIFS(DATA!Q$3:Q$101,DATA!$F$3:$F$101,$A67,DATA!$B$3:$B$101,$C$2) -> 1.58 | N67: =SUMIFS(DATA!R$3:R$101,DATA!$F$3:$F$101,$A67,DATA!$B$3:$B$101,$C$2) -> 1.66 | O67: =SUMIFS(DATA!S$3:S$101,DATA!$F$3:$F$101,$A67,DATA!$B$3:$B$101,$C$2) -> 1.84 | P67: =SUMIFS(DATA!T$3:T$101,DATA!$F$3:$F$101,$A67,DATA!$B$3:$B$101,$C$2) -> 2.07 | Q67: =SUMIFS(DATA!U$3:U$101,DATA!$F$3:$F$101,$A67,DATA!$B$3:$B$101,$C$2) -> 2.67 | R67: =SUMIFS(DATA!V$3:V$101,DATA!$F$3:$F$101,$A67,DATA!$B$3:$B$101,$C$2) -> 2.33 | S67: =SUMIFS(DATA!W$3:W$101,DATA!$F$3:$F$101,$A67,DATA!$B$3:$B$101,$C$2) -> 2.45 | T67: =SUMIFS(DATA!X$3:X$101,DATA!$F$3:$F$101,$A67,DATA!$B$3:$B$101,$C$2) -> 2.61 | U67: =SUMIFS(DATA!Y$3:Y$101,DATA!$F$3:$F$101,$A67,DATA!$B$3:$B$101,$C$2) -> 2.72 | V67: =SUMIFS(DATA!Z$3:Z$101,DATA!$F$3:$F$101,$A67,DATA!$B$3:$B$101,$C$2) -> 3.61 | W67: =SUMIFS(DATA!AA$3:AA$101,DATA!$F$3:$F$101,$A67,DATA!$B$3:$B$101,$C$2) -> 1.84 | X67: =SUMIFS(DATA!AB$3:AB$101,DATA!$F$3:$F$101,$A67,DATA!$B$3:$B$101,$C$2) -> 1.59 | Y67: =SUMIFS(DATA!AC$3:AC$101,DATA!$F$3:$F$101,$A67,DATA!$B$3:$B$101,$C$2) -> 1.54 | Z67: =SUMIFS(DATA!AD$3:AD$101,DATA!$F$3:$F$101,$A67,DATA!$B$3:$B$101,$C$2) -> 1.48 | AA67: =SUMIFS(DATA!AE$3:AE$101,DATA!$F$3:$F$101,$A67,DATA!$B$3:$B$101,$C$2) -> 1.42 | AB67: =SUMIFS(DATA!AF$3:AF$101,DATA!$F$3:$F$101,$A67,DATA!$B$3:$B$101,$C$2) -> 1.4 | AC67: =SUMIFS(DATA!AG$3:AG$101,DATA!$F$3:$F$101,$A67,DATA!$B$3:$B$101,$C$2) -> 1.33 | AD67: =SUMIFS(DATA!AH$3:AH$101,DATA!$F$3:$F$101,$A67,DATA!$B$3:$B$101,$C$2) -> 1.28 | AE67: =SUMIFS(DATA!AI$3:AI$101,DATA!$F$3:$F$101,$A67,DATA!$B$3:$B$101,$C$2) -> 1.2 | AF67: =SUMIFS(DATA!AJ$3:AJ$101,DATA!$F$3:$F$101,$A67,DATA!$B$3:$B$101,$C$2) -> 1.22 | AG67: =SUMIFS(DATA!AK$3:AK$101,DATA!$F$3:$F$101,$A67,DATA!$B$3:$B$101,$C$2) -> 1.31 | AH67: =SUMIFS(DATA!AL$3:AL$101,DATA!$F$3:$F$101,$A67,DATA!$B$3:$B$101,$C$2) -> 1.37 | AI67: =SUMIFS(DATA!AM$3:AM$101,DATA!$F$3:$F$101,$A67,DATA!$B$3:$B$101,$C$2) -> 1.33 | AJ67: =SUMIFS(DATA!AN$3:AN$101,DATA!$F$3:$F$101,$A67,DATA!$B$3:$B$101,$C$2) -> 1.21 | AK67: =SUMIFS(DATA!AO$3:AO$101,DATA!$F$3:$F$101,$A67,DATA!$B$3:$B$101,$C$2) -> 1.48 | AL67: =SUMIFS(DATA!AP$3:AP$101,DATA!$F$3:$F$101,$A67,DATA!$B$3:$B$101,$C$2) -> 1.48 | AM67: =SUMIFS(DATA!AQ$3:AQ$101,DATA!$F$3:$F$101,$A67,DATA!$B$3:$B$101,$C$2) -> 1.5 | AN67: =SUMIFS(DATA!AR$3:AR$101,DATA!$F$3:$F$101,$A67,DATA!$B$3:$B$101,$C$2) -> 1.52 | AO67: =SUMIFS(DATA!AS$3:AS$101,DATA!$F$3:$F$101,$A67,DATA!$B$3:$B$101,$C$2) -> 1.46 | AP67: =SUMIFS(DATA!AT$3:AT$101,DATA!$F$3:$F$101,$A67,DATA!$B$3:$B$101,$C$2) -> 1.47 | AQ67: =SUMIFS(DATA!AU$3:AU$101,DATA!$F$3:$F$101,$A67,DATA!$B$3:$B$101,$C$2) -> 1.46 | AR67: =SUMIFS(DATA!AV$3:AV$101,DATA!$F$3:$F$101,$A67,DATA!$B$3:$B$101,$C$2) -> 1.5 | AS67: =SUMIFS(DATA!AW$3:AW$101,DATA!$F$3:$F$101,$A67,DATA!$B$3:$B$101,$C$2) -> 1.49 | AT67: =SUMIFS(DATA!AX$3:AX$101,DATA!$F$3:$F$101,$A67,DATA!$B$3:$B$101,$C$2) -> 1.49 | AU67: =SUMIFS(DATA!AY$3:AY$101,DATA!$F$3:$F$101,$A67,DATA!$B$3:$B$101,$C$2) -> 1.5 | AV67: =SUMIFS(DATA!AZ$3:AZ$101,DATA!$F$3:$F$101,$A67,DATA!$B$3:$B$101,$C$2) -> 1.48 | AW67: =SUMIFS(DATA!BA$3:BA$101,DATA!$F$3:$F$101,$A67,DATA!$B$3:$B$101,$C$2) -> 1.48 | AX67: =SUMIFS(DATA!BB$3:BB$101,DATA!$F$3:$F$101,$A67,DATA!$B$3:$B$101,$C$2) -> 1.48 | AY67: =SUMIFS(DATA!BC$3:BC$101,DATA!$F$3:$F$101,$A67,DATA!$B$3:$B$101,$C$2) -> 1.49 | AZ67: =SUMIFS(DATA!BD$3:BD$101,DATA!$F$3:$F$101,$A67,DATA!$B$3:$B$101,$C$2) -> 1.48
A68: Capital Coverage Ratio | B68: [Formula] | C68: =C107/C129 -> 1.090069284 | D68: =D107/D129 -> 0.9005524862 | E68: 0.7665505226 | F68: 0.8981132075 | G68: 1.20531401 | H68: 1.360335196 | I68: 1.075980392 | J68: 1.545977011 | K68: 1.517326733 | L68: 1.568181818 | M68: 1.582846004 | N68: 1.661048689 | O68: 1.84180791 | P68: 2.066 | Q68: 2.673378076 | R68: 2.333984375 | S68: 2.453405018 | T68: 2.613175676 | U68: 2.717948718 | V68: 3.609345794 | W68: 1.840255591 | X68: 1.592797784 | Y68: 1.54015544 | Z68: 1.477132262 | AA68: 1.417647059 | AB68: 1.396416573 | AC68: 1.330490405 | AD68: 1.281407035 | AE68: 1.203358209 | AF68: 1.224281742 | AG68: 1.312089972 | AH68: 1.374031008 | AI68: 1.332099907 | AJ68: 1.208400646 | AK68: 1.477011494 | AL68: 1.480457579 | AM68: 1.497625831 | AN68: 1.517502365 | AO68: 1.458511548 | AP68: 1.467060811 | AQ68: 1.460066556 | AR68: 1.50122449 | AS68: 1.494391026 | AT68: 1.485849057 | AU68: 1.50308642 | AV68: 1.481818182 | AW68: 1.476225854 | AX68: 1.482129832 | AY68: 1.485325698 | AZ68: 1.479634831
A70: PROJECTED BALANCE SHEET
A72: ASSETS
A74: Plant in Service | C74: =SUMIFS(DATA!G$3:G$101,DATA!$F$3:$F$101,$A74,DATA!$B$3:$B$101,$C$2) -> 15374 | D74: =SUMIFS(DATA!H$3:H$101,DATA!$F$3:$F$101,$A74,DATA!$B$3:$B$101,$C$2) -> 16436 | E74: =SUMIFS(DATA!I$3:I$101,DATA!$F$3:$F$101,$A74,DATA!$B$3:$B$101,$C$2) -> 17108 | F74: =SUMIFS(DATA!J$3:J$101,DATA!$F$3:$F$101,$A74,DATA!$B$3:$B$101,$C$2) -> 18261 | G74: =SUMIFS(DATA!K$3:K$101,DATA!$F$3:$F$101,$A74,DATA!$B$3:$B$101,$C$2) -> 18821 | H74: =SUMIFS(DATA!L$3:L$101,DATA!$F$3:$F$101,$A74,DATA!$B$3:$B$101,$C$2) -> 22520 | I74: =SUMIFS(DATA!M$3:M$101,DATA!$F$3:$F$101,$A74,DATA!$B$3:$B$101,$C$2) -> 22947 | J74: =SUMIFS(DATA!N$3:N$101,DATA!$F$3:$F$101,$A74,DATA!$B$3:$B$101,$C$2) -> 25701 | K74: =SUMIFS(DATA!O$3:O$101,DATA!$F$3:$F$101,$A74,DATA!$B$3:$B$101,$C$2) -> 29723 | L74: =SUMIFS(DATA!P$3:P$101,DATA!$F$3:$F$101,$A74,DATA!$B$3:$B$101,$C$2) -> 30257 | M74: =SUMIFS(DATA!Q$3:Q$101,DATA!$F$3:$F$101,$A74,DATA!$B$3:$B$101,$C$2) -> 30788 | N74: =SUMIFS(DATA!R$3:R$101,DATA!$F$3:$F$101,$A74,DATA!$B$3:$B$101,$C$2) -> 31353 | O74: =SUMIFS(DATA!S$3:S$101,DATA!$F$3:$F$101,$A74,DATA!$B$3:$B$101,$C$2) -> 32042 | P74: =SUMIFS(DATA!T$3:T$101,DATA!$F$3:$F$101,$A74,DATA!$B$3:$B$101,$C$2) -> 37329 | Q74: =SUMIFS(DATA!U$3:U$101,DATA!$F$3:$F$101,$A74,DATA!$B$3:$B$101,$C$2) -> 42227 | R74: =SUMIFS(DATA!V$3:V$101,DATA!$F$3:$F$101,$A74,DATA!$B$3:$B$101,$C$2) -> 43649 | S74: =SUMIFS(DATA!W$3:W$101,DATA!$F$3:$F$101,$A74,DATA!$B$3:$B$101,$C$2) -> 44393 | T74: =SUMIFS(DATA!X$3:X$101,DATA!$F$3:$F$101,$A74,DATA!$B$3:$B$101,$C$2) -> 44951 | U74: =SUMIFS(DATA!Y$3:Y$101,DATA!$F$3:$F$101,$A74,DATA!$B$3:$B$101,$C$2) -> 46932 | V74: =SUMIFS(DATA!Z$3:Z$101,DATA!$F$3:$F$101,$A74,DATA!$B$3:$B$101,$C$2) -> 47662 | W74: =SUMIFS(DATA!AA$3:AA$101,DATA!$F$3:$F$101,$A74,DATA!$B$3:$B$101,$C$2) -> 48343 | X74: =SUMIFS(DATA!AB$3:AB$101,DATA!$F$3:$F$101,$A74,DATA!$B$3:$B$101,$C$2) -> 49688 | Y74: =SUMIFS(DATA!AC$3:AC$101,DATA!$F$3:$F$101,$A74,DATA!$B$3:$B$101,$C$2) -> 50210 | Z74: =SUMIFS(DATA!AD$3:AD$101,DATA!$F$3:$F$101,$A74,DATA!$B$3:$B$101,$C$2) -> 50754 | AA74: =SUMIFS(DATA!AE$3:AE$101,DATA!$F$3:$F$101,$A74,DATA!$B$3:$B$101,$C$2) -> 52076 | AB74: =SUMIFS(DATA!AF$3:AF$101,DATA!$F$3:$F$101,$A74,DATA!$B$3:$B$101,$C$2) -> 52660 | AC74: =SUMIFS(DATA!AG$3:AG$101,DATA!$F$3:$F$101,$A74,DATA!$B$3:$B$101,$C$2) -> 53263 | AD74: =SUMIFS(DATA!AH$3:AH$101,DATA!$F$3:$F$101,$A74,DATA!$B$3:$B$101,$C$2) -> 54262 | AE74: =SUMIFS(DATA!AI$3:AI$101,DATA!$F$3:$F$101,$A74,DATA!$B$3:$B$101,$C$2) -> 55013 | AF74: =SUMIFS(DATA!AJ$3:AJ$101,DATA!$F$3:$F$101,$A74,DATA!$B$3:$B$101,$C$2) -> 57700 | AG74: =SUMIFS(DATA!AK$3:AK$101,DATA!$F$3:$F$101,$A74,DATA!$B$3:$B$101,$C$2) -> 58375 | AH74: =SUMIFS(DATA!AL$3:AL$101,DATA!$F$3:$F$101,$A74,DATA!$B$3:$B$101,$C$2) -> 59079 | AI74: =SUMIFS(DATA!AM$3:AM$101,DATA!$F$3:$F$101,$A74,DATA!$B$3:$B$101,$C$2) -> 61113 | AJ74: =SUMIFS(DATA!AN$3:AN$101,DATA!$F$3:$F$101,$A74,DATA!$B$3:$B$101,$C$2) -> 62510 | AK74: =SUMIFS(DATA!AO$3:AO$101,DATA!$F$3:$F$101,$A74,DATA!$B$3:$B$101,$C$2) -> 63579 | AL74: =SUMIFS(DATA!AP$3:AP$101,DATA!$F$3:$F$101,$A74,DATA!$B$3:$B$101,$C$2) -> 64597 | AM74: =SUMIFS(DATA!AQ$3:AQ$101,DATA!$F$3:$F$101,$A74,DATA!$B$3:$B$101,$C$2) -> 65298 | AN74: =SUMIFS(DATA!AR$3:AR$101,DATA!$F$3:$F$101,$A74,DATA!$B$3:$B$101,$C$2) -> 67994 | AO74: =SUMIFS(DATA!AS$3:AS$101,DATA!$F$3:$F$101,$A74,DATA!$B$3:$B$101,$C$2) -> 69231 | AP74: =SUMIFS(DATA!AT$3:AT$101,DATA!$F$3:$F$101,$A74,DATA!$B$3:$B$101,$C$2) -> 70603 | AQ74: =SUMIFS(DATA!AU$3:AU$101,DATA!$F$3:$F$101,$A74,DATA!$B$3:$B$101,$C$2) -> 71980 | AR74: =SUMIFS(DATA!AV$3:AV$101,DATA!$F$3:$F$101,$A74,DATA!$B$3:$B$101,$C$2) -> 73389 | AS74: =SUMIFS(DATA!AW$3:AW$101,DATA!$F$3:$F$101,$A74,DATA!$B$3:$B$101,$C$2) -> 74915 | AT74: =SUMIFS(DATA!AX$3:AX$101,DATA!$F$3:$F$101,$A74,DATA!$B$3:$B$101,$C$2) -> 76463 | AU74: =SUMIFS(DATA!AY$3:AY$101,DATA!$F$3:$F$101,$A74,DATA!$B$3:$B$101,$C$2) -> 77836 | AV74: =SUMIFS(DATA!AZ$3:AZ$101,DATA!$F$3:$F$101,$A74,DATA!$B$3:$B$101,$C$2) -> 79198 | AW74: =SUMIFS(DATA!BA$3:BA$101,DATA!$F$3:$F$101,$A74,DATA!$B$3:$B$101,$C$2) -> 80623 | AX74: =SUMIFS(DATA!BB$3:BB$101,DATA!$F$3:$F$101,$A74,DATA!$B$3:$B$101,$C$2) -> 82045 | AY74: =SUMIFS(DATA!BC$3:BC$101,DATA!$F$3:$F$101,$A74,DATA!$B$3:$B$101,$C$2) -> 83525 | AZ74: =SUMIFS(DATA!BD$3:BD$101,DATA!$F$3:$F$101,$A74,DATA!$B$3:$B$101,$C$2) -> 85359
A75: Accumulated Depreciation | C75: =SUMIFS(DATA!G$3:G$101,DATA!$F$3:$F$101,$A75,DATA!$B$3:$B$101,$C$2) -> 5173 | D75: =SUMIFS(DATA!H$3:H$101,DATA!$F$3:$F$101,$A75,DATA!$B$3:$B$101,$C$2) -> 5536 | E75: =SUMIFS(DATA!I$3:I$101,DATA!$F$3:$F$101,$A75,DATA!$B$3:$B$101,$C$2) -> 5856 | F75: =SUMIFS(DATA!J$3:J$101,DATA!$F$3:$F$101,$A75,DATA!$B$3:$B$101,$C$2) -> 6223 | G75: =SUMIFS(DATA!K$3:K$101,DATA!$F$3:$F$101,$A75,DATA!$B$3:$B$101,$C$2) -> 6612 | H75: =SUMIFS(DATA!L$3:L$101,DATA!$F$3:$F$101,$A75,DATA!$B$3:$B$101,$C$2) -> 7028 | I75: =SUMIFS(DATA!M$3:M$101,DATA!$F$3:$F$101,$A75,DATA!$B$3:$B$101,$C$2) -> 7482 | J75: =SUMIFS(DATA!N$3:N$101,DATA!$F$3:$F$101,$A75,DATA!$B$3:$B$101,$C$2) -> 7938 | K75: =SUMIFS(DATA!O$3:O$101,DATA!$F$3:$F$101,$A75,DATA!$B$3:$B$101,$C$2) -> 8450 | L75: =SUMIFS(DATA!P$3:P$101,DATA!$F$3:$F$101,$A75,DATA!$B$3:$B$101,$C$2) -> 8997 | M75: =SUMIFS(DATA!Q$3:Q$101,DATA!$F$3:$F$101,$A75,DATA!$B$3:$B$101,$C$2) -> 9552 | N75: =SUMIFS(DATA!R$3:R$101,DATA!$F$3:$F$101,$A75,DATA!$B$3:$B$101,$C$2) -> 10107 | O75: =SUMIFS(DATA!S$3:S$101,DATA!$F$3:$F$101,$A75,DATA!$B$3:$B$101,$C$2) -> 10666 | P75: =SUMIFS(DATA!T$3:T$101,DATA!$F$3:$F$101,$A75,DATA!$B$3:$B$101,$C$2) -> 11264 | Q75: =SUMIFS(DATA!U$3:U$101,DATA!$F$3:$F$101,$A75,DATA!$B$3:$B$101,$C$2) -> 11930 | R75: =SUMIFS(DATA!V$3:V$101,DATA!$F$3:$F$101,$A75,DATA!$B$3:$B$101,$C$2) -> 12650 | S75: =SUMIFS(DATA!W$3:W$101,DATA!$F$3:$F$101,$A75,DATA!$B$3:$B$101,$C$2) -> 13373 | T75: =SUMIFS(DATA!X$3:X$101,DATA!$F$3:$F$101,$A75,DATA!$B$3:$B$101,$C$2) -> 14103 | U75: =SUMIFS(DATA!Y$3:Y$101,DATA!$F$3:$F$101,$A75,DATA!$B$3:$B$101,$C$2) -> 14861 | V75: =SUMIFS(DATA!Z$3:Z$101,DATA!$F$3:$F$101,$A75,DATA!$B$3:$B$101,$C$2) -> 15626 | W75: =SUMIFS(DATA!AA$3:AA$101,DATA!$F$3:$F$101,$A75,DATA!$B$3:$B$101,$C$2) -> 16390 | X75: =SUMIFS(DATA!AB$3:AB$101,DATA!$F$3:$F$101,$A75,DATA!$B$3:$B$101,$C$2) -> 17157 | Y75: =SUMIFS(DATA!AC$3:AC$101,DATA!$F$3:$F$101,$A75,DATA!$B$3:$B$101,$C$2) -> 17948 | Z75: =SUMIFS(DATA!AD$3:AD$101,DATA!$F$3:$F$101,$A75,DATA!$B$3:$B$101,$C$2) -> 18743 | AA75: =SUMIFS(DATA!AE$3:AE$101,DATA!$F$3:$F$101,$A75,DATA!$B$3:$B$101,$C$2) -> 19545 | AB75: =SUMIFS(DATA!AF$3:AF$101,DATA!$F$3:$F$101,$A75,DATA!$B$3:$B$101,$C$2) -> 20378 | AC75: =SUMIFS(DATA!AG$3:AG$101,DATA!$F$3:$F$101,$A75,DATA!$B$3:$B$101,$C$2) -> 21215 | AD75: =SUMIFS(DATA!AH$3:AH$101,DATA!$F$3:$F$101,$A75,DATA!$B$3:$B$101,$C$2) -> 22059 | AE75: =SUMIFS(DATA!AI$3:AI$101,DATA!$F$3:$F$101,$A75,DATA!$B$3:$B$101,$C$2) -> 22917 | AF75: =SUMIFS(DATA!AJ$3:AJ$101,DATA!$F$3:$F$101,$A75,DATA!$B$3:$B$101,$C$2) -> 23792 | AG75: =SUMIFS(DATA!AK$3:AK$101,DATA!$F$3:$F$101,$A75,DATA!$B$3:$B$101,$C$2) -> 24735 | AH75: =SUMIFS(DATA!AL$3:AL$101,DATA!$F$3:$F$101,$A75,DATA!$B$3:$B$101,$C$2) -> 25688 | AI75: =SUMIFS(DATA!AM$3:AM$101,DATA!$F$3:$F$101,$A75,DATA!$B$3:$B$101,$C$2) -> 26658 | AJ75: =SUMIFS(DATA!AN$3:AN$101,DATA!$F$3:$F$101,$A75,DATA!$B$3:$B$101,$C$2) -> 27674 | AK75: =SUMIFS(DATA!AO$3:AO$101,DATA!$F$3:$F$101,$A75,DATA!$B$3:$B$101,$C$2) -> 28719 | AL75: =SUMIFS(DATA!AP$3:AP$101,DATA!$F$3:$F$101,$A75,DATA!$B$3:$B$101,$C$2) -> 29781 | AM75: =SUMIFS(DATA!AQ$3:AQ$101,DATA!$F$3:$F$101,$A75,DATA!$B$3:$B$101,$C$2) -> 30866 | AN75: =SUMIFS(DATA!AR$3:AR$101,DATA!$F$3:$F$101,$A75,DATA!$B$3:$B$101,$C$2) -> 31966 | AO75: =SUMIFS(DATA!AS$3:AS$101,DATA!$F$3:$F$101,$A75,DATA!$B$3:$B$101,$C$2) -> 33152 | AP75: =SUMIFS(DATA!AT$3:AT$101,DATA!$F$3:$F$101,$A75,DATA!$B$3:$B$101,$C$2) -> 34364 | AQ75: =SUMIFS(DATA!AU$3:AU$101,DATA!$F$3:$F$101,$A75,DATA!$B$3:$B$101,$C$2) -> 35580 | AR75: =SUMIFS(DATA!AV$3:AV$101,DATA!$F$3:$F$101,$A75,DATA!$B$3:$B$101,$C$2) -> 36874 | AS75: =SUMIFS(DATA!AW$3:AW$101,DATA!$F$3:$F$101,$A75,DATA!$B$3:$B$101,$C$2) -> 38207 | AT75: =SUMIFS(DATA!AX$3:AX$101,DATA!$F$3:$F$101,$A75,DATA!$B$3:$B$101,$C$2) -> 39575 | AU75: =SUMIFS(DATA!AY$3:AY$101,DATA!$F$3:$F$101,$A75,DATA!$B$3:$B$101,$C$2) -> 40985 | AV75: =SUMIFS(DATA!AZ$3:AZ$101,DATA!$F$3:$F$101,$A75,DATA!$B$3:$B$101,$C$2) -> 42417 | AW75: =SUMIFS(DATA!BA$3:BA$101,DATA!$F$3:$F$101,$A75,DATA!$B$3:$B$101,$C$2) -> 43888 | AX75: =SUMIFS(DATA!BB$3:BB$101,DATA!$F$3:$F$101,$A75,DATA!$B$3:$B$101,$C$2) -> 45405 | AY75: =SUMIFS(DATA!BC$3:BC$101,DATA!$F$3:$F$101,$A75,DATA!$B$3:$B$101,$C$2) -> 46966 | AZ75: =SUMIFS(DATA!BD$3:BD$101,DATA!$F$3:$F$101,$A75,DATA!$B$3:$B$101,$C$2) -> 48570
A77: Net Plant in Service | C77: =C74-C75 -> 10201 | D77: =D74-D75 -> 10900 | E77: 11252 | F77: 12038 | G77: 12209 | H77: 15492 | I77: 15465 | J77: 17763 | K77: 21273 | L77: 21260 | M77: 21236 | N77: 21246 | O77: 21376 | P77: 26065 | Q77: 30297 | R77: 30999 | S77: 31020 | T77: 30848 | U77: 32071 | V77: 32036 | W77: 31953 | X77: 32531 | Y77: 32262 | Z77: 32011 | AA77: 32531 | AB77: 32282 | AC77: 32048 | AD77: 32203 | AE77: 32096 | AF77: 33908 | AG77: 33640 | AH77: 33391 | AI77: 34455 | AJ77: 34836 | AK77: 34860 | AL77: 34816 | AM77: 34432 | AN77: 36028 | AO77: 36079 | AP77: 36239 | AQ77: 36400 | AR77: 36515 | AS77: 36708 | AT77: 36888 | AU77: 36851 | AV77: 36781 | AW77: 36735 | AX77: 36640 | AY77: 36559 | AZ77: 36789
A79: Construction in Progress | C79: =SUMIFS(DATA!G$3:G$101,DATA!$F$3:$F$101,$A79,DATA!$B$3:$B$101,$C$2) -> 2105 | D79: =SUMIFS(DATA!H$3:H$101,DATA!$F$3:$F$101,$A79,DATA!$B$3:$B$101,$C$2) -> 2866 | E79: =SUMIFS(DATA!I$3:I$101,DATA!$F$3:$F$101,$A79,DATA!$B$3:$B$101,$C$2) -> 4164 | F79: =SUMIFS(DATA!J$3:J$101,DATA!$F$3:$F$101,$A79,DATA!$B$3:$B$101,$C$2) -> 5048 | G79: =SUMIFS(DATA!K$3:K$101,DATA!$F$3:$F$101,$A79,DATA!$B$3:$B$101,$C$2) -> 6617 | H79: =SUMIFS(DATA!L$3:L$101,DATA!$F$3:$F$101,$A79,DATA!$B$3:$B$101,$C$2) -> 5069 | I79: =SUMIFS(DATA!M$3:M$101,DATA!$F$3:$F$101,$A79,DATA!$B$3:$B$101,$C$2) -> 6411 | J79: =SUMIFS(DATA!N$3:N$101,DATA!$F$3:$F$101,$A79,DATA!$B$3:$B$101,$C$2) -> 5209 | K79: =SUMIFS(DATA!O$3:O$101,DATA!$F$3:$F$101,$A79,DATA!$B$3:$B$101,$C$2) -> 2873 | L79: =SUMIFS(DATA!P$3:P$101,DATA!$F$3:$F$101,$A79,DATA!$B$3:$B$101,$C$2) -> 4555 | M79: =SUMIFS(DATA!Q$3:Q$101,DATA!$F$3:$F$101,$A79,DATA!$B$3:$B$101,$C$2) -> 6192 | N79: =SUMIFS(DATA!R$3:R$101,DATA!$F$3:$F$101,$A79,DATA!$B$3:$B$101,$C$2) -> 7589 | O79: =SUMIFS(DATA!S$3:S$101,DATA!$F$3:$F$101,$A79,DATA!$B$3:$B$101,$C$2) -> 8716 | P79: =SUMIFS(DATA!T$3:T$101,DATA!$F$3:$F$101,$A79,DATA!$B$3:$B$101,$C$2) -> 5044 | Q79: =SUMIFS(DATA!U$3:U$101,DATA!$F$3:$F$101,$A79,DATA!$B$3:$B$101,$C$2) -> 1293 | R79: =SUMIFS(DATA!V$3:V$101,DATA!$F$3:$F$101,$A79,DATA!$B$3:$B$101,$C$2) -> 744 | S79: =SUMIFS(DATA!W$3:W$101,DATA!$F$3:$F$101,$A79,DATA!$B$3:$B$101,$C$2) -> 1075 | T79: =SUMIFS(DATA!X$3:X$101,DATA!$F$3:$F$101,$A79,DATA!$B$3:$B$101,$C$2) -> 1515 | U79: =SUMIFS(DATA!Y$3:Y$101,DATA!$F$3:$F$101,$A79,DATA!$B$3:$B$101,$C$2) -> 472 | V79: =SUMIFS(DATA!Z$3:Z$101,DATA!$F$3:$F$101,$A79,DATA!$B$3:$B$101,$C$2) -> 545 | W79: =SUMIFS(DATA!AA$3:AA$101,DATA!$F$3:$F$101,$A79,DATA!$B$3:$B$101,$C$2) -> 642 | X79: =SUMIFS(DATA!AB$3:AB$101,DATA!$F$3:$F$101,$A79,DATA!$B$3:$B$101,$C$2) -> 106 | Y79: =SUMIFS(DATA!AC$3:AC$101,DATA!$F$3:$F$101,$A79,DATA!$B$3:$B$101,$C$2) -> 395 | Z79: =SUMIFS(DATA!AD$3:AD$101,DATA!$F$3:$F$101,$A79,DATA!$B$3:$B$101,$C$2) -> 702 | AA79: =SUMIFS(DATA!AE$3:AE$101,DATA!$F$3:$F$101,$A79,DATA!$B$3:$B$101,$C$2) -> 269 | AB79: =SUMIFS(DATA!AF$3:AF$101,DATA!$F$3:$F$101,$A79,DATA!$B$3:$B$101,$C$2) -> 621 | AC79: =SUMIFS(DATA!AG$3:AG$101,DATA!$F$3:$F$101,$A79,DATA!$B$3:$B$101,$C$2) -> 997 | AD79: =SUMIFS(DATA!AH$3:AH$101,DATA!$F$3:$F$101,$A79,DATA!$B$3:$B$101,$C$2) -> 1205 | AE79: =SUMIFS(DATA!AI$3:AI$101,DATA!$F$3:$F$101,$A79,DATA!$B$3:$B$101,$C$2) -> 1808 | AF79: =SUMIFS(DATA!AJ$3:AJ$101,DATA!$F$3:$F$101,$A79,DATA!$B$3:$B$101,$C$2) -> 272 | AG79: =SUMIFS(DATA!AK$3:AK$101,DATA!$F$3:$F$101,$A79,DATA!$B$3:$B$101,$C$2) -> 851 | AH79: =SUMIFS(DATA!AL$3:AL$101,DATA!$F$3:$F$101,$A79,DATA!$B$3:$B$101,$C$2) -> 1440 | AI79: =SUMIFS(DATA!AM$3:AM$101,DATA!$F$3:$F$101,$A79,DATA!$B$3:$B$101,$C$2) -> 712 | AJ79: =SUMIFS(DATA!AN$3:AN$101,DATA!$F$3:$F$101,$A79,DATA!$B$3:$B$101,$C$2) -> 955 | AK79: =SUMIFS(DATA!AO$3:AO$101,DATA!$F$3:$F$101,$A79,DATA!$B$3:$B$101,$C$2) -> 1077 | AL79: =SUMIFS(DATA!AP$3:AP$101,DATA!$F$3:$F$101,$A79,DATA!$B$3:$B$101,$C$2) -> 1212 | AM79: =SUMIFS(DATA!AQ$3:AQ$101,DATA!$F$3:$F$101,$A79,DATA!$B$3:$B$101,$C$2) -> 1651 | AN79: =SUMIFS(DATA!AR$3:AR$101,DATA!$F$3:$F$101,$A79,DATA!$B$3:$B$101,$C$2) -> 137 | AO79: =SUMIFS(DATA!AS$3:AS$101,DATA!$F$3:$F$101,$A79,DATA!$B$3:$B$101,$C$2) -> 158 | AP79: =SUMIFS(DATA!AT$3:AT$101,DATA!$F$3:$F$101,$A79,DATA!$B$3:$B$101,$C$2) -> 128 | AQ79: =SUMIFS(DATA!AU$3:AU$101,DATA!$F$3:$F$101,$A79,DATA!$B$3:$B$101,$C$2) -> 122 | AR79: =SUMIFS(DATA!AV$3:AV$101,DATA!$F$3:$F$101,$A79,DATA!$B$3:$B$101,$C$2) -> 215 | AS79: =SUMIFS(DATA!AW$3:AW$101,DATA!$F$3:$F$101,$A79,DATA!$B$3:$B$101,$C$2) -> 139 | AT79: =SUMIFS(DATA!AX$3:AX$101,DATA!$F$3:$F$101,$A79,DATA!$B$3:$B$101,$C$2) -> 29 | AU79: =SUMIFS(DATA!AY$3:AY$101,DATA!$F$3:$F$101,$A79,DATA!$B$3:$B$101,$C$2) -> 56 | AV79: =SUMIFS(DATA!AZ$3:AZ$101,DATA!$F$3:$F$101,$A79,DATA!$B$3:$B$101,$C$2) -> 72 | AW79: =SUMIFS(DATA!BA$3:BA$101,DATA!$F$3:$F$101,$A79,DATA!$B$3:$B$101,$C$2) -> 97 | AX79: =SUMIFS(DATA!BB$3:BB$101,DATA!$F$3:$F$101,$A79,DATA!$B$3:$B$101,$C$2) -> 140 | AY79: =SUMIFS(DATA!BC$3:BC$101,DATA!$F$3:$F$101,$A79,DATA!$B$3:$B$101,$C$2) -> 200 | AZ79: =SUMIFS(DATA!BD$3:BD$101,DATA!$F$3:$F$101,$A79,DATA!$B$3:$B$101,$C$2) -> -89
A80: Current and Other Assets | C80: =SUMIFS(DATA!G$3:G$101,DATA!$F$3:$F$101,$A80,DATA!$B$3:$B$101,$C$2) -> 1869 | D80: =SUMIFS(DATA!H$3:H$101,DATA!$F$3:$F$101,$A80,DATA!$B$3:$B$101,$C$2) -> 1735 | E80: =SUMIFS(DATA!I$3:I$101,DATA!$F$3:$F$101,$A80,DATA!$B$3:$B$101,$C$2) -> 1391 | F80: =SUMIFS(DATA!J$3:J$101,DATA!$F$3:$F$101,$A80,DATA!$B$3:$B$101,$C$2) -> 1579 | G80: =SUMIFS(DATA!K$3:K$101,DATA!$F$3:$F$101,$A80,DATA!$B$3:$B$101,$C$2) -> 1791 | H80: =SUMIFS(DATA!L$3:L$101,DATA!$F$3:$F$101,$A80,DATA!$B$3:$B$101,$C$2) -> 2029 | I80: =SUMIFS(DATA!M$3:M$101,DATA!$F$3:$F$101,$A80,DATA!$B$3:$B$101,$C$2) -> 1845 | J80: =SUMIFS(DATA!N$3:N$101,DATA!$F$3:$F$101,$A80,DATA!$B$3:$B$101,$C$2) -> 1968 | K80: =SUMIFS(DATA!O$3:O$101,DATA!$F$3:$F$101,$A80,DATA!$B$3:$B$101,$C$2) -> 2032 | L80: =SUMIFS(DATA!P$3:P$101,DATA!$F$3:$F$101,$A80,DATA!$B$3:$B$101,$C$2) -> 1696 | M80: =SUMIFS(DATA!Q$3:Q$101,DATA!$F$3:$F$101,$A80,DATA!$B$3:$B$101,$C$2) -> 1782 | N80: =SUMIFS(DATA!R$3:R$101,DATA!$F$3:$F$101,$A80,DATA!$B$3:$B$101,$C$2) -> 2083 | O80: =SUMIFS(DATA!S$3:S$101,DATA!$F$3:$F$101,$A80,DATA!$B$3:$B$101,$C$2) -> 2335 | P80: =SUMIFS(DATA!T$3:T$101,DATA!$F$3:$F$101,$A80,DATA!$B$3:$B$101,$C$2) -> 2173 | Q80: =SUMIFS(DATA!U$3:U$101,DATA!$F$3:$F$101,$A80,DATA!$B$3:$B$101,$C$2) -> 2461 | R80: =SUMIFS(DATA!V$3:V$101,DATA!$F$3:$F$101,$A80,DATA!$B$3:$B$101,$C$2) -> 2758 | S80: =SUMIFS(DATA!W$3:W$101,DATA!$F$3:$F$101,$A80,DATA!$B$3:$B$101,$C$2) -> 3115 | T80: =SUMIFS(DATA!X$3:X$101,DATA!$F$3:$F$101,$A80,DATA!$B$3:$B$101,$C$2) -> 3351 | U80: =SUMIFS(DATA!Y$3:Y$101,DATA!$F$3:$F$101,$A80,DATA!$B$3:$B$101,$C$2) -> 3339 | V80: =SUMIFS(DATA!Z$3:Z$101,DATA!$F$3:$F$101,$A80,DATA!$B$3:$B$101,$C$2) -> 4380 | W80: =SUMIFS(DATA!AA$3:AA$101,DATA!$F$3:$F$101,$A80,DATA!$B$3:$B$101,$C$2) -> 4443 | X80: =SUMIFS(DATA!AB$3:AB$101,DATA!$F$3:$F$101,$A80,DATA!$B$3:$B$101,$C$2) -> 2696 | Y80: =SUMIFS(DATA!AC$3:AC$101,DATA!$F$3:$F$101,$A80,DATA!$B$3:$B$101,$C$2) -> 2779 | Z80: =SUMIFS(DATA!AD$3:AD$101,DATA!$F$3:$F$101,$A80,DATA!$B$3:$B$101,$C$2) -> 2737 | AA80: =SUMIFS(DATA!AE$3:AE$101,DATA!$F$3:$F$101,$A80,DATA!$B$3:$B$101,$C$2) -> 2549 | AB80: =SUMIFS(DATA!AF$3:AF$101,DATA!$F$3:$F$101,$A80,DATA!$B$3:$B$101,$C$2) -> 2598 | AC80: =SUMIFS(DATA!AG$3:AG$101,DATA!$F$3:$F$101,$A80,DATA!$B$3:$B$101,$C$2) -> 2549 | AD80: =SUMIFS(DATA!AH$3:AH$101,DATA!$F$3:$F$101,$A80,DATA!$B$3:$B$101,$C$2) -> 2591 | AE80: =SUMIFS(DATA!AI$3:AI$101,DATA!$F$3:$F$101,$A80,DATA!$B$3:$B$101,$C$2) -> 2541 | AF80: =SUMIFS(DATA!AJ$3:AJ$101,DATA!$F$3:$F$101,$A80,DATA!$B$3:$B$101,$C$2) -> 2516 | AG80: =SUMIFS(DATA!AK$3:AK$101,DATA!$F$3:$F$101,$A80,DATA!$B$3:$B$101,$C$2) -> 2468 | AH80: =SUMIFS(DATA!AL$3:AL$101,DATA!$F$3:$F$101,$A80,DATA!$B$3:$B$101,$C$2) -> 2699 | AI80: =SUMIFS(DATA!AM$3:AM$101,DATA!$F$3:$F$101,$A80,DATA!$B$3:$B$101,$C$2) -> 2748 | AJ80: =SUMIFS(DATA!AN$3:AN$101,DATA!$F$3:$F$101,$A80,DATA!$B$3:$B$101,$C$2) -> 2564 | AK80: =SUMIFS(DATA!AO$3:AO$101,DATA!$F$3:$F$101,$A80,DATA!$B$3:$B$101,$C$2) -> 2884 | AL80: =SUMIFS(DATA!AP$3:AP$101,DATA!$F$3:$F$101,$A80,DATA!$B$3:$B$101,$C$2) -> 3079 | AM80: =SUMIFS(DATA!AQ$3:AQ$101,DATA!$F$3:$F$101,$A80,DATA!$B$3:$B$101,$C$2) -> 3100 | AN80: =SUMIFS(DATA!AR$3:AR$101,DATA!$F$3:$F$101,$A80,DATA!$B$3:$B$101,$C$2) -> 2969 | AO80: =SUMIFS(DATA!AS$3:AS$101,DATA!$F$3:$F$101,$A80,DATA!$B$3:$B$101,$C$2) -> 3175 | AP80: =SUMIFS(DATA!AT$3:AT$101,DATA!$F$3:$F$101,$A80,DATA!$B$3:$B$101,$C$2) -> 3315 | AQ80: =SUMIFS(DATA!AU$3:AU$101,DATA!$F$3:$F$101,$A80,DATA!$B$3:$B$101,$C$2) -> 3415 | AR80: =SUMIFS(DATA!AV$3:AV$101,DATA!$F$3:$F$101,$A80,DATA!$B$3:$B$101,$C$2) -> 3304 | AS80: =SUMIFS(DATA!AW$3:AW$101,DATA!$F$3:$F$101,$A80,DATA!$B$3:$B$101,$C$2) -> 1871 | AT80: =SUMIFS(DATA!AX$3:AX$101,DATA!$F$3:$F$101,$A80,DATA!$B$3:$B$101,$C$2) -> 1273 | AU80: =SUMIFS(DATA!AY$3:AY$101,DATA!$F$3:$F$101,$A80,DATA!$B$3:$B$101,$C$2) -> 972 | AV80: =SUMIFS(DATA!AZ$3:AZ$101,DATA!$F$3:$F$101,$A80,DATA!$B$3:$B$101,$C$2) -> 866 | AW80: =SUMIFS(DATA!BA$3:BA$101,DATA!$F$3:$F$101,$A80,DATA!$B$3:$B$101,$C$2) -> 723 | AX80: =SUMIFS(DATA!BB$3:BB$101,DATA!$F$3:$F$101,$A80,DATA!$B$3:$B$101,$C$2) -> 284 | AY80: =SUMIFS(DATA!BC$3:BC$101,DATA!$F$3:$F$101,$A80,DATA!$B$3:$B$101,$C$2) -> 336 | AZ80: =SUMIFS(DATA!BD$3:BD$101,DATA!$F$3:$F$101,$A80,DATA!$B$3:$B$101,$C$2) -> 198
A81: Goodwill and Intangible Assets | C81: =SUMIFS(DATA!G$3:G$101,DATA!$F$3:$F$101,$A81,DATA!$B$3:$B$101,$C$2) -> 180 | D81: =SUMIFS(DATA!H$3:H$101,DATA!$F$3:$F$101,$A81,DATA!$B$3:$B$101,$C$2) -> 165 | E81: =SUMIFS(DATA!I$3:I$101,DATA!$F$3:$F$101,$A81,DATA!$B$3:$B$101,$C$2) -> 151 | F81: =SUMIFS(DATA!J$3:J$101,DATA!$F$3:$F$101,$A81,DATA!$B$3:$B$101,$C$2) -> 136 | G81: =SUMIFS(DATA!K$3:K$101,DATA!$F$3:$F$101,$A81,DATA!$B$3:$B$101,$C$2) -> 126 | H81: =SUMIFS(DATA!L$3:L$101,DATA!$F$3:$F$101,$A81,DATA!$B$3:$B$101,$C$2) -> 116 | I81: =SUMIFS(DATA!M$3:M$101,DATA!$F$3:$F$101,$A81,DATA!$B$3:$B$101,$C$2) -> 140 | J81: =SUMIFS(DATA!N$3:N$101,DATA!$F$3:$F$101,$A81,DATA!$B$3:$B$101,$C$2) -> 147 | K81: =SUMIFS(DATA!O$3:O$101,DATA!$F$3:$F$101,$A81,DATA!$B$3:$B$101,$C$2) -> 231 | L81: =SUMIFS(DATA!P$3:P$101,DATA!$F$3:$F$101,$A81,DATA!$B$3:$B$101,$C$2) -> 224 | M81: =SUMIFS(DATA!Q$3:Q$101,DATA!$F$3:$F$101,$A81,DATA!$B$3:$B$101,$C$2) -> 218 | N81: =SUMIFS(DATA!R$3:R$101,DATA!$F$3:$F$101,$A81,DATA!$B$3:$B$101,$C$2) -> 214 | O81: =SUMIFS(DATA!S$3:S$101,DATA!$F$3:$F$101,$A81,DATA!$B$3:$B$101,$C$2) -> 210 | P81: =SUMIFS(DATA!T$3:T$101,DATA!$F$3:$F$101,$A81,DATA!$B$3:$B$101,$C$2) -> 207 | Q81: =SUMIFS(DATA!U$3:U$101,DATA!$F$3:$F$101,$A81,DATA!$B$3:$B$101,$C$2) -> 203 | R81: =SUMIFS(DATA!V$3:V$101,DATA!$F$3:$F$101,$A81,DATA!$B$3:$B$101,$C$2) -> 199 | S81: =SUMIFS(DATA!W$3:W$101,DATA!$F$3:$F$101,$A81,DATA!$B$3:$B$101,$C$2) -> 196 | T81: =SUMIFS(DATA!X$3:X$101,DATA!$F$3:$F$101,$A81,DATA!$B$3:$B$101,$C$2) -> 192 | U81: =SUMIFS(DATA!Y$3:Y$101,DATA!$F$3:$F$101,$A81,DATA!$B$3:$B$101,$C$2) -> 188 | V81: =SUMIFS(DATA!Z$3:Z$101,DATA!$F$3:$F$101,$A81,DATA!$B$3:$B$101,$C$2) -> 185 | W81: =SUMIFS(DATA!AA$3:AA$101,DATA!$F$3:$F$101,$A81,DATA!$B$3:$B$101,$C$2) -> 181 | X81: =SUMIFS(DATA!AB$3:AB$101,DATA!$F$3:$F$101,$A81,DATA!$B$3:$B$101,$C$2) -> 177 | Y81: =SUMIFS(DATA!AC$3:AC$101,DATA!$F$3:$F$101,$A81,DATA!$B$3:$B$101,$C$2) -> 174 | Z81: =SUMIFS(DATA!AD$3:AD$101,DATA!$F$3:$F$101,$A81,DATA!$B$3:$B$101,$C$2) -> 170 | AA81: =SUMIFS(DATA!AE$3:AE$101,DATA!$F$3:$F$101,$A81,DATA!$B$3:$B$101,$C$2) -> 166 | AB81: =SUMIFS(DATA!AF$3:AF$101,DATA!$F$3:$F$101,$A81,DATA!$B$3:$B$101,$C$2) -> 163 | AC81: =SUMIFS(DATA!AG$3:AG$101,DATA!$F$3:$F$101,$A81,DATA!$B$3:$B$101,$C$2) -> 159 | AD81: =SUMIFS(DATA!AH$3:AH$101,DATA!$F$3:$F$101,$A81,DATA!$B$3:$B$101,$C$2) -> 155 | AE81: =SUMIFS(DATA!AI$3:AI$101,DATA!$F$3:$F$101,$A81,DATA!$B$3:$B$101,$C$2) -> 152 | AF81: =SUMIFS(DATA!AJ$3:AJ$101,DATA!$F$3:$F$101,$A81,DATA!$B$3:$B$101,$C$2) -> 148 | AG81: =SUMIFS(DATA!AK$3:AK$101,DATA!$F$3:$F$101,$A81,DATA!$B$3:$B$101,$C$2) -> 144 | AH81: =SUMIFS(DATA!AL$3:AL$101,DATA!$F$3:$F$101,$A81,DATA!$B$3:$B$101,$C$2) -> 141 | AI81: =SUMIFS(DATA!AM$3:AM$101,DATA!$F$3:$F$101,$A81,DATA!$B$3:$B$101,$C$2) -> 137 | AJ81: =SUMIFS(DATA!AN$3:AN$101,DATA!$F$3:$F$101,$A81,DATA!$B$3:$B$101,$C$2) -> 133 | AK81: =SUMIFS(DATA!AO$3:AO$101,DATA!$F$3:$F$101,$A81,DATA!$B$3:$B$101,$C$2) -> 130 | AL81: =SUMIFS(DATA!AP$3:AP$101,DATA!$F$3:$F$101,$A81,DATA!$B$3:$B$101,$C$2) -> 126 | AM81: =SUMIFS(DATA!AQ$3:AQ$101,DATA!$F$3:$F$101,$A81,DATA!$B$3:$B$101,$C$2) -> 123 | AN81: =SUMIFS(DATA!AR$3:AR$101,DATA!$F$3:$F$101,$A81,DATA!$B$3:$B$101,$C$2) -> 119 | AO81: =SUMIFS(DATA!AS$3:AS$101,DATA!$F$3:$F$101,$A81,DATA!$B$3:$B$101,$C$2) -> 115 | AP81: =SUMIFS(DATA!AT$3:AT$101,DATA!$F$3:$F$101,$A81,DATA!$B$3:$B$101,$C$2) -> 112 | AQ81: =SUMIFS(DATA!AU$3:AU$101,DATA!$F$3:$F$101,$A81,DATA!$B$3:$B$101,$C$2) -> 108 | AR81: =SUMIFS(DATA!AV$3:AV$101,DATA!$F$3:$F$101,$A81,DATA!$B$3:$B$101,$C$2) -> 104 | AS81: =SUMIFS(DATA!AW$3:AW$101,DATA!$F$3:$F$101,$A81,DATA!$B$3:$B$101,$C$2) -> 101 | AT81: =SUMIFS(DATA!AX$3:AX$101,DATA!$F$3:$F$101,$A81,DATA!$B$3:$B$101,$C$2) -> 97 | AU81: =SUMIFS(DATA!AY$3:AY$101,DATA!$F$3:$F$101,$A81,DATA!$B$3:$B$101,$C$2) -> 94 | AV81: =SUMIFS(DATA!AZ$3:AZ$101,DATA!$F$3:$F$101,$A81,DATA!$B$3:$B$101,$C$2) -> 90 | AW81: =SUMIFS(DATA!BA$3:BA$101,DATA!$F$3:$F$101,$A81,DATA!$B$3:$B$101,$C$2) -> 86 | AX81: =SUMIFS(DATA!BB$3:BB$101,DATA!$F$3:$F$101,$A81,DATA!$B$3:$B$101,$C$2) -> 83 | AY81: =SUMIFS(DATA!BC$3:BC$101,DATA!$F$3:$F$101,$A81,DATA!$B$3:$B$101,$C$2) -> 79 | AZ81: =SUMIFS(DATA!BD$3:BD$101,DATA!$F$3:$F$101,$A81,DATA!$B$3:$B$101,$C$2) -> 76
A82: Regulated Assets | C82: =SUMIFS(DATA!G$3:G$101,DATA!$F$3:$F$101,$A82,DATA!$B$3:$B$101,$C$2) -> 231 | D82: =SUMIFS(DATA!H$3:H$101,DATA!$F$3:$F$101,$A82,DATA!$B$3:$B$101,$C$2) -> 225 | E82: =SUMIFS(DATA!I$3:I$101,DATA!$F$3:$F$101,$A82,DATA!$B$3:$B$101,$C$2) -> 0 | F82: =SUMIFS(DATA!J$3:J$101,DATA!$F$3:$F$101,$A82,DATA!$B$3:$B$101,$C$2) -> 0 | G82: =SUMIFS(DATA!K$3:K$101,DATA!$F$3:$F$101,$A82,DATA!$B$3:$B$101,$C$2) -> 0 | H82: =SUMIFS(DATA!L$3:L$101,DATA!$F$3:$F$101,$A82,DATA!$B$3:$B$101,$C$2) -> 0 | I82: =SUMIFS(DATA!M$3:M$101,DATA!$F$3:$F$101,$A82,DATA!$B$3:$B$101,$C$2) -> 0 | J82: =SUMIFS(DATA!N$3:N$101,DATA!$F$3:$F$101,$A82,DATA!$B$3:$B$101,$C$2) -> 0 | K82: =SUMIFS(DATA!O$3:O$101,DATA!$F$3:$F$101,$A82,DATA!$B$3:$B$101,$C$2) -> 0 | L82: =SUMIFS(DATA!P$3:P$101,DATA!$F$3:$F$101,$A82,DATA!$B$3:$B$101,$C$2) -> 0 | M82: =SUMIFS(DATA!Q$3:Q$101,DATA!$F$3:$F$101,$A82,DATA!$B$3:$B$101,$C$2) -> 0 | N82: =SUMIFS(DATA!R$3:R$101,DATA!$F$3:$F$101,$A82,DATA!$B$3:$B$101,$C$2) -> 0 | O82: =SUMIFS(DATA!S$3:S$101,DATA!$F$3:$F$101,$A82,DATA!$B$3:$B$101,$C$2) -> 0 | P82: =SUMIFS(DATA!T$3:T$101,DATA!$F$3:$F$101,$A82,DATA!$B$3:$B$101,$C$2) -> 0 | Q82: =SUMIFS(DATA!U$3:U$101,DATA!$F$3:$F$101,$A82,DATA!$B$3:$B$101,$C$2) -> 0 | R82: =SUMIFS(DATA!V$3:V$101,DATA!$F$3:$F$101,$A82,DATA!$B$3:$B$101,$C$2) -> 0 | S82: =SUMIFS(DATA!W$3:W$101,DATA!$F$3:$F$101,$A82,DATA!$B$3:$B$101,$C$2) -> 0 | T82: =SUMIFS(DATA!X$3:X$101,DATA!$F$3:$F$101,$A82,DATA!$B$3:$B$101,$C$2) -> 0 | U82: =SUMIFS(DATA!Y$3:Y$101,DATA!$F$3:$F$101,$A82,DATA!$B$3:$B$101,$C$2) -> 0 | V82: =SUMIFS(DATA!Z$3:Z$101,DATA!$F$3:$F$101,$A82,DATA!$B$3:$B$101,$C$2) -> 0 | W82: =SUMIFS(DATA!AA$3:AA$101,DATA!$F$3:$F$101,$A82,DATA!$B$3:$B$101,$C$2) -> 0 | X82: =SUMIFS(DATA!AB$3:AB$101,DATA!$F$3:$F$101,$A82,DATA!$B$3:$B$101,$C$2) -> 0 | Y82: =SUMIFS(DATA!AC$3:AC$101,DATA!$F$3:$F$101,$A82,DATA!$B$3:$B$101,$C$2) -> 0 | Z82: =SUMIFS(DATA!AD$3:AD$101,DATA!$F$3:$F$101,$A82,DATA!$B$3:$B$101,$C$2) -> 0 | AA82: =SUMIFS(DATA!AE$3:AE$101,DATA!$F$3:$F$101,$A82,DATA!$B$3:$B$101,$C$2) -> 0 | AB82: =SUMIFS(DATA!AF$3:AF$101,DATA!$F$3:$F$101,$A82,DATA!$B$3:$B$101,$C$2) -> 0 | AC82: =SUMIFS(DATA!AG$3:AG$101,DATA!$F$3:$F$101,$A82,DATA!$B$3:$B$101,$C$2) -> 0 | AD82: =SUMIFS(DATA!AH$3:AH$101,DATA!$F$3:$F$101,$A82,DATA!$B$3:$B$101,$C$2) -> 0 | AE82: =SUMIFS(DATA!AI$3:AI$101,DATA!$F$3:$F$101,$A82,DATA!$B$3:$B$101,$C$2) -> 0 | AF82: =SUMIFS(DATA!AJ$3:AJ$101,DATA!$F$3:$F$101,$A82,DATA!$B$3:$B$101,$C$2) -> 0 | AG82: =SUMIFS(DATA!AK$3:AK$101,DATA!$F$3:$F$101,$A82,DATA!$B$3:$B$101,$C$2) -> 0 | AH82: =SUMIFS(DATA!AL$3:AL$101,DATA!$F$3:$F$101,$A82,DATA!$B$3:$B$101,$C$2) -> 0 | AI82: =SUMIFS(DATA!AM$3:AM$101,DATA!$F$3:$F$101,$A82,DATA!$B$3:$B$101,$C$2) -> 0 | AJ82: =SUMIFS(DATA!AN$3:AN$101,DATA!$F$3:$F$101,$A82,DATA!$B$3:$B$101,$C$2) -> 0 | AK82: =SUMIFS(DATA!AO$3:AO$101,DATA!$F$3:$F$101,$A82,DATA!$B$3:$B$101,$C$2) -> 0 | AL82: =SUMIFS(DATA!AP$3:AP$101,DATA!$F$3:$F$101,$A82,DATA!$B$3:$B$101,$C$2) -> 0 | AM82: =SUMIFS(DATA!AQ$3:AQ$101,DATA!$F$3:$F$101,$A82,DATA!$B$3:$B$101,$C$2) -> 0 | AN82: =SUMIFS(DATA!AR$3:AR$101,DATA!$F$3:$F$101,$A82,DATA!$B$3:$B$101,$C$2) -> 0 | AO82: =SUMIFS(DATA!AS$3:AS$101,DATA!$F$3:$F$101,$A82,DATA!$B$3:$B$101,$C$2) -> 0 | AP82: =SUMIFS(DATA!AT$3:AT$101,DATA!$F$3:$F$101,$A82,DATA!$B$3:$B$101,$C$2) -> 0 | AQ82: =SUMIFS(DATA!AU$3:AU$101,DATA!$F$3:$F$101,$A82,DATA!$B$3:$B$101,$C$2) -> 0 | AR82: =SUMIFS(DATA!AV$3:AV$101,DATA!$F$3:$F$101,$A82,DATA!$B$3:$B$101,$C$2) -> 0 | AS82: =SUMIFS(DATA!AW$3:AW$101,DATA!$F$3:$F$101,$A82,DATA!$B$3:$B$101,$C$2) -> 0 | AT82: =SUMIFS(DATA!AX$3:AX$101,DATA!$F$3:$F$101,$A82,DATA!$B$3:$B$101,$C$2) -> 0 | AU82: =SUMIFS(DATA!AY$3:AY$101,DATA!$F$3:$F$101,$A82,DATA!$B$3:$B$101,$C$2) -> 0 | AV82: =SUMIFS(DATA!AZ$3:AZ$101,DATA!$F$3:$F$101,$A82,DATA!$B$3:$B$101,$C$2) -> 0 | AW82: =SUMIFS(DATA!BA$3:BA$101,DATA!$F$3:$F$101,$A82,DATA!$B$3:$B$101,$C$2) -> 0 | AX82: =SUMIFS(DATA!BB$3:BB$101,DATA!$F$3:$F$101,$A82,DATA!$B$3:$B$101,$C$2) -> 0 | AY82: =SUMIFS(DATA!BC$3:BC$101,DATA!$F$3:$F$101,$A82,DATA!$B$3:$B$101,$C$2) -> 0 | AZ82: =SUMIFS(DATA!BD$3:BD$101,DATA!$F$3:$F$101,$A82,DATA!$B$3:$B$101,$C$2) -> 0
A83: Total Assets | B83: [Formula] | C83: =SUM(C77:C82) -> 14586 | D83: =SUM(D77:D82) -> 15891 | E83: 16958 | F83: 18801 | G83: 20743 | H83: 22706 | I83: 23861 | J83: 25087 | K83: 26409 | L83: 27735 | M83: 29428 | N83: 31132 | O83: 32637 | P83: 33489 | Q83: 34254 | R83: 34700 | S83: 35406 | T83: 35906 | U83: 36070 | V83: =SUM(V77:V82) -> 37146 | W83: 37219 | X83: 35510 | Y83: 35610 | Z83: 35620 | AA83: 35515 | AB83: 35664 | AC83: 35753 | AD83: 36154 | AE83: 36597 | AF83: 36844 | AG83: 37103 | AH83: 37671 | AI83: 38052 | AJ83: 38488 | AK83: 38951 | AL83: 39233 | AM83: 39306 | AN83: 39253 | AO83: 39527 | AP83: 39794 | AQ83: 40045 | AR83: 40138 | AS83: 38819 | AT83: 38287 | AU83: 37973 | AV83: 37809 | AW83: 37641 | AX83: 37147 | AY83: 37174 | AZ83: 36974
A84: Total Assets | B84: [Original] | C84: =SUMIFS(DATA!G$3:G$101,DATA!$F$3:$F$101,$A84,DATA!$B$3:$B$101,$C$2) -> 14587 | D84: =SUMIFS(DATA!H$3:H$101,DATA!$F$3:$F$101,$A84,DATA!$B$3:$B$101,$C$2) -> 15890 | E84: =SUMIFS(DATA!I$3:I$101,DATA!$F$3:$F$101,$A84,DATA!$B$3:$B$101,$C$2) -> 16958 | F84: =SUMIFS(DATA!J$3:J$101,DATA!$F$3:$F$101,$A84,DATA!$B$3:$B$101,$C$2) -> 18802 | G84: =SUMIFS(DATA!K$3:K$101,DATA!$F$3:$F$101,$A84,DATA!$B$3:$B$101,$C$2) -> 20742 | H84: =SUMIFS(DATA!L$3:L$101,DATA!$F$3:$F$101,$A84,DATA!$B$3:$B$101,$C$2) -> 22707 | I84: =SUMIFS(DATA!M$3:M$101,DATA!$F$3:$F$101,$A84,DATA!$B$3:$B$101,$C$2) -> 23861 | J84: =SUMIFS(DATA!N$3:N$101,DATA!$F$3:$F$101,$A84,DATA!$B$3:$B$101,$C$2) -> 25086 | K84: =SUMIFS(DATA!O$3:O$101,DATA!$F$3:$F$101,$A84,DATA!$B$3:$B$101,$C$2) -> 26409 | L84: =SUMIFS(DATA!P$3:P$101,DATA!$F$3:$F$101,$A84,DATA!$B$3:$B$101,$C$2) -> 27735 | M84: =SUMIFS(DATA!Q$3:Q$101,DATA!$F$3:$F$101,$A84,DATA!$B$3:$B$101,$C$2) -> 29430 | N84: =SUMIFS(DATA!R$3:R$101,DATA!$F$3:$F$101,$A84,DATA!$B$3:$B$101,$C$2) -> 31133 | O84: =SUMIFS(DATA!S$3:S$101,DATA!$F$3:$F$101,$A84,DATA!$B$3:$B$101,$C$2) -> 32637 | P84: =SUMIFS(DATA!T$3:T$101,DATA!$F$3:$F$101,$A84,DATA!$B$3:$B$101,$C$2) -> 33488 | Q84: =SUMIFS(DATA!U$3:U$101,DATA!$F$3:$F$101,$A84,DATA!$B$3:$B$101,$C$2) -> 34255 | R84: =SUMIFS(DATA!V$3:V$101,DATA!$F$3:$F$101,$A84,DATA!$B$3:$B$101,$C$2) -> 34700 | S84: =SUMIFS(DATA!W$3:W$101,DATA!$F$3:$F$101,$A84,DATA!$B$3:$B$101,$C$2) -> 35406 | T84: =SUMIFS(DATA!X$3:X$101,DATA!$F$3:$F$101,$A84,DATA!$B$3:$B$101,$C$2) -> 35906 | U84: =SUMIFS(DATA!Y$3:Y$101,DATA!$F$3:$F$101,$A84,DATA!$B$3:$B$101,$C$2) -> 36071 | V84: =SUMIFS(DATA!Z$3:Z$101,DATA!$F$3:$F$101,$A84,DATA!$B$3:$B$101,$C$2) -> 37145 | W84: =SUMIFS(DATA!AA$3:AA$101,DATA!$F$3:$F$101,$A84,DATA!$B$3:$B$101,$C$2) -> 37220 | X84: =SUMIFS(DATA!AB$3:AB$101,DATA!$F$3:$F$101,$A84,DATA!$B$3:$B$101,$C$2) -> 35511 | Y84: =SUMIFS(DATA!AC$3:AC$101,DATA!$F$3:$F$101,$A84,DATA!$B$3:$B$101,$C$2) -> 35610 | Z84: =SUMIFS(DATA!AD$3:AD$101,DATA!$F$3:$F$101,$A84,DATA!$B$3:$B$101,$C$2) -> 35621 | AA84: =SUMIFS(DATA!AE$3:AE$101,DATA!$F$3:$F$101,$A84,DATA!$B$3:$B$101,$C$2) -> 35516 | AB84: =SUMIFS(DATA!AF$3:AF$101,DATA!$F$3:$F$101,$A84,DATA!$B$3:$B$101,$C$2) -> 35664 | AC84: =SUMIFS(DATA!AG$3:AG$101,DATA!$F$3:$F$101,$A84,DATA!$B$3:$B$101,$C$2) -> 35753 | AD84: =SUMIFS(DATA!AH$3:AH$101,DATA!$F$3:$F$101,$A84,DATA!$B$3:$B$101,$C$2) -> 36154 | AE84: =SUMIFS(DATA!AI$3:AI$101,DATA!$F$3:$F$101,$A84,DATA!$B$3:$B$101,$C$2) -> 36597 | AF84: =SUMIFS(DATA!AJ$3:AJ$101,DATA!$F$3:$F$101,$A84,DATA!$B$3:$B$101,$C$2) -> 36844 | AG84: =SUMIFS(DATA!AK$3:AK$101,DATA!$F$3:$F$101,$A84,DATA!$B$3:$B$101,$C$2) -> 37103 | AH84: =SUMIFS(DATA!AL$3:AL$101,DATA!$F$3:$F$101,$A84,DATA!$B$3:$B$101,$C$2) -> 37671 | AI84: =SUMIFS(DATA!AM$3:AM$101,DATA!$F$3:$F$101,$A84,DATA!$B$3:$B$101,$C$2) -> 38053 | AJ84: =SUMIFS(DATA!AN$3:AN$101,DATA!$F$3:$F$101,$A84,DATA!$B$3:$B$101,$C$2) -> 38489 | AK84: =SUMIFS(DATA!AO$3:AO$101,DATA!$F$3:$F$101,$A84,DATA!$B$3:$B$101,$C$2) -> 38950 | AL84: =SUMIFS(DATA!AP$3:AP$101,DATA!$F$3:$F$101,$A84,DATA!$B$3:$B$101,$C$2) -> 39233 | AM84: =SUMIFS(DATA!AQ$3:AQ$101,DATA!$F$3:$F$101,$A84,DATA!$B$3:$B$101,$C$2) -> 39306 | AN84: =SUMIFS(DATA!AR$3:AR$101,DATA!$F$3:$F$101,$A84,DATA!$B$3:$B$101,$C$2) -> 39253 | AO84: =SUMIFS(DATA!AS$3:AS$101,DATA!$F$3:$F$101,$A84,DATA!$B$3:$B$101,$C$2) -> 39527 | AP84: =SUMIFS(DATA!AT$3:AT$101,DATA!$F$3:$F$101,$A84,DATA!$B$3:$B$101,$C$2) -> 39794 | AQ84: =SUMIFS(DATA!AU$3:AU$101,DATA!$F$3:$F$101,$A84,DATA!$B$3:$B$101,$C$2) -> 40045 | AR84: =SUMIFS(DATA!AV$3:AV$101,DATA!$F$3:$F$101,$A84,DATA!$B$3:$B$101,$C$2) -> 40138 | AS84: =SUMIFS(DATA!AW$3:AW$101,DATA!$F$3:$F$101,$A84,DATA!$B$3:$B$101,$C$2) -> 38818 | AT84: =SUMIFS(DATA!AX$3:AX$101,DATA!$F$3:$F$101,$A84,DATA!$B$3:$B$101,$C$2) -> 38289 | AU84: =SUMIFS(DATA!AY$3:AY$101,DATA!$F$3:$F$101,$A84,DATA!$B$3:$B$101,$C$2) -> 37972 | AV84: =SUMIFS(DATA!AZ$3:AZ$101,DATA!$F$3:$F$101,$A84,DATA!$B$3:$B$101,$C$2) -> 37809 | AW84: =SUMIFS(DATA!BA$3:BA$101,DATA!$F$3:$F$101,$A84,DATA!$B$3:$B$101,$C$2) -> 37642 | AX84: =SUMIFS(DATA!BB$3:BB$101,DATA!$F$3:$F$101,$A84,DATA!$B$3:$B$101,$C$2) -> 37147 | AY84: =SUMIFS(DATA!BC$3:BC$101,DATA!$F$3:$F$101,$A84,DATA!$B$3:$B$101,$C$2) -> 37174 | AZ84: =SUMIFS(DATA!BD$3:BD$101,DATA!$F$3:$F$101,$A84,DATA!$B$3:$B$101,$C$2) -> 36973
B85: [Difference] | C85: =C83-C84 -> -1 | D85: =D83-D84 -> 1 | E85: 0 | F85: -1 | G85: 1 | H85: -1 | I85: 0 | J85: 1 | K85: 0 | L85: 0 | M85: -2 | N85: -1 | O85: 0 | P85: 1 | Q85: -1 | R85: 0 | S85: 0 | T85: 0 | U85: -1 | V85: 1 | W85: -1 | X85: -1 | Y85: 0 | Z85: -1 | AA85: -1 | AB85: 0 | AC85: 0 | AD85: 0 | AE85: 0 | AF85: 0 | AG85: 0 | AH85: 0 | AI85: -1 | AJ85: -1 | AK85: 1 | AL85: 0 | AM85: 0 | AN85: 0 | AO85: 0 | AP85: 0 | AQ85: 0 | AR85: 0 | AS85: 1 | AT85: -2 | AU85: 1 | AV85: 0 | AW85: -1 | AX85: 0 | AY85: 0 | AZ85: 1
A87: LIABILITIES AND EQUITY
A89: Long Term Debt | C89: =SUMIFS(DATA!G$3:G$101,DATA!$F$3:$F$101,$A89,DATA!$B$3:$B$101,$C$2) -> 9289 | D89: =SUMIFS(DATA!H$3:H$101,DATA!$F$3:$F$101,$A89,DATA!$B$3:$B$101,$C$2) -> 11260 | E89: =SUMIFS(DATA!I$3:I$101,DATA!$F$3:$F$101,$A89,DATA!$B$3:$B$101,$C$2) -> 12802 | F89: =SUMIFS(DATA!J$3:J$101,DATA!$F$3:$F$101,$A89,DATA!$B$3:$B$101,$C$2) -> 14474 | G89: =SUMIFS(DATA!K$3:K$101,DATA!$F$3:$F$101,$A89,DATA!$B$3:$B$101,$C$2) -> 16170 | H89: =SUMIFS(DATA!L$3:L$101,DATA!$F$3:$F$101,$A89,DATA!$B$3:$B$101,$C$2) -> 17742 | I89: =SUMIFS(DATA!M$3:M$101,DATA!$F$3:$F$101,$A89,DATA!$B$3:$B$101,$C$2) -> 19438 | J89: =SUMIFS(DATA!N$3:N$101,DATA!$F$3:$F$101,$A89,DATA!$B$3:$B$101,$C$2) -> 20404 | K89: =SUMIFS(DATA!O$3:O$101,DATA!$F$3:$F$101,$A89,DATA!$B$3:$B$101,$C$2) -> 21727 | L89: =SUMIFS(DATA!P$3:P$101,DATA!$F$3:$F$101,$A89,DATA!$B$3:$B$101,$C$2) -> 23077 | M89: =SUMIFS(DATA!Q$3:Q$101,DATA!$F$3:$F$101,$A89,DATA!$B$3:$B$101,$C$2) -> 25080 | N89: =SUMIFS(DATA!R$3:R$101,DATA!$F$3:$F$101,$A89,DATA!$B$3:$B$101,$C$2) -> 26482 | O89: =SUMIFS(DATA!S$3:S$101,DATA!$F$3:$F$101,$A89,DATA!$B$3:$B$101,$C$2) -> 27235 | P89: =SUMIFS(DATA!T$3:T$101,DATA!$F$3:$F$101,$A89,DATA!$B$3:$B$101,$C$2) -> 28038 | Q89: =SUMIFS(DATA!U$3:U$101,DATA!$F$3:$F$101,$A89,DATA!$B$3:$B$101,$C$2) -> 28239 | R89: =SUMIFS(DATA!V$3:V$101,DATA!$F$3:$F$101,$A89,DATA!$B$3:$B$101,$C$2) -> 28380 | S89: =SUMIFS(DATA!W$3:W$101,DATA!$F$3:$F$101,$A89,DATA!$B$3:$B$101,$C$2) -> 28331 | T89: =SUMIFS(DATA!X$3:X$101,DATA!$F$3:$F$101,$A89,DATA!$B$3:$B$101,$C$2) -> 27634 | U89: =SUMIFS(DATA!Y$3:Y$101,DATA!$F$3:$F$101,$A89,DATA!$B$3:$B$101,$C$2) -> 27623 | V89: =SUMIFS(DATA!Z$3:Z$101,DATA!$F$3:$F$101,$A89,DATA!$B$3:$B$101,$C$2) -> 27396 | W89: =SUMIFS(DATA!AA$3:AA$101,DATA!$F$3:$F$101,$A89,DATA!$B$3:$B$101,$C$2) -> 25199 | X89: =SUMIFS(DATA!AB$3:AB$101,DATA!$F$3:$F$101,$A89,DATA!$B$3:$B$101,$C$2) -> 23601 | Y89: =SUMIFS(DATA!AC$3:AC$101,DATA!$F$3:$F$101,$A89,DATA!$B$3:$B$101,$C$2) -> 22920 | Z89: =SUMIFS(DATA!AD$3:AD$101,DATA!$F$3:$F$101,$A89,DATA!$B$3:$B$101,$C$2) -> 22521 | AA89: =SUMIFS(DATA!AE$3:AE$101,DATA!$F$3:$F$101,$A89,DATA!$B$3:$B$101,$C$2) -> 21573 | AB89: =SUMIFS(DATA!AF$3:AF$101,DATA!$F$3:$F$101,$A89,DATA!$B$3:$B$101,$C$2) -> 21975 | AC89: =SUMIFS(DATA!AG$3:AG$101,DATA!$F$3:$F$101,$A89,DATA!$B$3:$B$101,$C$2) -> 22277 | AD89: =SUMIFS(DATA!AH$3:AH$101,DATA!$F$3:$F$101,$A89,DATA!$B$3:$B$101,$C$2) -> 22029 | AE89: =SUMIFS(DATA!AI$3:AI$101,DATA!$F$3:$F$101,$A89,DATA!$B$3:$B$101,$C$2) -> 22179 | AF89: =SUMIFS(DATA!AJ$3:AJ$101,DATA!$F$3:$F$101,$A89,DATA!$B$3:$B$101,$C$2) -> 22078 | AG89: =SUMIFS(DATA!AK$3:AK$101,DATA!$F$3:$F$101,$A89,DATA!$B$3:$B$101,$C$2) -> 22827 | AH89: =SUMIFS(DATA!AL$3:AL$101,DATA!$F$3:$F$101,$A89,DATA!$B$3:$B$101,$C$2) -> 23425 | AI89: =SUMIFS(DATA!AM$3:AM$101,DATA!$F$3:$F$101,$A89,DATA!$B$3:$B$101,$C$2) -> 23824 | AJ89: =SUMIFS(DATA!AN$3:AN$101,DATA!$F$3:$F$101,$A89,DATA!$B$3:$B$101,$C$2) -> 24422 | AK89: =SUMIFS(DATA!AO$3:AO$101,DATA!$F$3:$F$101,$A89,DATA!$B$3:$B$101,$C$2) -> 24820 | AL89: =SUMIFS(DATA!AP$3:AP$101,DATA!$F$3:$F$101,$A89,DATA!$B$3:$B$101,$C$2) -> 24819 | AM89: =SUMIFS(DATA!AQ$3:AQ$101,DATA!$F$3:$F$101,$A89,DATA!$B$3:$B$101,$C$2) -> 24492 | AN89: =SUMIFS(DATA!AR$3:AR$101,DATA!$F$3:$F$101,$A89,DATA!$B$3:$B$101,$C$2) -> 24490 | AO89: =SUMIFS(DATA!AS$3:AS$101,DATA!$F$3:$F$101,$A89,DATA!$B$3:$B$101,$C$2) -> 24490 | AP89: =SUMIFS(DATA!AT$3:AT$101,DATA!$F$3:$F$101,$A89,DATA!$B$3:$B$101,$C$2) -> 24439 | AQ89: =SUMIFS(DATA!AU$3:AU$101,DATA!$F$3:$F$101,$A89,DATA!$B$3:$B$101,$C$2) -> 24239 | AR89: =SUMIFS(DATA!AV$3:AV$101,DATA!$F$3:$F$101,$A89,DATA!$B$3:$B$101,$C$2) -> 22638 | AS89: =SUMIFS(DATA!AW$3:AW$101,DATA!$F$3:$F$101,$A89,DATA!$B$3:$B$101,$C$2) -> 20638 | AT89: =SUMIFS(DATA!AX$3:AX$101,DATA!$F$3:$F$101,$A89,DATA!$B$3:$B$101,$C$2) -> 19837 | AU89: =SUMIFS(DATA!AY$3:AY$101,DATA!$F$3:$F$101,$A89,DATA!$B$3:$B$101,$C$2) -> 18429 | AV89: =SUMIFS(DATA!AZ$3:AZ$101,DATA!$F$3:$F$101,$A89,DATA!$B$3:$B$101,$C$2) -> 18629 | AW89: =SUMIFS(DATA!BA$3:BA$101,DATA!$F$3:$F$101,$A89,DATA!$B$3:$B$101,$C$2) -> 18303 | AX89: =SUMIFS(DATA!BB$3:BB$101,DATA!$F$3:$F$101,$A89,DATA!$B$3:$B$101,$C$2) -> 17302 | AY89: =SUMIFS(DATA!BC$3:BC$101,DATA!$F$3:$F$101,$A89,DATA!$B$3:$B$101,$C$2) -> 17302 | AZ89: =SUMIFS(DATA!BD$3:BD$101,DATA!$F$3:$F$101,$A89,DATA!$B$3:$B$101,$C$2) -> 16852
A90: Incremental Long Term Debt | D90: =D89-C89 -> 1971 | E90: =E89-D89 -> 1542 | F90: 1672 | G90: 1696 | H90: 1572 | I90: 1696 | J90: 966 | K90: 1323 | L90: 1350 | M90: 2003 | N90: 1402 | O90: 753 | P90: 803 | Q90: 201 | R90: 141 | S90: -49 | T90: -697 | U90: -11 | V90: -227 | W90: -2197 | X90: -1598 | Y90: -681 | Z90: -399 | AA90: -948 | AB90: 402 | AC90: 302 | AD90: -248 | AE90: 150 | AF90: -101 | AG90: 749 | AH90: 598 | AI90: 399 | AJ90: 598 | AK90: 398 | AL90: -1 | AM90: -327 | AN90: -2 | AO90: 0 | AP90: -51 | AQ90: -200 | AR90: -1601 | AS90: -2000 | AT90: -801 | AU90: -1408 | AV90: 200 | AW90: -326 | AX90: -1001 | AY90: 0 | AZ90: -450
A91: Current and Other Liabilities | C91: =SUMIFS(DATA!G$3:G$101,DATA!$F$3:$F$101,$A91,DATA!$B$3:$B$101,$C$2) -> 2231 | D91: =SUMIFS(DATA!H$3:H$101,DATA!$F$3:$F$101,$A91,DATA!$B$3:$B$101,$C$2) -> 1503 | E91: =SUMIFS(DATA!I$3:I$101,DATA!$F$3:$F$101,$A91,DATA!$B$3:$B$101,$C$2) -> 1659 | F91: =SUMIFS(DATA!J$3:J$101,DATA!$F$3:$F$101,$A91,DATA!$B$3:$B$101,$C$2) -> 1795 | G91: =SUMIFS(DATA!K$3:K$101,DATA!$F$3:$F$101,$A91,DATA!$B$3:$B$101,$C$2) -> 2007 | H91: =SUMIFS(DATA!L$3:L$101,DATA!$F$3:$F$101,$A91,DATA!$B$3:$B$101,$C$2) -> 2381 | I91: =SUMIFS(DATA!M$3:M$101,DATA!$F$3:$F$101,$A91,DATA!$B$3:$B$101,$C$2) -> 1904 | J91: =SUMIFS(DATA!N$3:N$101,DATA!$F$3:$F$101,$A91,DATA!$B$3:$B$101,$C$2) -> 2140 | K91: =SUMIFS(DATA!O$3:O$101,DATA!$F$3:$F$101,$A91,DATA!$B$3:$B$101,$C$2) -> 2092 | L91: =SUMIFS(DATA!P$3:P$101,DATA!$F$3:$F$101,$A91,DATA!$B$3:$B$101,$C$2) -> 1988 | M91: =SUMIFS(DATA!Q$3:Q$101,DATA!$F$3:$F$101,$A91,DATA!$B$3:$B$101,$C$2) -> 1491 | N91: =SUMIFS(DATA!R$3:R$101,DATA!$F$3:$F$101,$A91,DATA!$B$3:$B$101,$C$2) -> 1523 | O91: =SUMIFS(DATA!S$3:S$101,DATA!$F$3:$F$101,$A91,DATA!$B$3:$B$101,$C$2) -> 1921 | P91: =SUMIFS(DATA!T$3:T$101,DATA!$F$3:$F$101,$A91,DATA!$B$3:$B$101,$C$2) -> 1590 | Q91: =SUMIFS(DATA!U$3:U$101,DATA!$F$3:$F$101,$A91,DATA!$B$3:$B$101,$C$2) -> 1690 | R91: =SUMIFS(DATA!V$3:V$101,DATA!$F$3:$F$101,$A91,DATA!$B$3:$B$101,$C$2) -> 1586 | S91: =SUMIFS(DATA!W$3:W$101,DATA!$F$3:$F$101,$A91,DATA!$B$3:$B$101,$C$2) -> 1766 | T91: =SUMIFS(DATA!X$3:X$101,DATA!$F$3:$F$101,$A91,DATA!$B$3:$B$101,$C$2) -> 2219 | U91: =SUMIFS(DATA!Y$3:Y$101,DATA!$F$3:$F$101,$A91,DATA!$B$3:$B$101,$C$2) -> 1531 | V91: =SUMIFS(DATA!Z$3:Z$101,DATA!$F$3:$F$101,$A91,DATA!$B$3:$B$101,$C$2) -> 1751 | W91: =SUMIFS(DATA!AA$3:AA$101,DATA!$F$3:$F$101,$A91,DATA!$B$3:$B$101,$C$2) -> 3724 | X91: =SUMIFS(DATA!AB$3:AB$101,DATA!$F$3:$F$101,$A91,DATA!$B$3:$B$101,$C$2) -> 3315 | Y91: =SUMIFS(DATA!AC$3:AC$101,DATA!$F$3:$F$101,$A91,DATA!$B$3:$B$101,$C$2) -> 3800 | Z91: =SUMIFS(DATA!AD$3:AD$101,DATA!$F$3:$F$101,$A91,DATA!$B$3:$B$101,$C$2) -> 3915 | AA91: =SUMIFS(DATA!AE$3:AE$101,DATA!$F$3:$F$101,$A91,DATA!$B$3:$B$101,$C$2) -> 4465 | AB91: =SUMIFS(DATA!AF$3:AF$101,DATA!$F$3:$F$101,$A91,DATA!$B$3:$B$101,$C$2) -> 3922 | AC91: =SUMIFS(DATA!AG$3:AG$101,DATA!$F$3:$F$101,$A91,DATA!$B$3:$B$101,$C$2) -> 3422 | AD91: =SUMIFS(DATA!AH$3:AH$101,DATA!$F$3:$F$101,$A91,DATA!$B$3:$B$101,$C$2) -> 3785 | AE91: =SUMIFS(DATA!AI$3:AI$101,DATA!$F$3:$F$101,$A91,DATA!$B$3:$B$101,$C$2) -> 3792 | AF91: =SUMIFS(DATA!AJ$3:AJ$101,DATA!$F$3:$F$101,$A91,DATA!$B$3:$B$101,$C$2) -> 3854 | AG91: =SUMIFS(DATA!AK$3:AK$101,DATA!$F$3:$F$101,$A91,DATA!$B$3:$B$101,$C$2) -> 3078 | AH91: =SUMIFS(DATA!AL$3:AL$101,DATA!$F$3:$F$101,$A91,DATA!$B$3:$B$101,$C$2) -> 2761 | AI91: =SUMIFS(DATA!AM$3:AM$101,DATA!$F$3:$F$101,$A91,DATA!$B$3:$B$101,$C$2) -> 2457 | AJ91: =SUMIFS(DATA!AN$3:AN$101,DATA!$F$3:$F$101,$A91,DATA!$B$3:$B$101,$C$2) -> 2008 | AK91: =SUMIFS(DATA!AO$3:AO$101,DATA!$F$3:$F$101,$A91,DATA!$B$3:$B$101,$C$2) -> 1784 | AL91: =SUMIFS(DATA!AP$3:AP$101,DATA!$F$3:$F$101,$A91,DATA!$B$3:$B$101,$C$2) -> 1790 | AM91: =SUMIFS(DATA!AQ$3:AQ$101,DATA!$F$3:$F$101,$A91,DATA!$B$3:$B$101,$C$2) -> 1913 | AN91: =SUMIFS(DATA!AR$3:AR$101,DATA!$F$3:$F$101,$A91,DATA!$B$3:$B$101,$C$2) -> 1590 | AO91: =SUMIFS(DATA!AS$3:AS$101,DATA!$F$3:$F$101,$A91,DATA!$B$3:$B$101,$C$2) -> 1593 | AP91: =SUMIFS(DATA!AT$3:AT$101,DATA!$F$3:$F$101,$A91,DATA!$B$3:$B$101,$C$2) -> 1643 | AQ91: =SUMIFS(DATA!AU$3:AU$101,DATA!$F$3:$F$101,$A91,DATA!$B$3:$B$101,$C$2) -> 1817 | AR91: =SUMIFS(DATA!AV$3:AV$101,DATA!$F$3:$F$101,$A91,DATA!$B$3:$B$101,$C$2) -> 3237 | AS91: =SUMIFS(DATA!AW$3:AW$101,DATA!$F$3:$F$101,$A91,DATA!$B$3:$B$101,$C$2) -> 3650 | AT91: =SUMIFS(DATA!AX$3:AX$101,DATA!$F$3:$F$101,$A91,DATA!$B$3:$B$101,$C$2) -> 3664 | AU91: =SUMIFS(DATA!AY$3:AY$101,DATA!$F$3:$F$101,$A91,DATA!$B$3:$B$101,$C$2) -> 4502 | AV91: =SUMIFS(DATA!AZ$3:AZ$101,DATA!$F$3:$F$101,$A91,DATA!$B$3:$B$101,$C$2) -> 3896 | AW91: =SUMIFS(DATA!BA$3:BA$101,DATA!$F$3:$F$101,$A91,DATA!$B$3:$B$101,$C$2) -> 3818 | AX91: =SUMIFS(DATA!BB$3:BB$101,DATA!$F$3:$F$101,$A91,DATA!$B$3:$B$101,$C$2) -> 4090 | AY91: =SUMIFS(DATA!BC$3:BC$101,DATA!$F$3:$F$101,$A91,DATA!$B$3:$B$101,$C$2) -> 3889 | AZ91: =SUMIFS(DATA!BD$3:BD$101,DATA!$F$3:$F$101,$A91,DATA!$B$3:$B$101,$C$2) -> 3915
A92: Contributions in Aid of Construction | C92: =SUMIFS(DATA!G$3:G$101,DATA!$F$3:$F$101,$A92,DATA!$B$3:$B$101,$C$2) -> 325 | D92: =SUMIFS(DATA!H$3:H$101,DATA!$F$3:$F$101,$A92,DATA!$B$3:$B$101,$C$2) -> 334 | E92: =SUMIFS(DATA!I$3:I$101,DATA!$F$3:$F$101,$A92,DATA!$B$3:$B$101,$C$2) -> 339 | F92: =SUMIFS(DATA!J$3:J$101,DATA!$F$3:$F$101,$A92,DATA!$B$3:$B$101,$C$2) -> 344 | G92: =SUMIFS(DATA!K$3:K$101,DATA!$F$3:$F$101,$A92,DATA!$B$3:$B$101,$C$2) -> 348 | H92: =SUMIFS(DATA!L$3:L$101,DATA!$F$3:$F$101,$A92,DATA!$B$3:$B$101,$C$2) -> 358 | I92: =SUMIFS(DATA!M$3:M$101,DATA!$F$3:$F$101,$A92,DATA!$B$3:$B$101,$C$2) -> 364 | J92: =SUMIFS(DATA!N$3:N$101,DATA!$F$3:$F$101,$A92,DATA!$B$3:$B$101,$C$2) -> 371 | K92: =SUMIFS(DATA!O$3:O$101,DATA!$F$3:$F$101,$A92,DATA!$B$3:$B$101,$C$2) -> 378 | L92: =SUMIFS(DATA!P$3:P$101,DATA!$F$3:$F$101,$A92,DATA!$B$3:$B$101,$C$2) -> 385 | M92: =SUMIFS(DATA!Q$3:Q$101,DATA!$F$3:$F$101,$A92,DATA!$B$3:$B$101,$C$2) -> 392 | N92: =SUMIFS(DATA!R$3:R$101,DATA!$F$3:$F$101,$A92,DATA!$B$3:$B$101,$C$2) -> 400 | O92: =SUMIFS(DATA!S$3:S$101,DATA!$F$3:$F$101,$A92,DATA!$B$3:$B$101,$C$2) -> 407 | P92: =SUMIFS(DATA!T$3:T$101,DATA!$F$3:$F$101,$A92,DATA!$B$3:$B$101,$C$2) -> 415 | Q92: =SUMIFS(DATA!U$3:U$101,DATA!$F$3:$F$101,$A92,DATA!$B$3:$B$101,$C$2) -> 422 | R92: =SUMIFS(DATA!V$3:V$101,DATA!$F$3:$F$101,$A92,DATA!$B$3:$B$101,$C$2) -> 430 | S92: =SUMIFS(DATA!W$3:W$101,DATA!$F$3:$F$101,$A92,DATA!$B$3:$B$101,$C$2) -> 438 | T92: =SUMIFS(DATA!X$3:X$101,DATA!$F$3:$F$101,$A92,DATA!$B$3:$B$101,$C$2) -> 446 | U92: =SUMIFS(DATA!Y$3:Y$101,DATA!$F$3:$F$101,$A92,DATA!$B$3:$B$101,$C$2) -> 455 | V92: =SUMIFS(DATA!Z$3:Z$101,DATA!$F$3:$F$101,$A92,DATA!$B$3:$B$101,$C$2) -> 463 | W92: =SUMIFS(DATA!AA$3:AA$101,DATA!$F$3:$F$101,$A92,DATA!$B$3:$B$101,$C$2) -> 472 | X92: =SUMIFS(DATA!AB$3:AB$101,DATA!$F$3:$F$101,$A92,DATA!$B$3:$B$101,$C$2) -> 482 | Y92: =SUMIFS(DATA!AC$3:AC$101,DATA!$F$3:$F$101,$A92,DATA!$B$3:$B$101,$C$2) -> 492 | Z92: =SUMIFS(DATA!AD$3:AD$101,DATA!$F$3:$F$101,$A92,DATA!$B$3:$B$101,$C$2) -> 502 | AA92: =SUMIFS(DATA!AE$3:AE$101,DATA!$F$3:$F$101,$A92,DATA!$B$3:$B$101,$C$2) -> 512 | AB92: =SUMIFS(DATA!AF$3:AF$101,DATA!$F$3:$F$101,$A92,DATA!$B$3:$B$101,$C$2) -> 522 | AC92: =SUMIFS(DATA!AG$3:AG$101,DATA!$F$3:$F$101,$A92,DATA!$B$3:$B$101,$C$2) -> 533 | AD92: =SUMIFS(DATA!AH$3:AH$101,DATA!$F$3:$F$101,$A92,DATA!$B$3:$B$101,$C$2) -> 543 | AE92: =SUMIFS(DATA!AI$3:AI$101,DATA!$F$3:$F$101,$A92,DATA!$B$3:$B$101,$C$2) -> 554 | AF92: =SUMIFS(DATA!AJ$3:AJ$101,DATA!$F$3:$F$101,$A92,DATA!$B$3:$B$101,$C$2) -> 565 | AG92: =SUMIFS(DATA!AK$3:AK$101,DATA!$F$3:$F$101,$A92,DATA!$B$3:$B$101,$C$2) -> 577 | AH92: =SUMIFS(DATA!AL$3:AL$101,DATA!$F$3:$F$101,$A92,DATA!$B$3:$B$101,$C$2) -> 588 | AI92: =SUMIFS(DATA!AM$3:AM$101,DATA!$F$3:$F$101,$A92,DATA!$B$3:$B$101,$C$2) -> 600 | AJ92: =SUMIFS(DATA!AN$3:AN$101,DATA!$F$3:$F$101,$A92,DATA!$B$3:$B$101,$C$2) -> 611 | AK92: =SUMIFS(DATA!AO$3:AO$101,DATA!$F$3:$F$101,$A92,DATA!$B$3:$B$101,$C$2) -> 622 | AL92: =SUMIFS(DATA!AP$3:AP$101,DATA!$F$3:$F$101,$A92,DATA!$B$3:$B$101,$C$2) -> 634 | AM92: =SUMIFS(DATA!AQ$3:AQ$101,DATA!$F$3:$F$101,$A92,DATA!$B$3:$B$101,$C$2) -> 645 | AN92: =SUMIFS(DATA!AR$3:AR$101,DATA!$F$3:$F$101,$A92,DATA!$B$3:$B$101,$C$2) -> 656 | AO92: =SUMIFS(DATA!AS$3:AS$101,DATA!$F$3:$F$101,$A92,DATA!$B$3:$B$101,$C$2) -> 666 | AP92: =SUMIFS(DATA!AT$3:AT$101,DATA!$F$3:$F$101,$A92,DATA!$B$3:$B$101,$C$2) -> 677 | AQ92: =SUMIFS(DATA!AU$3:AU$101,DATA!$F$3:$F$101,$A92,DATA!$B$3:$B$101,$C$2) -> 700 | AR92: =SUMIFS(DATA!AV$3:AV$101,DATA!$F$3:$F$101,$A92,DATA!$B$3:$B$101,$C$2) -> 722 | AS92: =SUMIFS(DATA!AW$3:AW$101,DATA!$F$3:$F$101,$A92,DATA!$B$3:$B$101,$C$2) -> 745 | AT92: =SUMIFS(DATA!AX$3:AX$101,DATA!$F$3:$F$101,$A92,DATA!$B$3:$B$101,$C$2) -> 768 | AU92: =SUMIFS(DATA!AY$3:AY$101,DATA!$F$3:$F$101,$A92,DATA!$B$3:$B$101,$C$2) -> 791 | AV92: =SUMIFS(DATA!AZ$3:AZ$101,DATA!$F$3:$F$101,$A92,DATA!$B$3:$B$101,$C$2) -> 813 | AW92: =SUMIFS(DATA!BA$3:BA$101,DATA!$F$3:$F$101,$A92,DATA!$B$3:$B$101,$C$2) -> 836 | AX92: =SUMIFS(DATA!BB$3:BB$101,DATA!$F$3:$F$101,$A92,DATA!$B$3:$B$101,$C$2) -> 859 | AY92: =SUMIFS(DATA!BC$3:BC$101,DATA!$F$3:$F$101,$A92,DATA!$B$3:$B$101,$C$2) -> 881 | AZ92: =SUMIFS(DATA!BD$3:BD$101,DATA!$F$3:$F$101,$A92,DATA!$B$3:$B$101,$C$2) -> 904
A93: [All Cases 2015 Retained Earnings Adj.] | E93: -257
A94: Retained Earnings | B94: [Formula] | C94: 2442 | D94: =C94+D46+D93 -> 2504.635 | E94: 2417.7783 | F94: 2602.013008 | G94: 2688.511772 | H94: 2662.969151 | I94: 2602.263153 | J94: 2718.058314 | K94: 2809.028538 | L94: 2992.10297 | M94: 3085.529834 | N94: 3508.248556 | O94: 3968.10939 | P94: 4685.986294 | Q94: 5384.231772 | R94: 5475.316782 | S94: 5745.83629 | T94: 6125.590658 | U94: 6835.026336 | V94: 7885.799522 | W94: 8175.999522 | X94: 8464.599522 | Y94: =X94+Y46+Y93 -> 8749.199522 | Z94: 9033.799522 | AA94: 9316.399522 | AB94: 9595.999522 | AC94: 9872.399522 | AD94: 10147.39952 | AE94: 10422.39952 | AF94: 10697.99952 | AG94: 10972.99952 | AH94: 11248.19952 | AI94: 11523.19952 | AJ94: =AI94+AJ46+AJ93 -> 11798.39952 | AK94: 12073.99952 | AL94: 12342.19952 | AM94: 12607.39952 | AN94: 12869.65582 | AO94: 13131.13753 | AP94: 13389.02832 | AQ94: 13644.72566 | AR94: 13896.6447 | AS94: 14142.76961 | AT94: 14378.53736 | AU94: 14609.13736 | AV94: 14829.20614 | AW94: 15044.073 | AX94: 15254.53694 | AY94: 15459.59921 | AZ94: 15659.05943
A95: Retained Earnings | B95: [Original] | C95: =SUMIFS(DATA!G$3:G$101,DATA!$F$3:$F$101,$A95,DATA!$B$3:$B$101,$C$2) -> 2442 | D95: =SUMIFS(DATA!H$3:H$101,DATA!$F$3:$F$101,$A95,DATA!$B$3:$B$101,$C$2) -> 2505 | E95: =SUMIFS(DATA!I$3:I$101,DATA!$F$3:$F$101,$A95,DATA!$B$3:$B$101,$C$2) -> 2299 | F95: =SUMIFS(DATA!J$3:J$101,DATA!$F$3:$F$101,$A95,DATA!$B$3:$B$101,$C$2) -> 2378 | G95: =SUMIFS(DATA!K$3:K$101,DATA!$F$3:$F$101,$A95,DATA!$B$3:$B$101,$C$2) -> 2450 | H95: =SUMIFS(DATA!L$3:L$101,DATA!$F$3:$F$101,$A95,DATA!$B$3:$B$101,$C$2) -> 2490 | I95: =SUMIFS(DATA!M$3:M$101,DATA!$F$3:$F$101,$A95,DATA!$B$3:$B$101,$C$2) -> 2437 | J95: =SUMIFS(DATA!N$3:N$101,DATA!$F$3:$F$101,$A95,DATA!$B$3:$B$101,$C$2) -> 2475 | K95: =SUMIFS(DATA!O$3:O$101,DATA!$F$3:$F$101,$A95,DATA!$B$3:$B$101,$C$2) -> 2538 | L95: =SUMIFS(DATA!P$3:P$101,DATA!$F$3:$F$101,$A95,DATA!$B$3:$B$101,$C$2) -> 2638 | M95: =SUMIFS(DATA!Q$3:Q$101,DATA!$F$3:$F$101,$A95,DATA!$B$3:$B$101,$C$2) -> 2837 | N95: =SUMIFS(DATA!R$3:R$101,DATA!$F$3:$F$101,$A95,DATA!$B$3:$B$101,$C$2) -> 3097 | O95: =SUMIFS(DATA!S$3:S$101,DATA!$F$3:$F$101,$A95,DATA!$B$3:$B$101,$C$2) -> 3443 | P95: =SUMIFS(DATA!T$3:T$101,DATA!$F$3:$F$101,$A95,DATA!$B$3:$B$101,$C$2) -> 3816 | Q95: =SUMIFS(DATA!U$3:U$101,DATA!$F$3:$F$101,$A95,DATA!$B$3:$B$101,$C$2) -> 4273 | R95: =SUMIFS(DATA!V$3:V$101,DATA!$F$3:$F$101,$A95,DATA!$B$3:$B$101,$C$2) -> 4673 | S95: =SUMIFS(DATA!W$3:W$101,DATA!$F$3:$F$101,$A95,DATA!$B$3:$B$101,$C$2) -> 5241 | T95: =SUMIFS(DATA!X$3:X$101,DATA!$F$3:$F$101,$A95,DATA!$B$3:$B$101,$C$2) -> 5975 | U95: =SUMIFS(DATA!Y$3:Y$101,DATA!$F$3:$F$101,$A95,DATA!$B$3:$B$101,$C$2) -> 6832 | V95: =SUMIFS(DATA!Z$3:Z$101,DATA!$F$3:$F$101,$A95,DATA!$B$3:$B$101,$C$2) -> 7904 | W95: =SUMIFS(DATA!AA$3:AA$101,DATA!$F$3:$F$101,$A95,DATA!$B$3:$B$101,$C$2) -> 8194 | X95: =SUMIFS(DATA!AB$3:AB$101,DATA!$F$3:$F$101,$A95,DATA!$B$3:$B$101,$C$2) -> 8483 | Y95: =SUMIFS(DATA!AC$3:AC$101,DATA!$F$3:$F$101,$A95,DATA!$B$3:$B$101,$C$2) -> 8767 | Z95: =SUMIFS(DATA!AD$3:AD$101,DATA!$F$3:$F$101,$A95,DATA!$B$3:$B$101,$C$2) -> 9052 | AA95: =SUMIFS(DATA!AE$3:AE$101,DATA!$F$3:$F$101,$A95,DATA!$B$3:$B$101,$C$2) -> 9335 | AB95: =SUMIFS(DATA!AF$3:AF$101,DATA!$F$3:$F$101,$A95,DATA!$B$3:$B$101,$C$2) -> 9614 | AC95: =SUMIFS(DATA!AG$3:AG$101,DATA!$F$3:$F$101,$A95,DATA!$B$3:$B$101,$C$2) -> 9891 | AD95: =SUMIFS(DATA!AH$3:AH$101,DATA!$F$3:$F$101,$A95,DATA!$B$3:$B$101,$C$2) -> 10166 | AE95: =SUMIFS(DATA!AI$3:AI$101,DATA!$F$3:$F$101,$A95,DATA!$B$3:$B$101,$C$2) -> 10441 | AF95: =SUMIFS(DATA!AJ$3:AJ$101,DATA!$F$3:$F$101,$A95,DATA!$B$3:$B$101,$C$2) -> 10716 | AG95: =SUMIFS(DATA!AK$3:AK$101,DATA!$F$3:$F$101,$A95,DATA!$B$3:$B$101,$C$2) -> 10991 | AH95: =SUMIFS(DATA!AL$3:AL$101,DATA!$F$3:$F$101,$A95,DATA!$B$3:$B$101,$C$2) -> 11267 | AI95: =SUMIFS(DATA!AM$3:AM$101,DATA!$F$3:$F$101,$A95,DATA!$B$3:$B$101,$C$2) -> 11542 | AJ95: =SUMIFS(DATA!AN$3:AN$101,DATA!$F$3:$F$101,$A95,DATA!$B$3:$B$101,$C$2) -> 11817 | AK95: =SUMIFS(DATA!AO$3:AO$101,DATA!$F$3:$F$101,$A95,DATA!$B$3:$B$101,$C$2) -> 12092 | AL95: =SUMIFS(DATA!AP$3:AP$101,DATA!$F$3:$F$101,$A95,DATA!$B$3:$B$101,$C$2) -> 12361 | AM95: =SUMIFS(DATA!AQ$3:AQ$101,DATA!$F$3:$F$101,$A95,DATA!$B$3:$B$101,$C$2) -> 12626 | AN95: =SUMIFS(DATA!AR$3:AR$101,DATA!$F$3:$F$101,$A95,DATA!$B$3:$B$101,$C$2) -> 12887 | AO95: =SUMIFS(DATA!AS$3:AS$101,DATA!$F$3:$F$101,$A95,DATA!$B$3:$B$101,$C$2) -> 13147 | AP95: =SUMIFS(DATA!AT$3:AT$101,DATA!$F$3:$F$101,$A95,DATA!$B$3:$B$101,$C$2) -> 13404 | AQ95: =SUMIFS(DATA!AU$3:AU$101,DATA!$F$3:$F$101,$A95,DATA!$B$3:$B$101,$C$2) -> 13659 | AR95: =SUMIFS(DATA!AV$3:AV$101,DATA!$F$3:$F$101,$A95,DATA!$B$3:$B$101,$C$2) -> 13909 | AS95: =SUMIFS(DATA!AW$3:AW$101,DATA!$F$3:$F$101,$A95,DATA!$B$3:$B$101,$C$2) -> 14154 | AT95: =SUMIFS(DATA!AX$3:AX$101,DATA!$F$3:$F$101,$A95,DATA!$B$3:$B$101,$C$2) -> 14389 | AU95: =SUMIFS(DATA!AY$3:AY$101,DATA!$F$3:$F$101,$A95,DATA!$B$3:$B$101,$C$2) -> 14620 | AV95: =SUMIFS(DATA!AZ$3:AZ$101,DATA!$F$3:$F$101,$A95,DATA!$B$3:$B$101,$C$2) -> 14840 | AW95: =SUMIFS(DATA!BA$3:BA$101,DATA!$F$3:$F$101,$A95,DATA!$B$3:$B$101,$C$2) -> 15055 | AX95: =SUMIFS(DATA!BB$3:BB$101,DATA!$F$3:$F$101,$A95,DATA!$B$3:$B$101,$C$2) -> 15266 | AY95: =SUMIFS(DATA!BC$3:BC$101,DATA!$F$3:$F$101,$A95,DATA!$B$3:$B$101,$C$2) -> 15471 | AZ95: =SUMIFS(DATA!BD$3:BD$101,DATA!$F$3:$F$101,$A95,DATA!$B$3:$B$101,$C$2) -> 15671
A96: Accumulated Other Comprehensive Income | C96: =SUMIFS(DATA!G$3:G$101,DATA!$F$3:$F$101,$A96,DATA!$B$3:$B$101,$C$2) -> 299 | D96: =SUMIFS(DATA!H$3:H$101,DATA!$F$3:$F$101,$A96,DATA!$B$3:$B$101,$C$2) -> 287 | E96: =SUMIFS(DATA!I$3:I$101,DATA!$F$3:$F$101,$A96,DATA!$B$3:$B$101,$C$2) -> -142 | F96: =SUMIFS(DATA!J$3:J$101,DATA!$F$3:$F$101,$A96,DATA!$B$3:$B$101,$C$2) -> -189 | G96: =SUMIFS(DATA!K$3:K$101,DATA!$F$3:$F$101,$A96,DATA!$B$3:$B$101,$C$2) -> -232 | H96: =SUMIFS(DATA!L$3:L$101,DATA!$F$3:$F$101,$A96,DATA!$B$3:$B$101,$C$2) -> -264 | I96: =SUMIFS(DATA!M$3:M$101,DATA!$F$3:$F$101,$A96,DATA!$B$3:$B$101,$C$2) -> -283 | J96: =SUMIFS(DATA!N$3:N$101,DATA!$F$3:$F$101,$A96,DATA!$B$3:$B$101,$C$2) -> -303 | K96: =SUMIFS(DATA!O$3:O$101,DATA!$F$3:$F$101,$A96,DATA!$B$3:$B$101,$C$2) -> -326 | L96: =SUMIFS(DATA!P$3:P$101,DATA!$F$3:$F$101,$A96,DATA!$B$3:$B$101,$C$2) -> -354 | M96: =SUMIFS(DATA!Q$3:Q$101,DATA!$F$3:$F$101,$A96,DATA!$B$3:$B$101,$C$2) -> -370 | N96: =SUMIFS(DATA!R$3:R$101,DATA!$F$3:$F$101,$A96,DATA!$B$3:$B$101,$C$2) -> -370 | O96: =SUMIFS(DATA!S$3:S$101,DATA!$F$3:$F$101,$A96,DATA!$B$3:$B$101,$C$2) -> -369 | P96: =SUMIFS(DATA!T$3:T$101,DATA!$F$3:$F$101,$A96,DATA!$B$3:$B$101,$C$2) -> -369 | Q96: =SUMIFS(DATA!U$3:U$101,DATA!$F$3:$F$101,$A96,DATA!$B$3:$B$101,$C$2) -> -369 | R96: =SUMIFS(DATA!V$3:V$101,DATA!$F$3:$F$101,$A96,DATA!$B$3:$B$101,$C$2) -> -369 | S96: =SUMIFS(DATA!W$3:W$101,DATA!$F$3:$F$101,$A96,DATA!$B$3:$B$101,$C$2) -> -369 | T96: =SUMIFS(DATA!X$3:X$101,DATA!$F$3:$F$101,$A96,DATA!$B$3:$B$101,$C$2) -> -369 | U96: =SUMIFS(DATA!Y$3:Y$101,DATA!$F$3:$F$101,$A96,DATA!$B$3:$B$101,$C$2) -> -369 | V96: =SUMIFS(DATA!Z$3:Z$101,DATA!$F$3:$F$101,$A96,DATA!$B$3:$B$101,$C$2) -> -369 | W96: =SUMIFS(DATA!AA$3:AA$101,DATA!$F$3:$F$101,$A96,DATA!$B$3:$B$101,$C$2) -> -369 | X96: =SUMIFS(DATA!AB$3:AB$101,DATA!$F$3:$F$101,$A96,DATA!$B$3:$B$101,$C$2) -> -369 | Y96: =SUMIFS(DATA!AC$3:AC$101,DATA!$F$3:$F$101,$A96,DATA!$B$3:$B$101,$C$2) -> -369 | Z96: =SUMIFS(DATA!AD$3:AD$101,DATA!$F$3:$F$101,$A96,DATA!$B$3:$B$101,$C$2) -> -369 | AA96: =SUMIFS(DATA!AE$3:AE$101,DATA!$F$3:$F$101,$A96,DATA!$B$3:$B$101,$C$2) -> -369 | AB96: =SUMIFS(DATA!AF$3:AF$101,DATA!$F$3:$F$101,$A96,DATA!$B$3:$B$101,$C$2) -> -369 | AC96: =SUMIFS(DATA!AG$3:AG$101,DATA!$F$3:$F$101,$A96,DATA!$B$3:$B$101,$C$2) -> -369 | AD96: =SUMIFS(DATA!AH$3:AH$101,DATA!$F$3:$F$101,$A96,DATA!$B$3:$B$101,$C$2) -> -369 | AE96: =SUMIFS(DATA!AI$3:AI$101,DATA!$F$3:$F$101,$A96,DATA!$B$3:$B$101,$C$2) -> -369 | AF96: =SUMIFS(DATA!AJ$3:AJ$101,DATA!$F$3:$F$101,$A96,DATA!$B$3:$B$101,$C$2) -> -369 | AG96: =SUMIFS(DATA!AK$3:AK$101,DATA!$F$3:$F$101,$A96,DATA!$B$3:$B$101,$C$2) -> -369 | AH96: =SUMIFS(DATA!AL$3:AL$101,DATA!$F$3:$F$101,$A96,DATA!$B$3:$B$101,$C$2) -> -369 | AI96: =SUMIFS(DATA!AM$3:AM$101,DATA!$F$3:$F$101,$A96,DATA!$B$3:$B$101,$C$2) -> -369 | AJ96: =SUMIFS(DATA!AN$3:AN$101,DATA!$F$3:$F$101,$A96,DATA!$B$3:$B$101,$C$2) -> -369 | AK96: =SUMIFS(DATA!AO$3:AO$101,DATA!$F$3:$F$101,$A96,DATA!$B$3:$B$101,$C$2) -> -369 | AL96: =SUMIFS(DATA!AP$3:AP$101,DATA!$F$3:$F$101,$A96,DATA!$B$3:$B$101,$C$2) -> -369 | AM96: =SUMIFS(DATA!AQ$3:AQ$101,DATA!$F$3:$F$101,$A96,DATA!$B$3:$B$101,$C$2) -> -369 | AN96: =SUMIFS(DATA!AR$3:AR$101,DATA!$F$3:$F$101,$A96,DATA!$B$3:$B$101,$C$2) -> -369 | AO96: =SUMIFS(DATA!AS$3:AS$101,DATA!$F$3:$F$101,$A96,DATA!$B$3:$B$101,$C$2) -> -369 | AP96: =SUMIFS(DATA!AT$3:AT$101,DATA!$F$3:$F$101,$A96,DATA!$B$3:$B$101,$C$2) -> -369 | AQ96: =SUMIFS(DATA!AU$3:AU$101,DATA!$F$3:$F$101,$A96,DATA!$B$3:$B$101,$C$2) -> -369 | AR96: =SUMIFS(DATA!AV$3:AV$101,DATA!$F$3:$F$101,$A96,DATA!$B$3:$B$101,$C$2) -> -369 | AS96: =SUMIFS(DATA!AW$3:AW$101,DATA!$F$3:$F$101,$A96,DATA!$B$3:$B$101,$C$2) -> -369 | AT96: =SUMIFS(DATA!AX$3:AX$101,DATA!$F$3:$F$101,$A96,DATA!$B$3:$B$101,$C$2) -> -369 | AU96: =SUMIFS(DATA!AY$3:AY$101,DATA!$F$3:$F$101,$A96,DATA!$B$3:$B$101,$C$2) -> -369 | AV96: =SUMIFS(DATA!AZ$3:AZ$101,DATA!$F$3:$F$101,$A96,DATA!$B$3:$B$101,$C$2) -> -369 | AW96: =SUMIFS(DATA!BA$3:BA$101,DATA!$F$3:$F$101,$A96,DATA!$B$3:$B$101,$C$2) -> -369 | AX96: =SUMIFS(DATA!BB$3:BB$101,DATA!$F$3:$F$101,$A96,DATA!$B$3:$B$101,$C$2) -> -369 | AY96: =SUMIFS(DATA!BC$3:BC$101,DATA!$F$3:$F$101,$A96,DATA!$B$3:$B$101,$C$2) -> -369 | AZ96: =SUMIFS(DATA!BD$3:BD$101,DATA!$F$3:$F$101,$A96,DATA!$B$3:$B$101,$C$2) -> -369
A97: Total Liabilities and Equity | B97: [Formula] | C97: =SUM(C89:C92,C94,C96) -> 14586 | D97: =SUM(D89:D92,D94,D96) -> 17859.635 | E97: 18617.7783 | F97: 20698.01301 | G97: 22677.51177 | H97: 24451.96915 | I97: 25721.26315 | J97: 26296.05831 | K97: 28003.02854 | L97: 29438.10297 | M97: 31681.52983 | N97: 32945.24856 | O97: 33915.10939 | P97: 35162.98629 | Q97: 35567.23177 | R97: 35643.31678 | S97: 35862.83629 | T97: 35358.59066 | U97: 36064.02634 | V97: =SUM(V89:V92,V94,V96) -> 36899.79952 | W97: 35004.99952 | X97: 33895.59952 | Y97: 34911.19952 | Z97: 35203.79952 | AA97: 34549.39952 | AB97: 36047.99952 | AC97: 36037.39952 | AD97: 35887.39952 | AE97: 36728.39952 | AF97: 36724.99952 | AG97: 37834.99952 | AH97: 38251.19952 | AI97: 38434.19952 | AJ97: 39068.39952 | AK97: 39328.99952 | AL97: 39215.19952 | AM97: 38961.39952 | AN97: 39234.65582 | AO97: 39511.13753 | AP97: 39728.02832 | AQ97: 39831.72566 | AR97: 38523.6447 | AS97: 36806.76961 | AT97: 37477.53736 | AU97: 36554.13736 | AV97: 37998.20614 | AW97: 37306.073 | AX97: 36135.53694 | AY97: 37162.59921 | AZ97: 36511.05943
A98: Total Liabilities and Equity | B98: [Original] | C98: =SUMIFS(DATA!G$3:G$101,DATA!$F$3:$F$101,$A98,DATA!$B$3:$B$101,$C$2) -> 14587 | D98: =SUMIFS(DATA!H$3:H$101,DATA!$F$3:$F$101,$A98,DATA!$B$3:$B$101,$C$2) -> 15890 | E98: =SUMIFS(DATA!I$3:I$101,DATA!$F$3:$F$101,$A98,DATA!$B$3:$B$101,$C$2) -> 16958 | F98: =SUMIFS(DATA!J$3:J$101,DATA!$F$3:$F$101,$A98,DATA!$B$3:$B$101,$C$2) -> 18802 | G98: =SUMIFS(DATA!K$3:K$101,DATA!$F$3:$F$101,$A98,DATA!$B$3:$B$101,$C$2) -> 20742 | H98: =SUMIFS(DATA!L$3:L$101,DATA!$F$3:$F$101,$A98,DATA!$B$3:$B$101,$C$2) -> 22707 | I98: =SUMIFS(DATA!M$3:M$101,DATA!$F$3:$F$101,$A98,DATA!$B$3:$B$101,$C$2) -> 23861 | J98: =SUMIFS(DATA!N$3:N$101,DATA!$F$3:$F$101,$A98,DATA!$B$3:$B$101,$C$2) -> 25086 | K98: =SUMIFS(DATA!O$3:O$101,DATA!$F$3:$F$101,$A98,DATA!$B$3:$B$101,$C$2) -> 26409 | L98: =SUMIFS(DATA!P$3:P$101,DATA!$F$3:$F$101,$A98,DATA!$B$3:$B$101,$C$2) -> 27735 | M98: =SUMIFS(DATA!Q$3:Q$101,DATA!$F$3:$F$101,$A98,DATA!$B$3:$B$101,$C$2) -> 29430 | N98: =SUMIFS(DATA!R$3:R$101,DATA!$F$3:$F$101,$A98,DATA!$B$3:$B$101,$C$2) -> 31133 | O98: =SUMIFS(DATA!S$3:S$101,DATA!$F$3:$F$101,$A98,DATA!$B$3:$B$101,$C$2) -> 32637 | P98: =SUMIFS(DATA!T$3:T$101,DATA!$F$3:$F$101,$A98,DATA!$B$3:$B$101,$C$2) -> 33488 | Q98: =SUMIFS(DATA!U$3:U$101,DATA!$F$3:$F$101,$A98,DATA!$B$3:$B$101,$C$2) -> 34255 | R98: =SUMIFS(DATA!V$3:V$101,DATA!$F$3:$F$101,$A98,DATA!$B$3:$B$101,$C$2) -> 34700 | S98: =SUMIFS(DATA!W$3:W$101,DATA!$F$3:$F$101,$A98,DATA!$B$3:$B$101,$C$2) -> 35406 | T98: =SUMIFS(DATA!X$3:X$101,DATA!$F$3:$F$101,$A98,DATA!$B$3:$B$101,$C$2) -> 35906 | U98: =SUMIFS(DATA!Y$3:Y$101,DATA!$F$3:$F$101,$A98,DATA!$B$3:$B$101,$C$2) -> 36071 | V98: =SUMIFS(DATA!Z$3:Z$101,DATA!$F$3:$F$101,$A98,DATA!$B$3:$B$101,$C$2) -> 37145 | W98: =SUMIFS(DATA!AA$3:AA$101,DATA!$F$3:$F$101,$A98,DATA!$B$3:$B$101,$C$2) -> 37220 | X98: =SUMIFS(DATA!AB$3:AB$101,DATA!$F$3:$F$101,$A98,DATA!$B$3:$B$101,$C$2) -> 35511 | Y98: =SUMIFS(DATA!AC$3:AC$101,DATA!$F$3:$F$101,$A98,DATA!$B$3:$B$101,$C$2) -> 35610 | Z98: =SUMIFS(DATA!AD$3:AD$101,DATA!$F$3:$F$101,$A98,DATA!$B$3:$B$101,$C$2) -> 35621 | AA98: =SUMIFS(DATA!AE$3:AE$101,DATA!$F$3:$F$101,$A98,DATA!$B$3:$B$101,$C$2) -> 35516 | AB98: =SUMIFS(DATA!AF$3:AF$101,DATA!$F$3:$F$101,$A98,DATA!$B$3:$B$101,$C$2) -> 35664 | AC98: =SUMIFS(DATA!AG$3:AG$101,DATA!$F$3:$F$101,$A98,DATA!$B$3:$B$101,$C$2) -> 35753 | AD98: =SUMIFS(DATA!AH$3:AH$101,DATA!$F$3:$F$101,$A98,DATA!$B$3:$B$101,$C$2) -> 36154 | AE98: =SUMIFS(DATA!AI$3:AI$101,DATA!$F$3:$F$101,$A98,DATA!$B$3:$B$101,$C$2) -> 36597 | AF98: =SUMIFS(DATA!AJ$3:AJ$101,DATA!$F$3:$F$101,$A98,DATA!$B$3:$B$101,$C$2) -> 36844 | AG98: =SUMIFS(DATA!AK$3:AK$101,DATA!$F$3:$F$101,$A98,DATA!$B$3:$B$101,$C$2) -> 37103 | AH98: =SUMIFS(DATA!AL$3:AL$101,DATA!$F$3:$F$101,$A98,DATA!$B$3:$B$101,$C$2) -> 37671 | AI98: =SUMIFS(DATA!AM$3:AM$101,DATA!$F$3:$F$101,$A98,DATA!$B$3:$B$101,$C$2) -> 38053 | AJ98: =SUMIFS(DATA!AN$3:AN$101,DATA!$F$3:$F$101,$A98,DATA!$B$3:$B$101,$C$2) -> 38489 | AK98: =SUMIFS(DATA!AO$3:AO$101,DATA!$F$3:$F$101,$A98,DATA!$B$3:$B$101,$C$2) -> 38950 | AL98: =SUMIFS(DATA!AP$3:AP$101,DATA!$F$3:$F$101,$A98,DATA!$B$3:$B$101,$C$2) -> 39233 | AM98: =SUMIFS(DATA!AQ$3:AQ$101,DATA!$F$3:$F$101,$A98,DATA!$B$3:$B$101,$C$2) -> 39306 | AN98: =SUMIFS(DATA!AR$3:AR$101,DATA!$F$3:$F$101,$A98,DATA!$B$3:$B$101,$C$2) -> 39253 | AO98: =SUMIFS(DATA!AS$3:AS$101,DATA!$F$3:$F$101,$A98,DATA!$B$3:$B$101,$C$2) -> 39527 | AP98: =SUMIFS(DATA!AT$3:AT$101,DATA!$F$3:$F$101,$A98,DATA!$B$3:$B$101,$C$2) -> 39794 | AQ98: =SUMIFS(DATA!AU$3:AU$101,DATA!$F$3:$F$101,$A98,DATA!$B$3:$B$101,$C$2) -> 40045 | AR98: =SUMIFS(DATA!AV$3:AV$101,DATA!$F$3:$F$101,$A98,DATA!$B$3:$B$101,$C$2) -> 40138 | AS98: =SUMIFS(DATA!AW$3:AW$101,DATA!$F$3:$F$101,$A98,DATA!$B$3:$B$101,$C$2) -> 38818 | AT98: =SUMIFS(DATA!AX$3:AX$101,DATA!$F$3:$F$101,$A98,DATA!$B$3:$B$101,$C$2) -> 38289 | AU98: =SUMIFS(DATA!AY$3:AY$101,DATA!$F$3:$F$101,$A98,DATA!$B$3:$B$101,$C$2) -> 37972 | AV98: =SUMIFS(DATA!AZ$3:AZ$101,DATA!$F$3:$F$101,$A98,DATA!$B$3:$B$101,$C$2) -> 37809 | AW98: =SUMIFS(DATA!BA$3:BA$101,DATA!$F$3:$F$101,$A98,DATA!$B$3:$B$101,$C$2) -> 37642 | AX98: =SUMIFS(DATA!BB$3:BB$101,DATA!$F$3:$F$101,$A98,DATA!$B$3:$B$101,$C$2) -> 37147 | AY98: =SUMIFS(DATA!BC$3:BC$101,DATA!$F$3:$F$101,$A98,DATA!$B$3:$B$101,$C$2) -> 37174 | AZ98: =SUMIFS(DATA!BD$3:BD$101,DATA!$F$3:$F$101,$A98,DATA!$B$3:$B$101,$C$2) -> 36973
B99: [Difference] | C99: =C97-C98 -> -1 | D99: =D97-D98 -> 1969.635 | E99: =E97-E98 -> 1659.7783 | F99: =F97-F98 -> 1896.013008 | G99: =G97-G98 -> 1935.511772 | H99: =H97-H98 -> 1744.969151 | I99: =I97-I98 -> 1860.263153 | J99: =J97-J98 -> 1210.058314 | K99: =K97-K98 -> 1594.028538 | L99: =L97-L98 -> 1703.10297 | M99: =M97-M98 -> 2251.529834 | N99: =N97-N98 -> 1812.248556 | O99: =O97-O98 -> 1278.10939 | P99: =P97-P98 -> 1674.986294 | Q99: =Q97-Q98 -> 1312.231772 | R99: =R97-R98 -> 943.3167819 | S99: =S97-S98 -> 456.8362899 | T99: =T97-T98 -> -547.4093422 | U99: =U97-U98 -> -6.973664489 | V99: =V97-V98 -> -245.2004779 | W99: =W97-W98 -> -2215.000478 | X99: =X97-X98 -> -1615.400478 | Y99: =Y97-Y98 -> -698.8004779 | Z99: =Z97-Z98 -> -417.2004779 | AA99: =AA97-AA98 -> -966.6004779 | AB99: =AB97-AB98 -> 383.9995221 | AC99: =AC97-AC98 -> 284.3995221 | AD99: =AD97-AD98 -> -266.6004779 | AE99: =AE97-AE98 -> 131.3995221 | AF99: =AF97-AF98 -> -119.0004779 | AG99: =AG97-AG98 -> 731.9995221 | AH99: =AH97-AH98 -> 580.1995221 | AI99: =AI97-AI98 -> 381.1995221 | AJ99: =AJ97-AJ98 -> 579.3995221 | AK99: =AK97-AK98 -> 378.9995221 | AL99: =AL97-AL98 -> -17.80047789 | AM99: =AM97-AM98 -> -344.6004779 | AN99: =AN97-AN98 -> -18.34417511 | AO99: =AO97-AO98 -> -15.86246952 | AP99: =AP97-AP98 -> -65.97168018 | AQ99: =AQ97-AQ98 -> -213.2743421 | AR99: =AR97-AR98 -> -1614.355298 | AS99: =AS97-AS98 -> -2011.230392 | AT99: =AT97-AT98 -> -811.4626359 | AU99: =AU97-AU98 -> -1417.862636 | AV99: =AV97-AV98 -> 189.2061427 | AW99: =AW97-AW98 -> -335.9270009 | AX99: =AX97-AX98 -> -1011.463059 | AY99: =AY97-AY98 -> -11.40079086 | AZ99: =AZ97-AZ98 -> -461.9405691
C101: 2013 | D101: 2014 | E101: 2015 | F101: 2016 | G101: 2017 | H101: 2018 | I101: 2019 | J101: 2020 | K101: 2021 | L101: 2022 | M101: 2023 | N101: 2024 | O101: 2025 | P101: 2026 | Q101: 2027 | R101: 2028 | S101: 2029 | T101: 2030 | U101: 2031 | V101: 2032 | W101: 2033 | X101: 2034 | Y101: 2035 | Z101: 2036 | AA101: 2037 | AB101: 2038 | AC101: 2039 | AD101: 2040 | AE101: 2041 | AF101: 2042 | AG101: 2043 | AH101: 2044 | AI101: 2045 | AJ101: 2046 | AK101: 2047 | AL101: 2048 | AM101: 2049 | AN101: 2050 | AO101: 2051 | AP101: 2052 | AQ101: 2053 | AR101: 2054 | AS101: 2055 | AT101: 2056 | AU101: 2057 | AV101: 2058 | AW101: 2059 | AX101: 2060 | AY101: 2061 | AZ101: 2062
A102: OPERATING ACTIVITIES
A103: Cash Receipts from Customers | C103: =SUMIFS(DATA!G$3:G$101,DATA!$F$3:$F$101,$A103,DATA!$B$3:$B$101,$C$2) -> 1692 | D103: =SUMIFS(DATA!H$3:H$101,DATA!$F$3:$F$101,$A103,DATA!$B$3:$B$101,$C$2) -> 1768 | E103: =SUMIFS(DATA!I$3:I$101,DATA!$F$3:$F$101,$A103,DATA!$B$3:$B$101,$C$2) -> 1826 | F103: =SUMIFS(DATA!J$3:J$101,DATA!$F$3:$F$101,$A103,DATA!$B$3:$B$101,$C$2) -> 1939 | G103: =SUMIFS(DATA!K$3:K$101,DATA!$F$3:$F$101,$A103,DATA!$B$3:$B$101,$C$2) -> 2035 | H103: =SUMIFS(DATA!L$3:L$101,DATA!$F$3:$F$101,$A103,DATA!$B$3:$B$101,$C$2) -> 2148 | I103: =SUMIFS(DATA!M$3:M$101,DATA!$F$3:$F$101,$A103,DATA!$B$3:$B$101,$C$2) -> 2236 | J103: =SUMIFS(DATA!N$3:N$101,DATA!$F$3:$F$101,$A103,DATA!$B$3:$B$101,$C$2) -> 2364 | K103: =SUMIFS(DATA!O$3:O$101,DATA!$F$3:$F$101,$A103,DATA!$B$3:$B$101,$C$2) -> 2745 | L103: =SUMIFS(DATA!P$3:P$101,DATA!$F$3:$F$101,$A103,DATA!$B$3:$B$101,$C$2) -> 2959 | M103: =SUMIFS(DATA!Q$3:Q$101,DATA!$F$3:$F$101,$A103,DATA!$B$3:$B$101,$C$2) -> 3088 | N103: =SUMIFS(DATA!R$3:R$101,DATA!$F$3:$F$101,$A103,DATA!$B$3:$B$101,$C$2) -> 3191 | O103: =SUMIFS(DATA!S$3:S$101,DATA!$F$3:$F$101,$A103,DATA!$B$3:$B$101,$C$2) -> 3309 | P103: =SUMIFS(DATA!T$3:T$101,DATA!$F$3:$F$101,$A103,DATA!$B$3:$B$101,$C$2) -> 3484 | Q103: =SUMIFS(DATA!U$3:U$101,DATA!$F$3:$F$101,$A103,DATA!$B$3:$B$101,$C$2) -> 3892 | R103: =SUMIFS(DATA!V$3:V$101,DATA!$F$3:$F$101,$A103,DATA!$B$3:$B$101,$C$2) -> 4110 | S103: =SUMIFS(DATA!W$3:W$101,DATA!$F$3:$F$101,$A103,DATA!$B$3:$B$101,$C$2) -> 4280 | T103: =SUMIFS(DATA!X$3:X$101,DATA!$F$3:$F$101,$A103,DATA!$B$3:$B$101,$C$2) -> 4443 | U103: =SUMIFS(DATA!Y$3:Y$101,DATA!$F$3:$F$101,$A103,DATA!$B$3:$B$101,$C$2) -> 4628 | V103: =SUMIFS(DATA!Z$3:Z$101,DATA!$F$3:$F$101,$A103,DATA!$B$3:$B$101,$C$2) -> 4818 | W103: =SUMIFS(DATA!AA$3:AA$101,DATA!$F$3:$F$101,$A103,DATA!$B$3:$B$101,$C$2) -> 4020 | X103: =SUMIFS(DATA!AB$3:AB$101,DATA!$F$3:$F$101,$A103,DATA!$B$3:$B$101,$C$2) -> 4050 | Y103: =SUMIFS(DATA!AC$3:AC$101,DATA!$F$3:$F$101,$A103,DATA!$B$3:$B$101,$C$2) -> 4110 | Z103: =SUMIFS(DATA!AD$3:AD$101,DATA!$F$3:$F$101,$A103,DATA!$B$3:$B$101,$C$2) -> 4131 | AA103: =SUMIFS(DATA!AE$3:AE$101,DATA!$F$3:$F$101,$A103,DATA!$B$3:$B$101,$C$2) -> 4128 | AB103: =SUMIFS(DATA!AF$3:AF$101,DATA!$F$3:$F$101,$A103,DATA!$B$3:$B$101,$C$2) -> 4171 | AC103: =SUMIFS(DATA!AG$3:AG$101,DATA!$F$3:$F$101,$A103,DATA!$B$3:$B$101,$C$2) -> 4190 | AD103: =SUMIFS(DATA!AH$3:AH$101,DATA!$F$3:$F$101,$A103,DATA!$B$3:$B$101,$C$2) -> 4231 | AE103: =SUMIFS(DATA!AI$3:AI$101,DATA!$F$3:$F$101,$A103,DATA!$B$3:$B$101,$C$2) -> 4302 | AF103: =SUMIFS(DATA!AJ$3:AJ$101,DATA!$F$3:$F$101,$A103,DATA!$B$3:$B$101,$C$2) -> 4399 | AG103: =SUMIFS(DATA!AK$3:AK$101,DATA!$F$3:$F$101,$A103,DATA!$B$3:$B$101,$C$2) -> 4513 | AH103: =SUMIFS(DATA!AL$3:AL$101,DATA!$F$3:$F$101,$A103,DATA!$B$3:$B$101,$C$2) -> 4564 | AI103: =SUMIFS(DATA!AM$3:AM$101,DATA!$F$3:$F$101,$A103,DATA!$B$3:$B$101,$C$2) -> 4655 | AJ103: =SUMIFS(DATA!AN$3:AN$101,DATA!$F$3:$F$101,$A103,DATA!$B$3:$B$101,$C$2) -> 4758 | AK103: =SUMIFS(DATA!AO$3:AO$101,DATA!$F$3:$F$101,$A103,DATA!$B$3:$B$101,$C$2) -> 4911 | AL103: =SUMIFS(DATA!AP$3:AP$101,DATA!$F$3:$F$101,$A103,DATA!$B$3:$B$101,$C$2) -> 4952 | AM103: =SUMIFS(DATA!AQ$3:AQ$101,DATA!$F$3:$F$101,$A103,DATA!$B$3:$B$101,$C$2) -> 4977 | AN103: =SUMIFS(DATA!AR$3:AR$101,DATA!$F$3:$F$101,$A103,DATA!$B$3:$B$101,$C$2) -> 5013 | AO103: =SUMIFS(DATA!AS$3:AS$101,DATA!$F$3:$F$101,$A103,DATA!$B$3:$B$101,$C$2) -> 5129 | AP103: =SUMIFS(DATA!AT$3:AT$101,DATA!$F$3:$F$101,$A103,DATA!$B$3:$B$101,$C$2) -> 5181 | AQ103: =SUMIFS(DATA!AU$3:AU$101,DATA!$F$3:$F$101,$A103,DATA!$B$3:$B$101,$C$2) -> 5225 | AR103: =SUMIFS(DATA!AV$3:AV$101,DATA!$F$3:$F$101,$A103,DATA!$B$3:$B$101,$C$2) -> 5326 | AS103: =SUMIFS(DATA!AW$3:AW$101,DATA!$F$3:$F$101,$A103,DATA!$B$3:$B$101,$C$2) -> 5369 | AT103: =SUMIFS(DATA!AX$3:AX$101,DATA!$F$3:$F$101,$A103,DATA!$B$3:$B$101,$C$2) -> 5385 | AU103: =SUMIFS(DATA!AY$3:AY$101,DATA!$F$3:$F$101,$A103,DATA!$B$3:$B$101,$C$2) -> 5443 | AV103: =SUMIFS(DATA!AZ$3:AZ$101,DATA!$F$3:$F$101,$A103,DATA!$B$3:$B$101,$C$2) -> 5443 | AW103: =SUMIFS(DATA!BA$3:BA$101,DATA!$F$3:$F$101,$A103,DATA!$B$3:$B$101,$C$2) -> 5490 | AX103: =SUMIFS(DATA!BB$3:BB$101,DATA!$F$3:$F$101,$A103,DATA!$B$3:$B$101,$C$2) -> 5549 | AY103: =SUMIFS(DATA!BC$3:BC$101,DATA!$F$3:$F$101,$A103,DATA!$B$3:$B$101,$C$2) -> 5591 | AZ103: =SUMIFS(DATA!BD$3:BD$101,DATA!$F$3:$F$101,$A103,DATA!$B$3:$B$101,$C$2) -> 5641
A104: Cash Paid to Suppliers and Employees | C104: =SUMIFS(DATA!G$3:G$101,DATA!$F$3:$F$101,$A104,DATA!$B$3:$B$101,$C$2) -> -782 | D104: =SUMIFS(DATA!H$3:H$101,DATA!$F$3:$F$101,$A104,DATA!$B$3:$B$101,$C$2) -> -822 | E104: =SUMIFS(DATA!I$3:I$101,DATA!$F$3:$F$101,$A104,DATA!$B$3:$B$101,$C$2) -> -900 | F104: =SUMIFS(DATA!J$3:J$101,DATA!$F$3:$F$101,$A104,DATA!$B$3:$B$101,$C$2) -> -931 | G104: =SUMIFS(DATA!K$3:K$101,DATA!$F$3:$F$101,$A104,DATA!$B$3:$B$101,$C$2) -> -963 | H104: =SUMIFS(DATA!L$3:L$101,DATA!$F$3:$F$101,$A104,DATA!$B$3:$B$101,$C$2) -> -1001 | I104: =SUMIFS(DATA!M$3:M$101,DATA!$F$3:$F$101,$A104,DATA!$B$3:$B$101,$C$2) -> -1024 | J104: =SUMIFS(DATA!N$3:N$101,DATA!$F$3:$F$101,$A104,DATA!$B$3:$B$101,$C$2) -> -1048 | K104: =SUMIFS(DATA!O$3:O$101,DATA!$F$3:$F$101,$A104,DATA!$B$3:$B$101,$C$2) -> -1136 | L104: =SUMIFS(DATA!P$3:P$101,DATA!$F$3:$F$101,$A104,DATA!$B$3:$B$101,$C$2) -> -1175 | M104: =SUMIFS(DATA!Q$3:Q$101,DATA!$F$3:$F$101,$A104,DATA!$B$3:$B$101,$C$2) -> -1202 | N104: =SUMIFS(DATA!R$3:R$101,DATA!$F$3:$F$101,$A104,DATA!$B$3:$B$101,$C$2) -> -1230 | O104: =SUMIFS(DATA!S$3:S$101,DATA!$F$3:$F$101,$A104,DATA!$B$3:$B$101,$C$2) -> -1262 | P104: =SUMIFS(DATA!T$3:T$101,DATA!$F$3:$F$101,$A104,DATA!$B$3:$B$101,$C$2) -> -1266 | Q104: =SUMIFS(DATA!U$3:U$101,DATA!$F$3:$F$101,$A104,DATA!$B$3:$B$101,$C$2) -> -1297 | R104: =SUMIFS(DATA!V$3:V$101,DATA!$F$3:$F$101,$A104,DATA!$B$3:$B$101,$C$2) -> -1331 | S104: =SUMIFS(DATA!W$3:W$101,DATA!$F$3:$F$101,$A104,DATA!$B$3:$B$101,$C$2) -> -1357 | T104: =SUMIFS(DATA!X$3:X$101,DATA!$F$3:$F$101,$A104,DATA!$B$3:$B$101,$C$2) -> -1378 | U104: =SUMIFS(DATA!Y$3:Y$101,DATA!$F$3:$F$101,$A104,DATA!$B$3:$B$101,$C$2) -> -1402 | V104: =SUMIFS(DATA!Z$3:Z$101,DATA!$F$3:$F$101,$A104,DATA!$B$3:$B$101,$C$2) -> -1427 | W104: =SUMIFS(DATA!AA$3:AA$101,DATA!$F$3:$F$101,$A104,DATA!$B$3:$B$101,$C$2) -> -1452 | X104: =SUMIFS(DATA!AB$3:AB$101,DATA!$F$3:$F$101,$A104,DATA!$B$3:$B$101,$C$2) -> -1477 | Y104: =SUMIFS(DATA!AC$3:AC$101,DATA!$F$3:$F$101,$A104,DATA!$B$3:$B$101,$C$2) -> -1505 | Z104: =SUMIFS(DATA!AD$3:AD$101,DATA!$F$3:$F$101,$A104,DATA!$B$3:$B$101,$C$2) -> -1521 | AA104: =SUMIFS(DATA!AE$3:AE$101,DATA!$F$3:$F$101,$A104,DATA!$B$3:$B$101,$C$2) -> -1522 | AB104: =SUMIFS(DATA!AF$3:AF$101,DATA!$F$3:$F$101,$A104,DATA!$B$3:$B$101,$C$2) -> -1547 | AC104: =SUMIFS(DATA!AG$3:AG$101,DATA!$F$3:$F$101,$A104,DATA!$B$3:$B$101,$C$2) -> -1578 | AD104: =SUMIFS(DATA!AH$3:AH$101,DATA!$F$3:$F$101,$A104,DATA!$B$3:$B$101,$C$2) -> -1622 | AE104: =SUMIFS(DATA!AI$3:AI$101,DATA!$F$3:$F$101,$A104,DATA!$B$3:$B$101,$C$2) -> -1664 | AF104: =SUMIFS(DATA!AJ$3:AJ$101,DATA!$F$3:$F$101,$A104,DATA!$B$3:$B$101,$C$2) -> -1725 | AG104: =SUMIFS(DATA!AK$3:AK$101,DATA!$F$3:$F$101,$A104,DATA!$B$3:$B$101,$C$2) -> -1770 | AH104: =SUMIFS(DATA!AL$3:AL$101,DATA!$F$3:$F$101,$A104,DATA!$B$3:$B$101,$C$2) -> -1817 | AI104: =SUMIFS(DATA!AM$3:AM$101,DATA!$F$3:$F$101,$A104,DATA!$B$3:$B$101,$C$2) -> -1880 | AJ104: =SUMIFS(DATA!AN$3:AN$101,DATA!$F$3:$F$101,$A104,DATA!$B$3:$B$101,$C$2) -> -1940 | AK104: =SUMIFS(DATA!AO$3:AO$101,DATA!$F$3:$F$101,$A104,DATA!$B$3:$B$101,$C$2) -> -2013 | AL104: =SUMIFS(DATA!AP$3:AP$101,DATA!$F$3:$F$101,$A104,DATA!$B$3:$B$101,$C$2) -> -2069 | AM104: =SUMIFS(DATA!AQ$3:AQ$101,DATA!$F$3:$F$101,$A104,DATA!$B$3:$B$101,$C$2) -> -2079 | AN104: =SUMIFS(DATA!AR$3:AR$101,DATA!$F$3:$F$101,$A104,DATA!$B$3:$B$101,$C$2) -> -2113 | AO104: =SUMIFS(DATA!AS$3:AS$101,DATA!$F$3:$F$101,$A104,DATA!$B$3:$B$101,$C$2) -> -2149 | AP104: =SUMIFS(DATA!AT$3:AT$101,DATA!$F$3:$F$101,$A104,DATA!$B$3:$B$101,$C$2) -> -2187 | AQ104: =SUMIFS(DATA!AU$3:AU$101,DATA!$F$3:$F$101,$A104,DATA!$B$3:$B$101,$C$2) -> -2224 | AR104: =SUMIFS(DATA!AV$3:AV$101,DATA!$F$3:$F$101,$A104,DATA!$B$3:$B$101,$C$2) -> -2261 | AS104: =SUMIFS(DATA!AW$3:AW$101,DATA!$F$3:$F$101,$A104,DATA!$B$3:$B$101,$C$2) -> -2297 | AT104: =SUMIFS(DATA!AX$3:AX$101,DATA!$F$3:$F$101,$A104,DATA!$B$3:$B$101,$C$2) -> -2336 | AU104: =SUMIFS(DATA!AY$3:AY$101,DATA!$F$3:$F$101,$A104,DATA!$B$3:$B$101,$C$2) -> -2373 | AV104: =SUMIFS(DATA!AZ$3:AZ$101,DATA!$F$3:$F$101,$A104,DATA!$B$3:$B$101,$C$2) -> -2411 | AW104: =SUMIFS(DATA!BA$3:BA$101,DATA!$F$3:$F$101,$A104,DATA!$B$3:$B$101,$C$2) -> -2451 | AX104: =SUMIFS(DATA!BB$3:BB$101,DATA!$F$3:$F$101,$A104,DATA!$B$3:$B$101,$C$2) -> -2491 | AY104: =SUMIFS(DATA!BC$3:BC$101,DATA!$F$3:$F$101,$A104,DATA!$B$3:$B$101,$C$2) -> -2524 | AZ104: =SUMIFS(DATA!BD$3:BD$101,DATA!$F$3:$F$101,$A104,DATA!$B$3:$B$101,$C$2) -> -2566
A105: Interest Paid | C105: =SUMIFS(DATA!G$3:G$101,DATA!$F$3:$F$101,$A105,DATA!$B$3:$B$101,$C$2) -> -466 | D105: =SUMIFS(DATA!H$3:H$101,DATA!$F$3:$F$101,$A105,DATA!$B$3:$B$101,$C$2) -> -474 | E105: =SUMIFS(DATA!I$3:I$101,DATA!$F$3:$F$101,$A105,DATA!$B$3:$B$101,$C$2) -> -510 | F105: =SUMIFS(DATA!J$3:J$101,DATA!$F$3:$F$101,$A105,DATA!$B$3:$B$101,$C$2) -> -558 | G105: =SUMIFS(DATA!K$3:K$101,DATA!$F$3:$F$101,$A105,DATA!$B$3:$B$101,$C$2) -> -604 | H105: =SUMIFS(DATA!L$3:L$101,DATA!$F$3:$F$101,$A105,DATA!$B$3:$B$101,$C$2) -> -699 | I105: =SUMIFS(DATA!M$3:M$101,DATA!$F$3:$F$101,$A105,DATA!$B$3:$B$101,$C$2) -> -814 | J105: =SUMIFS(DATA!N$3:N$101,DATA!$F$3:$F$101,$A105,DATA!$B$3:$B$101,$C$2) -> -816 | K105: =SUMIFS(DATA!O$3:O$101,DATA!$F$3:$F$101,$A105,DATA!$B$3:$B$101,$C$2) -> -1031 | L105: =SUMIFS(DATA!P$3:P$101,DATA!$F$3:$F$101,$A105,DATA!$B$3:$B$101,$C$2) -> -1127 | M105: =SUMIFS(DATA!Q$3:Q$101,DATA!$F$3:$F$101,$A105,DATA!$B$3:$B$101,$C$2) -> -1091 | N105: =SUMIFS(DATA!R$3:R$101,DATA!$F$3:$F$101,$A105,DATA!$B$3:$B$101,$C$2) -> -1093 | O105: =SUMIFS(DATA!S$3:S$101,DATA!$F$3:$F$101,$A105,DATA!$B$3:$B$101,$C$2) -> -1097 | P105: =SUMIFS(DATA!T$3:T$101,DATA!$F$3:$F$101,$A105,DATA!$B$3:$B$101,$C$2) -> -1218 | Q105: =SUMIFS(DATA!U$3:U$101,DATA!$F$3:$F$101,$A105,DATA!$B$3:$B$101,$C$2) -> -1441 | R105: =SUMIFS(DATA!V$3:V$101,DATA!$F$3:$F$101,$A105,DATA!$B$3:$B$101,$C$2) -> -1639 | S105: =SUMIFS(DATA!W$3:W$101,DATA!$F$3:$F$101,$A105,DATA!$B$3:$B$101,$C$2) -> -1625 | T105: =SUMIFS(DATA!X$3:X$101,DATA!$F$3:$F$101,$A105,DATA!$B$3:$B$101,$C$2) -> -1596 | U105: =SUMIFS(DATA!Y$3:Y$101,DATA!$F$3:$F$101,$A105,DATA!$B$3:$B$101,$C$2) -> -1619 | V105: =SUMIFS(DATA!Z$3:Z$101,DATA!$F$3:$F$101,$A105,DATA!$B$3:$B$101,$C$2) -> -1530 | W105: =SUMIFS(DATA!AA$3:AA$101,DATA!$F$3:$F$101,$A105,DATA!$B$3:$B$101,$C$2) -> -1502 | X105: =SUMIFS(DATA!AB$3:AB$101,DATA!$F$3:$F$101,$A105,DATA!$B$3:$B$101,$C$2) -> -1487 | Y105: =SUMIFS(DATA!AC$3:AC$101,DATA!$F$3:$F$101,$A105,DATA!$B$3:$B$101,$C$2) -> -1477 | Z105: =SUMIFS(DATA!AD$3:AD$101,DATA!$F$3:$F$101,$A105,DATA!$B$3:$B$101,$C$2) -> -1475 | AA105: =SUMIFS(DATA!AE$3:AE$101,DATA!$F$3:$F$101,$A105,DATA!$B$3:$B$101,$C$2) -> -1469 | AB105: =SUMIFS(DATA!AF$3:AF$101,DATA!$F$3:$F$101,$A105,DATA!$B$3:$B$101,$C$2) -> -1446 | AC105: =SUMIFS(DATA!AG$3:AG$101,DATA!$F$3:$F$101,$A105,DATA!$B$3:$B$101,$C$2) -> -1437 | AD105: =SUMIFS(DATA!AH$3:AH$101,DATA!$F$3:$F$101,$A105,DATA!$B$3:$B$101,$C$2) -> -1417 | AE105: =SUMIFS(DATA!AI$3:AI$101,DATA!$F$3:$F$101,$A105,DATA!$B$3:$B$101,$C$2) -> -1432 | AF105: =SUMIFS(DATA!AJ$3:AJ$101,DATA!$F$3:$F$101,$A105,DATA!$B$3:$B$101,$C$2) -> -1443 | AG105: =SUMIFS(DATA!AK$3:AK$101,DATA!$F$3:$F$101,$A105,DATA!$B$3:$B$101,$C$2) -> -1439 | AH105: =SUMIFS(DATA!AL$3:AL$101,DATA!$F$3:$F$101,$A105,DATA!$B$3:$B$101,$C$2) -> -1432 | AI105: =SUMIFS(DATA!AM$3:AM$101,DATA!$F$3:$F$101,$A105,DATA!$B$3:$B$101,$C$2) -> -1449 | AJ105: =SUMIFS(DATA!AN$3:AN$101,DATA!$F$3:$F$101,$A105,DATA!$B$3:$B$101,$C$2) -> -1444 | AK105: =SUMIFS(DATA!AO$3:AO$101,DATA!$F$3:$F$101,$A105,DATA!$B$3:$B$101,$C$2) -> -1483 | AL105: =SUMIFS(DATA!AP$3:AP$101,DATA!$F$3:$F$101,$A105,DATA!$B$3:$B$101,$C$2) -> -1470 | AM105: =SUMIFS(DATA!AQ$3:AQ$101,DATA!$F$3:$F$101,$A105,DATA!$B$3:$B$101,$C$2) -> -1462 | AN105: =SUMIFS(DATA!AR$3:AR$101,DATA!$F$3:$F$101,$A105,DATA!$B$3:$B$101,$C$2) -> -1447 | AO105: =SUMIFS(DATA!AS$3:AS$101,DATA!$F$3:$F$101,$A105,DATA!$B$3:$B$101,$C$2) -> -1420 | AP105: =SUMIFS(DATA!AT$3:AT$101,DATA!$F$3:$F$101,$A105,DATA!$B$3:$B$101,$C$2) -> -1413 | AQ105: =SUMIFS(DATA!AU$3:AU$101,DATA!$F$3:$F$101,$A105,DATA!$B$3:$B$101,$C$2) -> -1412 | AR105: =SUMIFS(DATA!AV$3:AV$101,DATA!$F$3:$F$101,$A105,DATA!$B$3:$B$101,$C$2) -> -1402 | AS105: =SUMIFS(DATA!AW$3:AW$101,DATA!$F$3:$F$101,$A105,DATA!$B$3:$B$101,$C$2) -> -1378 | AT105: =SUMIFS(DATA!AX$3:AX$101,DATA!$F$3:$F$101,$A105,DATA!$B$3:$B$101,$C$2) -> -1296 | AU105: =SUMIFS(DATA!AY$3:AY$101,DATA!$F$3:$F$101,$A105,DATA!$B$3:$B$101,$C$2) -> -1264 | AV105: =SUMIFS(DATA!AZ$3:AZ$101,DATA!$F$3:$F$101,$A105,DATA!$B$3:$B$101,$C$2) -> -1215 | AW105: =SUMIFS(DATA!BA$3:BA$101,DATA!$F$3:$F$101,$A105,DATA!$B$3:$B$101,$C$2) -> -1194 | AX105: =SUMIFS(DATA!BB$3:BB$101,DATA!$F$3:$F$101,$A105,DATA!$B$3:$B$101,$C$2) -> -1166 | AY105: =SUMIFS(DATA!BC$3:BC$101,DATA!$F$3:$F$101,$A105,DATA!$B$3:$B$101,$C$2) -> -1126 | AZ105: =SUMIFS(DATA!BD$3:BD$101,DATA!$F$3:$F$101,$A105,DATA!$B$3:$B$101,$C$2) -> -1105
A106: Interest Received | C106: =SUMIFS(DATA!G$3:G$101,DATA!$F$3:$F$101,$A106,DATA!$B$3:$B$101,$C$2) -> 28 | D106: =SUMIFS(DATA!H$3:H$101,DATA!$F$3:$F$101,$A106,DATA!$B$3:$B$101,$C$2) -> 17 | E106: =SUMIFS(DATA!I$3:I$101,DATA!$F$3:$F$101,$A106,DATA!$B$3:$B$101,$C$2) -> 24 | F106: =SUMIFS(DATA!J$3:J$101,DATA!$F$3:$F$101,$A106,DATA!$B$3:$B$101,$C$2) -> 26 | G106: =SUMIFS(DATA!K$3:K$101,DATA!$F$3:$F$101,$A106,DATA!$B$3:$B$101,$C$2) -> 31 | H106: =SUMIFS(DATA!L$3:L$101,DATA!$F$3:$F$101,$A106,DATA!$B$3:$B$101,$C$2) -> 39 | I106: =SUMIFS(DATA!M$3:M$101,DATA!$F$3:$F$101,$A106,DATA!$B$3:$B$101,$C$2) -> 41 | J106: =SUMIFS(DATA!N$3:N$101,DATA!$F$3:$F$101,$A106,DATA!$B$3:$B$101,$C$2) -> 38 | K106: =SUMIFS(DATA!O$3:O$101,DATA!$F$3:$F$101,$A106,DATA!$B$3:$B$101,$C$2) -> 35 | L106: =SUMIFS(DATA!P$3:P$101,DATA!$F$3:$F$101,$A106,DATA!$B$3:$B$101,$C$2) -> 33 | M106: =SUMIFS(DATA!Q$3:Q$101,DATA!$F$3:$F$101,$A106,DATA!$B$3:$B$101,$C$2) -> 17 | N106: =SUMIFS(DATA!R$3:R$101,DATA!$F$3:$F$101,$A106,DATA!$B$3:$B$101,$C$2) -> 19 | O106: =SUMIFS(DATA!S$3:S$101,DATA!$F$3:$F$101,$A106,DATA!$B$3:$B$101,$C$2) -> 28 | P106: =SUMIFS(DATA!T$3:T$101,DATA!$F$3:$F$101,$A106,DATA!$B$3:$B$101,$C$2) -> 33 | Q106: =SUMIFS(DATA!U$3:U$101,DATA!$F$3:$F$101,$A106,DATA!$B$3:$B$101,$C$2) -> 41 | R106: =SUMIFS(DATA!V$3:V$101,DATA!$F$3:$F$101,$A106,DATA!$B$3:$B$101,$C$2) -> 55 | S106: =SUMIFS(DATA!W$3:W$101,DATA!$F$3:$F$101,$A106,DATA!$B$3:$B$101,$C$2) -> 71 | T106: =SUMIFS(DATA!X$3:X$101,DATA!$F$3:$F$101,$A106,DATA!$B$3:$B$101,$C$2) -> 78 | U106: =SUMIFS(DATA!Y$3:Y$101,DATA!$F$3:$F$101,$A106,DATA!$B$3:$B$101,$C$2) -> 89 | V106: =SUMIFS(DATA!Z$3:Z$101,DATA!$F$3:$F$101,$A106,DATA!$B$3:$B$101,$C$2) -> 70 | W106: =SUMIFS(DATA!AA$3:AA$101,DATA!$F$3:$F$101,$A106,DATA!$B$3:$B$101,$C$2) -> 86 | X106: =SUMIFS(DATA!AB$3:AB$101,DATA!$F$3:$F$101,$A106,DATA!$B$3:$B$101,$C$2) -> 64 | Y106: =SUMIFS(DATA!AC$3:AC$101,DATA!$F$3:$F$101,$A106,DATA!$B$3:$B$101,$C$2) -> 61 | Z106: =SUMIFS(DATA!AD$3:AD$101,DATA!$F$3:$F$101,$A106,DATA!$B$3:$B$101,$C$2) -> 60 | AA106: =SUMIFS(DATA!AE$3:AE$101,DATA!$F$3:$F$101,$A106,DATA!$B$3:$B$101,$C$2) -> 68 | AB106: =SUMIFS(DATA!AF$3:AF$101,DATA!$F$3:$F$101,$A106,DATA!$B$3:$B$101,$C$2) -> 69 | AC106: =SUMIFS(DATA!AG$3:AG$101,DATA!$F$3:$F$101,$A106,DATA!$B$3:$B$101,$C$2) -> 73 | AD106: =SUMIFS(DATA!AH$3:AH$101,DATA!$F$3:$F$101,$A106,DATA!$B$3:$B$101,$C$2) -> 83 | AE106: =SUMIFS(DATA!AI$3:AI$101,DATA!$F$3:$F$101,$A106,DATA!$B$3:$B$101,$C$2) -> 84 | AF106: =SUMIFS(DATA!AJ$3:AJ$101,DATA!$F$3:$F$101,$A106,DATA!$B$3:$B$101,$C$2) -> 90 | AG106: =SUMIFS(DATA!AK$3:AK$101,DATA!$F$3:$F$101,$A106,DATA!$B$3:$B$101,$C$2) -> 96 | AH106: =SUMIFS(DATA!AL$3:AL$101,DATA!$F$3:$F$101,$A106,DATA!$B$3:$B$101,$C$2) -> 103 | AI106: =SUMIFS(DATA!AM$3:AM$101,DATA!$F$3:$F$101,$A106,DATA!$B$3:$B$101,$C$2) -> 114 | AJ106: =SUMIFS(DATA!AN$3:AN$101,DATA!$F$3:$F$101,$A106,DATA!$B$3:$B$101,$C$2) -> 122 | AK106: =SUMIFS(DATA!AO$3:AO$101,DATA!$F$3:$F$101,$A106,DATA!$B$3:$B$101,$C$2) -> 127 | AL106: =SUMIFS(DATA!AP$3:AP$101,DATA!$F$3:$F$101,$A106,DATA!$B$3:$B$101,$C$2) -> 140 | AM106: =SUMIFS(DATA!AQ$3:AQ$101,DATA!$F$3:$F$101,$A106,DATA!$B$3:$B$101,$C$2) -> 141 | AN106: =SUMIFS(DATA!AR$3:AR$101,DATA!$F$3:$F$101,$A106,DATA!$B$3:$B$101,$C$2) -> 151 | AO106: =SUMIFS(DATA!AS$3:AS$101,DATA!$F$3:$F$101,$A106,DATA!$B$3:$B$101,$C$2) -> 145 | AP106: =SUMIFS(DATA!AT$3:AT$101,DATA!$F$3:$F$101,$A106,DATA!$B$3:$B$101,$C$2) -> 156 | AQ106: =SUMIFS(DATA!AU$3:AU$101,DATA!$F$3:$F$101,$A106,DATA!$B$3:$B$101,$C$2) -> 166 | AR106: =SUMIFS(DATA!AV$3:AV$101,DATA!$F$3:$F$101,$A106,DATA!$B$3:$B$101,$C$2) -> 176 | AS106: =SUMIFS(DATA!AW$3:AW$101,DATA!$F$3:$F$101,$A106,DATA!$B$3:$B$101,$C$2) -> 171 | AT106: =SUMIFS(DATA!AX$3:AX$101,DATA!$F$3:$F$101,$A106,DATA!$B$3:$B$101,$C$2) -> 137 | AU106: =SUMIFS(DATA!AY$3:AY$101,DATA!$F$3:$F$101,$A106,DATA!$B$3:$B$101,$C$2) -> 142 | AV106: =SUMIFS(DATA!AZ$3:AZ$101,DATA!$F$3:$F$101,$A106,DATA!$B$3:$B$101,$C$2) -> 139 | AW106: =SUMIFS(DATA!BA$3:BA$101,DATA!$F$3:$F$101,$A106,DATA!$B$3:$B$101,$C$2) -> 142 | AX106: =SUMIFS(DATA!BB$3:BB$101,DATA!$F$3:$F$101,$A106,DATA!$B$3:$B$101,$C$2) -> 140 | AY106: =SUMIFS(DATA!BC$3:BC$101,DATA!$F$3:$F$101,$A106,DATA!$B$3:$B$101,$C$2) -> 134 | AZ106: =SUMIFS(DATA!BD$3:BD$101,DATA!$F$3:$F$101,$A106,DATA!$B$3:$B$101,$C$2) -> 137
A107: Cash from Operating Activities | C107: =SUM(C103:C106) -> 472 | D107: =SUM(D103:D106) -> 489 | E107: 440 | F107: 476 | G107: 499 | H107: 487 | I107: =SUM(I103:I106) -> 439 | J107: =SUM(J103:J106) -> 538 | K107: =SUM(K103:K106) -> 613 | L107: =SUM(L103:L106) -> 690 | M107: 812 | N107: =SUM(N103:N106) -> 887 | O107: =SUM(O103:O106) -> 978 | P107: =SUM(P103:P106) -> 1033 | Q107: =SUM(Q103:Q106) -> 1195 | R107: 1195 | S107: =SUM(S103:S106) -> 1369 | T107: =SUM(T103:T106) -> 1547 | U107: =SUM(U103:U106) -> 1696 | V107: =SUM(V103:V106) -> 1931 | W107: 1152 | X107: =SUM(X103:X106) -> 1150 | Y107: =SUM(Y103:Y106) -> 1189 | Z107: =SUM(Z103:Z106) -> 1195 | AA107: =SUM(AA103:AA106) -> 1205 | AB107: 1247 | AC107: =SUM(AC103:AC106) -> 1248 | AD107: =SUM(AD103:AD106) -> 1275 | AE107: =SUM(AE103:AE106) -> 1290 | AF107: =SUM(AF103:AF106) -> 1321 | AG107: 1400 | AH107: =SUM(AH103:AH106) -> 1418 | AI107: =SUM(AI103:AI106) -> 1440 | AJ107: =SUM(AJ103:AJ106) -> 1496 | AK107: =SUM(AK103:AK106) -> 1542 | AL107: 1553 | AM107: =SUM(AM103:AM106) -> 1577 | AN107: =SUM(AN103:AN106) -> 1604 | AO107: =SUM(AO103:AO106) -> 1705 | AP107: =SUM(AP103:AP106) -> 1737 | AQ107: 1755 | AR107: =SUM(AR103:AR106) -> 1839 | AS107: =SUM(AS103:AS106) -> 1865 | AT107: =SUM(AT103:AT106) -> 1890 | AU107: =SUM(AU103:AU106) -> 1948 | AV107: 1956 | AW107: =SUM(AW103:AW106) -> 1987 | AX107: =SUM(AX103:AX106) -> 2032 | AY107: =SUM(AY103:AY106) -> 2075 | AZ107: =SUM(AZ103:AZ106) -> 2107
A109: FINANCING ACTIVITIES | F109: =SUM(F110,F112) -> 1678 | G109: =SUM(G110,G112) -> 1833 | H109: 1850 | I109: 1161 | J109: 1284 | K109: 1355 | L109: 1111 | M109: 1528 | N109: 1390 | O109: 1190 | P109: 340 | Q109: 190 | R109: 190 | S109: 130 | T109: -260 | U109: -710 | V109: -23 | W109: -240 | X109: -2010 | Y109: -210 | Z109: -293 | AA109: -410 | AB109: -160 | AC109: -210 | AD109: 90 | AE109: 140 | AF109: -60 | AG109: -110 | AH109: 330 | AI109: -10 | AJ109: -10 | AK109: 380 | AL109: -10 | AM109: -210 | AN109: -345 | AO109: -10 | AP109: -10 | AQ109: -60 | AR109: -210 | AS109: -1610 | AT109: -800 | AU109: -610 | AV109: -407 | AW109: -410 | AX109: -725 | AY109: -200 | AZ109: -390
A110: Proceeds from Long Term Debt | C110: =SUMIFS(DATA!G$3:G$101,DATA!$F$3:$F$101,$A110,DATA!$B$3:$B$101,$C$2) -> 836 | D110: =SUMIFS(DATA!H$3:H$101,DATA!$F$3:$F$101,$A110,DATA!$B$3:$B$101,$C$2) -> 2170 | E110: =SUMIFS(DATA!I$3:I$101,DATA!$F$3:$F$101,$A110,DATA!$B$3:$B$101,$C$2) -> 1760 | F110: =SUMIFS(DATA!J$3:J$101,DATA!$F$3:$F$101,$A110,DATA!$B$3:$B$101,$C$2) -> 1990 | G110: =SUMIFS(DATA!K$3:K$101,DATA!$F$3:$F$101,$A110,DATA!$B$3:$B$101,$C$2) -> 2180 | H110: =SUMIFS(DATA!L$3:L$101,DATA!$F$3:$F$101,$A110,DATA!$B$3:$B$101,$C$2) -> 2380 | I110: =SUMIFS(DATA!M$3:M$101,DATA!$F$3:$F$101,$A110,DATA!$B$3:$B$101,$C$2) -> 1990 | J110: =SUMIFS(DATA!N$3:N$101,DATA!$F$3:$F$101,$A110,DATA!$B$3:$B$101,$C$2) -> 1590 | K110: =SUMIFS(DATA!O$3:O$101,DATA!$F$3:$F$101,$A110,DATA!$B$3:$B$101,$C$2) -> 1990 | L110: =SUMIFS(DATA!P$3:P$101,DATA!$F$3:$F$101,$A110,DATA!$B$3:$B$101,$C$2) -> 1790 | M110: =SUMIFS(DATA!Q$3:Q$101,DATA!$F$3:$F$101,$A110,DATA!$B$3:$B$101,$C$2) -> 1960 | N110: =SUMIFS(DATA!R$3:R$101,DATA!$F$3:$F$101,$A110,DATA!$B$3:$B$101,$C$2) -> 1390 | O110: =SUMIFS(DATA!S$3:S$101,DATA!$F$3:$F$101,$A110,DATA!$B$3:$B$101,$C$2) -> 1190 | P110: =SUMIFS(DATA!T$3:T$101,DATA!$F$3:$F$101,$A110,DATA!$B$3:$B$101,$C$2) -> 790 | Q110: =SUMIFS(DATA!U$3:U$101,DATA!$F$3:$F$101,$A110,DATA!$B$3:$B$101,$C$2) -> 190 | R110: =SUMIFS(DATA!V$3:V$101,DATA!$F$3:$F$101,$A110,DATA!$B$3:$B$101,$C$2) -> 190 | S110: =SUMIFS(DATA!W$3:W$101,DATA!$F$3:$F$101,$A110,DATA!$B$3:$B$101,$C$2) -> 190 | T110: =SUMIFS(DATA!X$3:X$101,DATA!$F$3:$F$101,$A110,DATA!$B$3:$B$101,$C$2) -> -40 | U110: =SUMIFS(DATA!Y$3:Y$101,DATA!$F$3:$F$101,$A110,DATA!$B$3:$B$101,$C$2) -> -10 | V110: =SUMIFS(DATA!Z$3:Z$101,DATA!$F$3:$F$101,$A110,DATA!$B$3:$B$101,$C$2) -> -10 | W110: =SUMIFS(DATA!AA$3:AA$101,DATA!$F$3:$F$101,$A110,DATA!$B$3:$B$101,$C$2) -> -40 | X110: =SUMIFS(DATA!AB$3:AB$101,DATA!$F$3:$F$101,$A110,DATA!$B$3:$B$101,$C$2) -> 140 | Y110: =SUMIFS(DATA!AC$3:AC$101,DATA!$F$3:$F$101,$A110,DATA!$B$3:$B$101,$C$2) -> 1520 | Z110: =SUMIFS(DATA!AD$3:AD$101,DATA!$F$3:$F$101,$A110,DATA!$B$3:$B$101,$C$2) -> 1980 | AA110: =SUMIFS(DATA!AE$3:AE$101,DATA!$F$3:$F$101,$A110,DATA!$B$3:$B$101,$C$2) -> 1920 | AB110: =SUMIFS(DATA!AF$3:AF$101,DATA!$F$3:$F$101,$A110,DATA!$B$3:$B$101,$C$2) -> 2740 | AC110: =SUMIFS(DATA!AG$3:AG$101,DATA!$F$3:$F$101,$A110,DATA!$B$3:$B$101,$C$2) -> 2180 | AD110: =SUMIFS(DATA!AH$3:AH$101,DATA!$F$3:$F$101,$A110,DATA!$B$3:$B$101,$C$2) -> 1950 | AE110: =SUMIFS(DATA!AI$3:AI$101,DATA!$F$3:$F$101,$A110,DATA!$B$3:$B$101,$C$2) -> 2380 | AF110: =SUMIFS(DATA!AJ$3:AJ$101,DATA!$F$3:$F$101,$A110,DATA!$B$3:$B$101,$C$2) -> 2180 | AG110: =SUMIFS(DATA!AK$3:AK$101,DATA!$F$3:$F$101,$A110,DATA!$B$3:$B$101,$C$2) -> 2130 | AH110: =SUMIFS(DATA!AL$3:AL$101,DATA!$F$3:$F$101,$A110,DATA!$B$3:$B$101,$C$2) -> 1770 | AI110: =SUMIFS(DATA!AM$3:AM$101,DATA!$F$3:$F$101,$A110,DATA!$B$3:$B$101,$C$2) -> 1180 | AJ110: =SUMIFS(DATA!AN$3:AN$101,DATA!$F$3:$F$101,$A110,DATA!$B$3:$B$101,$C$2) -> 780 | AK110: =SUMIFS(DATA!AO$3:AO$101,DATA!$F$3:$F$101,$A110,DATA!$B$3:$B$101,$C$2) -> 570 | AL110: =SUMIFS(DATA!AP$3:AP$101,DATA!$F$3:$F$101,$A110,DATA!$B$3:$B$101,$C$2) -> 180 | AM110: =SUMIFS(DATA!AQ$3:AQ$101,DATA!$F$3:$F$101,$A110,DATA!$B$3:$B$101,$C$2) -> -20 | AN110: =SUMIFS(DATA!AR$3:AR$101,DATA!$F$3:$F$101,$A110,DATA!$B$3:$B$101,$C$2) -> -60 | AO110: =SUMIFS(DATA!AS$3:AS$101,DATA!$F$3:$F$101,$A110,DATA!$B$3:$B$101,$C$2) -> -20 | AP110: =SUMIFS(DATA!AT$3:AT$101,DATA!$F$3:$F$101,$A110,DATA!$B$3:$B$101,$C$2) -> -20 | AQ110: =SUMIFS(DATA!AU$3:AU$101,DATA!$F$3:$F$101,$A110,DATA!$B$3:$B$101,$C$2) -> -50 | AR110: =SUMIFS(DATA!AV$3:AV$101,DATA!$F$3:$F$101,$A110,DATA!$B$3:$B$101,$C$2) -> -70 | AS110: =SUMIFS(DATA!AW$3:AW$101,DATA!$F$3:$F$101,$A110,DATA!$B$3:$B$101,$C$2) -> -90 | AT110: =SUMIFS(DATA!AX$3:AX$101,DATA!$F$3:$F$101,$A110,DATA!$B$3:$B$101,$C$2) -> 1180 | AU110: =SUMIFS(DATA!AY$3:AY$101,DATA!$F$3:$F$101,$A110,DATA!$B$3:$B$101,$C$2) -> 1310 | AV110: =SUMIFS(DATA!AZ$3:AZ$101,DATA!$F$3:$F$101,$A110,DATA!$B$3:$B$101,$C$2) -> 2340 | AW110: =SUMIFS(DATA!BA$3:BA$101,DATA!$F$3:$F$101,$A110,DATA!$B$3:$B$101,$C$2) -> 1770 | AX110: =SUMIFS(DATA!BB$3:BB$101,DATA!$F$3:$F$101,$A110,DATA!$B$3:$B$101,$C$2) -> 1350 | AY110: =SUMIFS(DATA!BC$3:BC$101,DATA!$F$3:$F$101,$A110,DATA!$B$3:$B$101,$C$2) -> 2180 | AZ110: =SUMIFS(DATA!BD$3:BD$101,DATA!$F$3:$F$101,$A110,DATA!$B$3:$B$101,$C$2) -> 1790
A111: Sinking Fund Withdrawals | C111: =SUMIFS(DATA!G$3:G$101,DATA!$F$3:$F$101,$A111,DATA!$B$3:$B$101,$C$2) -> 129 | D111: =SUMIFS(DATA!H$3:H$101,DATA!$F$3:$F$101,$A111,DATA!$B$3:$B$101,$C$2) -> 393 | E111: =SUMIFS(DATA!I$3:I$101,DATA!$F$3:$F$101,$A111,DATA!$B$3:$B$101,$C$2) -> 102 | F111: =SUMIFS(DATA!J$3:J$101,DATA!$F$3:$F$101,$A111,DATA!$B$3:$B$101,$C$2) -> 26 | G111: =SUMIFS(DATA!K$3:K$101,DATA!$F$3:$F$101,$A111,DATA!$B$3:$B$101,$C$2) -> 0 | H111: =SUMIFS(DATA!L$3:L$101,DATA!$F$3:$F$101,$A111,DATA!$B$3:$B$101,$C$2) -> 15 | I111: =SUMIFS(DATA!M$3:M$101,DATA!$F$3:$F$101,$A111,DATA!$B$3:$B$101,$C$2) -> 416 | J111: =SUMIFS(DATA!N$3:N$101,DATA!$F$3:$F$101,$A111,DATA!$B$3:$B$101,$C$2) -> 184 | K111: =SUMIFS(DATA!O$3:O$101,DATA!$F$3:$F$101,$A111,DATA!$B$3:$B$101,$C$2) -> 265 | L111: =SUMIFS(DATA!P$3:P$101,DATA!$F$3:$F$101,$A111,DATA!$B$3:$B$101,$C$2) -> 676 | M111: =SUMIFS(DATA!Q$3:Q$101,DATA!$F$3:$F$101,$A111,DATA!$B$3:$B$101,$C$2) -> 156 | N111: =SUMIFS(DATA!R$3:R$101,DATA!$F$3:$F$101,$A111,DATA!$B$3:$B$101,$C$2) -> 0 | O111: =SUMIFS(DATA!S$3:S$101,DATA!$F$3:$F$101,$A111,DATA!$B$3:$B$101,$C$2) -> 0 | P111: =SUMIFS(DATA!T$3:T$101,DATA!$F$3:$F$101,$A111,DATA!$B$3:$B$101,$C$2) -> 450 | Q111: =SUMIFS(DATA!U$3:U$101,DATA!$F$3:$F$101,$A111,DATA!$B$3:$B$101,$C$2) -> 0 | R111: =SUMIFS(DATA!V$3:V$101,DATA!$F$3:$F$101,$A111,DATA!$B$3:$B$101,$C$2) -> 0 | S111: =SUMIFS(DATA!W$3:W$101,DATA!$F$3:$F$101,$A111,DATA!$B$3:$B$101,$C$2) -> 60 | T111: =SUMIFS(DATA!X$3:X$101,DATA!$F$3:$F$101,$A111,DATA!$B$3:$B$101,$C$2) -> 250 | U111: =SUMIFS(DATA!Y$3:Y$101,DATA!$F$3:$F$101,$A111,DATA!$B$3:$B$101,$C$2) -> 700 | V111: =SUMIFS(DATA!Z$3:Z$101,DATA!$F$3:$F$101,$A111,DATA!$B$3:$B$101,$C$2) -> 13 | W111: =SUMIFS(DATA!AA$3:AA$101,DATA!$F$3:$F$101,$A111,DATA!$B$3:$B$101,$C$2) -> 230 | X111: =SUMIFS(DATA!AB$3:AB$101,DATA!$F$3:$F$101,$A111,DATA!$B$3:$B$101,$C$2) -> 800 | Y111: =SUMIFS(DATA!AC$3:AC$101,DATA!$F$3:$F$101,$A111,DATA!$B$3:$B$101,$C$2) -> 200 | Z111: =SUMIFS(DATA!AD$3:AD$101,DATA!$F$3:$F$101,$A111,DATA!$B$3:$B$101,$C$2) -> 332 | AA111: =SUMIFS(DATA!AE$3:AE$101,DATA!$F$3:$F$101,$A111,DATA!$B$3:$B$101,$C$2) -> 355 | AB111: =SUMIFS(DATA!AF$3:AF$101,DATA!$F$3:$F$101,$A111,DATA!$B$3:$B$101,$C$2) -> 267 | AC111: =SUMIFS(DATA!AG$3:AG$101,DATA!$F$3:$F$101,$A111,DATA!$B$3:$B$101,$C$2) -> 100 | AD111: =SUMIFS(DATA!AH$3:AH$101,DATA!$F$3:$F$101,$A111,DATA!$B$3:$B$101,$C$2) -> 290 | AE111: =SUMIFS(DATA!AI$3:AI$101,DATA!$F$3:$F$101,$A111,DATA!$B$3:$B$101,$C$2) -> 192 | AF111: =SUMIFS(DATA!AJ$3:AJ$101,DATA!$F$3:$F$101,$A111,DATA!$B$3:$B$101,$C$2) -> 194 | AG111: =SUMIFS(DATA!AK$3:AK$101,DATA!$F$3:$F$101,$A111,DATA!$B$3:$B$101,$C$2) -> 194 | AH111: =SUMIFS(DATA!AL$3:AL$101,DATA!$F$3:$F$101,$A111,DATA!$B$3:$B$101,$C$2) -> 50 | AI111: =SUMIFS(DATA!AM$3:AM$101,DATA!$F$3:$F$101,$A111,DATA!$B$3:$B$101,$C$2) -> 100 | AJ111: =SUMIFS(DATA!AN$3:AN$101,DATA!$F$3:$F$101,$A111,DATA!$B$3:$B$101,$C$2) -> 400 | AK111: =SUMIFS(DATA!AO$3:AO$101,DATA!$F$3:$F$101,$A111,DATA!$B$3:$B$101,$C$2) -> 0 | AL111: =SUMIFS(DATA!AP$3:AP$101,DATA!$F$3:$F$101,$A111,DATA!$B$3:$B$101,$C$2) -> 100 | AM111: =SUMIFS(DATA!AQ$3:AQ$101,DATA!$F$3:$F$101,$A111,DATA!$B$3:$B$101,$C$2) -> 200 | AN111: =SUMIFS(DATA!AR$3:AR$101,DATA!$F$3:$F$101,$A111,DATA!$B$3:$B$101,$C$2) -> 325 | AO111: =SUMIFS(DATA!AS$3:AS$101,DATA!$F$3:$F$101,$A111,DATA!$B$3:$B$101,$C$2) -> 0 | AP111: =SUMIFS(DATA!AT$3:AT$101,DATA!$F$3:$F$101,$A111,DATA!$B$3:$B$101,$C$2) -> 0 | AQ111: =SUMIFS(DATA!AU$3:AU$101,DATA!$F$3:$F$101,$A111,DATA!$B$3:$B$101,$C$2) -> 50 | AR111: =SUMIFS(DATA!AV$3:AV$101,DATA!$F$3:$F$101,$A111,DATA!$B$3:$B$101,$C$2) -> 100 | AS111: =SUMIFS(DATA!AW$3:AW$101,DATA!$F$3:$F$101,$A111,DATA!$B$3:$B$101,$C$2) -> 800 | AT111: =SUMIFS(DATA!AX$3:AX$101,DATA!$F$3:$F$101,$A111,DATA!$B$3:$B$101,$C$2) -> 355 | AU111: =SUMIFS(DATA!AY$3:AY$101,DATA!$F$3:$F$101,$A111,DATA!$B$3:$B$101,$C$2) -> 200 | AV111: =SUMIFS(DATA!AZ$3:AZ$101,DATA!$F$3:$F$101,$A111,DATA!$B$3:$B$101,$C$2) -> 148 | AW111: =SUMIFS(DATA!BA$3:BA$101,DATA!$F$3:$F$101,$A111,DATA!$B$3:$B$101,$C$2) -> 195 | AX111: =SUMIFS(DATA!BB$3:BB$101,DATA!$F$3:$F$101,$A111,DATA!$B$3:$B$101,$C$2) -> 399 | AY111: =SUMIFS(DATA!BC$3:BC$101,DATA!$F$3:$F$101,$A111,DATA!$B$3:$B$101,$C$2) -> 0 | AZ111: =SUMIFS(DATA!BD$3:BD$101,DATA!$F$3:$F$101,$A111,DATA!$B$3:$B$101,$C$2) -> 124
A112: Retirement of Long Term Debt | C112: =SUMIFS(DATA!G$3:G$101,DATA!$F$3:$F$101,$A112,DATA!$B$3:$B$101,$C$2) -> -119 | D112: =SUMIFS(DATA!H$3:H$101,DATA!$F$3:$F$101,$A112,DATA!$B$3:$B$101,$C$2) -> -808 | E112: =SUMIFS(DATA!I$3:I$101,DATA!$F$3:$F$101,$A112,DATA!$B$3:$B$101,$C$2) -> -176 | F112: =SUMIFS(DATA!J$3:J$101,DATA!$F$3:$F$101,$A112,DATA!$B$3:$B$101,$C$2) -> -312 | G112: =SUMIFS(DATA!K$3:K$101,DATA!$F$3:$F$101,$A112,DATA!$B$3:$B$101,$C$2) -> -347 | H112: =SUMIFS(DATA!L$3:L$101,DATA!$F$3:$F$101,$A112,DATA!$B$3:$B$101,$C$2) -> -530 | I112: =SUMIFS(DATA!M$3:M$101,DATA!$F$3:$F$101,$A112,DATA!$B$3:$B$101,$C$2) -> -829 | J112: =SUMIFS(DATA!N$3:N$101,DATA!$F$3:$F$101,$A112,DATA!$B$3:$B$101,$C$2) -> -306 | K112: =SUMIFS(DATA!O$3:O$101,DATA!$F$3:$F$101,$A112,DATA!$B$3:$B$101,$C$2) -> -635 | L112: =SUMIFS(DATA!P$3:P$101,DATA!$F$3:$F$101,$A112,DATA!$B$3:$B$101,$C$2) -> -679 | M112: =SUMIFS(DATA!Q$3:Q$101,DATA!$F$3:$F$101,$A112,DATA!$B$3:$B$101,$C$2) -> -432 | N112: =SUMIFS(DATA!R$3:R$101,DATA!$F$3:$F$101,$A112,DATA!$B$3:$B$101,$C$2) -> 0 | O112: =SUMIFS(DATA!S$3:S$101,DATA!$F$3:$F$101,$A112,DATA!$B$3:$B$101,$C$2) -> 0 | P112: =SUMIFS(DATA!T$3:T$101,DATA!$F$3:$F$101,$A112,DATA!$B$3:$B$101,$C$2) -> -450 | Q112: =SUMIFS(DATA!U$3:U$101,DATA!$F$3:$F$101,$A112,DATA!$B$3:$B$101,$C$2) -> 0 | R112: =SUMIFS(DATA!V$3:V$101,DATA!$F$3:$F$101,$A112,DATA!$B$3:$B$101,$C$2) -> 0 | S112: =SUMIFS(DATA!W$3:W$101,DATA!$F$3:$F$101,$A112,DATA!$B$3:$B$101,$C$2) -> -60 | T112: =SUMIFS(DATA!X$3:X$101,DATA!$F$3:$F$101,$A112,DATA!$B$3:$B$101,$C$2) -> -220 | U112: =SUMIFS(DATA!Y$3:Y$101,DATA!$F$3:$F$101,$A112,DATA!$B$3:$B$101,$C$2) -> -700 | V112: =SUMIFS(DATA!Z$3:Z$101,DATA!$F$3:$F$101,$A112,DATA!$B$3:$B$101,$C$2) -> -13 | W112: =SUMIFS(DATA!AA$3:AA$101,DATA!$F$3:$F$101,$A112,DATA!$B$3:$B$101,$C$2) -> -200 | X112: =SUMIFS(DATA!AB$3:AB$101,DATA!$F$3:$F$101,$A112,DATA!$B$3:$B$101,$C$2) -> -2150 | Y112: =SUMIFS(DATA!AC$3:AC$101,DATA!$F$3:$F$101,$A112,DATA!$B$3:$B$101,$C$2) -> -1730 | Z112: =SUMIFS(DATA!AD$3:AD$101,DATA!$F$3:$F$101,$A112,DATA!$B$3:$B$101,$C$2) -> -2273 | AA112: =SUMIFS(DATA!AE$3:AE$101,DATA!$F$3:$F$101,$A112,DATA!$B$3:$B$101,$C$2) -> -2330 | AB112: =SUMIFS(DATA!AF$3:AF$101,DATA!$F$3:$F$101,$A112,DATA!$B$3:$B$101,$C$2) -> -2900 | AC112: =SUMIFS(DATA!AG$3:AG$101,DATA!$F$3:$F$101,$A112,DATA!$B$3:$B$101,$C$2) -> -2390 | AD112: =SUMIFS(DATA!AH$3:AH$101,DATA!$F$3:$F$101,$A112,DATA!$B$3:$B$101,$C$2) -> -1860 | AE112: =SUMIFS(DATA!AI$3:AI$101,DATA!$F$3:$F$101,$A112,DATA!$B$3:$B$101,$C$2) -> -2240 | AF112: =SUMIFS(DATA!AJ$3:AJ$101,DATA!$F$3:$F$101,$A112,DATA!$B$3:$B$101,$C$2) -> -2240 | AG112: =SUMIFS(DATA!AK$3:AK$101,DATA!$F$3:$F$101,$A112,DATA!$B$3:$B$101,$C$2) -> -2240 | AH112: =SUMIFS(DATA!AL$3:AL$101,DATA!$F$3:$F$101,$A112,DATA!$B$3:$B$101,$C$2) -> -1440 | AI112: =SUMIFS(DATA!AM$3:AM$101,DATA!$F$3:$F$101,$A112,DATA!$B$3:$B$101,$C$2) -> -1190 | AJ112: =SUMIFS(DATA!AN$3:AN$101,DATA!$F$3:$F$101,$A112,DATA!$B$3:$B$101,$C$2) -> -790 | AK112: =SUMIFS(DATA!AO$3:AO$101,DATA!$F$3:$F$101,$A112,DATA!$B$3:$B$101,$C$2) -> -190 | AL112: =SUMIFS(DATA!AP$3:AP$101,DATA!$F$3:$F$101,$A112,DATA!$B$3:$B$101,$C$2) -> -190 | AM112: =SUMIFS(DATA!AQ$3:AQ$101,DATA!$F$3:$F$101,$A112,DATA!$B$3:$B$101,$C$2) -> -190 | AN112: =SUMIFS(DATA!AR$3:AR$101,DATA!$F$3:$F$101,$A112,DATA!$B$3:$B$101,$C$2) -> -285 | AO112: =SUMIFS(DATA!AS$3:AS$101,DATA!$F$3:$F$101,$A112,DATA!$B$3:$B$101,$C$2) -> 10 | AP112: =SUMIFS(DATA!AT$3:AT$101,DATA!$F$3:$F$101,$A112,DATA!$B$3:$B$101,$C$2) -> 10 | AQ112: =SUMIFS(DATA!AU$3:AU$101,DATA!$F$3:$F$101,$A112,DATA!$B$3:$B$101,$C$2) -> -10 | AR112: =SUMIFS(DATA!AV$3:AV$101,DATA!$F$3:$F$101,$A112,DATA!$B$3:$B$101,$C$2) -> -140 | AS112: =SUMIFS(DATA!AW$3:AW$101,DATA!$F$3:$F$101,$A112,DATA!$B$3:$B$101,$C$2) -> -1520 | AT112: =SUMIFS(DATA!AX$3:AX$101,DATA!$F$3:$F$101,$A112,DATA!$B$3:$B$101,$C$2) -> -1980 | AU112: =SUMIFS(DATA!AY$3:AY$101,DATA!$F$3:$F$101,$A112,DATA!$B$3:$B$101,$C$2) -> -1920 | AV112: =SUMIFS(DATA!AZ$3:AZ$101,DATA!$F$3:$F$101,$A112,DATA!$B$3:$B$101,$C$2) -> -2747 | AW112: =SUMIFS(DATA!BA$3:BA$101,DATA!$F$3:$F$101,$A112,DATA!$B$3:$B$101,$C$2) -> -2180 | AX112: =SUMIFS(DATA!BB$3:BB$101,DATA!$F$3:$F$101,$A112,DATA!$B$3:$B$101,$C$2) -> -2075 | AY112: =SUMIFS(DATA!BC$3:BC$101,DATA!$F$3:$F$101,$A112,DATA!$B$3:$B$101,$C$2) -> -2380 | AZ112: =SUMIFS(DATA!BD$3:BD$101,DATA!$F$3:$F$101,$A112,DATA!$B$3:$B$101,$C$2) -> -2180
